Workbook

Sheet _TM_Uvod (hidden)
A1: Left | B1: Top | C1: Right | D1: Bottom | E1: Ref
A2: 1 | B2: 12 | C2: 2 | D2: 12 | E2: $A$12:$B$12

Sheet (Naslovna)
A1: v_1.1
B2: Prilog 9.2.4 | C2: Tromjesečni financijski izvještaj o poslovanju
B3: Ministarstvo državne imovine
C8: Tromjesečni financijski izvještaj o poslovanju
C11: ="za "&Podloga!B8&". kvartal "&LEFT(Podloga!B7,4)& ". godine" -> za 1. kvartal 2020. godine
B14: =Podloga!B2 -> LUKA-VUKOVAR doo
C17: =HYPERLINK("#Uvod!A1","Uvod") -> Uvod
C19: =HYPERLINK("#Podloga!A1","Podloga za izradu plana") -> Podloga za izradu plana
C21: =HYPERLINK("#'Tijela društva'!A1","Tijela društva") -> Tijela društva
C23: =HYPERLINK("#'Vl. struktura'!A1","Vlasnička struktura") -> Vlasnička struktura
C25: =HYPERLINK("#Bilanca!A1","Izvještaj o financijskom položaju") -> Izvještaj o financijskom položaju
C27: =HYPERLINK("#'RDG Podloga'!A1","Račun dobiti i gubitka") -> Račun dobiti i gubitka
C29: =HYPERLINK("#'NT Podloga dir.'!A1","Izvještaj o novčanom toku (direktna metoda)") -> Izvještaj o novčanom toku (direktna metoda)
C31: =HYPERLINK("#'NT Podloga indir.'!A1","Izvještaj o novčanom toku (indirektna metoda)") -> Izvještaj o novčanom toku (indirektna metoda)
C33: =HYPERLINK("#MFIN!A1","Podaci za Ministarstvo financija") -> Podaci za Ministarstvo financija
C35: =HYPERLINK("#'Sektorski pokazatelji'!A1","Sektorski pokazatelji") -> Sektorski pokazatelji

Sheet Naslovna (hidden)
B2: Prilog 9.2.4 | C2: Tromjesečni financijski izvještaj o poslovanju
B3: Ministarstvo državne imovine
C8: Tromjesečni financijski izvještaj o poslovanju
C11: ="za "&Podloga!B8&". kvartal "&LEFT(Podloga!B7,4)& ". godine" -> za 1. kvartal 2020. godine
C15: =HYPERLINK("#Uvod!A1","Uvod") -> Uvod
C17: =HYPERLINK("#Sadržaj!A1","Sadržaj") -> Sadržaj
C19: =HYPERLINK("#Podloga!A1","Podloga za izradu plana") -> Podloga za izradu plana
C21: =HYPERLINK("#Bilanca!A1","Izvještaj o financijskom položaju") -> Izvještaj o financijskom položaju
C23: =HYPERLINK("#'RDG'!A1","Račun dobiti i gubitka") -> Račun dobiti i gubitka
C25: =HYPERLINK("#'NT dir.'!A1","Izvještaj o novčanom toku (direktna metoda)") -> Izvještaj o novčanom toku (direktna metoda)
C27: =HYPERLINK("#'NT indir.'!A1","Izvještaj o novčanom toku (indirektna metoda)") -> Izvještaj o novčanom toku (indirektna metoda)
C29: =HYPERLINK("#'Sponzorstva i donacije'!A1","Popis danih sponzorstva i donacija") -> Popis danih sponzorstva i donacija
C31: =HYPERLINK("#MFIN!A1","Podaci za Ministarstvo financija") -> Podaci za Ministarstvo financija
C33: =HYPERLINK("#Dashboard!A1","Dashboard") -> Dashboard
C35: =HYPERLINK("#'Zračne luke '!A1","Sektorski pokazatelji") -> Sektorski pokazatelji

Sheet Uvod
A1: Prilog: Podloga za izradu tromjesečnog financijskog izvještaja o poslovanju
A3: Sukladno važećim zakonskim i podzakonskim propisima sve pravne osobe na koje se odnosi Uputa za izradu i dostavu planova i izvještaja o poslovanju, dužne su dostavljati planove poslovanja Primateljima planova i izvještaja kako je definirano Uputom.
A5: Kao što je propisano u Uputi za izradu i dostavu planova i izvještaja o poslovanju, ovaj dokument sadrži propisanu formu većine potrebnih sastavnica izvještaja o poslovanju.
A7: Sve pravne osobe na koje se odnosi Uputa za izradu i dostavu planova i izvještaja o poslovanju obvezne su popuniti: Zelene Listove u Excel podlozi: Prvi List “Podloga” → Subjekti izvještavanja trebaju unijeti osnovne informacije o društvu, na primjer: ime društva, adresa, članovi Uprave, temeljni kapital, planirane investicije (kratki opis), vrijednost zaprimljenih subvencija i donacija itd. Također, Subjekti izvještavanja trebaju odabrati metodu pripreme Izvještaja o novčanom toku (direktna ili indirektna), popuniti informacije o broju izdanih dionica, njihovoj vrijednosti te o prosječnom broju zaposlenika u promatranom razdoblju. Subjekti izvještavanja trebaju unijeti potpune iznose za sva izvještajna razdoblja protekle godine. Podloge za temeljne financijske izvještaje (Listovi: “Bilanca”, “RDG”, “NT dir.” ili “NT. indir.”) → Subjekti izvještavanja trebaju unijeti stvarne podatke, pri čemu se za Listove "RDG", “NT dir.” ili “NT. indir." unose kumulativni podaci od početka godine. Napomena: Podloge za financijske izvještaje pripremljeni su u skladu s standardnim formatima za financijsko izvještavanje u Republici Hrvatskoj (kako je utvrđeno Zakonom). Specijalni List za Ministarstvo financija → Subjekti izvještavanja trebaju unijeti specifične podatke koji su traženi od strane Ministarstva financija poput: iznosa državnih subvencija, investicija, iznosa isplaćenih dividendi itd. Specifične sektorske pokazatelje (narančasti Listovi) → navedeni Listovi uključuju operativne, financijske, tržišne i razvojne pokazatelje. Subjekti izvještavanja trebaju popuniti pokazatelje za industriju u kojoj posluju.
A11: Objašnjenje boja Listova:
B13: Listovi s osnovnim informacijama i uputama
B14: Listovi s financijskim izvještajima (potrebno unijeti podatke)
B15: Listovi s osnovnim pokazateljima o poslovanju (pokazatelji su dostupni nakon što su ispunjeni Listovi s podacima iz financijskih izvještaja)
B16: Listovi s specifičnim sektorskim pokazateljima

Sheet Sadržaj (hidden)
A1: Sadržaj
A2: Podloga za izradu izvještaja | B2: =HYPERLINK("#Podloga!A1","Podloga za izradu plana") -> Podloga za izradu plana
A3: Izvještaj o financijskom položaju | B3: =HYPERLINK("#Bilanca!A1","Bilanca") -> Bilanca
A4: Podloga za izradu Računa dobiti i gubitka | B4: =HYPERLINK("#'RDG Podloga'!A1","Podloga RDG") -> Podloga RDG
A5: Račun dobiti i gubitka | B5: =HYPERLINK("#RDG!A1","RDG") -> RDG
A6: Podloga za izradu izvještaja o novčanom toku (direktna metoda) | B6: =HYPERLINK("#'NT Podloga dir.'!A1","NT Podloga dir.") -> NT Podloga dir.
A7: Podloga za izradu izvještaja o novčanom toku (indirektna metoda) | B7: =HYPERLINK("#'NT Podloga indir.'!A1","NT Podloga indir.") -> NT Podloga indir.
A8: Izvještaj o novčanom toku (direktna metoda) | B8: =HYPERLINK("#'NT dir.'!A1","NT dir.") -> NT dir.
A9: Izvještaj o novčanom toku (indirektna metoda) | B9: =HYPERLINK("#'NT indir.'!A1","NT indir. ") -> NT indir.
A10: Pregled danih sponzorstva i donacija | B10: =HYPERLINK("#'Sponzorstva i donacije'!A1","Sponzorstva i donacije") -> Sponzorstva i donacije
A11: Podaci za Ministarstvo financija | B11: =HYPERLINK("#MFIN!A1","MFIN") -> MFIN
A12: Dashboard | B12: =HYPERLINK("#Dashboard!A1","Dashboard") -> Dashboard
A13: Sektorski ključni pokazatelji poslovanja

Sheet _TM_Podloga (hidden)
A1: Left | B1: Top | C1: Right | D1: Bottom | E1: Ref
A2: 1 | B2: 19 | C2: 9 | D2: 22 | E2: $A$19:$I$22
A3: 1 | B3: 1 | C3: 9 | D3: 10 | E3: $A$1:$I$10
A4: 1 | B4: 11 | C4: 9 | D4: 17 | E4: $A$11:$I$17

Sheet _TM_Bilanca (hidden)
A1: Left | B1: Top | C1: Right | D1: Bottom | E1: Ref
A2: 3 | B2: 105 | C2: 5 | D2: 105 | E2: $C$105:$E$105

Sheet Podloga
A1: Informacije o trgovačkom društvu (tekstualni opis)
A2: Naziv društva: | B2: LUKA-VUKOVAR doo
A3: Adresa društva: | B3: DUNAVSKI PRILAZ 8, 32000 VUKOVAR
A4: Temeljni kapital (HRK): | B4: 35716200
A5: Izvještaj je konsolidiran: | B5: NE
A6: Primjena računovodstvenih standarda: | B6: HSFI
A7: Sastavlja se za godinu: | B7: 2020
A8: Kvartal: | B8: 1
A9: Veličina subjekta: | B9: Srednji
A10: Osnovna djelatnost društva: | B10: PREKRCAJ TERETA
A11: Pravni oblik: | B11: d.o.o.
A12: OIB: | B12: 53535248695
A13: Da li je društvo u procesu restrukturiranja: | B13: NE | C13: =IF(B13="DA","Potrebno postupiti prema točki 6.3.1. Upute","") -> 
A14: Datum zadnje održane skupštine: | B14: 2019-06-21 | D14: =IF(SUM(B14:C14)>0,"Molimo dostaviti zapisnik.",0) -> Molimo dostaviti zapisnik.
A15: Temeljni akt (datum zadnje promjene): | B15: 2016-06-13
A16: Korištena metoda kod izvještaja o novčanom toku: | B16: Direktna
A17: Datum ispunjavanja izvještaja: | B17: 2020-04-29
A18: Razrada izvještaja trgovačkog društva (tekstualni opis)
A19: Ostvarene investicije za izvještajno razdoblje: | B19: 8360
A20: Izvor sredstava za investicije: | B20: vlastiti
A21: Sudski sporovi s značajnim utjecajem na poslovni rezultat: | B21: 0
A22: Primljena bespovratna sredstva iz EU (iznos u kn / naziv projekta / izvor-fond): | B22: 0
A23: Iznos obveza koje čine javni dug (iznos u razdoblju / iznos ukupno / opis): | B23: 0
A24: Iznos primljenih državnih jamstava (iznos u razdoblju / iznos ukupno / opis): | B24: 0
A25: Iznos primljenih subvencija (iznos / opis): | B25: 0
A26: Iznos primljenih donacija (iznos / opis): | B26: 0
A28: Tržišni pokazatelji dionica*
B29: ="1. kvartal "&LEFT(B7,4)-1 -> 1. kvartal 2019 | C29: ="2. kvartal "&LEFT(B7,4)-1 -> 2. kvartal 2019 | D29: ="3. kvartal "&LEFT(B7,4)-1 -> 3. kvartal 2019 | E29: ="4. kvartal "&LEFT(B7,4)-1 -> 4. kvartal 2019 | F29: ="Kumulativ "&LEFT(B7,4)-1 -> Kumulativ 2019 | G29: ="1. kvartal "&LEFT(B7,4) -> 1. kvartal 2020 | H29: ="2. kvartal "&LEFT(B7,4) -> 2. kvartal 2020 | I29: ="3. kvartal "&LEFT(B7,4) -> 3. kvartal 2020 | J29: ="4. kvartal "&LEFT(B7,4) -> 4. kvartal 2020 | K29: ="Kumulativ "&LEFT(B7,4) -> Kumulativ 2020
A30: Broj izdanih dionica:
A31: Tržišna vrijednost dionice:
A34: Vremenska razdoblja: | B34: ="1. kvartal "&LEFT(B7,4)-1 -> 1. kvartal 2019 | C34: ="2. kvartal "&LEFT(B7,4)-1 -> 2. kvartal 2019 | D34: ="3. kvartal "&LEFT(B7,4)-1 -> 3. kvartal 2019 | E34: ="4. kvartal "&LEFT(B7,4)-1 -> 4. kvartal 2019 | F34: ="Kumulativ "&LEFT(B7,4)-1 -> Kumulativ 2019 | G34: ="1. kvartal "&LEFT(B7,4) -> 1. kvartal 2020 | H34: ="2. kvartal "&LEFT(B7,4) -> 2. kvartal 2020 | I34: ="3. kvartal "&LEFT(B7,4) -> 3. kvartal 2020 | J34: ="4. kvartal "&LEFT(B7,4) -> 4. kvartal 2020 | K34: ="Kumulativ "&LEFT(B7,4) -> Kumulativ 2020 | L34: ="Plan "&LEFT(B7,4) -> Plan 2020
A35: Broj zaposlenih na kraju izvještajnog razdoblja: | B35: 71 | C35: 71 | D35: 72 | E35: 70 | F35: 70 | G35: 68
A38: * Tržišni pokazatelji dionica ispunjavaju se za zadnji dan u razdoblju
A41: =HYPERLINK("#Sadržaj!A1","Povratak na sadržaj") -> Povratak na sadržaj

Sheet Tijela društva
A1: Tijela društva
A3: Uprava
A4: R.Br. | B4: Ime | C4: Prezime | D4: Funkcija | F4: Spol | G4: Početak mandata | H4: Kraj mandata | I4: Kontakt E-mail
A5: 1. | B5: Marijan | C5: Kuprešak | D5: Direktor | F5: M | G5: 2018-02-14 | H5: 2023-02-14 | I5: marijan.kupresak@luka-vukovar.hr
A11: Nadzorni odbor
A12: R.Br. | B12: Ime | C12: Prezime | D12: Funkcija | E12: Predstavnik | F12: Spol | G12: Početak mandata | H12: Kraj mandata | I12: Kontakt E-mail
A13: 1. | B13: Ljilja | C13: Blažević | D13: Predsjednik | E13: RH - funkcija | F13: Ž | G13: 2018-04-16 | H13: 2022-04-16 | I13: 1.ljiljana.blazevic@gmail.com
A14: 2. | B14: Marijana | C14: Grubišić | D14: Zamjenik predsj. | F14: Ž | G14: 2018-04-16 | H14: 2022-04-16 | I14: marijana.grubisic@vukovar.hr
A15: 3. | B15: Vinko | C15: Rezo | D15: Predstavnik radnika | E15: predst. radnika | F15: M | G15: 2017-03-30 | H15: 2021-03-30 | I15: vinko.rezo@gmail.com
A16: 4 | B16: Zoran | C16: Turuk | D16: Član | E16: RH - funkcija | F16: M | G16: 2018-04-16 | H16: 2022-04-16 | I16: zoran.turuk@mmpi.hr
A17: 5. | B17: Tanja | C17: Kral | D17: Član | E17: RH - funkcija | F17: ž | G17: 2018-04-16 | H17: 2022-04-16 | I17: tanja.kral@pomorstvo.hr
A19: Revizijski odbor
A20: R.Br. | B20: Ime | C20: Prezime | D20: Funkcija | F20: Spol | G20: Početak mandata | H20: Kraj mandata | I20: Kontakt E-mail

Sheet Vl. struktura
A1: Vlasnička struktura na dan:
A3: Društvo s ograničenom odgovornošću
A4: R.Br. | B4: Naziv društva | C4: Poštanski broj sjedišta | D4: Sjedište | E4: OIB društva | F4: Temeljni kapital (kn) | G4: Nominalna vrijednost imatelja RH (kn) | H4: % vlas. RH | I4: Nominalna vrijednost ost. drž. Imatelja (kn) | J4: % vlas. ostalih drž. Imatelja | K4: Teret | L4: Sudski spor
B5: =IF(ISBLANK(Podloga!B2),"",Podloga!B2) -> LUKA-VUKOVAR doo | C5: 32000 | D5: vukovar | E5: 53535248695 | F5: 35716200 | G5: 35716200 | H5: 100 | K5: 0
A9: Dioničko društvo
A10: R. Br. | B10: Naziv društva | C10: Poštanski broj sjedišta | D10: Sjedište | E10: Oznaka VP | F10: OIB društva | G10: Temeljni kapital (kn) | H10: Izdana količina dionica | I10: Nominalna vrijednost dionice (kn) | J10: broj dionica čiji je imatelj RH | K10: % vlas. RH | L10: broj dionica ost. drž. imatelja | M10: % vlas.ost. drž. Imatelja | N10: Teret | O10: Sudski spor
B11: =IF(ISBLANK(Podloga!B2),"",Podloga!B2) -> LUKA-VUKOVAR doo
A16: NAPOMENA
A17: * popunjava se tablica ovisno o pravnom obliku pravne osobe od posebnog interesa

Sheet Bilanca
A1: =IF(Podloga!$B$8=1,"IZVJEŠTAJ O FINANCIJSKOM POLOŽAJU SA STANJEM NA 31.03.",IF(Podloga!$B$8=2,"IZVJEŠTAJ O FINANCIJSKOM POLOŽAJU SA STANJEM NA 30.6.",IF(Podloga!$B$8=3,"IZVJEŠTAJ O FINANCIJSKOM POLOŽAJU SA STANJEM NA 30.09.",IF(Podloga!$B$8=4,"IZVJEŠTAJ O FINANCIJSKOM POLOŽAJU SA STANJEM NA 31.12.")))) -> IZVJEŠTAJ O FINANCIJSKOM POLOŽAJU SA STANJEM NA 31.03. | C1: =IF(C68=C131,Podloga!B34&" bilancira",Podloga!B34&" ne bilancira") -> 1. kvartal 2019 bilancira | D1: =IF(D68=D131,Podloga!C34&" bilancira",Podloga!C34&" ne bilancira") -> 2. kvartal 2019 bilancira | E1: =IF(E68=E131,Podloga!D34&" bilancira",Podloga!D34&" ne bilancira") -> 3. kvartal 2019 bilancira | F1: =IF(F68=F131,Podloga!E34&" bilancira",Podloga!E34&" ne bilancira") -> 4. kvartal 2019 bilancira | G1: =IF(G68=G131,Podloga!F34&" bilancira",Podloga!F34&" ne bilancira") -> Kumulativ 2019 bilancira | H1: =IF(H68=H131,Podloga!G34&" bilancira",Podloga!G34&" ne bilancira") -> 1. kvartal 2020 bilancira | I1: =IF(I68=I131,Podloga!H34&" bilancira",Podloga!H34&" ne bilancira") -> 2. kvartal 2020 bilancira | J1: =IF(J68=J131,Podloga!I34&" bilancira",Podloga!I34&" ne bilancira") -> 3. kvartal 2020 bilancira | K1: =IF(K68=K131,Podloga!J34&" bilancira",Podloga!J34&" ne bilancira") -> 4. kvartal 2020 bilancira | L1: =IF(L68=L131,Podloga!K34&" bilancira",Podloga!K34&" ne bilancira") -> Kumulativ 2020 bilancira | M1: =IF(M68=M131,Podloga!L34&" bilancira",Podloga!L34&" ne bilancira") -> Plan 2020 bilancira
A2: Obveznik: | B2: =IF(ISBLANK(Podloga!B2),"",Podloga!B2) -> LUKA-VUKOVAR doo | C2: I Z N O S (u 000 kn) | N2: ="Indeks 1. k. "& LEFT(Podloga!B7,4) &" / 1. k. "& (LEFT(Podloga!B7,4)-1) -> Indeks 1. k. 2020 / 1. k. 2019 | O2: ="Indeks 2. k. "& LEFT(Podloga!B7,4) &" / 2. k. "& (LEFT(Podloga!B7,4)-1) -> Indeks 2. k. 2020 / 2. k. 2019 | P2: ="Indeks 3. k. "& LEFT(Podloga!B7,4) &" / 3. k. "& (LEFT(Podloga!B7,4)-1) -> Indeks 3. k. 2020 / 3. k. 2019 | Q2: ="Indeks 4. k. "& LEFT(Podloga!B7,4) &" / 4. k. "& (LEFT(Podloga!B7,4)-1) -> Indeks 4. k. 2020 / 4. k. 2019 | R2: Godišnja promjena (kumulativno) | S2: Ostvarenje plana | T2: ="Indeks 2. k. "& LEFT(Podloga!B7,4) &" / 1. k. "& LEFT(Podloga!B7,4) -> Indeks 2. k. 2020 / 1. k. 2020 | U2: ="Indeks 3. k. "& LEFT(Podloga!B7,4) &" / 2. k. "& LEFT(Podloga!B7,4) -> Indeks 3. k. 2020 / 2. k. 2020 | V2: ="Indeks 4. k. "& LEFT(Podloga!B7,4) &" / 2. k. "& LEFT(Podloga!B7,4) -> Indeks 4. k. 2020 / 2. k. 2020
B3: A K T I V A | C3: =Podloga!B34 -> 1. kvartal 2019 | D3: =Podloga!C34 -> 2. kvartal 2019 | E3: =Podloga!D34 -> 3. kvartal 2019 | F3: =Podloga!E34 -> 4. kvartal 2019 | G3: =IF(Podloga!$B$8=1,"Stanje na 31.03."&LEFT(Podloga!B7,4)-1,IF(Podloga!$B$8=2,"Stanje na 30.6."&LEFT(Podloga!B7,4)-1,IF(Podloga!$B$8=3,"Stanje na 30.09."&LEFT(Podloga!B7,4)-1,IF(Podloga!$B$8=4,"Stanje na 31.12."&LEFT(Podloga!B7,4)-1)))) -> Stanje na 31.03.2019 | H3: =Podloga!G34 -> 1. kvartal 2020 | I3: =Podloga!H34 -> 2. kvartal 2020 | J3: =Podloga!I34 -> 3. kvartal 2020 | K3: =Podloga!J34 -> 4. kvartal 2020 | L3: =IF(Podloga!$B$8=1,"Stanje na 31.03."&LEFT(Podloga!B7,4),IF(Podloga!$B$8=2,"Stanje na 30.6."&LEFT(Podloga!B7,4),IF(Podloga!$B$8=3,"Stanje na 30.09."&LEFT(Podloga!B7,4),IF(Podloga!$B$8=4,"Stanje na 31.12."&LEFT(Podloga!B7,4))))) -> Stanje na 31.03.2020 | M3: =Podloga!L34 -> Plan 2020
A4: 1. | B4: POTRAŽIVANJA ZA UPISANI A NEUPLAĆENI KAPITAL | G4: =IF(Podloga!$B$8=1,C4,IF(Podloga!$B$8=2,D4,IF(Podloga!$B$8=3,E4,IF(Podloga!$B$8=4,F4)))) -> 0 | L4: =IF(Podloga!$B$8=1,H4,IF(Podloga!$B$8=2,I4,IF(Podloga!$B$8=3,J4,IF(Podloga!$B$8=4,K4)))) -> 0 | N4: =IFERROR(H4/C4*100,) -> 0 | O4: =IFERROR(I4/D4*100,) -> 0 | P4: =IFERROR(J4/E4*100,) -> 0 | Q4: =IFERROR(K4/F4*100,) -> 0 | R4: =IFERROR(L4/G4*100,) -> 0 | S4: =IFERROR(L4/M4*100,) -> 0 | T4: =IFERROR(I4/H4*100,) -> 0 | U4: =IFERROR(J4/I4*100,) -> 0 | V4: =IFERROR(K4/J4*100,) -> 0
A5: 2. | B5: DUGOTRAJNA IMOVINA | C5: =C6+C13+C23+C34+C39 -> 16601877.77 | D5: 16377818.98 | E5: 16932094.38 | F5: 16631857 | G5: =IF(Podloga!$B$8=1,C5,IF(Podloga!$B$8=2,D5,IF(Podloga!$B$8=3,E5,IF(Podloga!$B$8=4,F5)))) -> 16601877.77 | H5: =H6+H13+H23+H34+H39 -> 16316640.96 | I5: =I6+I13+I23+I34+I39 -> 0 | J5: =J6+J13+J23+J34+J39 -> 0 | K5: 0 | L5: =IF(Podloga!$B$8=1,H5,IF(Podloga!$B$8=2,I5,IF(Podloga!$B$8=3,J5,IF(Podloga!$B$8=4,K5)))) -> 16316640.96 | M5: 16107289 | N5: 98.28190031 | O5: 0 | P5: 0 | Q5: 0 | R5: =IFERROR(L5/G5*100,) -> 98.28190031 | S5: =IFERROR(L5/M5*100,) -> 101.2997343 | T5: 0 | U5: 0 | V5: 0
A6: 2.1. | B6: Nematerijalna imovina | C6: =SUM(C7:C12) -> 1975826.12 | D6: 4569377.98 | E6: 4493430.66 | F6: 4406183 | G6: =IF(Podloga!$B$8=1,C6,IF(Podloga!$B$8=2,D6,IF(Podloga!$B$8=3,E6,IF(Podloga!$B$8=4,F6)))) -> 1975826.12 | H6: =SUM(H7:H12) -> 4324586.04 | I6: =SUM(I7:I12) -> 0 | J6: =SUM(J7:J12) -> 0 | K6: 0 | L6: =IF(Podloga!$B$8=1,H6,IF(Podloga!$B$8=2,I6,IF(Podloga!$B$8=3,J6,IF(Podloga!$B$8=4,K6)))) -> 4324586.04 | M6: 4074000 | N6: 218.8748289 | O6: 0 | P6: 0 | Q6: 0 | R6: 218.8748289 | S6: 106.1508601 | T6: 0 | U6: 0 | V6: 0
A7: 2.1.1. | B7: Izdaci za razvoj | F7: 0 | G7: =IF(Podloga!$B$8=1,C7,IF(Podloga!$B$8=2,D7,IF(Podloga!$B$8=3,E7,IF(Podloga!$B$8=4,F7)))) -> 0 | L7: =IF(Podloga!$B$8=1,H7,IF(Podloga!$B$8=2,I7,IF(Podloga!$B$8=3,J7,IF(Podloga!$B$8=4,K7)))) -> 0 | N7: 0 | O7: 0 | P7: 0 | Q7: 0 | R7: 0 | S7: 0 | T7: 0 | U7: 0 | V7: 0
A8: 2.1.2. | B8: Koncesije, patenti, licencencije, robne i uslužne marke, softver i ostala prava | C8: 26236.12 | D8: 29825.48 | E8: 30835.66 | F8: 20545 | G8: =IF(Podloga!$B$8=1,C8,IF(Podloga!$B$8=2,D8,IF(Podloga!$B$8=3,E8,IF(Podloga!$B$8=4,F8)))) -> 26236.12 | H8: =139907.5-124001.46 -> 15906.04 | L8: =IF(Podloga!$B$8=1,H8,IF(Podloga!$B$8=2,I8,IF(Podloga!$B$8=3,J8,IF(Podloga!$B$8=4,K8)))) -> 15906.04 | M8: 2000 | N8: 60.62649508 | O8: 0 | P8: 0 | Q8: 0 | R8: 60.62649508 | S8: 795.302 | T8: 0 | U8: 0 | V8: 0
A9: 2.1.3. | B9: Goodwill | F9: 0 | G9: =IF(Podloga!$B$8=1,C9,IF(Podloga!$B$8=2,D9,IF(Podloga!$B$8=3,E9,IF(Podloga!$B$8=4,F9)))) -> 0 | L9: =IF(Podloga!$B$8=1,H9,IF(Podloga!$B$8=2,I9,IF(Podloga!$B$8=3,J9,IF(Podloga!$B$8=4,K9)))) -> 0 | N9: 0 | O9: 0 | P9: 0 | Q9: 0 | R9: 0 | S9: 0 | T9: 0 | U9: 0 | V9: 0
A10: 2.1.4. | B10: Predujmovi za nabavu nematerijalne imovine | F10: 0 | G10: =IF(Podloga!$B$8=1,C10,IF(Podloga!$B$8=2,D10,IF(Podloga!$B$8=3,E10,IF(Podloga!$B$8=4,F10)))) -> 0 | L10: =IF(Podloga!$B$8=1,H10,IF(Podloga!$B$8=2,I10,IF(Podloga!$B$8=3,J10,IF(Podloga!$B$8=4,K10)))) -> 0 | N10: 0 | O10: 0 | P10: 0 | Q10: 0 | R10: 0 | S10: 0 | T10: 0 | U10: 0 | V10: 0
A11: 2.1.5. | B11: Nematerijalna imovina u pripremi | D11: 2666920 | E11: 2666920 | F11: 2666920 | G11: =IF(Podloga!$B$8=1,C11,IF(Podloga!$B$8=2,D11,IF(Podloga!$B$8=3,E11,IF(Podloga!$B$8=4,F11)))) -> 0 | H11: 2666920 | L11: =IF(Podloga!$B$8=1,H11,IF(Podloga!$B$8=2,I11,IF(Podloga!$B$8=3,J11,IF(Podloga!$B$8=4,K11)))) -> 2666920 | M11: 2666920 | N11: 0 | O11: 0 | P11: 0 | Q11: 0 | R11: 0 | S11: 100 | T11: 0 | U11: 0 | V11: 0
A12: 2.1.6. | B12: Ostala nematerijalna imovina | C12: 1949590 | D12: =4539552.5-2666920 -> 1872632.5 | E12: =1795675 -> 1795675 | F12: 1718718 | G12: =IF(Podloga!$B$8=1,C12,IF(Podloga!$B$8=2,D12,IF(Podloga!$B$8=3,E12,IF(Podloga!$B$8=4,F12)))) -> 1949590 | H12: =6156600-4514840 -> 1641760 | L12: =IF(Podloga!$B$8=1,H12,IF(Podloga!$B$8=2,I12,IF(Podloga!$B$8=3,J12,IF(Podloga!$B$8=4,K12)))) -> 1641760 | M12: =4072000-2666920 -> 1405080 | N12: 84.21052632 | O12: 0 | P12: 0 | Q12: 0 | R12: 84.21052632 | S12: 116.8445925 | T12: 0 | U12: 0 | V12: 0
A13: 2.2. | B13: Materijalna imovina | C13: =SUM(C14:C22) -> 9357287.9 | D13: =SUM(D14:D22) -> 9285441 | E13: 9994507.47 | F13: 9860361 | G13: =IF(Podloga!$B$8=1,C13,IF(Podloga!$B$8=2,D13,IF(Podloga!$B$8=3,E13,IF(Podloga!$B$8=4,F13)))) -> 9357287.9 | H13: =SUM(H14:H22) -> 9705586.17 | I13: =SUM(I14:I22) -> 0 | J13: =SUM(J14:J22) -> 0 | K13: 0 | L13: =IF(Podloga!$B$8=1,H13,IF(Podloga!$B$8=2,I13,IF(Podloga!$B$8=3,J13,IF(Podloga!$B$8=4,K13)))) -> 9705586.17 | M13: 9984289 | N13: 103.7222139 | O13: 0 | P13: 0 | Q13: 0 | R13: 103.7222139 | S13: 97.20858611 | T13: 0 | U13: 0 | V13: 0
A14: 2.2.1. | B14: Zemljište | C14: 6417696.8 | D14: 6417696.8 | E14: 6417696.8 | F14: 6417697 | G14: =IF(Podloga!$B$8=1,C14,IF(Podloga!$B$8=2,D14,IF(Podloga!$B$8=3,E14,IF(Podloga!$B$8=4,F14)))) -> 6417696.8 | H14: 6417696.8 | L14: =IF(Podloga!$B$8=1,H14,IF(Podloga!$B$8=2,I14,IF(Podloga!$B$8=3,J14,IF(Podloga!$B$8=4,K14)))) -> 6417696.8 | M14: 6417697 | N14: 100 | O14: 0 | P14: 0 | Q14: 0 | R14: 100 | S14: 99.99999688 | T14: 0 | U14: 0 | V14: 0
A15: 2.2.2. | B15: Građevinski objekti | C15: 1758277.48 | D15: 1820331.86 | E15: 1767435.8 | F15: 1714539 | G15: =IF(Podloga!$B$8=1,C15,IF(Podloga!$B$8=2,D15,IF(Podloga!$B$8=3,E15,IF(Podloga!$B$8=4,F15)))) -> 1758277.48 | H15: =4263966.43-2602322.69 -> 1661643.74 | L15: =IF(Podloga!$B$8=1,H15,IF(Podloga!$B$8=2,I15,IF(Podloga!$B$8=3,J15,IF(Podloga!$B$8=4,K15)))) -> 1661643.74 | M15: 1519000 | N15: 94.5040677 | O15: 0 | P15: 0 | Q15: 0 | R15: 94.5040677 | S15: 109.3906346 | T15: 0 | U15: 0 | V15: 0
A16: 2.2.3. | B16: Postrojenja i oprema | C16: 1107721.95 | D16: 973820.67 | E16: 1735783.2 | F16: 1654533 | G16: =IF(Podloga!$B$8=1,C16,IF(Podloga!$B$8=2,D16,IF(Podloga!$B$8=3,E16,IF(Podloga!$B$8=4,F16)))) -> 1107721.95 | H16: =38514227.72-36961573.76 -> 1552653.96 | L16: =IF(Podloga!$B$8=1,H16,IF(Podloga!$B$8=2,I16,IF(Podloga!$B$8=3,J16,IF(Podloga!$B$8=4,K16)))) -> 1552653.96 | M16: 1974000 | N16: 140.1663983 | O16: 0 | P16: 0 | Q16: 0 | R16: 140.1663983 | S16: 78.65521581 | T16: 0 | U16: 0 | V16: 0
A17: 2.2.4. | B17: Alati, pogonski inventar i transportna imovina | C17: 0 | D17: 0 | E17: 0 | F17: 0 | G17: =IF(Podloga!$B$8=1,C17,IF(Podloga!$B$8=2,D17,IF(Podloga!$B$8=3,E17,IF(Podloga!$B$8=4,F17)))) -> 0 | L17: =IF(Podloga!$B$8=1,H17,IF(Podloga!$B$8=2,I17,IF(Podloga!$B$8=3,J17,IF(Podloga!$B$8=4,K17)))) -> 0 | N17: 0 | O17: 0 | P17: 0 | Q17: 0 | R17: 0 | S17: 0 | T17: 0 | U17: 0 | V17: 0
A18: 2.2.5. | B18: Biološka imovina | C18: 0 | D18: 0 | E18: 0 | F18: 0 | G18: =IF(Podloga!$B$8=1,C18,IF(Podloga!$B$8=2,D18,IF(Podloga!$B$8=3,E18,IF(Podloga!$B$8=4,F18)))) -> 0 | L18: =IF(Podloga!$B$8=1,H18,IF(Podloga!$B$8=2,I18,IF(Podloga!$B$8=3,J18,IF(Podloga!$B$8=4,K18)))) -> 0 | N18: 0 | O18: 0 | P18: 0 | Q18: 0 | R18: 0 | S18: 0 | T18: 0 | U18: 0 | V18: 0
A19: 2.2.6. | B19: Predujmovi za materijalnu imovinu | C19: 0 | D19: 0 | E19: 0 | F19: 0 | G19: =IF(Podloga!$B$8=1,C19,IF(Podloga!$B$8=2,D19,IF(Podloga!$B$8=3,E19,IF(Podloga!$B$8=4,F19)))) -> 0 | L19: =IF(Podloga!$B$8=1,H19,IF(Podloga!$B$8=2,I19,IF(Podloga!$B$8=3,J19,IF(Podloga!$B$8=4,K19)))) -> 0 | N19: 0 | O19: 0 | P19: 0 | Q19: 0 | R19: 0 | S19: 0 | T19: 0 | U19: 0 | V19: 0
A20: 2.2.7. | B20: Materijalna imovina u pripremi | C20: 73591.67 | D20: 73591.67 | E20: 73591.67 | F20: 73592 | G20: =IF(Podloga!$B$8=1,C20,IF(Podloga!$B$8=2,D20,IF(Podloga!$B$8=3,E20,IF(Podloga!$B$8=4,F20)))) -> 73591.67 | H20: 73591.67 | L20: =IF(Podloga!$B$8=1,H20,IF(Podloga!$B$8=2,I20,IF(Podloga!$B$8=3,J20,IF(Podloga!$B$8=4,K20)))) -> 73591.67 | M20: 73592 | N20: 100 | O20: 0 | P20: 0 | Q20: 0 | R20: 100 | S20: 99.99955158 | T20: 0 | U20: 0 | V20: 0
A21: 2.2.8. | B21: Ostala materijalna imovina | C21: 0 | D21: 0 | E21: 0 | F21: 0 | G21: =IF(Podloga!$B$8=1,C21,IF(Podloga!$B$8=2,D21,IF(Podloga!$B$8=3,E21,IF(Podloga!$B$8=4,F21)))) -> 0 | L21: =IF(Podloga!$B$8=1,H21,IF(Podloga!$B$8=2,I21,IF(Podloga!$B$8=3,J21,IF(Podloga!$B$8=4,K21)))) -> 0 | N21: 0 | O21: 0 | P21: 0 | Q21: 0 | R21: 0 | S21: 0 | T21: 0 | U21: 0 | V21: 0
A22: 2.2.9. | B22: Ulaganja u nekretnine | C22: 0 | D22: 0 | E22: 0 | F22: 0 | G22: =IF(Podloga!$B$8=1,C22,IF(Podloga!$B$8=2,D22,IF(Podloga!$B$8=3,E22,IF(Podloga!$B$8=4,F22)))) -> 0 | L22: =IF(Podloga!$B$8=1,H22,IF(Podloga!$B$8=2,I22,IF(Podloga!$B$8=3,J22,IF(Podloga!$B$8=4,K22)))) -> 0 | N22: 0 | O22: 0 | P22: 0 | Q22: 0 | R22: 0 | S22: 0 | T22: 0 | U22: 0 | V22: 0
A23: 2.3. | B23: Dugotrajna financijska imovina | C23: =SUM(C24:C33) -> 5268763.75 | D23: 2523000 | E23: 2444156.25 | F23: 2365313 | G23: =IF(Podloga!$B$8=1,C23,IF(Podloga!$B$8=2,D23,IF(Podloga!$B$8=3,E23,IF(Podloga!$B$8=4,F23)))) -> 5268763.75 | H23: =SUM(H24:H33) -> 2286468.75 | I23: =SUM(I24:I33) -> 0 | J23: =SUM(J24:J33) -> 0 | K23: 0 | L23: =IF(Podloga!$B$8=1,H23,IF(Podloga!$B$8=2,I23,IF(Podloga!$B$8=3,J23,IF(Podloga!$B$8=4,K23)))) -> 2286468.75 | M23: 2049000 | N23: 43.3966839 | O23: 0 | P23: 0 | Q23: 0 | R23: 43.3966839 | S23: 111.5894949 | T23: 0 | U23: 0 | V23: 0
A24: 2.3.1. | B24: Ulaganja u udjele (dionice) poduzetnika unutar grupe | C24: 0 | D24: 0 | F24: 0 | G24: =IF(Podloga!$B$8=1,C24,IF(Podloga!$B$8=2,D24,IF(Podloga!$B$8=3,E24,IF(Podloga!$B$8=4,F24)))) -> 0 | L24: =IF(Podloga!$B$8=1,H24,IF(Podloga!$B$8=2,I24,IF(Podloga!$B$8=3,J24,IF(Podloga!$B$8=4,K24)))) -> 0 | N24: 0 | O24: 0 | P24: 0 | Q24: 0 | R24: 0 | S24: 0 | T24: 0 | U24: 0 | V24: 0
A25: 2.3.2. | B25: Ulaganja u ostale vrijednosne papire poduzetnika unutar grupe | C25: 0 | D25: 0 | F25: 0 | G25: =IF(Podloga!$B$8=1,C25,IF(Podloga!$B$8=2,D25,IF(Podloga!$B$8=3,E25,IF(Podloga!$B$8=4,F25)))) -> 0 | L25: =IF(Podloga!$B$8=1,H25,IF(Podloga!$B$8=2,I25,IF(Podloga!$B$8=3,J25,IF(Podloga!$B$8=4,K25)))) -> 0 | N25: 0 | O25: 0 | P25: 0 | Q25: 0 | R25: 0 | S25: 0 | T25: 0 | U25: 0 | V25: 0
A26: 2.3.3. | B26: Dani zajmovi, depoziti i slično poduzetnicima unutar grupe | C26: 0 | D26: 0 | F26: 0 | G26: =IF(Podloga!$B$8=1,C26,IF(Podloga!$B$8=2,D26,IF(Podloga!$B$8=3,E26,IF(Podloga!$B$8=4,F26)))) -> 0 | L26: =IF(Podloga!$B$8=1,H26,IF(Podloga!$B$8=2,I26,IF(Podloga!$B$8=3,J26,IF(Podloga!$B$8=4,K26)))) -> 0 | N26: 0 | O26: 0 | P26: 0 | Q26: 0 | R26: 0 | S26: 0 | T26: 0 | U26: 0 | V26: 0
A27: 2.3.4. | B27: Ulaganja u udjele (dionice) društava povezanih sudjelujućim interesom | C27: 0 | D27: 0 | F27: 0 | G27: =IF(Podloga!$B$8=1,C27,IF(Podloga!$B$8=2,D27,IF(Podloga!$B$8=3,E27,IF(Podloga!$B$8=4,F27)))) -> 0 | L27: =IF(Podloga!$B$8=1,H27,IF(Podloga!$B$8=2,I27,IF(Podloga!$B$8=3,J27,IF(Podloga!$B$8=4,K27)))) -> 0 | N27: 0 | O27: 0 | P27: 0 | Q27: 0 | R27: 0 | S27: 0 | T27: 0 | U27: 0 | V27: 0
A28: 2.3.5. | B28: Ulaganja u ostale vrijednosne papire društava povezanih sudjelujućim interesom | C28: 0 | D28: 0 | F28: 0 | G28: =IF(Podloga!$B$8=1,C28,IF(Podloga!$B$8=2,D28,IF(Podloga!$B$8=3,E28,IF(Podloga!$B$8=4,F28)))) -> 0 | L28: =IF(Podloga!$B$8=1,H28,IF(Podloga!$B$8=2,I28,IF(Podloga!$B$8=3,J28,IF(Podloga!$B$8=4,K28)))) -> 0 | N28: 0 | O28: 0 | P28: 0 | Q28: 0 | R28: 0 | S28: 0 | T28: 0 | U28: 0 | V28: 0
A29: 2.3.6. | B29: Dani zajmovi, depoziti i slično društvima povezanim sudjelujućim interesom | C29: 0 | D29: 0 | F29: 0 | G29: =IF(Podloga!$B$8=1,C29,IF(Podloga!$B$8=2,D29,IF(Podloga!$B$8=3,E29,IF(Podloga!$B$8=4,F29)))) -> 0 | L29: =IF(Podloga!$B$8=1,H29,IF(Podloga!$B$8=2,I29,IF(Podloga!$B$8=3,J29,IF(Podloga!$B$8=4,K29)))) -> 0 | N29: 0 | O29: 0 | P29: 0 | Q29: 0 | R29: 0 | S29: 0 | T29: 0 | U29: 0 | V29: 0
A30: 2.3.7. | B30: Ulaganja u vrijednosne papire | C30: 0 | D30: 0 | F30: 0 | G30: =IF(Podloga!$B$8=1,C30,IF(Podloga!$B$8=2,D30,IF(Podloga!$B$8=3,E30,IF(Podloga!$B$8=4,F30)))) -> 0 | L30: =IF(Podloga!$B$8=1,H30,IF(Podloga!$B$8=2,I30,IF(Podloga!$B$8=3,J30,IF(Podloga!$B$8=4,K30)))) -> 0 | N30: 0 | O30: 0 | P30: 0 | Q30: 0 | R30: 0 | S30: 0 | T30: 0 | U30: 0 | V30: 0
A31: 2.3.8. | B31: Dani zajmovi, depoziti i slično | C31: 0 | D31: 0 | F31: 0 | G31: =IF(Podloga!$B$8=1,C31,IF(Podloga!$B$8=2,D31,IF(Podloga!$B$8=3,E31,IF(Podloga!$B$8=4,F31)))) -> 0 | L31: =IF(Podloga!$B$8=1,H31,IF(Podloga!$B$8=2,I31,IF(Podloga!$B$8=3,J31,IF(Podloga!$B$8=4,K31)))) -> 0 | N31: 0 | O31: 0 | P31: 0 | Q31: 0 | R31: 0 | S31: 0 | T31: 0 | U31: 0 | V31: 0
A32: 2.3.9. | B32: Ostala ulaganja koja se obračunavaju metodom udjela | C32: 0 | D32: 0 | F32: 0 | G32: =IF(Podloga!$B$8=1,C32,IF(Podloga!$B$8=2,D32,IF(Podloga!$B$8=3,E32,IF(Podloga!$B$8=4,F32)))) -> 0 | L32: =IF(Podloga!$B$8=1,H32,IF(Podloga!$B$8=2,I32,IF(Podloga!$B$8=3,J32,IF(Podloga!$B$8=4,K32)))) -> 0 | N32: 0 | O32: 0 | P32: 0 | Q32: 0 | R32: 0 | S32: 0 | T32: 0 | U32: 0 | V32: 0
A33: 2.3.10. | B33: Ostala dugotrajna financijska imovina | C33: 5268763.75 | D33: 2523000 | E33: 2444156.25 | F33: 2365313 | G33: =IF(Podloga!$B$8=1,C33,IF(Podloga!$B$8=2,D33,IF(Podloga!$B$8=3,E33,IF(Podloga!$B$8=4,F33)))) -> 5268763.75 | H33: =6307500-4021031.25 -> 2286468.75 | L33: =IF(Podloga!$B$8=1,H33,IF(Podloga!$B$8=2,I33,IF(Podloga!$B$8=3,J33,IF(Podloga!$B$8=4,K33)))) -> 2286468.75 | M33: 2049000 | N33: 43.3966839 | O33: 0 | P33: 0 | Q33: 0 | R33: 43.3966839 | S33: 111.5894949 | T33: 0 | U33: 0 | V33: 0
A34: 2.4. | B34: Potraživanja | C34: =SUM(C35:C38) -> 0 | D34: 0 | E34: 0 | F34: 0 | G34: =IF(Podloga!$B$8=1,C34,IF(Podloga!$B$8=2,D34,IF(Podloga!$B$8=3,E34,IF(Podloga!$B$8=4,F34)))) -> 0 | H34: =SUM(H35:H38) -> 0 | I34: =SUM(I35:I38) -> 0 | J34: =SUM(J35:J38) -> 0 | K34: 0 | L34: =IF(Podloga!$B$8=1,H34,IF(Podloga!$B$8=2,I34,IF(Podloga!$B$8=3,J34,IF(Podloga!$B$8=4,K34)))) -> 0 | M34: 0 | N34: 0 | O34: 0 | P34: 0 | Q34: 0 | R34: 0 | S34: 0 | T34: 0 | U34: 0 | V34: 0
A35: 2.4.1. | B35: Potraživanja od poduzetnika unutar grupe | G35: =IF(Podloga!$B$8=1,C35,IF(Podloga!$B$8=2,D35,IF(Podloga!$B$8=3,E35,IF(Podloga!$B$8=4,F35)))) -> 0 | L35: =IF(Podloga!$B$8=1,H35,IF(Podloga!$B$8=2,I35,IF(Podloga!$B$8=3,J35,IF(Podloga!$B$8=4,K35)))) -> 0 | N35: 0 | O35: 0 | P35: 0 | Q35: 0 | R35: 0 | S35: 0 | T35: 0 | U35: 0 | V35: 0
A36: 2.4.2. | B36: Potraživanja od društava povezanih sudjelujućim interesom | G36: =IF(Podloga!$B$8=1,C36,IF(Podloga!$B$8=2,D36,IF(Podloga!$B$8=3,E36,IF(Podloga!$B$8=4,F36)))) -> 0 | L36: =IF(Podloga!$B$8=1,H36,IF(Podloga!$B$8=2,I36,IF(Podloga!$B$8=3,J36,IF(Podloga!$B$8=4,K36)))) -> 0 | N36: =IFERROR(H36/C36*100,) -> 0 | O36: =IFERROR(I36/D36*100,) -> 0 | P36: =IFERROR(J36/E36*100,) -> 0 | Q36: =IFERROR(K36/F36*100,) -> 0 | R36: 0 | S36: 0 | T36: =IFERROR(I36/H36*100,) -> 0 | U36: =IFERROR(J36/I36*100,) -> 0 | V36: =IFERROR(K36/J36*100,) -> 0
A37: 2.4.3. | B37: Potraživanja od kupaca | G37: =IF(Podloga!$B$8=1,C37,IF(Podloga!$B$8=2,D37,IF(Podloga!$B$8=3,E37,IF(Podloga!$B$8=4,F37)))) -> 0 | L37: =IF(Podloga!$B$8=1,H37,IF(Podloga!$B$8=2,I37,IF(Podloga!$B$8=3,J37,IF(Podloga!$B$8=4,K37)))) -> 0 | N37: 0 | O37: 0 | P37: 0 | Q37: 0 | R37: 0 | S37: 0 | T37: 0 | U37: 0 | V37: 0
A38: 2.4.4. | B38: Ostala potraživanja | G38: =IF(Podloga!$B$8=1,C38,IF(Podloga!$B$8=2,D38,IF(Podloga!$B$8=3,E38,IF(Podloga!$B$8=4,F38)))) -> 0 | L38: =IF(Podloga!$B$8=1,H38,IF(Podloga!$B$8=2,I38,IF(Podloga!$B$8=3,J38,IF(Podloga!$B$8=4,K38)))) -> 0 | N38: 0 | O38: 0 | P38: 0 | Q38: 0 | R38: 0 | S38: 0 | T38: 0 | U38: 0 | V38: 0
A39: 2.5. | B39: Odgođena porezna imovina | G39: =IF(Podloga!$B$8=1,C39,IF(Podloga!$B$8=2,D39,IF(Podloga!$B$8=3,E39,IF(Podloga!$B$8=4,F39)))) -> 0 | L39: =IF(Podloga!$B$8=1,H39,IF(Podloga!$B$8=2,I39,IF(Podloga!$B$8=3,J39,IF(Podloga!$B$8=4,K39)))) -> 0 | N39: 0 | O39: 0 | P39: 0 | Q39: 0 | R39: 0 | S39: 0 | T39: 0 | U39: 0 | V39: 0
A40: 3. | B40: KRATKOTRAJNA IMOVINA | C40: =C41+C49+C56+C66 -> 16950383.82 | D40: 17109560.65 | E40: 17918647.24 | F40: 17437730 | G40: =IF(Podloga!$B$8=1,C40,IF(Podloga!$B$8=2,D40,IF(Podloga!$B$8=3,E40,IF(Podloga!$B$8=4,F40)))) -> 16950383.82 | H40: =H41+H49+H56+H66 -> 18394322.46 | I40: =I41+I49+I56+I66 -> 0 | J40: =J41+J49+J56+J66 -> 0 | K40: 0 | L40: =IF(Podloga!$B$8=1,H40,IF(Podloga!$B$8=2,I40,IF(Podloga!$B$8=3,J40,IF(Podloga!$B$8=4,K40)))) -> 18394322.46 | M40: 18155576.56 | N40: 108.5186191 | O40: 0 | P40: 0 | Q40: 0 | R40: 108.5186191 | S40: 101.3150004 | T40: 0 | U40: 0 | V40: 0
A41: 3.1. | B41: Zalihe | C41: =SUM(C42:C48) -> 949106.79 | D41: 847089.93 | E41: 908575.79 | F41: 836189 | G41: =IF(Podloga!$B$8=1,C41,IF(Podloga!$B$8=2,D41,IF(Podloga!$B$8=3,E41,IF(Podloga!$B$8=4,F41)))) -> 949106.79 | H41: =SUM(H42:H48) -> 873701.42 | I41: =SUM(I42:I48) -> 0 | J41: =SUM(J42:J48) -> 0 | K41: 0 | L41: =IF(Podloga!$B$8=1,H41,IF(Podloga!$B$8=2,I41,IF(Podloga!$B$8=3,J41,IF(Podloga!$B$8=4,K41)))) -> 873701.42 | M41: 876000 | N41: 92.05512269 | O41: 0 | P41: 0 | Q41: 0 | R41: 92.05512269 | S41: 99.73760502 | T41: 0 | U41: 0 | V41: 0
A42: 3.1.1. | B42: Sirovine i materijal | C42: 896936.25 | D42: 795285.39 | E42: 856771.25 | F42: 784384 | G42: =IF(Podloga!$B$8=1,C42,IF(Podloga!$B$8=2,D42,IF(Podloga!$B$8=3,E42,IF(Podloga!$B$8=4,F42)))) -> 896936.25 | H42: 822171.38 | L42: =IF(Podloga!$B$8=1,H42,IF(Podloga!$B$8=2,I42,IF(Podloga!$B$8=3,J42,IF(Podloga!$B$8=4,K42)))) -> 822171.38 | M42: 825000 | N42: 91.66441651 | O42: 0 | P42: 0 | Q42: 0 | R42: 91.66441651 | S42: 99.65713697 | T42: 0 | U42: 0 | V42: 0
A43: 3.1.2. | B43: Proizvodnja u tijeku | C43: 0 | D43: 0 | E43: 0 | F43: 0 | G43: =IF(Podloga!$B$8=1,C43,IF(Podloga!$B$8=2,D43,IF(Podloga!$B$8=3,E43,IF(Podloga!$B$8=4,F43)))) -> 0 | L43: =IF(Podloga!$B$8=1,H43,IF(Podloga!$B$8=2,I43,IF(Podloga!$B$8=3,J43,IF(Podloga!$B$8=4,K43)))) -> 0 | N43: 0 | O43: 0 | P43: 0 | Q43: 0 | R43: 0 | S43: 0 | T43: 0 | U43: 0 | V43: 0
A44: 3.1.3. | B44: Gotovi proizvodi | C44: 0 | D44: 0 | E44: 0 | F44: 0 | G44: =IF(Podloga!$B$8=1,C44,IF(Podloga!$B$8=2,D44,IF(Podloga!$B$8=3,E44,IF(Podloga!$B$8=4,F44)))) -> 0 | L44: =IF(Podloga!$B$8=1,H44,IF(Podloga!$B$8=2,I44,IF(Podloga!$B$8=3,J44,IF(Podloga!$B$8=4,K44)))) -> 0 | N44: 0 | O44: 0 | P44: 0 | Q44: 0 | R44: 0 | S44: 0 | T44: 0 | U44: 0 | V44: 0
A45: 3.1.4. | B45: Trgovačka roba | C45: 52170.54 | D45: 51804.54 | E45: 51804.54 | F45: 51805 | G45: =IF(Podloga!$B$8=1,C45,IF(Podloga!$B$8=2,D45,IF(Podloga!$B$8=3,E45,IF(Podloga!$B$8=4,F45)))) -> 52170.54 | H45: 51530.04 | L45: =IF(Podloga!$B$8=1,H45,IF(Podloga!$B$8=2,I45,IF(Podloga!$B$8=3,J45,IF(Podloga!$B$8=4,K45)))) -> 51530.04 | M45: 51000 | N45: 98.77229563 | O45: 0 | P45: 0 | Q45: 0 | R45: 98.77229563 | S45: 101.0392941 | T45: 0 | U45: 0 | V45: 0
A46: 3.1.5. | B46: Predujmovi za zalihe | C46: 0 | D46: 0 | E46: 0 | F46: 0 | G46: =IF(Podloga!$B$8=1,C46,IF(Podloga!$B$8=2,D46,IF(Podloga!$B$8=3,E46,IF(Podloga!$B$8=4,F46)))) -> 0 | L46: =IF(Podloga!$B$8=1,H46,IF(Podloga!$B$8=2,I46,IF(Podloga!$B$8=3,J46,IF(Podloga!$B$8=4,K46)))) -> 0 | N46: 0 | O46: 0 | P46: 0 | Q46: 0 | R46: 0 | S46: 0 | T46: 0 | U46: 0 | V46: 0
A47: 3.1.6. | B47: Dugotrajna imovina namijenjena prodaji | C47: 0 | D47: 0 | E47: 0 | F47: 0 | G47: =IF(Podloga!$B$8=1,C47,IF(Podloga!$B$8=2,D47,IF(Podloga!$B$8=3,E47,IF(Podloga!$B$8=4,F47)))) -> 0 | L47: =IF(Podloga!$B$8=1,H47,IF(Podloga!$B$8=2,I47,IF(Podloga!$B$8=3,J47,IF(Podloga!$B$8=4,K47)))) -> 0 | N47: 0 | O47: 0 | P47: 0 | Q47: 0 | R47: 0 | S47: 0 | T47: 0 | U47: 0 | V47: 0
A48: 3.1.7. | B48: Biološka imovina | C48: 0 | D48: 0 | E48: 0 | F48: 0 | G48: =IF(Podloga!$B$8=1,C48,IF(Podloga!$B$8=2,D48,IF(Podloga!$B$8=3,E48,IF(Podloga!$B$8=4,F48)))) -> 0 | L48: =IF(Podloga!$B$8=1,H48,IF(Podloga!$B$8=2,I48,IF(Podloga!$B$8=3,J48,IF(Podloga!$B$8=4,K48)))) -> 0 | N48: 0 | O48: 0 | P48: 0 | Q48: 0 | R48: 0 | S48: 0 | T48: 0 | U48: 0 | V48: 0
A49: 3.2. | B49: Potraživanja | C49: =SUM(C50:C55) -> 1560887.82 | D49: 1690470.68 | E49: 1745991.11 | F49: 1657391 | G49: =IF(Podloga!$B$8=1,C49,IF(Podloga!$B$8=2,D49,IF(Podloga!$B$8=3,E49,IF(Podloga!$B$8=4,F49)))) -> 1560887.82 | H49: =SUM(H50:H55) -> 2149529.82 | I49: =SUM(I50:I55) -> 0 | J49: =SUM(J50:J55) -> 0 | K49: 0 | L49: =IF(Podloga!$B$8=1,H49,IF(Podloga!$B$8=2,I49,IF(Podloga!$B$8=3,J49,IF(Podloga!$B$8=4,K49)))) -> 2149529.82 | M49: 1700000 | N49: 137.7119991 | O49: 0 | P49: 0 | Q49: 0 | R49: 137.7119991 | S49: 126.4429306 | T49: 0 | U49: 0 | V49: 0
A50: 3.2.1. | B50: Potraživanja od poduzetnika unutar grupe | C50: 0 | D50: 0 | E50: 0 | F50: 0 | G50: =IF(Podloga!$B$8=1,C50,IF(Podloga!$B$8=2,D50,IF(Podloga!$B$8=3,E50,IF(Podloga!$B$8=4,F50)))) -> 0 | L50: =IF(Podloga!$B$8=1,H50,IF(Podloga!$B$8=2,I50,IF(Podloga!$B$8=3,J50,IF(Podloga!$B$8=4,K50)))) -> 0 | N50: 0 | O50: 0 | P50: 0 | Q50: 0 | R50: 0 | S50: 0 | T50: 0 | U50: 0 | V50: 0
A51: 3.2.2. | B51: Potraživanja od društava povezanih sudjelujućim interesom | C51: 0 | D51: 0 | E51: 0 | F51: 0 | G51: =IF(Podloga!$B$8=1,C51,IF(Podloga!$B$8=2,D51,IF(Podloga!$B$8=3,E51,IF(Podloga!$B$8=4,F51)))) -> 0 | L51: =IF(Podloga!$B$8=1,H51,IF(Podloga!$B$8=2,I51,IF(Podloga!$B$8=3,J51,IF(Podloga!$B$8=4,K51)))) -> 0 | N51: 0 | O51: 0 | P51: 0 | Q51: 0 | R51: 0 | S51: 0 | T51: 0 | U51: 0 | V51: 0
A52: 3.2.3. | B52: Potraživanja od kupaca | C52: 1428983.57 | D52: 1583883.8 | E52: 1409018.52 | F52: 1569207 | G52: =IF(Podloga!$B$8=1,C52,IF(Podloga!$B$8=2,D52,IF(Podloga!$B$8=3,E52,IF(Podloga!$B$8=4,F52)))) -> 1428983.57 | H52: 2000880.8 | L52: =IF(Podloga!$B$8=1,H52,IF(Podloga!$B$8=2,I52,IF(Podloga!$B$8=3,J52,IF(Podloga!$B$8=4,K52)))) -> 2000880.8 | M52: 1500000 | N52: 140.02126 | O52: 0 | P52: 0 | Q52: 0 | R52: 140.02126 | S52: 133.3920533 | T52: 0 | U52: 0 | V52: 0
A53: 3.2.4. | B53: Potraživanja od zaposlenika i članova poduzetnika | C53: 0 | D53: 0 | E53: 0 | F53: 0 | G53: =IF(Podloga!$B$8=1,C53,IF(Podloga!$B$8=2,D53,IF(Podloga!$B$8=3,E53,IF(Podloga!$B$8=4,F53)))) -> 0 | L53: =IF(Podloga!$B$8=1,H53,IF(Podloga!$B$8=2,I53,IF(Podloga!$B$8=3,J53,IF(Podloga!$B$8=4,K53)))) -> 0 | N53: 0 | O53: 0 | P53: 0 | Q53: 0 | R53: 0 | S53: 0 | T53: 0 | U53: 0 | V53: 0
A54: 3.2.5. | B54: Potraživanja od države i drugih institucija | C54: 116454.35 | D54: 106436.52 | E54: 326795.43 | F54: 72325 | G54: =IF(Podloga!$B$8=1,C54,IF(Podloga!$B$8=2,D54,IF(Podloga!$B$8=3,E54,IF(Podloga!$B$8=4,F54)))) -> 116454.35 | H54: =113437.61+9747+13500 -> 136684.61 | L54: =IF(Podloga!$B$8=1,H54,IF(Podloga!$B$8=2,I54,IF(Podloga!$B$8=3,J54,IF(Podloga!$B$8=4,K54)))) -> 136684.61 | M54: 150000 | N54: 117.3718371 | O54: 0 | P54: 0 | Q54: 0 | R54: 117.3718371 | S54: 91.12307333 | T54: 0 | U54: 0 | V54: 0
A55: 3.2.6. | B55: Ostala potraživanja | C55: 15449.9 | D55: 150.36 | E55: 10177.16 | F55: 15859 | G55: =IF(Podloga!$B$8=1,C55,IF(Podloga!$B$8=2,D55,IF(Podloga!$B$8=3,E55,IF(Podloga!$B$8=4,F55)))) -> 15449.9 | H55: 11964.41 | L55: =IF(Podloga!$B$8=1,H55,IF(Podloga!$B$8=2,I55,IF(Podloga!$B$8=3,J55,IF(Podloga!$B$8=4,K55)))) -> 11964.41 | M55: 50000 | N55: 77.44004816 | O55: 0 | P55: 0 | Q55: 0 | R55: 77.44004816 | S55: 23.92882 | T55: 0 | U55: 0 | V55: 0
A56: 3.3. | B56: Kratkotrajna financijska imovina | C56: =SUM(C57:C65) -> 50000 | D56: 50000 | E56: 50000 | F56: 50000 | G56: =IF(Podloga!$B$8=1,C56,IF(Podloga!$B$8=2,D56,IF(Podloga!$B$8=3,E56,IF(Podloga!$B$8=4,F56)))) -> 50000 | H56: =SUM(H57:H65) -> 50000 | I56: =SUM(I57:I65) -> 0 | J56: =SUM(J57:J65) -> 0 | K56: 0 | L56: =IF(Podloga!$B$8=1,H56,IF(Podloga!$B$8=2,I56,IF(Podloga!$B$8=3,J56,IF(Podloga!$B$8=4,K56)))) -> 50000 | M56: 50000 | N56: 100 | O56: 0 | P56: 0 | Q56: 0 | R56: 100 | S56: 100 | T56: 0 | U56: 0 | V56: 0
A57: 3.3.1. | B57: Ulaganja u udjele (dionice) poduzetnika unutar grupe | C57: 0 | D57: 0 | E57: 0 | F57: 0 | G57: =IF(Podloga!$B$8=1,C57,IF(Podloga!$B$8=2,D57,IF(Podloga!$B$8=3,E57,IF(Podloga!$B$8=4,F57)))) -> 0 | L57: =IF(Podloga!$B$8=1,H57,IF(Podloga!$B$8=2,I57,IF(Podloga!$B$8=3,J57,IF(Podloga!$B$8=4,K57)))) -> 0 | N57: 0 | O57: 0 | P57: 0 | Q57: 0 | R57: 0 | S57: 0 | T57: 0 | U57: 0 | V57: 0
A58: 3.3.2. | B58: Ulaganja u ostale vrijednosne papire poduzetnika unutar grupe | C58: 0 | D58: 0 | E58: 0 | F58: 0 | G58: =IF(Podloga!$B$8=1,C58,IF(Podloga!$B$8=2,D58,IF(Podloga!$B$8=3,E58,IF(Podloga!$B$8=4,F58)))) -> 0 | L58: =IF(Podloga!$B$8=1,H58,IF(Podloga!$B$8=2,I58,IF(Podloga!$B$8=3,J58,IF(Podloga!$B$8=4,K58)))) -> 0 | N58: 0 | O58: 0 | P58: 0 | Q58: 0 | R58: 0 | S58: 0 | T58: 0 | U58: 0 | V58: 0
A59: 3.3.3. | B59: Dani zajmovi, depoziti i slično poduzetnicima unutar grupe | C59: 0 | D59: 0 | E59: 0 | F59: 0 | G59: =IF(Podloga!$B$8=1,C59,IF(Podloga!$B$8=2,D59,IF(Podloga!$B$8=3,E59,IF(Podloga!$B$8=4,F59)))) -> 0 | L59: =IF(Podloga!$B$8=1,H59,IF(Podloga!$B$8=2,I59,IF(Podloga!$B$8=3,J59,IF(Podloga!$B$8=4,K59)))) -> 0 | N59: 0 | O59: 0 | P59: 0 | Q59: 0 | R59: 0 | S59: 0 | T59: 0 | U59: 0 | V59: 0
A60: 3.3.4. | B60: Ulaganja u udjele (dionice) društava povezanih sudjelujućim interesom | C60: 0 | D60: 0 | E60: 0 | F60: 0 | G60: =IF(Podloga!$B$8=1,C60,IF(Podloga!$B$8=2,D60,IF(Podloga!$B$8=3,E60,IF(Podloga!$B$8=4,F60)))) -> 0 | L60: =IF(Podloga!$B$8=1,H60,IF(Podloga!$B$8=2,I60,IF(Podloga!$B$8=3,J60,IF(Podloga!$B$8=4,K60)))) -> 0 | N60: 0 | O60: 0 | P60: 0 | Q60: 0 | R60: 0 | S60: 0 | T60: 0 | U60: 0 | V60: 0
A61: 3.3.5. | B61: Ulaganja u ostale vrijednosne papire društava povezanih sudjelujućim interesom | C61: 0 | D61: 0 | E61: 0 | F61: 0 | G61: =IF(Podloga!$B$8=1,C61,IF(Podloga!$B$8=2,D61,IF(Podloga!$B$8=3,E61,IF(Podloga!$B$8=4,F61)))) -> 0 | L61: =IF(Podloga!$B$8=1,H61,IF(Podloga!$B$8=2,I61,IF(Podloga!$B$8=3,J61,IF(Podloga!$B$8=4,K61)))) -> 0 | N61: 0 | O61: 0 | P61: 0 | Q61: 0 | R61: 0 | S61: 0 | T61: 0 | U61: 0 | V61: 0
A62: 3.3.6. | B62: Dani zajmovi, depoziti i slično društvima povezanim sudjelujućim interesom | C62: 0 | D62: 0 | E62: 0 | F62: 0 | G62: =IF(Podloga!$B$8=1,C62,IF(Podloga!$B$8=2,D62,IF(Podloga!$B$8=3,E62,IF(Podloga!$B$8=4,F62)))) -> 0 | L62: =IF(Podloga!$B$8=1,H62,IF(Podloga!$B$8=2,I62,IF(Podloga!$B$8=3,J62,IF(Podloga!$B$8=4,K62)))) -> 0 | N62: 0 | O62: 0 | P62: 0 | Q62: 0 | R62: 0 | S62: 0 | T62: 0 | U62: 0 | V62: 0
A63: 3.3.7. | B63: Ulaganja u vrijednosne papire | C63: 0 | D63: 0 | E63: 0 | F63: 0 | G63: =IF(Podloga!$B$8=1,C63,IF(Podloga!$B$8=2,D63,IF(Podloga!$B$8=3,E63,IF(Podloga!$B$8=4,F63)))) -> 0 | L63: =IF(Podloga!$B$8=1,H63,IF(Podloga!$B$8=2,I63,IF(Podloga!$B$8=3,J63,IF(Podloga!$B$8=4,K63)))) -> 0 | N63: 0 | O63: 0 | P63: 0 | Q63: 0 | R63: 0 | S63: 0 | T63: 0 | U63: 0 | V63: 0
A64: 3.3.8. | B64: Dani zajmovi, depoziti i slično | C64: 0 | D64: 0 | E64: 0 | F64: 0 | G64: =IF(Podloga!$B$8=1,C64,IF(Podloga!$B$8=2,D64,IF(Podloga!$B$8=3,E64,IF(Podloga!$B$8=4,F64)))) -> 0 | L64: =IF(Podloga!$B$8=1,H64,IF(Podloga!$B$8=2,I64,IF(Podloga!$B$8=3,J64,IF(Podloga!$B$8=4,K64)))) -> 0 | N64: 0 | O64: 0 | P64: 0 | Q64: 0 | R64: 0 | S64: 0 | T64: 0 | U64: 0 | V64: 0
A65: 3.3.9. | B65: Ostala financijska imovina | C65: 50000 | D65: 50000 | E65: 50000 | F65: 50000 | G65: =IF(Podloga!$B$8=1,C65,IF(Podloga!$B$8=2,D65,IF(Podloga!$B$8=3,E65,IF(Podloga!$B$8=4,F65)))) -> 50000 | H65: 50000 | L65: =IF(Podloga!$B$8=1,H65,IF(Podloga!$B$8=2,I65,IF(Podloga!$B$8=3,J65,IF(Podloga!$B$8=4,K65)))) -> 50000 | M65: 50000 | N65: 100 | O65: 0 | P65: 0 | Q65: 0 | R65: 100 | S65: 100 | T65: 0 | U65: 0 | V65: 0
A66: 3.4. | B66: Novac u banci i blagajni | C66: 14390389.21 | D66: 14522000.04 | E66: 15214080.34 | F66: 14894150 | G66: =IF(Podloga!$B$8=1,C66,IF(Podloga!$B$8=2,D66,IF(Podloga!$B$8=3,E66,IF(Podloga!$B$8=4,F66)))) -> 14390389.21 | H66: 15321091.22 | L66: =IF(Podloga!$B$8=1,H66,IF(Podloga!$B$8=2,I66,IF(Podloga!$B$8=3,J66,IF(Podloga!$B$8=4,K66)))) -> 15321091.22 | M66: 15529576.56 | N66: 106.4675249 | O66: 0 | P66: 0 | Q66: 0 | R66: 106.4675249 | S66: 98.65749501 | T66: 0 | U66: 0 | V66: 0
A67: 4. | B67: PLAĆENI TROŠKOVI BUDUĆEG RAZDOBLJA I OBRAČUNATI PRIHODI | C67: 455031.53 | D67: 303088.65 | E67: 284953.86 | F67: 135202 | G67: =IF(Podloga!$B$8=1,C67,IF(Podloga!$B$8=2,D67,IF(Podloga!$B$8=3,E67,IF(Podloga!$B$8=4,F67)))) -> 455031.53 | H67: 431715.1 | L67: =IF(Podloga!$B$8=1,H67,IF(Podloga!$B$8=2,I67,IF(Podloga!$B$8=3,J67,IF(Podloga!$B$8=4,K67)))) -> 431715.1 | M67: 132000 | N67: 94.87586498 | O67: 0 | P67: 0 | Q67: 0 | R67: 94.87586498 | S67: 327.0568939 | T67: 0 | U67: 0 | V67: 0
A68: 5. | B68: UKUPNA AKTIVA | C68: =C4+C5+C40+C67 -> 34007293.12 | D68: 33790468.28 | E68: 35135695.48 | F68: =F4+F5+F40+F67 -> 34204789 | G68: =IF(Podloga!$B$8=1,C68,IF(Podloga!$B$8=2,D68,IF(Podloga!$B$8=3,E68,IF(Podloga!$B$8=4,F68)))) -> 34007293.12 | H68: =H4+H5+H40+H67 -> 35142678.52 | I68: =I4+I5+I40+I67 -> 0 | J68: =J4+J5+J40+J67 -> 0 | K68: 0 | L68: =IF(Podloga!$B$8=1,H68,IF(Podloga!$B$8=2,I68,IF(Podloga!$B$8=3,J68,IF(Podloga!$B$8=4,K68)))) -> 35142678.52 | M68: 34394865.56 | N68: 103.3386527 | O68: 0 | P68: 0 | Q68: 0 | R68: 103.3386527 | S68: 102.1741994 | T68: 0 | U68: 0 | V68: 0
A69: 6. | B69: IZVANBILANČNI ZAPISI | C69: 760000 | D69: 760000 | E69: 760000 | F69: 760000 | G69: =IF(Podloga!$B$8=1,C69,IF(Podloga!$B$8=2,D69,IF(Podloga!$B$8=3,E69,IF(Podloga!$B$8=4,F69)))) -> 760000 | H69: 760000 | L69: =IF(Podloga!$B$8=1,H69,IF(Podloga!$B$8=2,I69,IF(Podloga!$B$8=3,J69,IF(Podloga!$B$8=4,K69)))) -> 760000 | M69: 760000 | N69: 100 | O69: 0 | P69: 0 | Q69: 0 | R69: =IFERROR(L69/G69*100,) -> 100 | S69: =IFERROR(L69/M69*100,) -> 100 | T69: 0 | U69: 0 | V69: 0
H73: I Z N O S (u 000 kn) | N73: ="Indeks 1. k. "& LEFT(Podloga!B7,4) &" / 1. k. "& (LEFT(Podloga!B7,4)-1) -> Indeks 1. k. 2020 / 1. k. 2019 | O73: ="Indeks 2. k. "& LEFT(Podloga!B7,4) &" / 2. k. "& (LEFT(Podloga!B7,4)-1) -> Indeks 2. k. 2020 / 2. k. 2019 | P73: ="Indeks 3. k. "& LEFT(Podloga!B7,4) &" / 3. k. "& (LEFT(Podloga!B7,4)-1) -> Indeks 3. k. 2020 / 3. k. 2019 | Q73: ="Indeks 4. k. "& LEFT(Podloga!B7,4) &" / 4. k. "& (LEFT(Podloga!B7,4)-1) -> Indeks 4. k. 2020 / 4. k. 2019 | R73: Godišnja promjena (kumulativno) | S73: Ostvarenje plana | T73: ="Indeks 2. k. "& LEFT(Podloga!B7,4) &" / 1. k. "& LEFT(Podloga!B7,4) -> Indeks 2. k. 2020 / 1. k. 2020 | U73: ="Indeks 3. k. "& LEFT(Podloga!B7,4) &" / 2. k. "& LEFT(Podloga!B7,4) -> Indeks 3. k. 2020 / 2. k. 2020 | V73: ="Indeks 4. k. "& LEFT(Podloga!B7,4) &" / 2. k. "& LEFT(Podloga!B7,4) -> Indeks 4. k. 2020 / 2. k. 2020
B74: P A S I V A | C74: =Podloga!B34 -> 1. kvartal 2019 | D74: =Podloga!C34 -> 2. kvartal 2019 | E74: =Podloga!D34 -> 3. kvartal 2019 | F74: =Podloga!E34 -> 4. kvartal 2019 | G74: =IF(Podloga!$B$8=1,"Stanje na 31.03."&LEFT(Podloga!B7-1,4),IF(Podloga!$B$8=2,"Stanje na 30.6."&LEFT(Podloga!B7-1,4),IF(Podloga!$B$8=3,"Stanje na 30.09."&LEFT(Podloga!B7-1,4),IF(Podloga!$B$8=4,"Stanje na 31.12."&LEFT(Podloga!B7,4)-1)))) -> Stanje na 31.03.2019 | H74: =Podloga!G34 -> 1. kvartal 2020 | I74: =Podloga!H34 -> 2. kvartal 2020 | J74: =Podloga!I34 -> 3. kvartal 2020 | K74: =Podloga!J34 -> 4. kvartal 2020 | L74: =IF(Podloga!$B$8=1,"Stanje na 31.03."&LEFT(Podloga!B7,4),IF(Podloga!$B$8=2,"Stanje na 30.6."&LEFT(Podloga!B7,4),IF(Podloga!$B$8=3,"Stanje na 30.09."&LEFT(Podloga!B7,4),IF(Podloga!$B$8=4,"Stanje na 31.12."&LEFT(Podloga!B7,4))))) -> Stanje na 31.03.2020 | M74: =Podloga!L34 -> Plan 2020
A75: 1. | B75: KAPITAL I REZERVE | C75: =SUM(C76:C78,C84,C85,C89,C92,C95) -> 30465582.46 | D75: 30234551.9 | E75: 30754753.35 | F75: 30903899 | G75: =IF(Podloga!$B$8=1,C75,IF(Podloga!$B$8=2,D75,IF(Podloga!$B$8=3,E75,IF(Podloga!$B$8=4,F75)))) -> 30465582.46 | H75: =SUM(H76:H78,H84,H85,H89,H92,H95) -> 31474471.94 | I75: =SUM(I76:I78,I84,I85,I89,I92,I95) -> 0 | J75: =SUM(J76:J78,J84,J85,J89,J92,J95) -> 0 | K75: 0 | L75: =IF(Podloga!$B$8=1,H75,IF(Podloga!$B$8=2,I75,IF(Podloga!$B$8=3,J75,IF(Podloga!$B$8=4,K75)))) -> 31474471.94 | M75: 31392365.56 | N75: =IFERROR(H75/C75*100,) -> 103.3115713 | O75: =IFERROR(I75/D75*100,) -> 0 | P75: =IFERROR(J75/E75*100,) -> 0 | Q75: =IFERROR(K75/F75*100,) -> 0 | R75: =IFERROR(L75/G75*100,) -> 103.3115713 | S75: =IFERROR(L75/M75*100,) -> 100.2615489 | T75: =IFERROR(I75/H75*100,) -> 0 | U75: =IFERROR(J75/I75*100,) -> 0 | V75: =IFERROR(K75/J75*100,) -> 0
A76: 1.1. | B76: Temeljni (upisani) kapital | C76: 35716200 | D76: 35716200 | E76: 35716200 | F76: 35716200 | G76: =IF(Podloga!$B$8=1,C76,IF(Podloga!$B$8=2,D76,IF(Podloga!$B$8=3,E76,IF(Podloga!$B$8=4,F76)))) -> 35716200 | H76: 35716200 | L76: =IF(Podloga!$B$8=1,H76,IF(Podloga!$B$8=2,I76,IF(Podloga!$B$8=3,J76,IF(Podloga!$B$8=4,K76)))) -> 35716200 | M76: 35716200 | N76: 100 | O76: 0 | P76: 0 | Q76: 0 | R76: =IFERROR(L76/G76*100,) -> 100 | S76: =IFERROR(L76/M76*100,) -> 100 | T76: 0 | U76: 0 | V76: 0
A77: 1.2. | B77: Kapitalne rezerve | G77: =IF(Podloga!$B$8=1,C77,IF(Podloga!$B$8=2,D77,IF(Podloga!$B$8=3,E77,IF(Podloga!$B$8=4,F77)))) -> 0 | L77: =IF(Podloga!$B$8=1,H77,IF(Podloga!$B$8=2,I77,IF(Podloga!$B$8=3,J77,IF(Podloga!$B$8=4,K77)))) -> 0 | N77: 0 | O77: 0 | P77: 0 | Q77: 0 | R77: 0 | S77: 0 | T77: 0 | U77: 0 | V77: 0
A78: 1.3. | B78: Rezerve iz dobiti | C78: =SUM(C79:C83) -> 0 | D78: 0 | E78: 0 | F78: 0 | G78: =IF(Podloga!$B$8=1,C78,IF(Podloga!$B$8=2,D78,IF(Podloga!$B$8=3,E78,IF(Podloga!$B$8=4,F78)))) -> 0 | H78: =SUM(H79:H83) -> 0 | I78: =SUM(I79:I83) -> 0 | J78: =SUM(J79:J83) -> 0 | K78: 0 | L78: =IF(Podloga!$B$8=1,H78,IF(Podloga!$B$8=2,I78,IF(Podloga!$B$8=3,J78,IF(Podloga!$B$8=4,K78)))) -> 0 | M78: 0 | N78: 0 | O78: 0 | P78: 0 | Q78: 0 | R78: 0 | S78: 0 | T78: 0 | U78: 0 | V78: 0
A79: 1.3.1. | B79: Zakonske rezerve | G79: =IF(Podloga!$B$8=1,C79,IF(Podloga!$B$8=2,D79,IF(Podloga!$B$8=3,E79,IF(Podloga!$B$8=4,F79)))) -> 0 | L79: =IF(Podloga!$B$8=1,H79,IF(Podloga!$B$8=2,I79,IF(Podloga!$B$8=3,J79,IF(Podloga!$B$8=4,K79)))) -> 0 | N79: 0 | O79: 0 | P79: 0 | Q79: 0 | R79: 0 | S79: 0 | T79: 0 | U79: 0 | V79: 0
A80: 1.3.2. | B80: Rezerve za vlastite dionice | G80: =IF(Podloga!$B$8=1,C80,IF(Podloga!$B$8=2,D80,IF(Podloga!$B$8=3,E80,IF(Podloga!$B$8=4,F80)))) -> 0 | L80: =IF(Podloga!$B$8=1,H80,IF(Podloga!$B$8=2,I80,IF(Podloga!$B$8=3,J80,IF(Podloga!$B$8=4,K80)))) -> 0 | N80: 0 | O80: 0 | P80: 0 | Q80: 0 | R80: 0 | S80: 0 | T80: 0 | U80: 0 | V80: 0
A81: 1.3.3. | B81: Vlastite dionice i udjeli (odbitna stavka) | G81: =IF(Podloga!$B$8=1,C81,IF(Podloga!$B$8=2,D81,IF(Podloga!$B$8=3,E81,IF(Podloga!$B$8=4,F81)))) -> 0 | L81: =IF(Podloga!$B$8=1,H81,IF(Podloga!$B$8=2,I81,IF(Podloga!$B$8=3,J81,IF(Podloga!$B$8=4,K81)))) -> 0 | N81: 0 | O81: 0 | P81: 0 | Q81: 0 | R81: 0 | S81: 0 | T81: 0 | U81: 0 | V81: 0
A82: 1.3.4. | B82: Statutarne rezerve | G82: =IF(Podloga!$B$8=1,C82,IF(Podloga!$B$8=2,D82,IF(Podloga!$B$8=3,E82,IF(Podloga!$B$8=4,F82)))) -> 0 | L82: =IF(Podloga!$B$8=1,H82,IF(Podloga!$B$8=2,I82,IF(Podloga!$B$8=3,J82,IF(Podloga!$B$8=4,K82)))) -> 0 | N82: 0 | O82: 0 | P82: 0 | Q82: 0 | R82: 0 | S82: 0 | T82: 0 | U82: 0 | V82: 0
A83: 1.3.5. | B83: Ostale rezerve | G83: =IF(Podloga!$B$8=1,C83,IF(Podloga!$B$8=2,D83,IF(Podloga!$B$8=3,E83,IF(Podloga!$B$8=4,F83)))) -> 0 | L83: =IF(Podloga!$B$8=1,H83,IF(Podloga!$B$8=2,I83,IF(Podloga!$B$8=3,J83,IF(Podloga!$B$8=4,K83)))) -> 0 | N83: 0 | O83: 0 | P83: 0 | Q83: 0 | R83: 0 | S83: 0 | T83: 0 | U83: 0 | V83: 0
A84: 1.4. | B84: Revalorizacijske rezerve | G84: =IF(Podloga!$B$8=1,C84,IF(Podloga!$B$8=2,D84,IF(Podloga!$B$8=3,E84,IF(Podloga!$B$8=4,F84)))) -> 0 | L84: =IF(Podloga!$B$8=1,H84,IF(Podloga!$B$8=2,I84,IF(Podloga!$B$8=3,J84,IF(Podloga!$B$8=4,K84)))) -> 0 | N84: 0 | O84: 0 | P84: 0 | Q84: 0 | R84: 0 | S84: 0 | T84: 0 | U84: 0 | V84: 0
A85: 1.5. | B85: Rezerve fer vrijednosti | C85: =SUM(C86:C88) -> 0 | D85: 0 | E85: 0 | F85: 0 | G85: =IF(Podloga!$B$8=1,C85,IF(Podloga!$B$8=2,D85,IF(Podloga!$B$8=3,E85,IF(Podloga!$B$8=4,F85)))) -> 0 | H85: =SUM(H86:H88) -> 0 | I85: =SUM(I86:I88) -> 0 | J85: =SUM(J86:J88) -> 0 | K85: 0 | L85: =IF(Podloga!$B$8=1,H85,IF(Podloga!$B$8=2,I85,IF(Podloga!$B$8=3,J85,IF(Podloga!$B$8=4,K85)))) -> 0 | M85: 0 | N85: 0 | O85: 0 | P85: 0 | Q85: 0 | R85: 0 | S85: 0 | T85: 0 | U85: 0 | V85: 0
A86: 1.5.1. | B86: Fer vrijednost financijske imovine raspoložive za prodaju | G86: =IF(Podloga!$B$8=1,C86,IF(Podloga!$B$8=2,D86,IF(Podloga!$B$8=3,E86,IF(Podloga!$B$8=4,F86)))) -> 0 | L86: =IF(Podloga!$B$8=1,H86,IF(Podloga!$B$8=2,I86,IF(Podloga!$B$8=3,J86,IF(Podloga!$B$8=4,K86)))) -> 0 | N86: 0 | O86: 0 | P86: 0 | Q86: 0 | R86: 0 | S86: 0 | T86: 0 | U86: 0 | V86: 0
A87: 1.5.2. | B87: Učinkoviti dio zaštite novčanih tokova | G87: =IF(Podloga!$B$8=1,C87,IF(Podloga!$B$8=2,D87,IF(Podloga!$B$8=3,E87,IF(Podloga!$B$8=4,F87)))) -> 0 | L87: =IF(Podloga!$B$8=1,H87,IF(Podloga!$B$8=2,I87,IF(Podloga!$B$8=3,J87,IF(Podloga!$B$8=4,K87)))) -> 0 | N87: 0 | O87: 0 | P87: 0 | Q87: 0 | R87: 0 | S87: 0 | T87: 0 | U87: 0 | V87: 0
A88: 1.5.3. | B88: Učinkoviti dio zaštite neto ulaganja u inozemstvu | G88: =IF(Podloga!$B$8=1,C88,IF(Podloga!$B$8=2,D88,IF(Podloga!$B$8=3,E88,IF(Podloga!$B$8=4,F88)))) -> 0 | L88: =IF(Podloga!$B$8=1,H88,IF(Podloga!$B$8=2,I88,IF(Podloga!$B$8=3,J88,IF(Podloga!$B$8=4,K88)))) -> 0 | N88: 0 | O88: 0 | P88: 0 | Q88: 0 | R88: 0 | S88: 0 | T88: 0 | U88: 0 | V88: 0
A89: 1.6. | B89: Zadržana dobit ili preneseni gubitak | C89: =C90-ABS(C91) -> -5074763.78 | D89: =D90-ABS(D91) -> -5074763.78 | E89: -5074763.78 | F89: -5074763 | G89: =IF(Podloga!$B$8=1,C89,IF(Podloga!$B$8=2,D89,IF(Podloga!$B$8=3,E89,IF(Podloga!$B$8=4,F89)))) -> -5074763.78 | H89: =H90-ABS(H91) -> -4812301.6 | I89: =I90-ABS(I91) -> 0 | J89: 0 | K89: 0 | L89: =IF(Podloga!$B$8=1,H89,IF(Podloga!$B$8=2,I89,IF(Podloga!$B$8=3,J89,IF(Podloga!$B$8=4,K89)))) -> -4812301.6 | M89: =M90-ABS(M91) -> -4326442.33 | N89: 94.8280907 | O89: 0 | P89: 0 | Q89: 0 | R89: 94.8280907 | S89: 111.2299953 | T89: 0 | U89: 0 | V89: 0
A90: 1.6.1. | B90: Zadržana dobit | C90: 0 | F90: 0 | G90: =IF(Podloga!$B$8=1,C90,IF(Podloga!$B$8=2,D90,IF(Podloga!$B$8=3,E90,IF(Podloga!$B$8=4,F90)))) -> 0 | L90: =IF(Podloga!$B$8=1,H90,IF(Podloga!$B$8=2,I90,IF(Podloga!$B$8=3,J90,IF(Podloga!$B$8=4,K90)))) -> 0 | N90: 0 | O90: 0 | P90: 0 | Q90: 0 | R90: 0 | S90: 0 | T90: 0 | U90: 0 | V90: 0
A91: 1.6.2. | B91: Preneseni gubitak | C91: 5074763.78 | D91: 5074763.78 | E91: 5074763.78 | F91: 5074763 | G91: =IF(Podloga!$B$8=1,C91,IF(Podloga!$B$8=2,D91,IF(Podloga!$B$8=3,E91,IF(Podloga!$B$8=4,F91)))) -> 5074763.78 | H91: =5074763.78-262462.18 -> 4812301.6 | L91: =IF(Podloga!$B$8=1,H91,IF(Podloga!$B$8=2,I91,IF(Podloga!$B$8=3,J91,IF(Podloga!$B$8=4,K91)))) -> 4812301.6 | M91: -4326442.33 | N91: 94.8280907 | O91: 0 | P91: 0 | Q91: 0 | R91: 94.8280907 | S91: -111.2299953 | T91: 0 | U91: 0 | V91: 0
A92: 1.7. | B92: Dobit ili gubitak poslovne godine | C92: =C93-ABS(C94) -> -175853.76 | D92: =D93-ABS(D94) -> -406884.32 | E92: 113317.13 | F92: 262462 | G92: =IF(Podloga!$B$8=1,C92,IF(Podloga!$B$8=2,D92,IF(Podloga!$B$8=3,E92,IF(Podloga!$B$8=4,F92)))) -> -175853.76 | H92: =H93-ABS(H94) -> 570573.54 | I92: =I93-ABS(I94) -> 0 | J92: 0 | K92: 0 | L92: =IF(Podloga!$B$8=1,H92,IF(Podloga!$B$8=2,I92,IF(Podloga!$B$8=3,J92,IF(Podloga!$B$8=4,K92)))) -> 570573.54 | M92: =M93-ABS(M94) -> 2607.89 | N92: -324.4591074 | O92: 0 | P92: 0 | Q92: 0 | R92: -324.4591074 | S92: 21878.74259 | T92: 0 | U92: 0 | V92: 0
A93: 1.7.1. | B93: Dobit poslovne godine | C93: 0 | E93: 113317.13 | F93: 262462 | G93: =IF(Podloga!$B$8=1,C93,IF(Podloga!$B$8=2,D93,IF(Podloga!$B$8=3,E93,IF(Podloga!$B$8=4,F93)))) -> 0 | H93: =3406975.81-2836402.27 -> 570573.54 | L93: =IF(Podloga!$B$8=1,H93,IF(Podloga!$B$8=2,I93,IF(Podloga!$B$8=3,J93,IF(Podloga!$B$8=4,K93)))) -> 570573.54 | M93: 2607.89 | N93: 0 | O93: 0 | P93: 0 | Q93: 0 | R93: 0 | S93: 21878.74259 | T93: 0 | U93: 0 | V93: 0
A94: 1.7.2. | B94: Gubitak poslovne godine | C94: -175853.76 | D94: -406884.32 | E94: 0 | G94: =IF(Podloga!$B$8=1,C94,IF(Podloga!$B$8=2,D94,IF(Podloga!$B$8=3,E94,IF(Podloga!$B$8=4,F94)))) -> -175853.76 | L94: =IF(Podloga!$B$8=1,H94,IF(Podloga!$B$8=2,I94,IF(Podloga!$B$8=3,J94,IF(Podloga!$B$8=4,K94)))) -> 0 | N94: 0 | O94: 0 | P94: 0 | Q94: 0 | R94: 0 | S94: 0 | T94: 0 | U94: 0 | V94: 0
A95: 1.8. | B95: Manjinski (nekontrolirajući) interes | G95: =IF(Podloga!$B$8=1,C95,IF(Podloga!$B$8=2,D95,IF(Podloga!$B$8=3,E95,IF(Podloga!$B$8=4,F95)))) -> 0 | L95: =IF(Podloga!$B$8=1,H95,IF(Podloga!$B$8=2,I95,IF(Podloga!$B$8=3,J95,IF(Podloga!$B$8=4,K95)))) -> 0 | N95: 0 | O95: 0 | P95: 0 | Q95: 0 | R95: 0 | S95: 0 | T95: 0 | U95: 0 | V95: 0
A96: 2. | B96: REZERVIRANJA | C96: =SUM(C97:C102) -> 0 | D96: 0 | E96: 0 | F96: 0 | G96: =IF(Podloga!$B$8=1,C96,IF(Podloga!$B$8=2,D96,IF(Podloga!$B$8=3,E96,IF(Podloga!$B$8=4,F96)))) -> 0 | H96: =SUM(H97:H102) -> 0 | I96: =SUM(I97:I102) -> 0 | J96: =SUM(J97:J102) -> 0 | K96: 0 | L96: =IF(Podloga!$B$8=1,H96,IF(Podloga!$B$8=2,I96,IF(Podloga!$B$8=3,J96,IF(Podloga!$B$8=4,K96)))) -> 0 | M96: 0 | N96: 0 | O96: 0 | P96: 0 | Q96: 0 | R96: 0 | S96: 0 | T96: 0 | U96: 0 | V96: 0
A97: 2.1. | B97: Rezerviranja za mirovine, otpremnine i slične obveze | G97: =IF(Podloga!$B$8=1,C97,IF(Podloga!$B$8=2,D97,IF(Podloga!$B$8=3,E97,IF(Podloga!$B$8=4,F97)))) -> 0 | L97: =IF(Podloga!$B$8=1,H97,IF(Podloga!$B$8=2,I97,IF(Podloga!$B$8=3,J97,IF(Podloga!$B$8=4,K97)))) -> 0 | N97: 0 | O97: 0 | P97: 0 | Q97: 0 | R97: 0 | S97: 0 | T97: 0 | U97: 0 | V97: 0
A98: 2.2. | B98: Rezerviranja za porezne obveze | G98: =IF(Podloga!$B$8=1,C98,IF(Podloga!$B$8=2,D98,IF(Podloga!$B$8=3,E98,IF(Podloga!$B$8=4,F98)))) -> 0 | L98: =IF(Podloga!$B$8=1,H98,IF(Podloga!$B$8=2,I98,IF(Podloga!$B$8=3,J98,IF(Podloga!$B$8=4,K98)))) -> 0 | N98: 0 | O98: 0 | P98: 0 | Q98: 0 | R98: 0 | S98: 0 | T98: 0 | U98: 0 | V98: 0
A99: 2.3. | B99: Rezerviranja za započete sudske sporove | G99: =IF(Podloga!$B$8=1,C99,IF(Podloga!$B$8=2,D99,IF(Podloga!$B$8=3,E99,IF(Podloga!$B$8=4,F99)))) -> 0 | L99: =IF(Podloga!$B$8=1,H99,IF(Podloga!$B$8=2,I99,IF(Podloga!$B$8=3,J99,IF(Podloga!$B$8=4,K99)))) -> 0 | N99: 0 | O99: 0 | P99: 0 | Q99: 0 | R99: 0 | S99: 0 | T99: 0 | U99: 0 | V99: 0
A100: 2.4. | B100: Rezerviranja za troškove obnavljanja prirodnih bogatstava | G100: =IF(Podloga!$B$8=1,C100,IF(Podloga!$B$8=2,D100,IF(Podloga!$B$8=3,E100,IF(Podloga!$B$8=4,F100)))) -> 0 | L100: =IF(Podloga!$B$8=1,H100,IF(Podloga!$B$8=2,I100,IF(Podloga!$B$8=3,J100,IF(Podloga!$B$8=4,K100)))) -> 0 | N100: 0 | O100: 0 | P100: 0 | Q100: 0 | R100: 0 | S100: 0 | T100: 0 | U100: 0 | V100: 0
A101: 2.5. | B101: Rezerviranja za troškove u jamstvenim rokovima | G101: =IF(Podloga!$B$8=1,C101,IF(Podloga!$B$8=2,D101,IF(Podloga!$B$8=3,E101,IF(Podloga!$B$8=4,F101)))) -> 0 | L101: =IF(Podloga!$B$8=1,H101,IF(Podloga!$B$8=2,I101,IF(Podloga!$B$8=3,J101,IF(Podloga!$B$8=4,K101)))) -> 0 | N101: 0 | O101: 0 | P101: 0 | Q101: 0 | R101: 0 | S101: 0 | T101: 0 | U101: 0 | V101: 0
A102: 2.6. | B102: Druga rezerviranja | G102: =IF(Podloga!$B$8=1,C102,IF(Podloga!$B$8=2,D102,IF(Podloga!$B$8=3,E102,IF(Podloga!$B$8=4,F102)))) -> 0 | L102: =IF(Podloga!$B$8=1,H102,IF(Podloga!$B$8=2,I102,IF(Podloga!$B$8=3,J102,IF(Podloga!$B$8=4,K102)))) -> 0 | N102: 0 | O102: 0 | P102: 0 | Q102: 0 | R102: 0 | S102: 0 | T102: 0 | U102: 0 | V102: 0
A103: 3. | B103: DUGOROČNE OBVEZE | C103: =SUM(C104:C114) -> 0 | D103: 0 | E103: 0 | F103: 0 | G103: =IF(Podloga!$B$8=1,C103,IF(Podloga!$B$8=2,D103,IF(Podloga!$B$8=3,E103,IF(Podloga!$B$8=4,F103)))) -> 0 | H103: =SUM(H104:H114) -> 0 | I103: =SUM(I104:I114) -> 0 | J103: =SUM(J104:J114) -> 0 | K103: 0 | L103: =IF(Podloga!$B$8=1,H103,IF(Podloga!$B$8=2,I103,IF(Podloga!$B$8=3,J103,IF(Podloga!$B$8=4,K103)))) -> 0 | M103: =SUM(M104:M114) -> 0 | N103: 0 | O103: 0 | P103: 0 | Q103: 0 | R103: 0 | S103: 0 | T103: 0 | U103: 0 | V103: 0
A104: 3.1. | B104: Obveze prema poduzetnicima unutar grupe | G104: =IF(Podloga!$B$8=1,C104,IF(Podloga!$B$8=2,D104,IF(Podloga!$B$8=3,E104,IF(Podloga!$B$8=4,F104)))) -> 0 | L104: =IF(Podloga!$B$8=1,H104,IF(Podloga!$B$8=2,I104,IF(Podloga!$B$8=3,J104,IF(Podloga!$B$8=4,K104)))) -> 0 | N104: 0 | O104: 0 | P104: 0 | Q104: 0 | R104: 0 | S104: 0 | T104: 0 | U104: 0 | V104: 0
A105: 3.2. | B105: Obveze za zajmove, depozite i slično poduzetnika unutar grupe | G105: =IF(Podloga!$B$8=1,C105,IF(Podloga!$B$8=2,D105,IF(Podloga!$B$8=3,E105,IF(Podloga!$B$8=4,F105)))) -> 0 | L105: =IF(Podloga!$B$8=1,H105,IF(Podloga!$B$8=2,I105,IF(Podloga!$B$8=3,J105,IF(Podloga!$B$8=4,K105)))) -> 0 | N105: 0 | O105: 0 | P105: 0 | Q105: 0 | R105: 0 | S105: 0 | T105: 0 | U105: 0 | V105: 0
A106: 3.3. | B106: Obveze prema društvima povezanim sudjelujućim interesom | G106: =IF(Podloga!$B$8=1,C106,IF(Podloga!$B$8=2,D106,IF(Podloga!$B$8=3,E106,IF(Podloga!$B$8=4,F106)))) -> 0 | L106: =IF(Podloga!$B$8=1,H106,IF(Podloga!$B$8=2,I106,IF(Podloga!$B$8=3,J106,IF(Podloga!$B$8=4,K106)))) -> 0 | N106: 0 | O106: 0 | P106: 0 | Q106: 0 | R106: 0 | S106: 0 | T106: 0 | U106: 0 | V106: 0
A107: 3.4. | B107: Obveze za zajmove, depozite i slično društava povezanih sudjelujućim interesom | G107: =IF(Podloga!$B$8=1,C107,IF(Podloga!$B$8=2,D107,IF(Podloga!$B$8=3,E107,IF(Podloga!$B$8=4,F107)))) -> 0 | L107: =IF(Podloga!$B$8=1,H107,IF(Podloga!$B$8=2,I107,IF(Podloga!$B$8=3,J107,IF(Podloga!$B$8=4,K107)))) -> 0 | N107: =IFERROR(H107/C107*100,) -> 0 | O107: =IFERROR(I107/D107*100,) -> 0 | P107: =IFERROR(J107/E107*100,) -> 0 | Q107: =IFERROR(K107/F107*100,) -> 0 | R107: 0 | S107: 0 | T107: =IFERROR(I107/H107*100,) -> 0 | U107: =IFERROR(J107/I107*100,) -> 0 | V107: =IFERROR(K107/J107*100,) -> 0
A108: 3.5. | B108: Obveze za zajmove, depozite i slično | G108: =IF(Podloga!$B$8=1,C108,IF(Podloga!$B$8=2,D108,IF(Podloga!$B$8=3,E108,IF(Podloga!$B$8=4,F108)))) -> 0 | L108: =IF(Podloga!$B$8=1,H108,IF(Podloga!$B$8=2,I108,IF(Podloga!$B$8=3,J108,IF(Podloga!$B$8=4,K108)))) -> 0 | N108: 0 | O108: 0 | P108: 0 | Q108: 0 | R108: 0 | S108: 0 | T108: 0 | U108: 0 | V108: 0
A109: 3.6. | B109: Obveze prema bankama i drugim financijskim institucijama | G109: =IF(Podloga!$B$8=1,C109,IF(Podloga!$B$8=2,D109,IF(Podloga!$B$8=3,E109,IF(Podloga!$B$8=4,F109)))) -> 0 | L109: =IF(Podloga!$B$8=1,H109,IF(Podloga!$B$8=2,I109,IF(Podloga!$B$8=3,J109,IF(Podloga!$B$8=4,K109)))) -> 0 | N109: 0 | O109: 0 | P109: 0 | Q109: 0 | R109: 0 | S109: 0 | T109: 0 | U109: 0 | V109: 0
A110: 3.7. | B110: Obveze za predujmove | G110: =IF(Podloga!$B$8=1,C110,IF(Podloga!$B$8=2,D110,IF(Podloga!$B$8=3,E110,IF(Podloga!$B$8=4,F110)))) -> 0 | L110: =IF(Podloga!$B$8=1,H110,IF(Podloga!$B$8=2,I110,IF(Podloga!$B$8=3,J110,IF(Podloga!$B$8=4,K110)))) -> 0 | N110: 0 | O110: 0 | P110: 0 | Q110: 0 | R110: 0 | S110: 0 | T110: 0 | U110: 0 | V110: 0
A111: 3.8. | B111: Obveze prema dobavljačima | G111: =IF(Podloga!$B$8=1,C111,IF(Podloga!$B$8=2,D111,IF(Podloga!$B$8=3,E111,IF(Podloga!$B$8=4,F111)))) -> 0 | L111: =IF(Podloga!$B$8=1,H111,IF(Podloga!$B$8=2,I111,IF(Podloga!$B$8=3,J111,IF(Podloga!$B$8=4,K111)))) -> 0 | N111: 0 | O111: 0 | P111: 0 | Q111: 0 | R111: 0 | S111: 0 | T111: 0 | U111: 0 | V111: 0
A112: 3.9. | B112: Obveze po vrijednosnim papirima | G112: =IF(Podloga!$B$8=1,C112,IF(Podloga!$B$8=2,D112,IF(Podloga!$B$8=3,E112,IF(Podloga!$B$8=4,F112)))) -> 0 | L112: =IF(Podloga!$B$8=1,H112,IF(Podloga!$B$8=2,I112,IF(Podloga!$B$8=3,J112,IF(Podloga!$B$8=4,K112)))) -> 0 | N112: 0 | O112: 0 | P112: 0 | Q112: 0 | R112: 0 | S112: 0 | T112: 0 | U112: 0 | V112: 0
A113: 3.10. | B113: Ostale dugoročne obveze | G113: =IF(Podloga!$B$8=1,C113,IF(Podloga!$B$8=2,D113,IF(Podloga!$B$8=3,E113,IF(Podloga!$B$8=4,F113)))) -> 0 | L113: =IF(Podloga!$B$8=1,H113,IF(Podloga!$B$8=2,I113,IF(Podloga!$B$8=3,J113,IF(Podloga!$B$8=4,K113)))) -> 0 | N113: 0 | O113: 0 | P113: 0 | Q113: 0 | R113: 0 | S113: 0 | T113: 0 | U113: 0 | V113: 0
A114: 3.11. | B114: Odgođena porezna obveza | G114: =IF(Podloga!$B$8=1,C114,IF(Podloga!$B$8=2,D114,IF(Podloga!$B$8=3,E114,IF(Podloga!$B$8=4,F114)))) -> 0 | L114: =IF(Podloga!$B$8=1,H114,IF(Podloga!$B$8=2,I114,IF(Podloga!$B$8=3,J114,IF(Podloga!$B$8=4,K114)))) -> 0 | N114: 0 | O114: 0 | P114: 0 | Q114: 0 | R114: 0 | S114: 0 | T114: 0 | U114: 0 | V114: 0
A115: 4. | B115: KRATKOROČNE OBVEZE | C115: =SUM(C116:C129) -> 939866.91 | D115: 1032916.38 | E115: 1936785.88 | F115: 935577 | G115: =IF(Podloga!$B$8=1,C115,IF(Podloga!$B$8=2,D115,IF(Podloga!$B$8=3,E115,IF(Podloga!$B$8=4,F115)))) -> 939866.91 | H115: =SUM(H116:H129) -> 1381737.83 | I115: =SUM(I116:I129) -> 0 | J115: =SUM(J116:J129) -> 0 | K115: 0 | L115: =IF(Podloga!$B$8=1,H115,IF(Podloga!$B$8=2,I115,IF(Podloga!$B$8=3,J115,IF(Podloga!$B$8=4,K115)))) -> 1381737.83 | M115: 950500 | N115: 147.0142012 | O115: 0 | P115: 0 | Q115: 0 | R115: 147.0142012 | S115: 145.3695771 | T115: 0 | U115: 0 | V115: 0
A116: 4.1. | B116: Obveze prema poduzetnicima unutar grupe | C116: 0 | F116: 0 | G116: =IF(Podloga!$B$8=1,C116,IF(Podloga!$B$8=2,D116,IF(Podloga!$B$8=3,E116,IF(Podloga!$B$8=4,F116)))) -> 0 | L116: =IF(Podloga!$B$8=1,H116,IF(Podloga!$B$8=2,I116,IF(Podloga!$B$8=3,J116,IF(Podloga!$B$8=4,K116)))) -> 0 | N116: 0 | O116: 0 | P116: 0 | Q116: 0 | R116: 0 | S116: 0 | T116: 0 | U116: 0 | V116: 0
A117: 4.2. | B117: Obveze za zajmove, depozite i slično poduzetnika unutar grupe | C117: 0 | F117: 0 | G117: =IF(Podloga!$B$8=1,C117,IF(Podloga!$B$8=2,D117,IF(Podloga!$B$8=3,E117,IF(Podloga!$B$8=4,F117)))) -> 0 | L117: =IF(Podloga!$B$8=1,H117,IF(Podloga!$B$8=2,I117,IF(Podloga!$B$8=3,J117,IF(Podloga!$B$8=4,K117)))) -> 0 | N117: 0 | O117: 0 | P117: 0 | Q117: 0 | R117: 0 | S117: 0 | T117: 0 | U117: 0 | V117: 0
A118: 4.3. | B118: Obveze prema društvima povezanim sudjelujućim interesom | C118: 0 | F118: 0 | G118: =IF(Podloga!$B$8=1,C118,IF(Podloga!$B$8=2,D118,IF(Podloga!$B$8=3,E118,IF(Podloga!$B$8=4,F118)))) -> 0 | L118: =IF(Podloga!$B$8=1,H118,IF(Podloga!$B$8=2,I118,IF(Podloga!$B$8=3,J118,IF(Podloga!$B$8=4,K118)))) -> 0 | N118: 0 | O118: 0 | P118: 0 | Q118: 0 | R118: 0 | S118: 0 | T118: 0 | U118: 0 | V118: 0
A119: 4.4. | B119: Obveze za zajmove, depozite i slično društava povezanih sudjelujućim interesom | C119: 0 | F119: 0 | G119: =IF(Podloga!$B$8=1,C119,IF(Podloga!$B$8=2,D119,IF(Podloga!$B$8=3,E119,IF(Podloga!$B$8=4,F119)))) -> 0 | L119: =IF(Podloga!$B$8=1,H119,IF(Podloga!$B$8=2,I119,IF(Podloga!$B$8=3,J119,IF(Podloga!$B$8=4,K119)))) -> 0 | N119: 0 | O119: 0 | P119: 0 | Q119: 0 | R119: 0 | S119: 0 | T119: 0 | U119: 0 | V119: 0
A120: 4.5. | B120: Obveze za zajmove, depozite i slično | C120: 0 | F120: 0 | G120: =IF(Podloga!$B$8=1,C120,IF(Podloga!$B$8=2,D120,IF(Podloga!$B$8=3,E120,IF(Podloga!$B$8=4,F120)))) -> 0 | L120: =IF(Podloga!$B$8=1,H120,IF(Podloga!$B$8=2,I120,IF(Podloga!$B$8=3,J120,IF(Podloga!$B$8=4,K120)))) -> 0 | N120: 0 | O120: 0 | P120: 0 | Q120: 0 | R120: 0 | S120: 0 | T120: 0 | U120: 0 | V120: 0
A121: 4.6. | B121: Obveze prema bankama i drugim financijskim institucijama | C121: 0 | F121: 0 | G121: =IF(Podloga!$B$8=1,C121,IF(Podloga!$B$8=2,D121,IF(Podloga!$B$8=3,E121,IF(Podloga!$B$8=4,F121)))) -> 0 | L121: =IF(Podloga!$B$8=1,H121,IF(Podloga!$B$8=2,I121,IF(Podloga!$B$8=3,J121,IF(Podloga!$B$8=4,K121)))) -> 0 | N121: 0 | O121: 0 | P121: 0 | Q121: 0 | R121: 0 | S121: 0 | T121: 0 | U121: 0 | V121: 0
A122: 4.7. | B122: Obveze za predujmove | C122: 192.56 | D122: 192.56 | E122: 192.56 | F122: 2271 | G122: =IF(Podloga!$B$8=1,C122,IF(Podloga!$B$8=2,D122,IF(Podloga!$B$8=3,E122,IF(Podloga!$B$8=4,F122)))) -> 192.56 | L122: =IF(Podloga!$B$8=1,H122,IF(Podloga!$B$8=2,I122,IF(Podloga!$B$8=3,J122,IF(Podloga!$B$8=4,K122)))) -> 0 | M122: 5000 | N122: 0 | O122: 0 | P122: 0 | Q122: 0 | R122: 0 | S122: 0 | T122: 0 | U122: 0 | V122: 0
A123: 4.8. | B123: Obveze prema dobavljačima | C123: 333211.51 | D123: 362485.71 | E123: 1311715.06 | F123: 279367 | G123: =IF(Podloga!$B$8=1,C123,IF(Podloga!$B$8=2,D123,IF(Podloga!$B$8=3,E123,IF(Podloga!$B$8=4,F123)))) -> 333211.51 | H123: =749912.14-2.27+748.96 -> 750658.83 | L123: =IF(Podloga!$B$8=1,H123,IF(Podloga!$B$8=2,I123,IF(Podloga!$B$8=3,J123,IF(Podloga!$B$8=4,K123)))) -> 750658.83 | M123: 290000 | N123: 225.2799821 | O123: 0 | P123: 0 | Q123: 0 | R123: 225.2799821 | S123: 258.8478724 | T123: 0 | U123: 0 | V123: 0
A124: 4.9. | B124: Obveze po vrijednosnim papirima | C124: 0 | D124: 0 | E124: 0 | F124: 0 | G124: =IF(Podloga!$B$8=1,C124,IF(Podloga!$B$8=2,D124,IF(Podloga!$B$8=3,E124,IF(Podloga!$B$8=4,F124)))) -> 0 | L124: =IF(Podloga!$B$8=1,H124,IF(Podloga!$B$8=2,I124,IF(Podloga!$B$8=3,J124,IF(Podloga!$B$8=4,K124)))) -> 0 | N124: 0 | O124: 0 | P124: 0 | Q124: 0 | R124: 0 | S124: 0 | T124: 0 | U124: 0 | V124: 0
A125: 4.10. | B125: Obveze prema zaposlenicima | C125: 357853.09 | D125: 366955.43 | E125: 358196.81 | F125: 390996 | G125: =IF(Podloga!$B$8=1,C125,IF(Podloga!$B$8=2,D125,IF(Podloga!$B$8=3,E125,IF(Podloga!$B$8=4,F125)))) -> 357853.09 | H125: =347795.17+25370.2-100 -> 373065.37 | L125: =IF(Podloga!$B$8=1,H125,IF(Podloga!$B$8=2,I125,IF(Podloga!$B$8=3,J125,IF(Podloga!$B$8=4,K125)))) -> 373065.37 | M125: 405000 | N125: 104.2509847 | O125: 0 | P125: 0 | Q125: 0 | R125: 104.2509847 | S125: 92.11490617 | T125: 0 | U125: 0 | V125: 0
A126: 4.11. | B126: Obveze za poreze, doprinose i slična davanja | C126: 238109.75 | D126: 267782.68 | E126: 256181.45 | F126: 232985 | G126: =IF(Podloga!$B$8=1,C126,IF(Podloga!$B$8=2,D126,IF(Podloga!$B$8=3,E126,IF(Podloga!$B$8=4,F126)))) -> 238109.75 | H126: =81494.3+2694.5+1562.25+1171.69+3560.2+87871.92+8890.69+60268.08 -> 247513.63 | L126: =IF(Podloga!$B$8=1,H126,IF(Podloga!$B$8=2,I126,IF(Podloga!$B$8=3,J126,IF(Podloga!$B$8=4,K126)))) -> 247513.63 | M126: 240000 | N126: 103.9493889 | O126: 0 | P126: 0 | Q126: 0 | R126: 103.9493889 | S126: 103.1306792 | T126: 0 | U126: 0 | V126: 0
A127: 4.12. | B127: Obveze s osnove udjela u rezultatu | C127: 0 | D127: 0 | E127: 0 | F127: 0 | G127: =IF(Podloga!$B$8=1,C127,IF(Podloga!$B$8=2,D127,IF(Podloga!$B$8=3,E127,IF(Podloga!$B$8=4,F127)))) -> 0 | L127: =IF(Podloga!$B$8=1,H127,IF(Podloga!$B$8=2,I127,IF(Podloga!$B$8=3,J127,IF(Podloga!$B$8=4,K127)))) -> 0 | N127: 0 | O127: 0 | P127: 0 | Q127: 0 | R127: 0 | S127: 0 | T127: 0 | U127: 0 | V127: 0
A128: 4.13. | B128: Obveze po osnovi dugotrajne imovine namijenjene prodaji | C128: 0 | D128: 0 | E128: 0 | F128: 0 | G128: =IF(Podloga!$B$8=1,C128,IF(Podloga!$B$8=2,D128,IF(Podloga!$B$8=3,E128,IF(Podloga!$B$8=4,F128)))) -> 0 | L128: =IF(Podloga!$B$8=1,H128,IF(Podloga!$B$8=2,I128,IF(Podloga!$B$8=3,J128,IF(Podloga!$B$8=4,K128)))) -> 0 | N128: 0 | O128: 0 | P128: 0 | Q128: 0 | R128: 0 | S128: 0 | T128: 0 | U128: 0 | V128: 0
A129: 4.14. | B129: Ostale kratkoročne obveze | C129: 10500 | D129: 35500 | E129: 10500 | F129: 29958 | G129: =IF(Podloga!$B$8=1,C129,IF(Podloga!$B$8=2,D129,IF(Podloga!$B$8=3,E129,IF(Podloga!$B$8=4,F129)))) -> 10500 | H129: 10500 | L129: =IF(Podloga!$B$8=1,H129,IF(Podloga!$B$8=2,I129,IF(Podloga!$B$8=3,J129,IF(Podloga!$B$8=4,K129)))) -> 10500 | M129: 10500 | N129: 100 | O129: 0 | P129: 0 | Q129: 0 | R129: 100 | S129: 100 | T129: 0 | U129: 0 | V129: 0
A130: 5. | B130: ODGOĐENO PLAĆANJE TROŠKOVA I PRIHOD BUDUĆEG RAZDOBLJA | C130: 2601843.75 | D130: 2523000 | E130: 2444156.25 | F130: 2365313 | G130: =IF(Podloga!$B$8=1,C130,IF(Podloga!$B$8=2,D130,IF(Podloga!$B$8=3,E130,IF(Podloga!$B$8=4,F130)))) -> 2601843.75 | H130: 2286468.75 | L130: =IF(Podloga!$B$8=1,H130,IF(Podloga!$B$8=2,I130,IF(Podloga!$B$8=3,J130,IF(Podloga!$B$8=4,K130)))) -> 2286468.75 | M130: 2052000 | N130: 87.87878788 | O130: 0 | P130: 0 | Q130: 0 | R130: 87.87878788 | S130: 111.4263523 | T130: 0 | U130: 0 | V130: 0
A131: 6. | B131: UKUPNA PASIVA | C131: =C75+C96+C103+C115+C130 -> 34007293.12 | D131: 33790468.28 | E131: 35135695.48 | F131: 34204789 | G131: =IF(Podloga!$B$8=1,C131,IF(Podloga!$B$8=2,D131,IF(Podloga!$B$8=3,E131,IF(Podloga!$B$8=4,F131)))) -> 34007293.12 | H131: =H75+H96+H103+H115+H130 -> 35142678.52 | I131: =I75+I96+I103+I115+I130 -> 0 | J131: =J75+J96+J103+J115+J130 -> 0 | K131: 0 | L131: =IF(Podloga!$B$8=1,H131,IF(Podloga!$B$8=2,I131,IF(Podloga!$B$8=3,J131,IF(Podloga!$B$8=4,K131)))) -> 35142678.52 | M131: 34394865.56 | N131: 103.3386527 | O131: 0 | P131: 0 | Q131: 0 | R131: 103.3386527 | S131: 102.1741994 | T131: 0 | U131: 0 | V131: 0
A132: 7. | B132: IZVANBILANČNI ZAPISI | C132: 760000 | D132: 760000 | E132: 760000 | F132: 760000 | G132: =IF(Podloga!$B$8=1,C132,IF(Podloga!$B$8=2,D132,IF(Podloga!$B$8=3,E132,IF(Podloga!$B$8=4,F132)))) -> 760000 | H132: 760000 | L132: =IF(Podloga!$B$8=1,H132,IF(Podloga!$B$8=2,I132,IF(Podloga!$B$8=3,J132,IF(Podloga!$B$8=4,K132)))) -> 760000 | M132: 760000 | N132: 100 | O132: 0 | P132: 0 | Q132: 0 | R132: 100 | S132: 100 | T132: 0 | U132: 0 | V132: 0
A133: * DODATAK IZVJEŠTAJU O FINANCIJSKOM POLOŽAJU (popunjava trgovačko društvo koje sastavlja konsolidirani godišnji financijski izvještaj)
A134: 8. | B134: KAPITAL I REZERVE | C134: =IF(C135+C136=C75,C75,"Neodgovarajuća raspodjela") -> Neodgovarajuća raspodjela | D134: Neodgovarajuća raspodjela | E134: Neodgovarajuća raspodjela | F134: Neodgovarajuća raspodjela | G134: =IF(G135+G136=G75,G75,"Neodgovarajuća raspodjela") -> Neodgovarajuća raspodjela | H134: =IF(H135+H136=H75,H75,"Neodgovarajuća raspodjela") -> Neodgovarajuća raspodjela | I134: 0 | J134: =IF(J135+J136=J75,J75,"Neodgovarajuća raspodjela") -> 0 | K134: =IF(K135+K136=K75,K75,"Neodgovarajuća raspodjela") -> 0 | L134: =IF(L135+L136=L75,L75,"Neodgovarajuća raspodjela") -> Neodgovarajuća raspodjela | M134: Neodgovarajuća raspodjela | N134: =IFERROR(H134/C134*100,) -> 0 | O134: =IFERROR(I134/D134*100,) -> 0 | P134: =IFERROR(J134/E134*100,) -> 0 | Q134: =IFERROR(K134/F134*100,) -> 0 | R134: =IFERROR(L134/G134*100,) -> 0
A135: 8.1. | B135: Pripisano imateljima kapitala matice | G135: =IF(Podloga!$B$8=1,C135,IF(Podloga!$B$8=2,D135,IF(Podloga!$B$8=3,E135,IF(Podloga!$B$8=4,F135)))) -> 0 | L135: =IF(Podloga!$B$8=1,H135,IF(Podloga!$B$8=2,I135,IF(Podloga!$B$8=3,J135,IF(Podloga!$B$8=4,K135)))) -> 0 | N135: =IFERROR(H135/C135*100,) -> 0 | O135: 0 | P135: 0 | Q135: =IFERROR(K135/F135*100,) -> 0 | R135: 0 | S135: 0 | T135: =IFERROR(I135/H135*100,) -> 0 | U135: =IFERROR(J135/I135*100,) -> 0 | V135: =IFERROR(K135/J135*100,) -> 0
A136: 8.2. | B136: Pripisano manjinskom interesu | G136: =IF(Podloga!$B$8=1,C136,IF(Podloga!$B$8=2,D136,IF(Podloga!$B$8=3,E136,IF(Podloga!$B$8=4,F136)))) -> 0 | L136: =IF(Podloga!$B$8=1,H136,IF(Podloga!$B$8=2,I136,IF(Podloga!$B$8=3,J136,IF(Podloga!$B$8=4,K136)))) -> 0 | N136: =IFERROR(H136/C136*100,) -> 0 | O136: 0 | P136: 0 | Q136: =IFERROR(K136/F136*100,) -> 0 | R136: 0 | S136: 0 | T136: 0 | U136: =IFERROR(J136/I136*100,) -> 0 | V136: =IFERROR(K136/J136*100,) -> 0
A138: * | B138: Napomena 1: Dodatak izvještaju o financijskom položaju popunjavaju trgovačka društva koja sastavljaju konsolidirane godišnje financijske izvještaje
B139: Napomena 2: Prilikom razvrstavanja trgovačkih društava, sukladno članku 3. Zakona o računovodstvu, ne uzima se u zbroju aktive iznos gubitka iznad kapitala
A142: =HYPERLINK("#Sadržaj!A1","Povratak na sadržaj") -> Povratak na sadržaj

Sheet RDG Podloga
A1: RAČUN DOBITI I GUBITKA | C1: =IF(C83>0,"Sveobuhvatna dobit razdoblja",IF(C83=0,"Stagnacija u razdoblju","Sveobuhvatni gubitak razdoblja")) -> Sveobuhvatni gubitak razdoblja | D1: Sveobuhvatni gubitak razdoblja | E1: Sveobuhvatna dobit razdoblja | F1: Sveobuhvatna dobit razdoblja | G1: =IF(G83>0,"Sveobuhvatna dobit razdoblja",IF(G83=0,"Stagnacija u razdoblju","Sveobuhvatni gubitak razdoblja")) -> Sveobuhvatna dobit razdoblja | H1: Stagnacija u razdoblju | I1: Stagnacija u razdoblju | J1: Stagnacija u razdoblju | K1: Sveobuhvatna dobit razdoblja
A2: Obveznik: | B2: =IF(ISBLANK(Podloga!B2),"",Podloga!B2) -> LUKA-VUKOVAR doo | C2: =IF(Podloga!$B$8=1,"za razdoblje od 01. siječnja do 31. ožujka",IF(Podloga!$B$8=2,"za razdoblje od 01. siječnja do 30. lipnja",IF(Podloga!$B$8=3,"za razdoblje od 01. siječnja do 30. rujna",IF(Podloga!$B$8=4,"za razdoblje od 01. siječnja do 31. prosinca")))) -> za razdoblje od 01. siječnja do 31. ožujka
C3: I Z N O S (u 000 kn)
C4: ="1-3 mjesec u "&LEFT(Podloga!B7,4)-1 -> 1-3 mjesec u 2019 | D4: ="1-6 mjesec u "&LEFT(Podloga!B7,4)-1 -> 1-6 mjesec u 2019 | E4: ="1-9 mjesec u "&LEFT(Podloga!B7,4)-1 -> 1-9 mjesec u 2019 | F4: ="1-12 mjesec u "&LEFT(Podloga!B7,4)-1 -> 1-12 mjesec u 2019 | G4: ="1-3 mjesec u "&LEFT(Podloga!B7,4) -> 1-3 mjesec u 2020 | H4: ="1-6 mjesec u "&LEFT(Podloga!B7,4) -> 1-6 mjesec u 2020 | I4: ="1-9 mjesec u "&LEFT(Podloga!B7,4) -> 1-9 mjesec u 2020 | J4: ="1-12 mjesec u "&LEFT(Podloga!B7,4) -> 1-12 mjesec u 2020 | K4: =Podloga!L34 -> Plan 2020
A5: 1. | B5: POSLOVNI PRIHODI | C5: =SUM(C6:C10) -> 3254274.39 | D5: 6548858.75 | E5: 10556575.39 | F5: 14040963 | G5: =SUM(G6:G10) -> 3741712.2 | H5: =SUM(H6:H10) -> 0 | I5: 0 | J5: 0 | K5: =SUM(K6:K10) -> 12943308
A6: 1.1. | B6: Prihodi od prodaje s poduzetnicima unutar grupe | C6: 0 | D6: 0 | E6: 0 | F6: 0
A7: 1.2. | B7: Prihodi od prodaje | C7: 3018588.51 | D7: =C7+3075327.82 -> 6093916.33 | E7: =D7+3758923.81 -> 9852840.14 | F7: =E7+3200912.86 -> 13053753 | G7: 3498469.31 | K7: 11979989
A8: 1.3. | B8: Prihodi na temelju upotrebe vlastitih proizvoda, robe i usluga | C8: 0 | D8: 0 | E8: 0 | F8: 11961
A9: 1.4. | B9: Ostali poslovni prihodi s poduzetnicima unutar grupe | C9: 0 | D9: 0 | E9: 0 | F9: 0
A10: 1.5. | B10: Ostali poslovni prihodi | C10: 235685.88 | D10: =C10+219256.54 -> 454942.42 | E10: =D10+248792.83 -> 703735.25 | F10: =E10+283474.75-11961 -> 975249 | G10: 243242.89 | K10: 963319
A11: 2. | B11: POSLOVNI RASHODI | C11: =C12+C13+C17+C21+C22+C23+C26+C33 -> 3183811.37 | D11: 6709049.19 | E11: 10194793.08 | F11: 13583337 | G11: =G12+G13+G17+G21+G22+G23+G26+G33 -> 3172059.28 | H11: 0 | I11: 0 | J11: 0 | K11: =K12+K13+K17+K21+K22+K23+K26+K33 -> 12991956.11
A12: 2.1. | B12: Promjene vrijednosti zaliha proizvodnje u tijeku i gotovih proizvoda
A13: 2.2. | B13: Materijalni troškovi | C13: =SUM(C14:C16) -> 1020448.05 | D13: =SUM(D14:D16) -> 2163099.81 | E13: 3413206.24 | F13: 4373759 | G13: 1065766.21 | H13: 0 | I13: 0 | J13: 0 | K13: 4357661
A14: 2.2.1. | B14: Troškovi sirovina i materijala | C14: 475909.31 | D14: =C14+492520.52 -> 968429.83 | E14: =D14+447285.14 -> 1415714.97 | F14: =E14+343430.03-11961 -> 1747184 | G14: 431458.23 | K14: 1752342
A15: 2.2.2. | B15: Troškovi prodane robe | C15: 152.5 | D15: =C15+366 -> 518.5 | E15: =SUM(D15) -> 518.5 | F15: =E15+376.5 -> 895 | G15: 274.5 | K15: 275
A16: 2.2.3. | B16: Ostali vanjski troškovi | C16: 544386.24 | D16: =C16+649765.24 -> 1194151.48 | E16: =D16+802821.29 -> 1996972.77 | F16: =E16+628707.23 -> 2625680 | G16: =229462.63+72308.72+332262.13 -> 634033.48 | K16: 2605044
A17: 2.3. | B17: Troškovi osoblja | C17: =SUM(C18:C20) -> 1467689.58 | D17: =SUM(D18:D20) -> 2971787.9 | E17: 4537853.48 | F17: 6089650 | G17: 1534628.35 | H17: 0 | I17: 0 | J17: 0 | K17: 6282628.45
A18: 2.3.1. | B18: Neto plaće i nadnice | C18: 980103 | D18: =C18+1003180.72 -> 1983283.72 | E18: =D18+1043773.1 -> 3027056.82 | F18: =E18+1041715.18 -> 4068772 | G18: =1317277.45-263455.52-26410.29 -> 1027411.64 | K18: 4162411.54
A19: 2.3.2. | B19: Troškovi poreza i doprinosa iz plaća | C19: 279716.39 | D19: =C19+287890.83 -> 567607.22 | E19: =D19+300489.14 -> 868096.36 | F19: =E19+290298.64 -> 1158395 | G19: =26410.29+263455.62 -> 289865.91 | K19: 1217865.91
A20: 2.3.3. | B20: Doprinosi na plaće | C20: 207870.19 | D20: =C20+213026.77 -> 420896.96 | E20: =D20+221803.34 -> 642700.3 | F20: =E20+219782.7 -> 862483 | G20: 217350.8 | K20: 902351
A21: 2.4. | B21: Amortizacija | C21: 369272.07 | D21: =C21+363320.29 -> 732592.36 | E21: =D21+327587.07 -> 1060179.43 | F21: 1399338 | G21: 323576.22 | K21: 1306576
A22: 2.5. | B22: Ostali troškovi | C22: 323601.67 | D22: =C22+505415.16 -> 829016.83 | E22: =D22+334287.81 -> 1163304.64 | F22: 1674874 | G22: =166322.56+71895.66+6750 -> 244968.22 | K22: 1036970.66
A23: 2.6. | B23: Vrijednosna usklađenja | C23: =SUM(C24:C25) -> 0 | D23: =SUM(D24:D25) -> 0 | E23: 0 | F23: 0 | G23: 0 | H23: 0 | I23: 0 | J23: 0 | K23: =SUM(K24:K25) -> 0
A24: 2.6.1. | B24: Dugotrajne imovine (osim financijske imovine)
A25: 2.6.2. | B25: Kratkotrajne imovine (osim financijske imovine)
A26: 2.7. | B26: Rezerviranja | C26: =SUM(C27:C32) -> 0 | D26: =SUM(D27:D32) -> 0 | E26: 0 | F26: 0 | G26: 0 | H26: 0 | I26: 0 | J26: 0 | K26: =SUM(K27:K32) -> 0
A27: 2.7.1. | B27: Rezerviranja za mirovine, otpremnine i slične obveze
A28: 2.7.2. | B28: Rezerviranja za porezne obveze
A29: 2.7.3. | B29: Rezerviranja za započete sudske sporove
A30: 2.7.4. | B30: Rezerviranja za troškove obnavljanja prirodnih bogatstava
A31: 2.7.5. | B31: Rezerviranja za troškove u jamstvenim rokovima
A32: 2.7.6. | B32: Druga rezerviranja
A33: 2.8. | B33: Ostali poslovni rashodi | C33: 2800 | D33: =C33+9752.29 -> 12552.29 | E33: =D33+7697 -> 20249.29 | F33: =E33+25466.71 -> 45716 | G33: 3120.28 | K33: 8120
A34: 3. | B34: FINANCIJSKI PRIHODI | C34: =SUM(C35:C44) -> 53614.05 | D34: 54517.94 | E34: 54994.68 | F34: 109087 | G34: =SUM(G35:G44) -> 941.09 | H34: 0 | I34: 0 | J34: 0 | K34: =SUM(K35:K44) -> 56277
A35: 3.1. | B35: Prihodi od ulaganja u udjele (dionice) poduzetnika unutar grupe
A36: 3.2. | B36: Prihodi od ulaganja u udjele (dionice) društava povezanih sudjelujućim interesom
A37: 3.3. | B37: Prihodi od ostalih dugotrajnih financijskih ulaganja i zajmova poduzetnicima unutar grupe
A38: 3.4. | B38: Ostali prihodi s osnove kamata iz odnosa s poduzetnicima unutar grupe
A39: 3.5. | B39: Tečajne razlike i ostali financijski prihodi iz odnosa s poduzetnicima unutar grupe
A40: 3.6. | B40: Prihodi od ostalih dugotrajnih financijskih ulaganja i zajmova | C40: 50000 | D40: =SUM(C40) -> 50000 | E40: =SUM(D40) -> 50000 | F40: =SUM(E40) -> 50000
A41: 3.7. | B41: Ostali prihodi s osnove kamata | C41: 2875.54 | D41: =C41+0.599999999999909 -> 2876.14 | E41: =D41+0.309999999999945 -> 2876.45 | F41: =E41+0.550000000000182 -> 2877 | G41: 941.09 | K41: 327
A42: 3.8. | B42: Tečajne razlike i ostali financijski prihodi | C42: 738.51 | D42: =C42+903.29 -> 1641.8 | E42: =D42+476.43 -> 2118.23 | F42: =E42+54091.77 -> 56210 | K42: 55950
A43: 3.9. | B43: Nerealizirani dobici (prihodi) od financijske imovine
A44: 3.10. | B44: Ostali financijski prihodi
A45: 4. | B45: FINANCIJSKI RASHODI | C45: =SUM(C46:C52) -> 299960.83 | D45: 301211.82 | E45: 303459.86 | F45: 304251 | G45: =SUM(G46:G52) -> 20.57 | H45: 0 | I45: 0 | J45: 0 | K45: =SUM(K46:K52) -> 5021
A46: 4.1. | B46: Rashodi s osnove kamata i slični rashodi s poduzetnicima unutar grupe
A47: 4.2. | B47: Tečajne razlike i drugi rashodi s poduzetnicima unutar grupe
A48: 4.3. | B48: Rashodi s osnove kamata i slični rashodi | C48: 0 | D48: 4.59 | E48: =D48+13.62 -> 18.21 | F48: =E48+3.79 -> 22 | G48: 20.57 | K48: 21
A49: 4.4. | B49: Tečajne razlike i drugi rashodi | C49: 360.83 | D49: =C49+1246.4 -> 1607.23 | E49: =D49+2234.42 -> 3841.65 | F49: =E49+787.35 -> 4629 | K49: 5000
A50: 4.5. | B50: Nerealizirani gubici (rashodi) od financijske imovine | C50: 299600 | D50: 299600 | E50: 299600 | F50: 299600
A51: 4.6. | B51: Vrijednosna usklađenja financijske imovine (neto)
A52: 4.7. | B52: Ostali financijski rashodi
A53: 5. | B53: UDIO U DOBITI OD DRUŠTAVA POVEZANIH SUDJELUJUĆIM INTERESOM
A54: 6. | B54: UDIO U DOBITI OD ZAJEDNIČKIH POTHVATA
A55: 7. | B55: UDIO U GUBITKU OD DRUŠTAVA POVEZANIH SUDJELUJUĆIM INTERESOM
A56: 8. | B56: UDIO U GUBITKU OD ZAJEDNIČKIH POTHVATA
A57: 9. | B57: UKUPNI PRIHODI | C57: =C5+C34+C53+C54 -> 3307888.44 | D57: 6603376.69 | E57: 10611570.07 | F57: 14150050 | G57: =G5+G34+G53+G54 -> 3742653.29 | H57: 0 | I57: 0 | J57: 0 | K57: =K5+K34+K53+K54 -> 12999585
A58: 10. | B58: UKUPNI RASHODI | C58: =C11+C45+C55+C56 -> 3483772.2 | D58: 7010261.01 | E58: 10498252.94 | F58: 13887588 | G58: =G11+G45+G55+G56 -> 3172079.85 | H58: 0 | I58: 0 | J58: 0 | K58: =K11+K45+K55+K56 -> 12996977.11
A59: 11. | B59: DOBIT ILI GUBITAK PRIJE OPOREZIVANJA | C59: =C57-C58 -> -175883.76 | D59: -406884.32 | E59: 113317.13 | F59: 262462 | G59: =G57-G58 -> 570573.44 | H59: 0 | I59: 0 | J59: 0 | K59: =K57-K58 -> 2607.89
A60: 11.1. | B60: Dobit prije oporezivanja | C60: =IF(C59>0,C59,) -> 0 | D60: =IF(D59>0,D59,) -> 0 | E60: 113317.13 | F60: 262462 | G60: 570573.44 | H60: 0 | I60: 0 | J60: 0 | K60: 2607.89
A61: 11.2. | B61: Gubitak prije oporezivanja | C61: =IF(C59<0,C59,) -> -175883.76 | D61: =IF(D59<0,D59,) -> -406884.32 | E61: 0 | F61: 0 | G61: 0 | H61: 0 | I61: 0 | J61: 0 | K61: 0
A62: 12. | B62: POREZ NA DOBIT
A63: 13. | B63: DOBIT ILI GUBITAK RAZDOBLJA | C63: =C59-C62 -> -175883.76 | D63: -406884.32 | E63: 113317.13 | F63: 262462 | G63: =G59-G62 -> 570573.44 | H63: 0 | I63: 0 | J63: 0 | K63: =K59-K62 -> 2607.89
A64: 13.1. | B64: Dobit razdoblja | C64: =IF(C63>0,C63,) -> 0 | D64: 0 | E64: 113317.13 | F64: 262462 | G64: =IF(G63>0,G63,) -> 570573.44 | H64: 0 | I64: 0 | J64: 0 | K64: =IF(K63>0,K63,) -> 2607.89
A65: 13.2. | B65: Gubitak razdoblja | C65: =IF(C63<0,C63,) -> -175883.76 | D65: -406884.32 | E65: 0 | F65: 0 | G65: =IF(G63<0,G63,) -> 0 | H65: 0 | I65: 0 | J65: 0 | K65: =IF(K63<0,K63,) -> 0
A66: * DODATAK RDG -u (popunjava trgovačko društvo koje sastavlja konsolidirani godišnji financijski izvještaj)
A67: 14. | B67: DOBIT ILI GUBITAK RAZDOBLJA | C67: =IF((C68+C69)=C63,C63,"Neodgovarajuća raspodjela") -> Neodgovarajuća raspodjela | D67: Neodgovarajuća raspodjela | E67: Neodgovarajuća raspodjela | F67: Neodgovarajuća raspodjela | G67: Neodgovarajuća raspodjela | H67: 0 | I67: 0 | J67: 0 | K67: Neodgovarajuća raspodjela
A68: 14.1. | B68: Pripisana imateljima kapitala matice
A69: 14.2. | B69: Pripisana manjinskom (nekontrolirajućem) interesu
A70: IZVJEŠTAJ O OSTALOJ SVEOBUHVATNOJ DOBITI (popunjava trgovačko društvo obveznik primjene MSFI-a)
A71: 1. | B71: DOBIT ILI GUBITAK RAZDOBLJA | C71: =C63 -> -175883.76 | D71: -406884.32 | E71: 113317.13 | F71: 262462 | G71: =G63 -> 570573.44 | H71: 0 | I71: =I63 -> 0 | J71: =J63 -> 0 | K71: =K63 -> 2607.89
A72: 2. | B72: OSTALA SVEOBUHVATNA DOBIT/GUBITAK PRIJE POREZA | C72: =SUM(C73:C80) -> 0 | D72: 0 | E72: 0 | F72: 0 | G72: 0 | H72: 0 | I72: 0 | J72: 0 | K72: 0
A73: 2.1. | B73: Tečajne razlike iz preračuna inozemnog poslovanja
A74: 2.2. | B74: Promjene revalorizacijskih rezervi dugotrajne materijalne i nematerijalne imovine
A75: 2.3. | B75: Dobit ili gubitak s osnove naknadnog vrednovanja financijske imovine raspoložive za prodaju
A76: 2.4. | B76: Dobit ili gubitak s osnove učinkovite zaštite novčanih tokova
A77: 2.5. | B77: Dobit ili gubitak s osnove učinkovite zaštite neto ulaganja u inozemstvu
A78: 2.6. | B78: Udio u ostaloj sveobuhvatnoj dobiti/gubitku društava povezanih sudjelujućim interesom
A79: 2.7. | B79: Aktuarski dobici/gubici po planovima definiranih primanja
A80: 2.8. | B80: Ostale nevlasničke promjene kapitala
A81: 3. | B81: POREZ NA OSTALU SVEOBUHVATNU DOBIT RAZDOBLJA
A82: 4. | B82: NETO OSTALA SVEOBUHVATNA DOBIT ILI GUBITAK | C82: =C72-C81 -> 0 | D82: 0 | E82: 0 | F82: 0 | G82: 0 | H82: 0 | I82: 0 | J82: 0 | K82: 0
A83: 5. | B83: SVEOBUHVATNA DOBIT ILI GUBITAK RAZDOBLJA | C83: =C71+C82 -> -175883.76 | D83: -406884.32 | E83: 113317.13 | F83: 262462 | G83: 570573.44 | H83: 0 | I83: 0 | J83: 0 | K83: 2607.89
A84: * DODATAK IZVJEŠTAJU O OSTALOJ SVEOBUHVATNOJ DOBITI (popunjava trgovačko društvo koji sastavlja konsolidirani godišnji financijski izvještaj)
A85: 6. | B85: SVEOBUHVATNA DOBIT ILI GUBITAK RAZDOBLJA | C85: =IF((C86+C87)=C83,C83,"Neodgovarajuća raspodjela") -> Neodgovarajuća raspodjela | D85: Neodgovarajuća raspodjela | E85: Neodgovarajuća raspodjela | F85: Neodgovarajuća raspodjela | G85: =IF((G86+G87)=G83,G83,"Neodgovarajuća raspodjela") -> Neodgovarajuća raspodjela | H85: 0 | I85: =IF((I86+I87)=I83,I83,"Neodgovarajuća raspodjela") -> 0 | J85: =IF((J86+J87)=J83,J83,"Neodgovarajuća raspodjela") -> 0 | K85: =IF((K86+K87)=K83,K83,"Neodgovarajuća raspodjela") -> Neodgovarajuća raspodjela
A86: 6.1. | B86: Pripisana imateljima kapitala matice
A87: 6.2. | B87: Pripisana manjinskom interesu
BG90: =IF(Podloga!$B$8=1,'RDG Podloga'!G57,IF(Podloga!$B$8=2,RDG!I57,IF(Podloga!$B$8=3,RDG!J57,IF(Podloga!$B$8=4,RDG!K57)))) -> 3742653.29

Sheet NT Podloga dir.
A1: IZVJEŠTAJ O NOVČANOM TOKU - DIREKTNA METODA
A2: Obveznik: | B2: =IF(ISBLANK(Podloga!B2),"",Podloga!B2) -> LUKA-VUKOVAR doo | C2: =IF(C50>C49,"Povećanje novca i novčanih ekvivalenata u razdoblju",IF(C50=C49,"Stagnacija novca i novčanih ekvivalenata u razdoblju","Smanjenje novca i novčanih ekvivalenata u razdoblju")) -> Povećanje novca i novčanih ekvivalenata u razdoblju | D2: Povećanje novca i novčanih ekvivalenata u razdoblju | E2: Povećanje novca i novčanih ekvivalenata u razdoblju | F2: Povećanje novca i novčanih ekvivalenata u razdoblju | G2: =IF(G50>G49,"Povećanje novca i novčanih ekvivalenata u razdoblju",IF(G50=G49,"Stagnacija novca i novčanih ekvivalenata u razdoblju","Smanjenje novca i novčanih ekvivalenata u razdoblju")) -> Povećanje novca i novčanih ekvivalenata u razdoblju | H2: Stagnacija novca i novčanih ekvivalenata u razdoblju | I2: Stagnacija novca i novčanih ekvivalenata u razdoblju | J2: Stagnacija novca i novčanih ekvivalenata u razdoblju | K2: Povećanje novca i novčanih ekvivalenata u razdoblju
C3: =IF(Podloga!$B$8=1,"za razdoblje od 01. siječnja do 31. ožujka",IF(Podloga!$B$8=2,"za razdoblje od 01. siječnja do 30. lipnja",IF(Podloga!$B$8=3,"za razdoblje od 01. siječnja do 30. rujna",IF(Podloga!$B$8=4,"za razdoblje od 01. siječnja do 31. prosinca")))) -> za razdoblje od 01. siječnja do 31. ožujka
C4: I Z N O S (u 000 kn)
C5: ="1-3 mjesec u "&LEFT(Podloga!B7,4)-1 -> 1-3 mjesec u 2019 | D5: ="1-6 mjesec u "&LEFT(Podloga!B7,4)-1 -> 1-6 mjesec u 2019 | E5: ="1-9 mjesec u "&LEFT(Podloga!B7,4)-1 -> 1-9 mjesec u 2019 | F5: ="1-12 mjesec u "&LEFT(Podloga!B7,4)-1 -> 1-12 mjesec u 2019 | G5: ="1-3 mjesec u "&LEFT(Podloga!B7,4) -> 1-3 mjesec u 2020 | H5: ="1-6 mjesec u "&LEFT(Podloga!B7,4) -> 1-6 mjesec u 2020 | I5: ="1-9 mjesec u "&LEFT(Podloga!B7,4) -> 1-9 mjesec u 2020 | J5: ="1-12 mjesec u "&LEFT(Podloga!B7,4) -> 1-12 mjesec u 2020 | K5: =Podloga!L34 -> Plan 2020
A6: NOVČANI TOKOVI OD POSLOVNIH AKTIVNOSTI
A7: 1. | B7: Novčani primici od kupaca | C7: 4249478.07 | D7: 7385846.93 | E7: 11847871.05 | F7: 15195163 | G7: 3416687.6 | K7: =12750000-310000-310000 -> 12130000
A8: 2. | B8: Novčani primici od tantijema, naknada, provizija i slično
A9: 3. | B9: Novčani primici od osiguranja za naknadu šteta | F9: 31608 | G9: 8127.84
A10: 4. | B10: Novčani primici s osnove povrata poreza
A11: 5. | B11: Novčani izdaci dobavljačima | C11: -1630714.26 | D11: -2767828.6 | E11: -4427134.79 | F11: -5111433 | G11: =-1121104.29+10450 -> -1110654.29 | K11: -4100000
A12: 6. | B12: Novčani izdaci za zaposlene | C12: -1206464.65 | D12: -3036166.24 | E12: -2435603.85 | F12: -5152302 | G12: -1211360.51 | K12: -5240000
A13: 7. | B13: Novčani izdaci za osiguranje za naknadu štete | F13: -4000
A14: 8. | B14: Ostali novčani primici i izdaci | C14: =-'[1]NT Podloga dir.'!$G$15+187413.45 -> -671351.83 | D14: =-'[1]NT Podloga dir.'!$H$15+370779.76 -> -709294.53 | E14: =-'[1]NT Podloga dir.'!$I$15+540458.22 -> -2052653.33 | F14: =-2338476-876 -> -2339352 | G14: =-674949.77+7540.4-0.1 -> -667409.47 | K14: -1638391
A15: I. | B15: Novac iz poslovanja | C15: =SUM(C7:C14) -> 740947.33 | D15: =SUM(D7:D14) -> 872557.56 | E15: 2932479.08 | F15: 2619684 | G15: 435391.17 | H15: 0 | I15: 0 | J15: 0 | K15: 1151609
A16: 9. | B16: Novčani izdaci za kamate
A17: 10. | B17: Plaćeni porez na dobit
A18: A. NETO NOVČANI TOKOVI OD POSLOVNIH AKTIVNOSTI | C18: =SUM(C15:C17) -> 740947.33 | D18: =SUM(D15:D17) -> 872557.56 | E18: 2932479.08 | F18: 2619684 | G18: 435391.17 | H18: 0 | I18: 0 | J18: 0 | K18: 1151609
A19: NOVČANI TOKOVI OD INVESTICIJSKIH AKTIVNOSTI
A20: 1. | B20: Novčani primici od prodaje dugotrajne materijalne i nematerijalne imovine
A21: 2. | B21: Novčani primici od prodaje financijskih instrumenata | C21: 50000 | D21: 50000 | E21: 50000 | F21: 50000
A22: 3. | B22: Novčani primici od kamata | C22: 2875.54 | D22: 2876.14 | E22: 2876.45 | F22: 2876 | K22: 3500
A23: 4. | B23: Novčani primici od dividendi
A24: 5. | B24: Novčani primici s osnove povrata danih zajmova i štednih uloga
A25: 6. | B25: Ostali novčani primici od investicijskih aktivnosti
A26: II. | B26: Ukupno novčani primici od investicijskih aktivnosti | C26: =SUM(C20:C25) -> 52875.54 | D26: =SUM(D20:D25) -> 52876.14 | E26: 52876.45 | F26: 52876 | G26: 0 | H26: 0 | I26: 0 | J26: 0 | K26: 3500
A27: 1. | B27: Novčani izdaci za kupnju dugotrajne materijalne i nematerijalne imovine | E27: -1367841.53 | F27: -1372976 | G27: -10450 | K27: =-1450000+310000+310000+300000+10000+318 -> -519682
A28: 2. | B28: Novčani izdaci za stjecanje financijskih instrumenata
A29: 3. | B29: Novčani izdaci s osnove danih zajmova i štednih uloga
A30: 4. | B30: Stjecanje ovisnog društva, umanjeno za stečeni novac
A31: 5. | B31: Ostali novčani izdaci od investicijskih aktivnosti
A32: III. | B32: Ukupno novčani izdaci od investicijskih aktivnosti | C32: =SUM(C27:C31) -> 0 | D32: =SUM(D27:D31) -> 0 | E32: -1367841.53 | F32: -1372976 | G32: -10450 | H32: 0 | I32: 0 | J32: 0 | K32: -519682
A33: B. NETO NOVČANI TOKOVI OD INVESTICIJSKIH AKTIVNOSTI | C33: =C26+C32 -> 52875.54 | D33: =D26+D32 -> 52876.14 | E33: -1314965.08 | F33: -1320100 | G33: -10450 | H33: 0 | I33: 0 | J33: 0 | K33: -516182
A34: NOVČANI TOKOVI OD FINANCIJSKIH AKTIVNOSTI
A35: 1. | B35: Novčani primici od povećanja temeljnog (upisanog) kapitala
A36: 2. | B36: Novčani primici od izdavanja vlasničkih i dužničkih financijskih instrumenata
A37: 3. | B37: Novčani primici od glavnice kredita, pozajmica i drugih posudbi
A38: 4. | B38: Ostali novčani primici od financijskih aktivnosti
A39: IV. | B39: Ukupno novčani primici od financijskih aktivnosti | C39: =SUM(C35:C38) -> 0 | D39: =SUM(D35:D38) -> 0 | E39: 0 | F39: 0 | G39: 0 | H39: 0 | I39: 0 | J39: 0 | K39: 0
A40: 1. | B40: Novčani izdaci za otplatu glavnice kredita, pozajmica i drugih posudbi i dužničkih financijskih instrumenata
A41: 2. | B41: Novčani izdaci za isplatu dividendi
A42: 3. | B42: Novčani izdaci za financijski najam
A43: 4. | B43: Novčani izdaci za otkup vlastitih dionica i smanjenje temeljnog (upisanog) kapitala
A44: 5. | B44: Ostali novčani izdaci od financijskih aktivnosti
A45: V. | B45: Ukupno novčani izdaci od financijskih aktivnosti | C45: =SUM(C40:C44) -> 0 | D45: =SUM(D40:D44) -> 0 | E45: 0 | F45: 0 | G45: 0 | H45: 0 | I45: 0 | J45: 0 | K45: 0
A46: C. NETO NOVČANI TOKOVI OD FINANCIJSKIH AKTIVNOSTI | C46: =C39+C45 -> 0 | D46: =D39+D45 -> 0 | E46: 0 | F46: 0 | G46: 0 | H46: 0 | I46: 0 | J46: 0 | K46: 0
A47: 1. | B47: Nerealizirane tečajne razlike po novcu i novčanim ekvivalentima
A48: D. NETO POVEĆANJE ILI SMANJENE NOVČANIH TOKOVA | C48: =C18+C33+C46+C47 -> 793822.87 | D48: =D18+D33+D46+D47 -> 925433.7 | E48: 1617514 | F48: 1299584 | G48: 424941.17 | H48: 0 | I48: 0 | J48: 0 | K48: 635427
A49: E. NOVAC I NOVČANI EKVIVALENTI NA POČETKU RAZDOBLJA | C49: 13596566.34 | D49: 13596566.34 | E49: 13596566.34 | F49: 13596566 | G49: 14896150 | K49: 14894150
A50: F. NOVAC I NOVČANI EKVIVALENTI NA KRAJU RAZDOBLJA | C50: =C49+C48 -> 14390389.21 | D50: =D49+D48 -> 14522000.04 | E50: 15214080.34 | F50: 14896150 | G50: 15321091.17 | H50: 0 | I50: 0 | J50: 0 | K50: 15529577

Sheet NT Podloga indir.
A1: IZVJEŠTAJ O NOVČANOM TOKU - INDIREKTNA METODA
A2: Obveznik: | B2: =IF(ISBLANK(Podloga!B2),"",Podloga!B2) -> LUKA-VUKOVAR doo | C2: =IF(C58>C57,"Povećanje novca i novčanih ekvivalenata u razdoblju",IF(C58=C57,"Stagnacija novca i novčanih ekvivalenata u razdoblju","Smanjenje novca i novčanih ekvivalenata u razdoblju")) -> Stagnacija novca i novčanih ekvivalenata u razdoblju | D2: Stagnacija novca i novčanih ekvivalenata u razdoblju | E2: Stagnacija novca i novčanih ekvivalenata u razdoblju | F2: Stagnacija novca i novčanih ekvivalenata u razdoblju | G2: Stagnacija novca i novčanih ekvivalenata u razdoblju | H2: Stagnacija novca i novčanih ekvivalenata u razdoblju | I2: Stagnacija novca i novčanih ekvivalenata u razdoblju | J2: Stagnacija novca i novčanih ekvivalenata u razdoblju | K2: Stagnacija novca i novčanih ekvivalenata u razdoblju
C3: =IF(Podloga!$B$8=1,"za razdoblje od 01. siječnja do 31. ožujka",IF(Podloga!$B$8=2,"za razdoblje od 01. siječnja do 30. lipnja",IF(Podloga!$B$8=3,"za razdoblje od 01. siječnja do 30. rujna",IF(Podloga!$B$8=4,"za razdoblje od 01. siječnja do 31. prosinca")))) -> za razdoblje od 01. siječnja do 31. ožujka
C4: I Z N O S (u 000 kn)
C5: ="1-3 mjesec u "&LEFT(Podloga!B7,4)-1 -> 1-3 mjesec u 2019 | D5: ="1-6 mjesec u "&LEFT(Podloga!B7,4)-1 -> 1-6 mjesec u 2019 | E5: ="1-9 mjesec u "&LEFT(Podloga!B7,4)-1 -> 1-9 mjesec u 2019 | F5: ="1-12 mjesec u "&LEFT(Podloga!B7,4)-1 -> 1-12 mjesec u 2019 | G5: ="1-3 mjesec u "&LEFT(Podloga!B7,4) -> 1-3 mjesec u 2020 | H5: ="1-6 mjesec u "&LEFT(Podloga!B7,4) -> 1-6 mjesec u 2020 | I5: ="1-9 mjesec u "&LEFT(Podloga!B7,4) -> 1-9 mjesec u 2020 | J5: ="1-12 mjesec u "&LEFT(Podloga!B7,4) -> 1-12 mjesec u 2020 | K5: =Podloga!L34 -> Plan 2020
A6: NOVČANI TOKOVI OD POSLOVNIH AKTIVNOSTI
A7: 1. | B7: Dobit prije poreza
A8: 2. | B8: Usklađenja | C8: =SUM(C9:C16) -> 0 | D8: =SUM(D9:D16) -> 0 | E8: 0 | F8: 0 | G8: 0 | H8: 0 | I8: 0 | J8: 0 | K8: 0
A9: a) | B9: Amortizacija
A10: b) | B10: Dobici i gubici od prodaje i vrijednosna usklađenja dugotrajne materijalne i nematerijalne imovine
A11: c) | B11: Dobici i gubici od prodaje i nerealizirani dobici i gubici i vrijednosno usklađenje financijske imovine
A12: d) | B12: Prihodi od kamata i dividendi
A13: e) | B13: Rashodi od kamata
A14: f) | B14: Rezerviranja
A15: g) | B15: Tečajne razlike (nerealizirane)
A16: h) | B16: Ostala usklađenja za nenovčane transakcije i nerealizirane dobitke i gubitke
A17: I. | B17: Povećanje ili smanjenje novčanih tokova prije promjena u radnom kapitalu | C17: =C7+C8 -> 0 | D17: =D7+D8 -> 0 | E17: 0 | F17: 0 | G17: 0 | H17: 0 | I17: 0 | J17: 0 | K17: 0
A18: 3. | B18: Promjene u radnom kapitalu | C18: =SUM(C19:C22) -> 0 | D18: =SUM(D19:D22) -> 0 | E18: 0 | F18: 0 | G18: 0 | H18: 0 | I18: 0 | J18: 0 | K18: 0
A19: a) | B19: Povećanje ili smanjenje kratkoročnih obveza
A20: b) | B20: Povećanje ili smanjenje kratkotrajnih potraživanja
A21: c) | B21: Povećanje ili smanjenje zaliha
A22: d) | B22: Ostala povećanja ili smanjenja radnog kapitala
A23: II. | B23: Novac iz poslovanja | C23: =SUM(C17+C18) -> 0 | D23: =SUM(D17+D18) -> 0 | E23: 0 | F23: 0 | G23: 0 | H23: 0 | I23: 0 | J23: 0 | K23: 0
A24: 4. | B24: Novčani izdaci za kamate
A25: 5. | B25: Plaćeni porez na dobit
A26: A. NETO NOVČANI TOKOVI OD POSLOVNIH AKTIVNOSTI | C26: =SUM(C23:C25) -> 0 | D26: =SUM(D23:D25) -> 0 | E26: 0 | F26: 0 | G26: 0 | H26: 0 | I26: 0 | J26: 0 | K26: 0
A27: NOVČANI TOKOVI OD INVESTICIJSKIH AKTIVNOSTI
A28: 1. | B28: Novčani primici od prodaje dugotrajne materijalne i nematerijalne imovine
A29: 2. | B29: Novčani primici od prodaje financijskih instrumenata
A30: 3. | B30: Novčani primici od kamata
A31: 4. | B31: Novčani primici od dividendi
A32: 5. | B32: Novčani primici s osnove povrata danih zajmova i štednih uloga
A33: 6. | B33: Ostali novčani primici od investicijskih aktivnosti
A34: II. | B34: Ukupno novčani primici od investicijskih aktivnosti | C34: =SUM(C28:C33) -> 0 | D34: 0 | E34: 0 | F34: 0 | G34: 0 | H34: 0 | I34: 0 | J34: 0 | K34: 0
A35: 1. | B35: Novčani izdaci za kupnju dugotrajne materijalne i nematerijalne imovine
A36: 2. | B36: Novčani izdaci za stjecanje financijskih instrumenata
A37: 3. | B37: Novčani izdaci s osnove danih zajmova i štednih uloga
A38: 4. | B38: Stjecanje ovisnog društva, umanjeno za stečeni novac
A39: 5. | B39: Ostali novčani izdaci od investicijskih aktivnosti
A40: III. | B40: Ukupno novčani izdaci od investicijskih aktivnosti | C40: =SUM(C35:C39) -> 0 | D40: 0 | E40: 0 | F40: 0 | G40: 0 | H40: 0 | I40: 0 | J40: 0 | K40: 0
A41: B. NETO NOVČANI TOKOVI OD INVESTICIJSKIH AKTIVNOSTI | C41: =C34+C40 -> 0 | D41: =D34+D40 -> 0 | E41: 0 | F41: 0 | G41: 0 | H41: 0 | I41: 0 | J41: 0 | K41: 0
A42: NOVČANI TOKOVI OD FINANCIJSKIH AKTIVNOSTI
A43: 1. | B43: Novčani primici od povećanja temeljnog (upisanog) kapitala
A44: 2. | B44: Novčani primici od izdavanja vlasničkih i dužničkih financijskih instrumenata
A45: 3. | B45: Novčani primici od glavnice kredita, pozajmica i drugih posudbi
A46: 4. | B46: Ostali novčani primici od financijskih aktivnosti
A47: IV. | B47: Ukupno novčani primici od financijskih aktivnosti | C47: =SUM(C43:C46) -> 0 | D47: 0 | E47: 0 | F47: 0 | G47: 0 | H47: 0 | I47: 0 | J47: 0 | K47: 0
A48: 1. | B48: Novčani izdaci za otplatu glavnice kredita, pozajmica i drugih posudbi i dužničkih financijskih instrumenata
A49: 2. | B49: Novčani izdaci za isplatu dividendi
A50: 3. | B50: Novčani izdaci za financijski najam
A51: 4. | B51: Novčani izdaci za otkup vlastitih dionica i smanjenje temeljnog (upisanog) kapitala
A52: 5. | B52: Ostali novčani izdaci od financijskih aktivnosti
A53: V. | B53: Ukupno novčani izdaci od financijskih aktivnosti | C53: =SUM(C48:C52) -> 0 | D53: 0 | E53: 0 | F53: 0 | G53: 0 | H53: 0 | I53: 0 | J53: 0 | K53: 0
A54: C. NETO NOVČANI TOKOVI OD FINANCIJSKIH AKTIVNOSTI | C54: =C47+C53 -> 0 | D54: =D47+D53 -> 0 | E54: 0 | F54: 0 | G54: 0 | H54: 0 | I54: 0 | J54: 0 | K54: 0
A55: 1. | B55: Nerealizirane tečajne razlike po novcu i novčanim ekvivalentima
A56: D. NETO POVEĆANJE ILI SMANJENE NOVČANIH TOKOVA | C56: =C26+C41+C54+C55 -> 0 | D56: =D26+D41+D54+D55 -> 0 | E56: 0 | F56: 0 | G56: 0 | H56: 0 | I56: 0 | J56: 0 | K56: 0
A57: E. NOVAC I NOVČANI EKVIVALENTI NA POČETKU RAZDOBLJA
A58: F. NOVAC I NOVČANI EKVIVALENTI NA KRAJU RAZDOBLJA | C58: =C57+C56 -> 0 | D58: 0 | E58: 0 | F58: 0 | G58: 0 | H58: 0 | I58: 0 | J58: 0 | K58: 0

Sheet MFIN
B2: DODATNE STAVKE
B4: Obveznik: | C4: =IF(ISBLANK(Podloga!B2),"",Podloga!B2) -> LUKA-VUKOVAR doo
C7: ="1-3 mjesec u "&LEFT(Podloga!B7,4)-1 -> 1-3 mjesec u 2019 | D7: ="1-6 mjesec u "&LEFT(Podloga!B7,4)-1 -> 1-6 mjesec u 2019 | E7: ="1-9 mjesec u "&LEFT(Podloga!B7,4)-1 -> 1-9 mjesec u 2019 | F7: ="1-12 mjesec u "&LEFT(Podloga!B7,4)-1 -> 1-12 mjesec u 2019 | G7: ="1-3 mjesec u "&LEFT(Podloga!B7,4) -> 1-3 mjesec u 2020 | H7: ="1-6 mjesec u "&LEFT(Podloga!B7,4) -> 1-6 mjesec u 2020 | I7: ="1-9 mjesec u "&LEFT(Podloga!B7,4) -> 1-9 mjesec u 2020 | J7: ="1-12 mjesec u "&LEFT(Podloga!B7,4) -> 1-12 mjesec u 2020 | K7: =Podloga!L34 -> Plan 2020
A8: R.Br. | B8: RAČUN DOBITI I GUBITKA - dodatna razrada
A9: 1. | B9: Operativni prihodi (od 1.1. do 1.n.) - prihodi iz redovnog poslovanja | C9: =SUM(C10:C15) -> 3018588.51 | D9: =SUM(D10:D15) -> 6093916.33 | E9: 9852840.14 | F9: 13053753 | G9: 3498469.31 | H9: =SUM(H10:H15) -> 0 | I9: 0 | J9: 0 | K9: 0
A10: 1.1. | B10: Prihodi od prodaje | C10: 3018588.51 | D10: 6093916.33 | E10: 9852840.14 | F10: 13053753 | G10: 3498469.31
A11: 1.2.
A12: 1.3.
A13: 1.4.
A14: 1.5.
A15: 1.n.
A16: 2. | B16: Neoperativni prihodi (od 2.1 do 2.n.) - jednokratni | C16: =SUM(C17:C22) -> 235685.88 | D16: 454942.42 | E16: 703735.25 | F16: 987210 | G16: 243242.89 | H16: 0 | I16: 0 | J16: 0 | K16: 0
A17: 2.1. | B17: ostali | C17: 235685.88 | D17: 454942.42 | E17: 703735.25 | F17: 975249 | G17: 243242.89
A18: 2.2. | B18: Prihodi na temelju upotrebe vlastitih proizvoda, robe i usluga | F18: 11961
A19: 2.3.
A20: 2.4.
A21: 2.5.
A22: 2.n.
A23: 3. | B23: Državne potpore
A24: I. | B24: Ukupni poslovni prihodi (1.+2.+3.) | C24: =C9+C16+C23 -> 3254274.39 | D24: =D9+D16+D23 -> 6548858.75 | E24: 10556575.39 | F24: 14040963 | G24: 3741712.2 | H24: 0 | I24: 0 | J24: 0 | K24: 0
B25: PROVJERA | C25: =(C9+C16+C23)-'RDG Podloga'!C5 -> 0 | D25: =(D9+D16+D23)-'RDG Podloga'!D5 -> 0 | E25: =(E9+E16+E23)-'RDG Podloga'!E5 -> 0 | F25: =(F9+F16+F23)-'RDG Podloga'!F5 -> 0 | G25: =(G9+G16+G23)-'RDG Podloga'!G5 -> 0 | H25: =(H9+H16+H23)-'RDG Podloga'!H5 -> 0 | I25: =(I9+I16+I23)-'RDG Podloga'!I5 -> 0 | J25: =(J9+J16+J23)-'RDG Podloga'!J5 -> 0 | K25: =(K9+K16+K23)-'RDG Podloga'!K5 -> -12943308
A26: 1. | B26: Operativni poslovni rashodi (od 1.1. do 1.n.) | C26: =SUM(C27:C32) -> 1020448.05 | D26: 2163099.81 | E26: 3413206.24 | F26: 4373759 | G26: 1065766.21 | H26: 0 | I26: 0 | J26: 0 | K26: 0
A27: 1.1. | B27: Materijalni troškovi | C27: 1020448.05 | D27: 2163099.81 | E27: 3413206.24 | F27: 4373759 | G27: 1065766.21
A28: 1.2.
A29: 1.3.
A30: 1.4.
A31: 1.5.
A32: 1.n.
A33: 2. | B33: Neoperativni poslovni rashodi (od 2.1 do 2.n.) | C33: =SUM(C34:C39) -> 326401.67 | D33: 841569.12 | E33: 1183553.93 | F33: 1720590 | G33: 248088.5 | H33: 0 | I33: 0 | J33: 0 | K33: 0
A34: 2.1. | B34: Ostali poslovni rashodi | C34: 2800 | D34: 12552.29 | E34: 20249.29 | F34: 45716 | G34: 3120.28
A35: 2.2. | B35: Ostali troškovi | C35: 323601.67 | D35: 829016.83 | E35: 1163304.64 | F35: 1674874 | G35: 244968.22
A36: 2.3.
A37: 2.4.
A38: 2.5.
A39: 2.n.
A40: 3. | B40: Troškovi osoblja | C40: ='RDG Podloga'!C17 -> 1467689.58 | D40: ='RDG Podloga'!D17 -> 2971787.9 | E40: ='RDG Podloga'!E17 -> 4537853.48 | F40: ='RDG Podloga'!F17 -> 6089650 | G40: ='RDG Podloga'!G17 -> 1534628.35 | H40: ='RDG Podloga'!H17 -> 0 | I40: ='RDG Podloga'!I17 -> 0 | J40: ='RDG Podloga'!J17 -> 0 | K40: ='RDG Podloga'!K17 -> 6282628.45
A41: 4. | B41: Amortizacija | C41: ='RDG Podloga'!C21 -> 369272.07 | D41: ='RDG Podloga'!D21 -> 732592.36 | E41: ='RDG Podloga'!E21 -> 1060179.43 | F41: ='RDG Podloga'!F21 -> 1399338 | G41: ='RDG Podloga'!G21 -> 323576.22 | H41: ='RDG Podloga'!H21 -> 0 | I41: ='RDG Podloga'!I21 -> 0 | J41: ='RDG Podloga'!J21 -> 0 | K41: ='RDG Podloga'!K21 -> 1306576
A42: 5. | B42: Promjena vrijednosti i rezerviranja | C42: ='RDG Podloga'!C12+'RDG Podloga'!C23+'RDG Podloga'!C26 -> 0 | D42: ='RDG Podloga'!D12+'RDG Podloga'!D23+'RDG Podloga'!D26 -> 0 | E42: ='RDG Podloga'!E12+'RDG Podloga'!E23+'RDG Podloga'!E26 -> 0 | F42: ='RDG Podloga'!F12+'RDG Podloga'!F23+'RDG Podloga'!F26 -> 0 | G42: ='RDG Podloga'!G12+'RDG Podloga'!G23+'RDG Podloga'!G26 -> 0 | H42: ='RDG Podloga'!H12+'RDG Podloga'!H23+'RDG Podloga'!H26 -> 0 | I42: ='RDG Podloga'!I12+'RDG Podloga'!I23+'RDG Podloga'!I26 -> 0 | J42: ='RDG Podloga'!J12+'RDG Podloga'!J23+'RDG Podloga'!J26 -> 0 | K42: ='RDG Podloga'!K12+'RDG Podloga'!K23+'RDG Podloga'!K26 -> 0
A43: II. | B43: Ukupni poslovni rashodi | C43: =C26+C33+C40+C41+C42 -> 3183811.37 | D43: =D26+D33+D40+D41+D42 -> 6709049.19 | E43: 10194793.08 | F43: 13583337 | G43: 3172059.28 | H43: 0 | I43: 0 | J43: 0 | K43: 7589204.45
B44: PROVJERA | C44: =(C26+C33+C40+C41+C42)-'RDG Podloga'!C11 -> 0 | D44: =(D26+D33+D40+D41+D42)-'RDG Podloga'!D11 -> 0 | E44: =(E26+E33+E40+E41+E42)-'RDG Podloga'!E11 -> 0 | F44: =(F26+F33+F40+F41+F42)-'RDG Podloga'!F11 -> 0 | G44: =(G26+G33+G40+G41+G42)-'RDG Podloga'!G11 -> 0 | H44: =(H26+H33+H40+H41+H42)-'RDG Podloga'!H11 -> 0 | I44: =(I26+I33+I40+I41+I42)-'RDG Podloga'!I11 -> 0 | J44: =(J26+J33+J40+J41+J42)-'RDG Podloga'!J11 -> 0 | K44: =(K26+K33+K40+K41+K42)-'RDG Podloga'!K11 -> -5402751.66
A45: III. | B45: UKUPNI FINANCIJSKI PRIHODI (od 1. do 4.) | C45: =C46+C51+C52+C53 -> 53614.05 | D45: 54517.94 | E45: 54994.68 | F45: 109087 | G45: 941.09 | H45: 0 | I45: 0 | J45: 0 | K45: 0
A46: 1. | B46: Prihodi od kamata (po investiciji) (od 1.1. do 1. n.) | C46: =SUM(C47:C50) -> 2875.54 | D46: 2876.14 | E46: 2876.45 | F46: 2877 | G46: 941.09 | H46: 0 | I46: 0 | J46: 0 | K46: 0
A47: 1.1. | B47: kamate od kamate | C47: 2875.54 | D47: 2876.14 | E47: 2876.45 | F47: 2877 | G47: 941.09
A48: 1.2.
A49: 1.3.
A50: 1.n.
A51: 2. | B51: Pozitivne tečajne razlike | C51: 738.51 | D51: 1641.8 | E51: 2118.23 | F51: 56210
A52: 3. | B52: Ostali financijski prihodi (core) - iz redovnog poslovanja
A53: 4. | B53: Ostali financijski prihodi (non-core) - jednokratni | C53: 50000 | D53: 50000 | E53: 50000 | F53: 50000
A54: IV. | B54: UKUPNI FINANCIJSKI RASHODI (od 1. do 4.) | C54: =C55+C60+C61+C62 -> 299960.83 | D54: 301211.82 | E54: 303459.86 | F54: 304251 | G54: 20.57 | H54: 0 | I54: 0 | J54: 0 | K54: 0
A55: 1. | B55: Rashodi od kamata (po obvezi) (od 1.1. do 1. n.) | C55: =SUM(C56:C59) -> 0 | D55: 4.59 | E55: 18.21 | F55: 22 | G55: 20.57 | H55: 0 | I55: 0 | J55: 0 | K55: 0
A56: 1.1. | B56: zatezne kamate | C56: 0 | D56: 4.59 | E56: =D56+13.62 -> 18.21 | F56: =E56+3.79 -> 22 | G56: 20.57
A57: 1.2.
A58: 1.3.
A59: 1.n.
A60: 2. | B60: Negativne tečajne razlike | C60: 360.83 | D60: 1607.23 | E60: 3841.65 | F60: 4629
A61: 3. | B61: Ostali financijski rashodi (core) - iz redovnog poslovanja | C61: 299600 | D61: 299600 | E61: 299600 | F61: 299600
A62: 4. | B62: Ostali financijski rashodi (non-core) - jednokratni
A63: V. | B63: NETO FINANCIJSKI PRIHODI/RASHODI (III.-IV.) | C63: =C45-C54 -> -246346.78 | D63: -246693.88 | E63: -248465.18 | F63: -195164 | G63: 920.52 | H63: 0 | I63: 0 | J63: 0 | K63: 0
B64: PROVJERA | C64: =(C45+C54)-('RDG Podloga'!C34+'RDG Podloga'!C45) -> 0 | D64: =(D45+D54)-('RDG Podloga'!D34+'RDG Podloga'!D45) -> 0 | E64: =(E45+E54)-('RDG Podloga'!E34+'RDG Podloga'!E45) -> 0 | F64: =(F45+F54)-('RDG Podloga'!F34+'RDG Podloga'!F45) -> 0 | G64: =(G45+G54)-('RDG Podloga'!G34+'RDG Podloga'!G45) -> 0 | H64: =(H45+H54)-('RDG Podloga'!H34+'RDG Podloga'!H45) -> 0 | I64: =(I45+I54)-('RDG Podloga'!I34+'RDG Podloga'!I45) -> 0 | J64: =(J45+J54)-('RDG Podloga'!J34+'RDG Podloga'!J45) -> 0 | K64: =(K45+K54)-('RDG Podloga'!K34+'RDG Podloga'!K45) -> -61298
B66: INVESTICIJSKA ULAGANJA
B67: Isplata za ukupna investicijska ulaganja (od 1.1. do 1.n) | C67: =SUM(C68:C72) -> 0 | D67: =SUM(D68:D72) -> 0 | E67: =SUM(E68:E72) -> 0 | F67: =SUM(F68:F72) -> 0 | G67: =SUM(G68:G72) -> 0 | H67: 0 | I67: 0 | J67: 0 | K67: 0
A68: 1.1. | B68: Segment / naziv investicije
A69: 1.2. | B69: Segment / naziv investicije
A70: 1.3. | B70: Segment / naziv investicije
A71: 1.4. | B71: Segment / naziv investicije
A72: 1.n. | B72: Segment / naziv investicije
B73: Izvori financiranja investicija (od 1.1. do 1.6.) | C73: =SUM(C74:C79) -> 0 | D73: =SUM(D74:D79) -> 0 | E73: =SUM(E74:E79) -> 0 | F73: =SUM(F74:F79) -> 0 | G73: =SUM(G74:G79) -> 0 | H73: 0 | I73: 0 | J73: 0 | K73: 0
A74: 1.1. | B74: Vlastita sredstva
A75: 1.2. | B75: Sredstva iz Državnog proračuna
A76: 1.3. | B76: Banke i ostale financijske institucije
A77: 1.4. | B77: Međunarodne financijske institucije
A78: 1.5. | B78: Nefinancijske institucije
A79: 1.6 | B79: EU fondovi
B81: OSTALE STAVKE
B82: Broj zaposlenih na kraju izvještajnog razdoblja: | C82: =Podloga!B35 -> 71 | D82: =Podloga!C35 -> 71 | E82: =Podloga!D35 -> 72 | F82: =Podloga!E35 -> 70 | G82: =Podloga!G35 -> 68 | H82: =Podloga!H35 -> 0 | I82: =Podloga!I35 -> 0 | J82: =Podloga!J35 -> 0 | K82: =Podloga!L35 -> 0
B83: Broj zaposlenih prema satima rada | C83: 68 | D83: 68 | E83: 69 | F83: 69 | G83: 67
B84: Dugotrajna financijska imovina
B85: Od čega: Dani dugoročni depoziti
B86: Od čega: Likvidne dionice / ostalo
B87: Od čega: Ostalo
B88: Kratkotrajna financijska imovina
B89: Od čega: Dani kratkorični depoziti
B90: Od čega: Likvidne dionice / ostalo
B91: Od čega: Ostalo
B92: Dokapitalizacija
B93: Promjene temeljnog kapitala
B94: (+) Dokapitalizacija
B95: (-) Smanjenje / otpis
B96: Isplaćena dividenda
B99: * Ukoliko kod određenih kategorija postoji veći broj stavaka, moguće je ubacivati dodatne redove

Sheet _TM_Ključni poslovni pokazatelj (hidden)
A1: Left | B1: Top | C1: Right | D1: Bottom | E1: Ref
A2: 1 | B2: 1 | C2: 3 | D2: 14 | E2: $A$1:$C$14

Sheet RDG (hidden)
A1: RAČUN DOBITI I GUBITKA | C1: =IF(C83>0,"Sveobuhvatna dobit razdoblja",IF(C83=0,"Stagnacija u razdoblju","Sveobuhvatni gubitak razdoblja")) -> Sveobuhvatni gubitak razdoblja | D1: Sveobuhvatni gubitak razdoblja | E1: Sveobuhvatna dobit razdoblja | F1: Sveobuhvatna dobit razdoblja | G1: =IF(G83>0,"Sveobuhvatna dobit razdoblja",IF(G83=0,"Stagnacija u razdoblju","Sveobuhvatni gubitak razdoblja")) -> Sveobuhvatni gubitak razdoblja | H1: =IF(H83>0,"Sveobuhvatna dobit razdoblja",IF(H83=0,"Stagnacija u razdoblju","Sveobuhvatni gubitak razdoblja")) -> Sveobuhvatna dobit razdoblja | I1: Stagnacija u razdoblju | J1: Stagnacija u razdoblju | K1: Stagnacija u razdoblju | L1: Sveobuhvatna dobit razdoblja | M1: Sveobuhvatna dobit razdoblja
A2: Obveznik: | B2: =IF(ISBLANK(Podloga!B2),"",Podloga!B2) -> LUKA-VUKOVAR doo | C2: =IF(Podloga!$B$8=1,"za razdoblje od 01. siječnja do 31. ožujka",IF(Podloga!$B$8=2,"za razdoblje od 01. siječnja do 30. lipnja",IF(Podloga!$B$8=3,"za razdoblje od 01. siječnja do 30. rujna",IF(Podloga!$B$8=4,"za razdoblje od 01. siječnja do 31. prosinca")))) -> za razdoblje od 01. siječnja do 31. ožujka
C3: I Z N O S (u 000 kn) | N3: ="Indeks 1. k. "& LEFT(Podloga!B7,4) &" / 1. k. "& (LEFT(Podloga!B7,4)-1) -> Indeks 1. k. 2020 / 1. k. 2019 | O3: ="Indeks 2. k. "& LEFT(Podloga!B7,4) &" / 2. k. "& (LEFT(Podloga!B7,4)-1) -> Indeks 2. k. 2020 / 2. k. 2019 | P3: ="Indeks 3. k. "& LEFT(Podloga!B7,4) &" / 3. k. "& (LEFT(Podloga!B7,4)-1) -> Indeks 3. k. 2020 / 3. k. 2019 | Q3: ="Indeks 4. k. "& LEFT(Podloga!B7,4) &" / 4. k. "& (LEFT(Podloga!B7,4)-1) -> Indeks 4. k. 2020 / 4. k. 2019 | R3: Godišnja promjena (kumulativno) | S3: Ostvarenje plana | T3: ="Indeks 2. k. "& LEFT(Podloga!B7,4) &" / 1. k. "& LEFT(Podloga!B7,4) -> Indeks 2. k. 2020 / 1. k. 2020 | U3: ="Indeks 3. k. "& LEFT(Podloga!B7,4) &" / 2. k. "& LEFT(Podloga!B7,4) -> Indeks 3. k. 2020 / 2. k. 2020 | V3: ="Indeks 4. k. "& LEFT(Podloga!B7,4) &" / 3. k. "& LEFT(Podloga!B7,4) -> Indeks 4. k. 2020 / 3. k. 2020
C4: =Podloga!B34 -> 1. kvartal 2019 | D4: =Podloga!C34 -> 2. kvartal 2019 | E4: =Podloga!D34 -> 3. kvartal 2019 | F4: =Podloga!E34 -> 4. kvartal 2019 | G4: =Podloga!F34 -> Kumulativ 2019 | H4: =Podloga!G34 -> 1. kvartal 2020 | I4: =Podloga!H34 -> 2. kvartal 2020 | J4: =Podloga!I34 -> 3. kvartal 2020 | K4: =Podloga!J34 -> 4. kvartal 2020 | L4: =Podloga!K34 -> Kumulativ 2020 | M4: =Podloga!L34 -> Plan 2020
A5: 1. | B5: POSLOVNI PRIHODI | C5: =SUM(C6:C10) -> 3254274.39 | D5: =SUM(D6:D10) -> 3294584.36 | E5: 4007716.64 | F5: 3484387.61 | G5: =SUM(G6:G10) -> 3254274.39 | H5: =SUM(H6:H10) -> 3741712.2 | I5: 0 | J5: 0 | K5: 0 | L5: =SUM(L6:L10) -> 3741712.2 | M5: 12943308 | N5: =IFERROR(H5/C5*100,) -> 114.9783869 | O5: =IFERROR(I5/D5*100,) -> 0 | P5: =IFERROR(J5/E5*100,) -> 0 | Q5: =IFERROR(K5/F5*100,) -> 0 | R5: =IFERROR(L5/G5*100,) -> 114.9783869 | S5: =IFERROR(L5/M5*100,) -> 28.90846915 | T5: =IFERROR(I5/H5*100,) -> 0 | U5: =IFERROR(J5/I5*100,) -> 0 | V5: =IFERROR(K5/J5*100,) -> 0
A6: 1.1. | B6: Prihodi od prodaje s poduzetnicima unutar grupe | C6: ='RDG Podloga'!C6 -> 0 | D6: ='RDG Podloga'!D6-'RDG Podloga'!C6 -> 0 | E6: ='RDG Podloga'!E6-'RDG Podloga'!D6 -> 0 | F6: ='RDG Podloga'!F6-'RDG Podloga'!E6 -> 0 | G6: =IF(Podloga!$B$8=1,C6,IF(Podloga!$B$8=2,C6+D6,IF(Podloga!$B$8=3,C6+D6+E6,IF(Podloga!$B$8=4,C6+D6+E6+F6)))) -> 0 | H6: ='RDG Podloga'!G6 -> 0 | I6: =IF(Podloga!$B$8>1,('RDG Podloga'!H6-'RDG Podloga'!G6),) -> 0 | J6: =IF(Podloga!$B$8>2,('RDG Podloga'!I6-'RDG Podloga'!H6),) -> 0 | K6: =IF(Podloga!$B$8>3,('RDG Podloga'!J6-'RDG Podloga'!I6),) -> 0 | L6: =SUM(H6:K6) -> 0 | M6: ='RDG Podloga'!K6 -> 0 | N6: 0 | O6: 0 | P6: 0 | Q6: 0 | R6: =IFERROR(L6/G6*100,) -> 0 | S6: =IFERROR(L6/M6*100,) -> 0 | T6: 0 | U6: 0 | V6: 0
A7: 1.2. | B7: Prihodi od prodaje | C7: ='RDG Podloga'!C7 -> 3018588.51 | D7: ='RDG Podloga'!D7-'RDG Podloga'!C7 -> 3075327.82 | E7: ='RDG Podloga'!E7-'RDG Podloga'!D7 -> 3758923.81 | F7: ='RDG Podloga'!F7-'RDG Podloga'!E7 -> 3200912.86 | G7: =IF(Podloga!$B$8=1,C7,IF(Podloga!$B$8=2,C7+D7,IF(Podloga!$B$8=3,C7+D7+E7,IF(Podloga!$B$8=4,C7+D7+E7+F7)))) -> 3018588.51 | H7: ='RDG Podloga'!G7 -> 3498469.31 | I7: =IF(Podloga!$B$8>1,('RDG Podloga'!H7-'RDG Podloga'!G7),) -> 0 | J7: =IF(Podloga!$B$8>2,('RDG Podloga'!I7-'RDG Podloga'!H7),) -> 0 | K7: =IF(Podloga!$B$8>3,('RDG Podloga'!J7-'RDG Podloga'!I7),) -> 0 | L7: =SUM(H7:K7) -> 3498469.31 | M7: ='RDG Podloga'!K7 -> 11979989 | N7: 115.8975229 | O7: 0 | P7: 0 | Q7: 0 | R7: 115.8975229 | S7: 29.2026087 | T7: 0 | U7: 0 | V7: 0
A8: 1.3. | B8: Prihodi na temelju upotrebe vlastitih proizvoda, robe i usluga | C8: ='RDG Podloga'!C8 -> 0 | D8: ='RDG Podloga'!D8-'RDG Podloga'!C8 -> 0 | E8: ='RDG Podloga'!E8-'RDG Podloga'!D8 -> 0 | F8: ='RDG Podloga'!F8-'RDG Podloga'!E8 -> 11961 | G8: =IF(Podloga!$B$8=1,C8,IF(Podloga!$B$8=2,C8+D8,IF(Podloga!$B$8=3,C8+D8+E8,IF(Podloga!$B$8=4,C8+D8+E8+F8)))) -> 0 | H8: ='RDG Podloga'!G8 -> 0 | I8: =IF(Podloga!$B$8>1,('RDG Podloga'!H8-'RDG Podloga'!G8),) -> 0 | J8: =IF(Podloga!$B$8>2,('RDG Podloga'!I8-'RDG Podloga'!H8),) -> 0 | K8: =IF(Podloga!$B$8>3,('RDG Podloga'!J8-'RDG Podloga'!I8),) -> 0 | L8: =SUM(H8:K8) -> 0 | M8: ='RDG Podloga'!K8 -> 0 | N8: 0 | O8: 0 | P8: 0 | Q8: 0 | R8: 0 | S8: 0 | T8: 0 | U8: 0 | V8: 0
A9: 1.4. | B9: Ostali poslovni prihodi s poduzetnicima unutar grupe | C9: ='RDG Podloga'!C9 -> 0 | D9: ='RDG Podloga'!D9-'RDG Podloga'!C9 -> 0 | E9: ='RDG Podloga'!E9-'RDG Podloga'!D9 -> 0 | F9: ='RDG Podloga'!F9-'RDG Podloga'!E9 -> 0 | G9: =IF(Podloga!$B$8=1,C9,IF(Podloga!$B$8=2,C9+D9,IF(Podloga!$B$8=3,C9+D9+E9,IF(Podloga!$B$8=4,C9+D9+E9+F9)))) -> 0 | H9: ='RDG Podloga'!G9 -> 0 | I9: =IF(Podloga!$B$8>1,('RDG Podloga'!H9-'RDG Podloga'!G9),) -> 0 | J9: =IF(Podloga!$B$8>2,('RDG Podloga'!I9-'RDG Podloga'!H9),) -> 0 | K9: =IF(Podloga!$B$8>3,('RDG Podloga'!J9-'RDG Podloga'!I9),) -> 0 | L9: =SUM(H9:K9) -> 0 | M9: ='RDG Podloga'!K9 -> 0 | N9: 0 | O9: 0 | P9: 0 | Q9: 0 | R9: 0 | S9: 0 | T9: 0 | U9: 0 | V9: 0
A10: 1.5. | B10: Ostali poslovni prihodi | C10: ='RDG Podloga'!C10 -> 235685.88 | D10: ='RDG Podloga'!D10-'RDG Podloga'!C10 -> 219256.54 | E10: ='RDG Podloga'!E10-'RDG Podloga'!D10 -> 248792.83 | F10: ='RDG Podloga'!F10-'RDG Podloga'!E10 -> 271513.75 | G10: =IF(Podloga!$B$8=1,C10,IF(Podloga!$B$8=2,C10+D10,IF(Podloga!$B$8=3,C10+D10+E10,IF(Podloga!$B$8=4,C10+D10+E10+F10)))) -> 235685.88 | H10: ='RDG Podloga'!G10 -> 243242.89 | I10: =IF(Podloga!$B$8>1,('RDG Podloga'!H10-'RDG Podloga'!G10),) -> 0 | J10: =IF(Podloga!$B$8>2,('RDG Podloga'!I10-'RDG Podloga'!H10),) -> 0 | K10: =IF(Podloga!$B$8>3,('RDG Podloga'!J10-'RDG Podloga'!I10),) -> 0 | L10: =SUM(H10:K10) -> 243242.89 | M10: ='RDG Podloga'!K10 -> 963319 | N10: 103.2063906 | O10: 0 | P10: 0 | Q10: 0 | R10: 103.2063906 | S10: 25.25050269 | T10: 0 | U10: 0 | V10: 0
A11: 2. | B11: POSLOVNI RASHODI | C11: =C12+C13+C17+C21+C22+C23+C26+C33 -> 3183811.37 | D11: 3525237.82 | E11: 3485743.89 | F11: 3388543.92 | G11: =G12+G13+G17+G21+G22+G23+G26+G33 -> 3183811.37 | H11: =H12+H13+H17+H21+H22+H23+H26+H33 -> 3172059.28 | I11: 0 | J11: 0 | K11: 0 | L11: =L12+L13+L17+L21+L22+L23+L26+L33 -> 3172059.28 | M11: 12991956.11 | N11: 99.63087983 | O11: 0 | P11: 0 | Q11: 0 | R11: 99.63087983 | S11: 24.41556339 | T11: 0 | U11: 0 | V11: 0
A12: 2.1. | B12: Promjene vrijednosti zaliha proizvodnje u tijeku i gotovih proizvoda | C12: ='RDG Podloga'!C12 -> 0 | D12: ='RDG Podloga'!D12-'RDG Podloga'!C12 -> 0 | E12: ='RDG Podloga'!E12-'RDG Podloga'!D12 -> 0 | F12: ='RDG Podloga'!F12-'RDG Podloga'!E12 -> 0 | G12: =IF(Podloga!$B$8=1,C12,IF(Podloga!$B$8=2,C12+D12,IF(Podloga!$B$8=3,C12+D12+E12,IF(Podloga!$B$8=4,C12+D12+E12+F12)))) -> 0 | H12: ='RDG Podloga'!G12 -> 0 | I12: =IF(Podloga!$B$8>1,('RDG Podloga'!H12-'RDG Podloga'!G12),) -> 0 | J12: =IF(Podloga!$B$8>2,('RDG Podloga'!I12-'RDG Podloga'!H12),) -> 0 | K12: =IF(Podloga!$B$8>3,('RDG Podloga'!J12-'RDG Podloga'!I12),) -> 0 | L12: =SUM(H12:K12) -> 0 | M12: ='RDG Podloga'!K12 -> 0 | N12: 0 | O12: 0 | P12: 0 | Q12: 0 | R12: 0 | S12: 0 | T12: 0 | U12: 0 | V12: 0
A13: 2.2. | B13: Materijalni troškovi | C13: =SUM(C14:C16) -> 1020448.05 | D13: =SUM(D14:D16) -> 1142651.76 | E13: 1250106.43 | F13: 960552.76 | G13: =SUM(G14:G16) -> 1020448.05 | H13: =SUM(H14:H16) -> 1065766.21 | I13: 0 | J13: 0 | K13: 0 | L13: 1065766.21 | M13: 4357661 | N13: 104.4410061 | O13: 0 | P13: 0 | Q13: 0 | R13: 104.4410061 | S13: 24.45729968 | T13: 0 | U13: 0 | V13: 0
A14: 2.2.1. | B14: Troškovi sirovina i materijala | C14: ='RDG Podloga'!C14 -> 475909.31 | D14: ='RDG Podloga'!D14-'RDG Podloga'!C14 -> 492520.52 | E14: ='RDG Podloga'!E14-'RDG Podloga'!D14 -> 447285.14 | F14: ='RDG Podloga'!F14-'RDG Podloga'!E14 -> 331469.03 | G14: =IF(Podloga!$B$8=1,C14,IF(Podloga!$B$8=2,C14+D14,IF(Podloga!$B$8=3,C14+D14+E14,IF(Podloga!$B$8=4,C14+D14+E14+F14)))) -> 475909.31 | H14: ='RDG Podloga'!G14 -> 431458.23 | I14: =IF(Podloga!$B$8>1,('RDG Podloga'!H14-'RDG Podloga'!G14),) -> 0 | J14: =IF(Podloga!$B$8>2,('RDG Podloga'!I14-'RDG Podloga'!H14),) -> 0 | K14: =IF(Podloga!$B$8>3,('RDG Podloga'!J14-'RDG Podloga'!I14),) -> 0 | L14: =SUM(H14:K14) -> 431458.23 | M14: ='RDG Podloga'!K14 -> 1752342 | N14: 90.65975826 | O14: 0 | P14: 0 | Q14: 0 | R14: 90.65975826 | S14: 24.62180499 | T14: 0 | U14: 0 | V14: 0
A15: 2.2.2. | B15: Troškovi prodane robe | C15: ='RDG Podloga'!C15 -> 152.5 | D15: ='RDG Podloga'!D15-'RDG Podloga'!C15 -> 366 | E15: ='RDG Podloga'!E15-'RDG Podloga'!D15 -> 0 | F15: ='RDG Podloga'!F15-'RDG Podloga'!E15 -> 376.5 | G15: =IF(Podloga!$B$8=1,C15,IF(Podloga!$B$8=2,C15+D15,IF(Podloga!$B$8=3,C15+D15+E15,IF(Podloga!$B$8=4,C15+D15+E15+F15)))) -> 152.5 | H15: ='RDG Podloga'!G15 -> 274.5 | I15: =IF(Podloga!$B$8>1,('RDG Podloga'!H15-'RDG Podloga'!G15),) -> 0 | J15: =IF(Podloga!$B$8>2,('RDG Podloga'!I15-'RDG Podloga'!H15),) -> 0 | K15: =IF(Podloga!$B$8>3,('RDG Podloga'!J15-'RDG Podloga'!I15),) -> 0 | L15: =SUM(H15:K15) -> 274.5 | M15: ='RDG Podloga'!K15 -> 275 | N15: 180 | O15: 0 | P15: 0 | Q15: 0 | R15: 180 | S15: 99.81818182 | T15: 0 | U15: 0 | V15: 0
A16: 2.2.3. | B16: Ostali vanjski troškovi | C16: ='RDG Podloga'!C16 -> 544386.24 | D16: ='RDG Podloga'!D16-'RDG Podloga'!C16 -> 649765.24 | E16: ='RDG Podloga'!E16-'RDG Podloga'!D16 -> 802821.29 | F16: ='RDG Podloga'!F16-'RDG Podloga'!E16 -> 628707.23 | G16: =IF(Podloga!$B$8=1,C16,IF(Podloga!$B$8=2,C16+D16,IF(Podloga!$B$8=3,C16+D16+E16,IF(Podloga!$B$8=4,C16+D16+E16+F16)))) -> 544386.24 | H16: ='RDG Podloga'!G16 -> 634033.48 | I16: =IF(Podloga!$B$8>1,('RDG Podloga'!H16-'RDG Podloga'!G16),) -> 0 | J16: =IF(Podloga!$B$8>2,('RDG Podloga'!I16-'RDG Podloga'!H16),) -> 0 | K16: =IF(Podloga!$B$8>3,('RDG Podloga'!J16-'RDG Podloga'!I16),) -> 0 | L16: =SUM(H16:K16) -> 634033.48 | M16: ='RDG Podloga'!K16 -> 2605044 | N16: 116.4675801 | O16: 0 | P16: 0 | Q16: 0 | R16: 116.4675801 | S16: 24.33868603 | T16: 0 | U16: 0 | V16: 0
A17: 2.3. | B17: Troškovi osoblja | C17: =SUM(C18:C20) -> 1467689.58 | D17: =SUM(D18:D20) -> 1504098.32 | E17: 1566065.58 | F17: 1551796.52 | G17: =SUM(G18:G20) -> 1467689.58 | H17: =SUM(H18:H20) -> 1534628.35 | I17: 0 | J17: 0 | K17: 0 | L17: 1534628.35 | M17: 6282628.45 | N17: 104.5608261 | O17: 0 | P17: 0 | Q17: 0 | R17: 104.5608261 | S17: 24.42653361 | T17: 0 | U17: 0 | V17: 0
A18: 2.3.1. | B18: Neto plaće i nadnice | C18: ='RDG Podloga'!C18 -> 980103 | D18: ='RDG Podloga'!D18-'RDG Podloga'!C18 -> 1003180.72 | E18: ='RDG Podloga'!E18-'RDG Podloga'!D18 -> 1043773.1 | F18: ='RDG Podloga'!F18-'RDG Podloga'!E18 -> 1041715.18 | G18: =IF(Podloga!$B$8=1,C18,IF(Podloga!$B$8=2,C18+D18,IF(Podloga!$B$8=3,C18+D18+E18,IF(Podloga!$B$8=4,C18+D18+E18+F18)))) -> 980103 | H18: ='RDG Podloga'!G18 -> 1027411.64 | I18: =IF(Podloga!$B$8>1,('RDG Podloga'!H18-'RDG Podloga'!G18),) -> 0 | J18: =IF(Podloga!$B$8>2,('RDG Podloga'!I18-'RDG Podloga'!H18),) -> 0 | K18: =IF(Podloga!$B$8>3,('RDG Podloga'!J18-'RDG Podloga'!I18),) -> 0 | L18: =SUM(H18:K18) -> 1027411.64 | M18: ='RDG Podloga'!K18 -> 4162411.54 | N18: 104.8269049 | O18: 0 | P18: 0 | Q18: 0 | R18: 104.8269049 | S18: 24.68308648 | T18: 0 | U18: 0 | V18: 0
A19: 2.3.2. | B19: Troškovi poreza i doprinosa iz plaća | C19: ='RDG Podloga'!C19 -> 279716.39 | D19: ='RDG Podloga'!D19-'RDG Podloga'!C19 -> 287890.83 | E19: ='RDG Podloga'!E19-'RDG Podloga'!D19 -> 300489.14 | F19: ='RDG Podloga'!F19-'RDG Podloga'!E19 -> 290298.64 | G19: =IF(Podloga!$B$8=1,C19,IF(Podloga!$B$8=2,C19+D19,IF(Podloga!$B$8=3,C19+D19+E19,IF(Podloga!$B$8=4,C19+D19+E19+F19)))) -> 279716.39 | H19: ='RDG Podloga'!G19 -> 289865.91 | I19: =IF(Podloga!$B$8>1,('RDG Podloga'!H19-'RDG Podloga'!G19),) -> 0 | J19: =IF(Podloga!$B$8>2,('RDG Podloga'!I19-'RDG Podloga'!H19),) -> 0 | K19: =IF(Podloga!$B$8>3,('RDG Podloga'!J19-'RDG Podloga'!I19),) -> 0 | L19: =SUM(H19:K19) -> 289865.91 | M19: ='RDG Podloga'!K19 -> 1217865.91 | N19: 103.6285039 | O19: 0 | P19: 0 | Q19: 0 | R19: 103.6285039 | S19: 23.80113505 | T19: 0 | U19: 0 | V19: 0
A20: 2.3.3. | B20: Doprinosi na plaće | C20: ='RDG Podloga'!C20 -> 207870.19 | D20: ='RDG Podloga'!D20-'RDG Podloga'!C20 -> 213026.77 | E20: ='RDG Podloga'!E20-'RDG Podloga'!D20 -> 221803.34 | F20: ='RDG Podloga'!F20-'RDG Podloga'!E20 -> 219782.7 | G20: =IF(Podloga!$B$8=1,C20,IF(Podloga!$B$8=2,C20+D20,IF(Podloga!$B$8=3,C20+D20+E20,IF(Podloga!$B$8=4,C20+D20+E20+F20)))) -> 207870.19 | H20: ='RDG Podloga'!G20 -> 217350.8 | I20: =IF(Podloga!$B$8>1,('RDG Podloga'!H20-'RDG Podloga'!G20),) -> 0 | J20: =IF(Podloga!$B$8>2,('RDG Podloga'!I20-'RDG Podloga'!H20),) -> 0 | K20: =IF(Podloga!$B$8>3,('RDG Podloga'!J20-'RDG Podloga'!I20),) -> 0 | L20: =SUM(H20:K20) -> 217350.8 | M20: ='RDG Podloga'!K20 -> 902351 | N20: 104.5608319 | O20: 0 | P20: 0 | Q20: 0 | R20: 104.5608319 | S20: 24.08716785 | T20: 0 | U20: 0 | V20: 0
A21: 2.4. | B21: Amortizacija | C21: ='RDG Podloga'!C21 -> 369272.07 | D21: ='RDG Podloga'!D21-'RDG Podloga'!C21 -> 363320.29 | E21: ='RDG Podloga'!E21-'RDG Podloga'!D21 -> 327587.07 | F21: ='RDG Podloga'!F21-'RDG Podloga'!E21 -> 339158.57 | G21: =IF(Podloga!$B$8=1,C21,IF(Podloga!$B$8=2,C21+D21,IF(Podloga!$B$8=3,C21+D21+E21,IF(Podloga!$B$8=4,C21+D21+E21+F21)))) -> 369272.07 | H21: ='RDG Podloga'!G21 -> 323576.22 | I21: =IF(Podloga!$B$8>1,('RDG Podloga'!H21-'RDG Podloga'!G21),) -> 0 | J21: =IF(Podloga!$B$8>2,('RDG Podloga'!I21-'RDG Podloga'!H21),) -> 0 | K21: =IF(Podloga!$B$8>3,('RDG Podloga'!J21-'RDG Podloga'!I21),) -> 0 | L21: =SUM(H21:K21) -> 323576.22 | M21: ='RDG Podloga'!K21 -> 1306576 | N21: 87.6254248 | O21: 0 | P21: 0 | Q21: 0 | R21: 87.6254248 | S21: 24.76520463 | T21: 0 | U21: 0 | V21: 0
A22: 2.5. | B22: Ostali troškovi | C22: ='RDG Podloga'!C22 -> 323601.67 | D22: ='RDG Podloga'!D22-'RDG Podloga'!C22 -> 505415.16 | E22: ='RDG Podloga'!E22-'RDG Podloga'!D22 -> 334287.81 | F22: ='RDG Podloga'!F22-'RDG Podloga'!E22 -> 511569.36 | G22: =IF(Podloga!$B$8=1,C22,IF(Podloga!$B$8=2,C22+D22,IF(Podloga!$B$8=3,C22+D22+E22,IF(Podloga!$B$8=4,C22+D22+E22+F22)))) -> 323601.67 | H22: ='RDG Podloga'!G22 -> 244968.22 | I22: =IF(Podloga!$B$8>1,('RDG Podloga'!H22-'RDG Podloga'!G22),) -> 0 | J22: =IF(Podloga!$B$8>2,('RDG Podloga'!I22-'RDG Podloga'!H22),) -> 0 | K22: =IF(Podloga!$B$8>3,('RDG Podloga'!J22-'RDG Podloga'!I22),) -> 0 | L22: =SUM(H22:K22) -> 244968.22 | M22: ='RDG Podloga'!K22 -> 1036970.66 | N22: 75.70054258 | O22: 0 | P22: 0 | Q22: 0 | R22: 75.70054258 | S22: 23.62344755 | T22: 0 | U22: 0 | V22: 0
A23: 2.6. | B23: Vrijednosna usklađenja | C23: =SUM(C24:C25) -> 0 | D23: =SUM(D24:D25) -> 0 | E23: 0 | F23: 0 | G23: =SUM(G24:G25) -> 0 | H23: =SUM(H24:H25) -> 0 | I23: 0 | J23: 0 | K23: 0 | L23: 0 | M23: 0 | N23: 0 | O23: 0 | P23: 0 | Q23: 0 | R23: 0 | S23: 0 | T23: 0 | U23: 0 | V23: 0
A24: 2.6.1. | B24: Dugotrajne imovine (osim financijske imovine) | C24: ='RDG Podloga'!C24 -> 0 | D24: ='RDG Podloga'!D24-'RDG Podloga'!C24 -> 0 | E24: ='RDG Podloga'!E24-'RDG Podloga'!D24 -> 0 | F24: ='RDG Podloga'!F24-'RDG Podloga'!E24 -> 0 | G24: =IF(Podloga!$B$8=1,C24,IF(Podloga!$B$8=2,C24+D24,IF(Podloga!$B$8=3,C24+D24+E24,IF(Podloga!$B$8=4,C24+D24+E24+F24)))) -> 0 | H24: ='RDG Podloga'!G24 -> 0 | I24: =IF(Podloga!$B$8>1,('RDG Podloga'!H24-'RDG Podloga'!G24),) -> 0 | J24: =IF(Podloga!$B$8>2,('RDG Podloga'!I24-'RDG Podloga'!H24),) -> 0 | K24: =IF(Podloga!$B$8>3,('RDG Podloga'!J24-'RDG Podloga'!I24),) -> 0 | L24: =SUM(H24:K24) -> 0 | M24: ='RDG Podloga'!K24 -> 0 | N24: 0 | O24: 0 | P24: 0 | Q24: 0 | R24: 0 | S24: 0 | T24: 0 | U24: 0 | V24: 0
A25: 2.6.2. | B25: Kratkotrajne imovine (osim financijske imovine) | C25: ='RDG Podloga'!C25 -> 0 | D25: ='RDG Podloga'!D25-'RDG Podloga'!C25 -> 0 | E25: ='RDG Podloga'!E25-'RDG Podloga'!D25 -> 0 | F25: ='RDG Podloga'!F25-'RDG Podloga'!E25 -> 0 | G25: =IF(Podloga!$B$8=1,C25,IF(Podloga!$B$8=2,C25+D25,IF(Podloga!$B$8=3,C25+D25+E25,IF(Podloga!$B$8=4,C25+D25+E25+F25)))) -> 0 | H25: ='RDG Podloga'!G25 -> 0 | I25: =IF(Podloga!$B$8>1,('RDG Podloga'!H25-'RDG Podloga'!G25),) -> 0 | J25: =IF(Podloga!$B$8>2,('RDG Podloga'!I25-'RDG Podloga'!H25),) -> 0 | K25: =IF(Podloga!$B$8>3,('RDG Podloga'!J25-'RDG Podloga'!I25),) -> 0 | L25: =SUM(H25:K25) -> 0 | M25: ='RDG Podloga'!K25 -> 0 | N25: 0 | O25: 0 | P25: 0 | Q25: 0 | R25: 0 | S25: 0 | T25: 0 | U25: 0 | V25: 0
A26: 2.7. | B26: Rezerviranja | C26: =SUM(C27:C32) -> 0 | D26: =SUM(D27:D32) -> 0 | E26: 0 | F26: 0 | G26: =SUM(G27:G32) -> 0 | H26: =SUM(H27:H32) -> 0 | I26: 0 | J26: 0 | K26: 0 | L26: 0 | M26: 0 | N26: 0 | O26: 0 | P26: 0 | Q26: 0 | R26: 0 | S26: 0 | T26: 0 | U26: 0 | V26: 0
A27: 2.7.1. | B27: Rezerviranja za mirovine, otpremnine i slične obveze | C27: ='RDG Podloga'!C27 -> 0 | D27: ='RDG Podloga'!D27-'RDG Podloga'!C27 -> 0 | E27: ='RDG Podloga'!E27-'RDG Podloga'!D27 -> 0 | F27: ='RDG Podloga'!F27-'RDG Podloga'!E27 -> 0 | G27: =IF(Podloga!$B$8=1,C27,IF(Podloga!$B$8=2,C27+D27,IF(Podloga!$B$8=3,C27+D27+E27,IF(Podloga!$B$8=4,C27+D27+E27+F27)))) -> 0 | H27: ='RDG Podloga'!G27 -> 0 | I27: =IF(Podloga!$B$8>1,('RDG Podloga'!H27-'RDG Podloga'!G27),) -> 0 | J27: =IF(Podloga!$B$8>2,('RDG Podloga'!I27-'RDG Podloga'!H27),) -> 0 | K27: =IF(Podloga!$B$8>3,('RDG Podloga'!J27-'RDG Podloga'!I27),) -> 0 | L27: =SUM(H27:K27) -> 0 | M27: ='RDG Podloga'!K27 -> 0 | N27: 0 | O27: 0 | P27: 0 | Q27: 0 | R27: 0 | S27: 0 | T27: 0 | U27: 0 | V27: 0
A28: 2.7.2. | B28: Rezerviranja za porezne obveze | C28: ='RDG Podloga'!C28 -> 0 | D28: ='RDG Podloga'!D28-'RDG Podloga'!C28 -> 0 | E28: ='RDG Podloga'!E28-'RDG Podloga'!D28 -> 0 | F28: ='RDG Podloga'!F28-'RDG Podloga'!E28 -> 0 | G28: =IF(Podloga!$B$8=1,C28,IF(Podloga!$B$8=2,C28+D28,IF(Podloga!$B$8=3,C28+D28+E28,IF(Podloga!$B$8=4,C28+D28+E28+F28)))) -> 0 | H28: ='RDG Podloga'!G28 -> 0 | I28: =IF(Podloga!$B$8>1,('RDG Podloga'!H28-'RDG Podloga'!G28),) -> 0 | J28: =IF(Podloga!$B$8>2,('RDG Podloga'!I28-'RDG Podloga'!H28),) -> 0 | K28: =IF(Podloga!$B$8>3,('RDG Podloga'!J28-'RDG Podloga'!I28),) -> 0 | L28: 0 | M28: ='RDG Podloga'!K28 -> 0 | N28: 0 | O28: 0 | P28: 0 | Q28: 0 | R28: 0 | S28: 0 | T28: 0 | U28: 0 | V28: 0
A29: 2.7.3. | B29: Rezerviranja za započete sudske sporove | C29: ='RDG Podloga'!C29 -> 0 | D29: ='RDG Podloga'!D29-'RDG Podloga'!C29 -> 0 | E29: ='RDG Podloga'!E29-'RDG Podloga'!D29 -> 0 | F29: ='RDG Podloga'!F29-'RDG Podloga'!E29 -> 0 | G29: =IF(Podloga!$B$8=1,C29,IF(Podloga!$B$8=2,C29+D29,IF(Podloga!$B$8=3,C29+D29+E29,IF(Podloga!$B$8=4,C29+D29+E29+F29)))) -> 0 | H29: ='RDG Podloga'!G29 -> 0 | I29: =IF(Podloga!$B$8>1,('RDG Podloga'!H29-'RDG Podloga'!G29),) -> 0 | J29: =IF(Podloga!$B$8>2,('RDG Podloga'!I29-'RDG Podloga'!H29),) -> 0 | K29: =IF(Podloga!$B$8>3,('RDG Podloga'!J29-'RDG Podloga'!I29),) -> 0 | L29: 0 | M29: ='RDG Podloga'!K29 -> 0 | N29: 0 | O29: 0 | P29: 0 | Q29: 0 | R29: 0 | S29: 0 | T29: 0 | U29: 0 | V29: 0
A30: 2.7.4. | B30: Rezerviranja za troškove obnavljanja prirodnih bogatstava | C30: ='RDG Podloga'!C30 -> 0 | D30: ='RDG Podloga'!D30-'RDG Podloga'!C30 -> 0 | E30: ='RDG Podloga'!E30-'RDG Podloga'!D30 -> 0 | F30: ='RDG Podloga'!F30-'RDG Podloga'!E30 -> 0 | G30: =IF(Podloga!$B$8=1,C30,IF(Podloga!$B$8=2,C30+D30,IF(Podloga!$B$8=3,C30+D30+E30,IF(Podloga!$B$8=4,C30+D30+E30+F30)))) -> 0 | H30: ='RDG Podloga'!G30 -> 0 | I30: =IF(Podloga!$B$8>1,('RDG Podloga'!H30-'RDG Podloga'!G30),) -> 0 | J30: =IF(Podloga!$B$8>2,('RDG Podloga'!I30-'RDG Podloga'!H30),) -> 0 | K30: =IF(Podloga!$B$8>3,('RDG Podloga'!J30-'RDG Podloga'!I30),) -> 0 | L30: 0 | M30: ='RDG Podloga'!K30 -> 0 | N30: 0 | O30: 0 | P30: 0 | Q30: 0 | R30: 0 | S30: 0 | T30: 0 | U30: 0 | V30: 0
A31: 2.7.5. | B31: Rezerviranja za troškove u jamstvenim rokovima | C31: ='RDG Podloga'!C31 -> 0 | D31: ='RDG Podloga'!D31-'RDG Podloga'!C31 -> 0 | E31: ='RDG Podloga'!E31-'RDG Podloga'!D31 -> 0 | F31: ='RDG Podloga'!F31-'RDG Podloga'!E31 -> 0 | G31: =IF(Podloga!$B$8=1,C31,IF(Podloga!$B$8=2,C31+D31,IF(Podloga!$B$8=3,C31+D31+E31,IF(Podloga!$B$8=4,C31+D31+E31+F31)))) -> 0 | H31: ='RDG Podloga'!G31 -> 0 | I31: =IF(Podloga!$B$8>1,('RDG Podloga'!H31-'RDG Podloga'!G31),) -> 0 | J31: =IF(Podloga!$B$8>2,('RDG Podloga'!I31-'RDG Podloga'!H31),) -> 0 | K31: =IF(Podloga!$B$8>3,('RDG Podloga'!J31-'RDG Podloga'!I31),) -> 0 | L31: 0 | M31: ='RDG Podloga'!K31 -> 0 | N31: 0 | O31: 0 | P31: 0 | Q31: 0 | R31: 0 | S31: 0 | T31: 0 | U31: 0 | V31: 0
A32: 2.7.6. | B32: Druga rezerviranja | C32: ='RDG Podloga'!C32 -> 0 | D32: ='RDG Podloga'!D32-'RDG Podloga'!C32 -> 0 | E32: ='RDG Podloga'!E32-'RDG Podloga'!D32 -> 0 | F32: ='RDG Podloga'!F32-'RDG Podloga'!E32 -> 0 | G32: =IF(Podloga!$B$8=1,C32,IF(Podloga!$B$8=2,C32+D32,IF(Podloga!$B$8=3,C32+D32+E32,IF(Podloga!$B$8=4,C32+D32+E32+F32)))) -> 0 | H32: ='RDG Podloga'!G32 -> 0 | I32: =IF(Podloga!$B$8>1,('RDG Podloga'!H32-'RDG Podloga'!G32),) -> 0 | J32: =IF(Podloga!$B$8>2,('RDG Podloga'!I32-'RDG Podloga'!H32),) -> 0 | K32: =IF(Podloga!$B$8>3,('RDG Podloga'!J32-'RDG Podloga'!I32),) -> 0 | L32: 0 | M32: ='RDG Podloga'!K32 -> 0 | N32: 0 | O32: 0 | P32: 0 | Q32: 0 | R32: 0 | S32: 0 | T32: 0 | U32: 0 | V32: 0
A33: 2.8. | B33: Ostali poslovni rashodi | C33: ='RDG Podloga'!C33 -> 2800 | D33: ='RDG Podloga'!D33-'RDG Podloga'!C33 -> 9752.29 | E33: ='RDG Podloga'!E33-'RDG Podloga'!D33 -> 7697 | F33: ='RDG Podloga'!F33-'RDG Podloga'!E33 -> 25466.71 | G33: =IF(Podloga!$B$8=1,C33,IF(Podloga!$B$8=2,C33+D33,IF(Podloga!$B$8=3,C33+D33+E33,IF(Podloga!$B$8=4,C33+D33+E33+F33)))) -> 2800 | H33: ='RDG Podloga'!G33 -> 3120.28 | I33: =IF(Podloga!$B$8>1,('RDG Podloga'!H33-'RDG Podloga'!G33),) -> 0 | J33: =IF(Podloga!$B$8>2,('RDG Podloga'!I33-'RDG Podloga'!H33),) -> 0 | K33: =IF(Podloga!$B$8>3,('RDG Podloga'!J33-'RDG Podloga'!I33),) -> 0 | L33: 3120.28 | M33: ='RDG Podloga'!K33 -> 8120 | N33: 111.4385714 | O33: 0 | P33: 0 | Q33: 0 | R33: 111.4385714 | S33: 38.4270936 | T33: 0 | U33: 0 | V33: 0
A34: 3. | B34: FINANCIJSKI PRIHODI | C34: =SUM(C35:C44) -> 53614.05 | D34: 903.89 | E34: 476.74 | F34: 54092.32 | G34: =SUM(G35:G44) -> 53614.05 | H34: =SUM(H35:H44) -> 941.09 | I34: 0 | J34: 0 | K34: 0 | L34: =SUM(L35:L44) -> 941.09 | M34: 56277 | N34: 1.755304813 | O34: 0 | P34: 0 | Q34: 0 | R34: 1.755304813 | S34: 1.672246211 | T34: 0 | U34: 0 | V34: 0
A35: 3.1. | B35: Prihodi od ulaganja u udjele (dionice) poduzetnika unutar grupe | C35: ='RDG Podloga'!C35 -> 0 | D35: ='RDG Podloga'!D35-'RDG Podloga'!C35 -> 0 | E35: ='RDG Podloga'!E35-'RDG Podloga'!D35 -> 0 | F35: ='RDG Podloga'!F35-'RDG Podloga'!E35 -> 0 | G35: =IF(Podloga!$B$8=1,C35,IF(Podloga!$B$8=2,C35+D35,IF(Podloga!$B$8=3,C35+D35+E35,IF(Podloga!$B$8=4,C35+D35+E35+F35)))) -> 0 | H35: ='RDG Podloga'!G35 -> 0 | I35: =IF(Podloga!$B$8>1,('RDG Podloga'!H35-'RDG Podloga'!G35),) -> 0 | J35: =IF(Podloga!$B$8>2,('RDG Podloga'!I35-'RDG Podloga'!H35),) -> 0 | K35: =IF(Podloga!$B$8>3,('RDG Podloga'!J35-'RDG Podloga'!I35),) -> 0 | L35: =SUM(H35:K35) -> 0 | M35: ='RDG Podloga'!K35 -> 0 | N35: 0 | O35: 0 | P35: 0 | Q35: 0 | R35: 0 | S35: 0 | T35: 0 | U35: 0 | V35: 0
A36: 3.2. | B36: Prihodi od ulaganja u udjele (dionice) društava povezanih sudjelujućim interesom | C36: ='RDG Podloga'!C36 -> 0 | D36: ='RDG Podloga'!D36-'RDG Podloga'!C36 -> 0 | E36: ='RDG Podloga'!E36-'RDG Podloga'!D36 -> 0 | F36: ='RDG Podloga'!F36-'RDG Podloga'!E36 -> 0 | G36: =IF(Podloga!$B$8=1,C36,IF(Podloga!$B$8=2,C36+D36,IF(Podloga!$B$8=3,C36+D36+E36,IF(Podloga!$B$8=4,C36+D36+E36+F36)))) -> 0 | H36: ='RDG Podloga'!G36 -> 0 | I36: =IF(Podloga!$B$8>1,('RDG Podloga'!H36-'RDG Podloga'!G36),) -> 0 | J36: =IF(Podloga!$B$8>2,('RDG Podloga'!I36-'RDG Podloga'!H36),) -> 0 | K36: =IF(Podloga!$B$8>3,('RDG Podloga'!J36-'RDG Podloga'!I36),) -> 0 | L36: 0 | M36: ='RDG Podloga'!K36 -> 0 | N36: 0 | O36: 0 | P36: 0 | Q36: 0 | R36: 0 | S36: 0 | T36: 0 | U36: 0 | V36: 0
A37: 3.3. | B37: Prihodi od ostalih dugotrajnih financijskih ulaganja i zajmova poduzetnicima unutar grupe | C37: ='RDG Podloga'!C37 -> 0 | D37: ='RDG Podloga'!D37-'RDG Podloga'!C37 -> 0 | E37: ='RDG Podloga'!E37-'RDG Podloga'!D37 -> 0 | F37: ='RDG Podloga'!F37-'RDG Podloga'!E37 -> 0 | G37: =IF(Podloga!$B$8=1,C37,IF(Podloga!$B$8=2,C37+D37,IF(Podloga!$B$8=3,C37+D37+E37,IF(Podloga!$B$8=4,C37+D37+E37+F37)))) -> 0 | H37: ='RDG Podloga'!G37 -> 0 | I37: =IF(Podloga!$B$8>1,('RDG Podloga'!H37-'RDG Podloga'!G37),) -> 0 | J37: =IF(Podloga!$B$8>2,('RDG Podloga'!I37-'RDG Podloga'!H37),) -> 0 | K37: =IF(Podloga!$B$8>3,('RDG Podloga'!J37-'RDG Podloga'!I37),) -> 0 | L37: 0 | M37: ='RDG Podloga'!K37 -> 0 | N37: =IFERROR(H37/C37*100,) -> 0 | O37: =IFERROR(I37/D37*100,) -> 0 | P37: =IFERROR(J37/E37*100,) -> 0 | Q37: =IFERROR(K37/F37*100,) -> 0 | R37: 0 | S37: 0 | T37: =IFERROR(I37/H37*100,) -> 0 | U37: =IFERROR(J37/I37*100,) -> 0 | V37: =IFERROR(K37/J37*100,) -> 0
A38: 3.4. | B38: Ostali prihodi s osnove kamata iz odnosa s poduzetnicima unutar grupe | C38: ='RDG Podloga'!C38 -> 0 | D38: ='RDG Podloga'!D38-'RDG Podloga'!C38 -> 0 | E38: ='RDG Podloga'!E38-'RDG Podloga'!D38 -> 0 | F38: ='RDG Podloga'!F38-'RDG Podloga'!E38 -> 0 | G38: =IF(Podloga!$B$8=1,C38,IF(Podloga!$B$8=2,C38+D38,IF(Podloga!$B$8=3,C38+D38+E38,IF(Podloga!$B$8=4,C38+D38+E38+F38)))) -> 0 | H38: ='RDG Podloga'!G38 -> 0 | I38: =IF(Podloga!$B$8>1,('RDG Podloga'!H38-'RDG Podloga'!G38),) -> 0 | J38: =IF(Podloga!$B$8>2,('RDG Podloga'!I38-'RDG Podloga'!H38),) -> 0 | K38: =IF(Podloga!$B$8>3,('RDG Podloga'!J38-'RDG Podloga'!I38),) -> 0 | L38: 0 | M38: ='RDG Podloga'!K38 -> 0 | N38: 0 | O38: 0 | P38: 0 | Q38: 0 | R38: 0 | S38: 0 | T38: 0 | U38: 0 | V38: 0
A39: 3.5. | B39: Tečajne razlike i ostali financijski prihodi iz odnosa s poduzetnicima unutar grupe | C39: ='RDG Podloga'!C39 -> 0 | D39: ='RDG Podloga'!D39-'RDG Podloga'!C39 -> 0 | E39: ='RDG Podloga'!E39-'RDG Podloga'!D39 -> 0 | F39: ='RDG Podloga'!F39-'RDG Podloga'!E39 -> 0 | G39: =IF(Podloga!$B$8=1,C39,IF(Podloga!$B$8=2,C39+D39,IF(Podloga!$B$8=3,C39+D39+E39,IF(Podloga!$B$8=4,C39+D39+E39+F39)))) -> 0 | H39: ='RDG Podloga'!G39 -> 0 | I39: =IF(Podloga!$B$8>1,('RDG Podloga'!H39-'RDG Podloga'!G39),) -> 0 | J39: =IF(Podloga!$B$8>2,('RDG Podloga'!I39-'RDG Podloga'!H39),) -> 0 | K39: =IF(Podloga!$B$8>3,('RDG Podloga'!J39-'RDG Podloga'!I39),) -> 0 | L39: 0 | M39: ='RDG Podloga'!K39 -> 0 | N39: 0 | O39: 0 | P39: 0 | Q39: 0 | R39: 0 | S39: 0 | T39: 0 | U39: 0 | V39: 0
A40: 3.6. | B40: Prihodi od ostalih dugotrajnih financijskih ulaganja i zajmova | C40: ='RDG Podloga'!C40 -> 50000 | D40: ='RDG Podloga'!D40-'RDG Podloga'!C40 -> 0 | E40: ='RDG Podloga'!E40-'RDG Podloga'!D40 -> 0 | F40: ='RDG Podloga'!F40-'RDG Podloga'!E40 -> 0 | G40: =IF(Podloga!$B$8=1,C40,IF(Podloga!$B$8=2,C40+D40,IF(Podloga!$B$8=3,C40+D40+E40,IF(Podloga!$B$8=4,C40+D40+E40+F40)))) -> 50000 | H40: ='RDG Podloga'!G40 -> 0 | I40: =IF(Podloga!$B$8>1,('RDG Podloga'!H40-'RDG Podloga'!G40),) -> 0 | J40: =IF(Podloga!$B$8>2,('RDG Podloga'!I40-'RDG Podloga'!H40),) -> 0 | K40: =IF(Podloga!$B$8>3,('RDG Podloga'!J40-'RDG Podloga'!I40),) -> 0 | L40: 0 | M40: ='RDG Podloga'!K40 -> 0 | N40: 0 | O40: 0 | P40: 0 | Q40: 0 | R40: 0 | S40: 0 | T40: 0 | U40: 0 | V40: 0
A41: 3.7. | B41: Ostali prihodi s osnove kamata | C41: ='RDG Podloga'!C41 -> 2875.54 | D41: ='RDG Podloga'!D41-'RDG Podloga'!C41 -> 0.6 | E41: ='RDG Podloga'!E41-'RDG Podloga'!D41 -> 0.31 | F41: ='RDG Podloga'!F41-'RDG Podloga'!E41 -> 0.55 | G41: =IF(Podloga!$B$8=1,C41,IF(Podloga!$B$8=2,C41+D41,IF(Podloga!$B$8=3,C41+D41+E41,IF(Podloga!$B$8=4,C41+D41+E41+F41)))) -> 2875.54 | H41: ='RDG Podloga'!G41 -> 941.09 | I41: =IF(Podloga!$B$8>1,('RDG Podloga'!H41-'RDG Podloga'!G41),) -> 0 | J41: =IF(Podloga!$B$8>2,('RDG Podloga'!I41-'RDG Podloga'!H41),) -> 0 | K41: =IF(Podloga!$B$8>3,('RDG Podloga'!J41-'RDG Podloga'!I41),) -> 0 | L41: 941.09 | M41: ='RDG Podloga'!K41 -> 327 | N41: 32.72741815 | O41: 0 | P41: 0 | Q41: 0 | R41: 32.72741815 | S41: 287.795107 | T41: 0 | U41: 0 | V41: 0
A42: 3.8. | B42: Tečajne razlike i ostali financijski prihodi | C42: ='RDG Podloga'!C42 -> 738.51 | D42: ='RDG Podloga'!D42-'RDG Podloga'!C42 -> 903.29 | E42: ='RDG Podloga'!E42-'RDG Podloga'!D42 -> 476.43 | F42: ='RDG Podloga'!F42-'RDG Podloga'!E42 -> 54091.77 | G42: =IF(Podloga!$B$8=1,C42,IF(Podloga!$B$8=2,C42+D42,IF(Podloga!$B$8=3,C42+D42+E42,IF(Podloga!$B$8=4,C42+D42+E42+F42)))) -> 738.51 | H42: ='RDG Podloga'!G42 -> 0 | I42: =IF(Podloga!$B$8>1,('RDG Podloga'!H42-'RDG Podloga'!G42),) -> 0 | J42: =IF(Podloga!$B$8>2,('RDG Podloga'!I42-'RDG Podloga'!H42),) -> 0 | K42: =IF(Podloga!$B$8>3,('RDG Podloga'!J42-'RDG Podloga'!I42),) -> 0 | L42: 0 | M42: ='RDG Podloga'!K42 -> 55950 | N42: 0 | O42: 0 | P42: 0 | Q42: 0 | R42: 0 | S42: 0 | T42: 0 | U42: 0 | V42: 0
A43: 3.9. | B43: Nerealizirani dobici (prihodi) od financijske imovine | C43: ='RDG Podloga'!C43 -> 0 | D43: ='RDG Podloga'!D43-'RDG Podloga'!C43 -> 0 | E43: ='RDG Podloga'!E43-'RDG Podloga'!D43 -> 0 | F43: ='RDG Podloga'!F43-'RDG Podloga'!E43 -> 0 | G43: =IF(Podloga!$B$8=1,C43,IF(Podloga!$B$8=2,C43+D43,IF(Podloga!$B$8=3,C43+D43+E43,IF(Podloga!$B$8=4,C43+D43+E43+F43)))) -> 0 | H43: ='RDG Podloga'!G43 -> 0 | I43: =IF(Podloga!$B$8>1,('RDG Podloga'!H43-'RDG Podloga'!G43),) -> 0 | J43: =IF(Podloga!$B$8>2,('RDG Podloga'!I43-'RDG Podloga'!H43),) -> 0 | K43: =IF(Podloga!$B$8>3,('RDG Podloga'!J43-'RDG Podloga'!I43),) -> 0 | L43: 0 | M43: ='RDG Podloga'!K43 -> 0 | N43: 0 | O43: 0 | P43: 0 | Q43: 0 | R43: 0 | S43: 0 | T43: 0 | U43: 0 | V43: 0
A44: 3.10. | B44: Ostali financijski prihodi | C44: ='RDG Podloga'!C44 -> 0 | D44: ='RDG Podloga'!D44-'RDG Podloga'!C44 -> 0 | E44: ='RDG Podloga'!E44-'RDG Podloga'!D44 -> 0 | F44: ='RDG Podloga'!F44-'RDG Podloga'!E44 -> 0 | G44: =IF(Podloga!$B$8=1,C44,IF(Podloga!$B$8=2,C44+D44,IF(Podloga!$B$8=3,C44+D44+E44,IF(Podloga!$B$8=4,C44+D44+E44+F44)))) -> 0 | H44: ='RDG Podloga'!G44 -> 0 | I44: =IF(Podloga!$B$8>1,('RDG Podloga'!H44-'RDG Podloga'!G44),) -> 0 | J44: =IF(Podloga!$B$8>2,('RDG Podloga'!I44-'RDG Podloga'!H44),) -> 0 | K44: =IF(Podloga!$B$8>3,('RDG Podloga'!J44-'RDG Podloga'!I44),) -> 0 | L44: 0 | M44: ='RDG Podloga'!K44 -> 0 | N44: 0 | O44: 0 | P44: 0 | Q44: 0 | R44: 0 | S44: 0 | T44: 0 | U44: 0 | V44: 0
A45: 4. | B45: FINANCIJSKI RASHODI | C45: =SUM(C46:C52) -> 299960.83 | D45: 1250.99 | E45: 2248.04 | F45: 791.14 | G45: =SUM(G46:G52) -> 299960.83 | H45: =SUM(H46:H52) -> 20.57 | I45: 0 | J45: 0 | K45: 0 | L45: =SUM(L46:L52) -> 20.57 | M45: 5021 | N45: 0.006857562036 | O45: 0 | P45: 0 | Q45: 0 | R45: 0.006857562036 | S45: 0.4096793467 | T45: 0 | U45: 0 | V45: 0
A46: 4.1. | B46: Rashodi s osnove kamata i slični rashodi s poduzetnicima unutar grupe | C46: ='RDG Podloga'!C46 -> 0 | D46: ='RDG Podloga'!D46-'RDG Podloga'!C46 -> 0 | E46: ='RDG Podloga'!E46-'RDG Podloga'!D46 -> 0 | F46: ='RDG Podloga'!F46-'RDG Podloga'!E46 -> 0 | G46: =IF(Podloga!$B$8=1,C46,IF(Podloga!$B$8=2,C46+D46,IF(Podloga!$B$8=3,C46+D46+E46,IF(Podloga!$B$8=4,C46+D46+E46+F46)))) -> 0 | H46: ='RDG Podloga'!G46 -> 0 | I46: =IF(Podloga!$B$8>1,('RDG Podloga'!H46-'RDG Podloga'!G46),) -> 0 | J46: =IF(Podloga!$B$8>2,('RDG Podloga'!I46-'RDG Podloga'!H46),) -> 0 | K46: =IF(Podloga!$B$8>3,('RDG Podloga'!J46-'RDG Podloga'!I46),) -> 0 | L46: =SUM(H46:K46) -> 0 | M46: ='RDG Podloga'!K46 -> 0 | N46: 0 | O46: 0 | P46: 0 | Q46: 0 | R46: 0 | S46: 0 | T46: 0 | U46: 0 | V46: 0
A47: 4.2. | B47: Tečajne razlike i drugi rashodi s poduzetnicima unutar grupe | C47: ='RDG Podloga'!C47 -> 0 | D47: ='RDG Podloga'!D47-'RDG Podloga'!C47 -> 0 | E47: ='RDG Podloga'!E47-'RDG Podloga'!D47 -> 0 | F47: ='RDG Podloga'!F47-'RDG Podloga'!E47 -> 0 | G47: =IF(Podloga!$B$8=1,C47,IF(Podloga!$B$8=2,C47+D47,IF(Podloga!$B$8=3,C47+D47+E47,IF(Podloga!$B$8=4,C47+D47+E47+F47)))) -> 0 | H47: ='RDG Podloga'!G47 -> 0 | I47: =IF(Podloga!$B$8>1,('RDG Podloga'!H47-'RDG Podloga'!G47),) -> 0 | J47: =IF(Podloga!$B$8>2,('RDG Podloga'!I47-'RDG Podloga'!H47),) -> 0 | K47: =IF(Podloga!$B$8>3,('RDG Podloga'!J47-'RDG Podloga'!I47),) -> 0 | L47: 0 | M47: ='RDG Podloga'!K47 -> 0 | N47: 0 | O47: 0 | P47: 0 | Q47: 0 | R47: 0 | S47: 0 | T47: 0 | U47: 0 | V47: 0
A48: 4.3. | B48: Rashodi s osnove kamata i slični rashodi | C48: ='RDG Podloga'!C48 -> 0 | D48: ='RDG Podloga'!D48-'RDG Podloga'!C48 -> 4.59 | E48: ='RDG Podloga'!E48-'RDG Podloga'!D48 -> 13.62 | F48: ='RDG Podloga'!F48-'RDG Podloga'!E48 -> 3.79 | G48: =IF(Podloga!$B$8=1,C48,IF(Podloga!$B$8=2,C48+D48,IF(Podloga!$B$8=3,C48+D48+E48,IF(Podloga!$B$8=4,C48+D48+E48+F48)))) -> 0 | H48: ='RDG Podloga'!G48 -> 20.57 | I48: =IF(Podloga!$B$8>1,('RDG Podloga'!H48-'RDG Podloga'!G48),) -> 0 | J48: =IF(Podloga!$B$8>2,('RDG Podloga'!I48-'RDG Podloga'!H48),) -> 0 | K48: =IF(Podloga!$B$8>3,('RDG Podloga'!J48-'RDG Podloga'!I48),) -> 0 | L48: 20.57 | M48: ='RDG Podloga'!K48 -> 21 | N48: 0 | O48: 0 | P48: 0 | Q48: 0 | R48: 0 | S48: 97.95238095 | T48: 0 | U48: 0 | V48: 0
A49: 4.4. | B49: Tečajne razlike i drugi rashodi | C49: ='RDG Podloga'!C49 -> 360.83 | D49: ='RDG Podloga'!D49-'RDG Podloga'!C49 -> 1246.4 | E49: ='RDG Podloga'!E49-'RDG Podloga'!D49 -> 2234.42 | F49: ='RDG Podloga'!F49-'RDG Podloga'!E49 -> 787.35 | G49: =IF(Podloga!$B$8=1,C49,IF(Podloga!$B$8=2,C49+D49,IF(Podloga!$B$8=3,C49+D49+E49,IF(Podloga!$B$8=4,C49+D49+E49+F49)))) -> 360.83 | H49: ='RDG Podloga'!G49 -> 0 | I49: =IF(Podloga!$B$8>1,('RDG Podloga'!H49-'RDG Podloga'!G49),) -> 0 | J49: =IF(Podloga!$B$8>2,('RDG Podloga'!I49-'RDG Podloga'!H49),) -> 0 | K49: =IF(Podloga!$B$8>3,('RDG Podloga'!J49-'RDG Podloga'!I49),) -> 0 | L49: 0 | M49: ='RDG Podloga'!K49 -> 5000 | N49: 0 | O49: 0 | P49: 0 | Q49: 0 | R49: 0 | S49: 0 | T49: 0 | U49: 0 | V49: 0
A50: 4.5. | B50: Nerealizirani gubici (rashodi) od financijske imovine | C50: ='RDG Podloga'!C50 -> 299600 | D50: ='RDG Podloga'!D50-'RDG Podloga'!C50 -> 0 | E50: ='RDG Podloga'!E50-'RDG Podloga'!D50 -> 0 | F50: ='RDG Podloga'!F50-'RDG Podloga'!E50 -> 0 | G50: =IF(Podloga!$B$8=1,C50,IF(Podloga!$B$8=2,C50+D50,IF(Podloga!$B$8=3,C50+D50+E50,IF(Podloga!$B$8=4,C50+D50+E50+F50)))) -> 299600 | H50: ='RDG Podloga'!G50 -> 0 | I50: =IF(Podloga!$B$8>1,('RDG Podloga'!H50-'RDG Podloga'!G50),) -> 0 | J50: =IF(Podloga!$B$8>2,('RDG Podloga'!I50-'RDG Podloga'!H50),) -> 0 | K50: =IF(Podloga!$B$8>3,('RDG Podloga'!J50-'RDG Podloga'!I50),) -> 0 | L50: 0 | M50: ='RDG Podloga'!K50 -> 0 | N50: 0 | O50: 0 | P50: 0 | Q50: 0 | R50: 0 | S50: 0 | T50: 0 | U50: 0 | V50: 0
A51: 4.6. | B51: Vrijednosna usklađenja financijske imovine (neto) | C51: ='RDG Podloga'!C51 -> 0 | D51: ='RDG Podloga'!D51-'RDG Podloga'!C51 -> 0 | E51: ='RDG Podloga'!E51-'RDG Podloga'!D51 -> 0 | F51: ='RDG Podloga'!F51-'RDG Podloga'!E51 -> 0 | G51: =IF(Podloga!$B$8=1,C51,IF(Podloga!$B$8=2,C51+D51,IF(Podloga!$B$8=3,C51+D51+E51,IF(Podloga!$B$8=4,C51+D51+E51+F51)))) -> 0 | H51: ='RDG Podloga'!G51 -> 0 | I51: =IF(Podloga!$B$8>1,('RDG Podloga'!H51-'RDG Podloga'!G51),) -> 0 | J51: =IF(Podloga!$B$8>2,('RDG Podloga'!I51-'RDG Podloga'!H51),) -> 0 | K51: =IF(Podloga!$B$8>3,('RDG Podloga'!J51-'RDG Podloga'!I51),) -> 0 | L51: 0 | M51: ='RDG Podloga'!K51 -> 0 | N51: 0 | O51: 0 | P51: 0 | Q51: 0 | R51: 0 | S51: 0 | T51: 0 | U51: 0 | V51: 0
A52: 4.7. | B52: Ostali financijski rashodi | C52: ='RDG Podloga'!C52 -> 0 | D52: ='RDG Podloga'!D52-'RDG Podloga'!C52 -> 0 | E52: ='RDG Podloga'!E52-'RDG Podloga'!D52 -> 0 | F52: ='RDG Podloga'!F52-'RDG Podloga'!E52 -> 0 | G52: =IF(Podloga!$B$8=1,C52,IF(Podloga!$B$8=2,C52+D52,IF(Podloga!$B$8=3,C52+D52+E52,IF(Podloga!$B$8=4,C52+D52+E52+F52)))) -> 0 | H52: ='RDG Podloga'!G52 -> 0 | I52: =IF(Podloga!$B$8>1,('RDG Podloga'!H52-'RDG Podloga'!G52),) -> 0 | J52: =IF(Podloga!$B$8>2,('RDG Podloga'!I52-'RDG Podloga'!H52),) -> 0 | K52: =IF(Podloga!$B$8>3,('RDG Podloga'!J52-'RDG Podloga'!I52),) -> 0 | L52: 0 | M52: ='RDG Podloga'!K52 -> 0 | N52: 0 | O52: 0 | P52: 0 | Q52: 0 | R52: 0 | S52: 0 | T52: 0 | U52: 0 | V52: 0
A53: 5. | B53: UDIO U DOBITI OD DRUŠTAVA POVEZANIH SUDJELUJUĆIM INTERESOM | C53: ='RDG Podloga'!C53 -> 0 | D53: ='RDG Podloga'!D53-'RDG Podloga'!C53 -> 0 | E53: ='RDG Podloga'!E53-'RDG Podloga'!D53 -> 0 | F53: ='RDG Podloga'!F53-'RDG Podloga'!E53 -> 0 | G53: =IF(Podloga!$B$8=1,C53,IF(Podloga!$B$8=2,C53+D53,IF(Podloga!$B$8=3,C53+D53+E53,IF(Podloga!$B$8=4,C53+D53+E53+F53)))) -> 0 | H53: ='RDG Podloga'!G53 -> 0 | I53: =IF(Podloga!$B$8>1,('RDG Podloga'!H53-'RDG Podloga'!G53),) -> 0 | J53: =IF(Podloga!$B$8>2,('RDG Podloga'!I53-'RDG Podloga'!H53),) -> 0 | K53: =IF(Podloga!$B$8>3,('RDG Podloga'!J53-'RDG Podloga'!I53),) -> 0 | L53: 0 | M53: ='RDG Podloga'!K53 -> 0 | N53: 0 | O53: 0 | P53: 0 | Q53: 0 | R53: 0 | S53: 0 | T53: 0 | U53: 0 | V53: 0
A54: 6. | B54: UDIO U DOBITI OD ZAJEDNIČKIH POTHVATA | C54: ='RDG Podloga'!C54 -> 0 | D54: ='RDG Podloga'!D54-'RDG Podloga'!C54 -> 0 | E54: ='RDG Podloga'!E54-'RDG Podloga'!D54 -> 0 | F54: ='RDG Podloga'!F54-'RDG Podloga'!E54 -> 0 | G54: =IF(Podloga!$B$8=1,C54,IF(Podloga!$B$8=2,C54+D54,IF(Podloga!$B$8=3,C54+D54+E54,IF(Podloga!$B$8=4,C54+D54+E54+F54)))) -> 0 | H54: ='RDG Podloga'!G54 -> 0 | I54: =IF(Podloga!$B$8>1,('RDG Podloga'!H54-'RDG Podloga'!G54),) -> 0 | J54: =IF(Podloga!$B$8>2,('RDG Podloga'!I54-'RDG Podloga'!H54),) -> 0 | K54: =IF(Podloga!$B$8>3,('RDG Podloga'!J54-'RDG Podloga'!I54),) -> 0 | L54: 0 | M54: ='RDG Podloga'!K54 -> 0 | N54: 0 | O54: 0 | P54: 0 | Q54: 0 | R54: 0 | S54: 0 | T54: 0 | U54: 0 | V54: 0
A55: 7. | B55: UDIO U GUBITKU OD DRUŠTAVA POVEZANIH SUDJELUJUĆIM INTERESOM | C55: ='RDG Podloga'!C55 -> 0 | D55: ='RDG Podloga'!D55-'RDG Podloga'!C55 -> 0 | E55: ='RDG Podloga'!E55-'RDG Podloga'!D55 -> 0 | F55: ='RDG Podloga'!F55-'RDG Podloga'!E55 -> 0 | G55: =IF(Podloga!$B$8=1,C55,IF(Podloga!$B$8=2,C55+D55,IF(Podloga!$B$8=3,C55+D55+E55,IF(Podloga!$B$8=4,C55+D55+E55+F55)))) -> 0 | H55: ='RDG Podloga'!G55 -> 0 | I55: =IF(Podloga!$B$8>1,('RDG Podloga'!H55-'RDG Podloga'!G55),) -> 0 | J55: =IF(Podloga!$B$8>2,('RDG Podloga'!I55-'RDG Podloga'!H55),) -> 0 | K55: =IF(Podloga!$B$8>3,('RDG Podloga'!J55-'RDG Podloga'!I55),) -> 0 | L55: 0 | M55: ='RDG Podloga'!K55 -> 0 | N55: 0 | O55: 0 | P55: 0 | Q55: 0 | R55: 0 | S55: 0 | T55: 0 | U55: 0 | V55: 0
A56: 8. | B56: UDIO U GUBITKU OD ZAJEDNIČKIH POTHVATA | C56: ='RDG Podloga'!C56 -> 0 | D56: ='RDG Podloga'!D56-'RDG Podloga'!C56 -> 0 | E56: ='RDG Podloga'!E56-'RDG Podloga'!D56 -> 0 | F56: ='RDG Podloga'!F56-'RDG Podloga'!E56 -> 0 | G56: =IF(Podloga!$B$8=1,C56,IF(Podloga!$B$8=2,C56+D56,IF(Podloga!$B$8=3,C56+D56+E56,IF(Podloga!$B$8=4,C56+D56+E56+F56)))) -> 0 | H56: ='RDG Podloga'!G56 -> 0 | I56: =IF(Podloga!$B$8>1,('RDG Podloga'!H56-'RDG Podloga'!G56),) -> 0 | J56: =IF(Podloga!$B$8>2,('RDG Podloga'!I56-'RDG Podloga'!H56),) -> 0 | K56: =IF(Podloga!$B$8>3,('RDG Podloga'!J56-'RDG Podloga'!I56),) -> 0 | L56: 0 | M56: ='RDG Podloga'!K56 -> 0 | N56: 0 | O56: 0 | P56: 0 | Q56: 0 | R56: 0 | S56: 0 | T56: 0 | U56: 0 | V56: 0
A57: 9. | B57: UKUPNI PRIHODI | C57: =C5+C34+C53+C54 -> 3307888.44 | D57: 3295488.25 | E57: 4008193.38 | F57: 3538479.93 | G57: =IF(Podloga!$B$8=1,C57,IF(Podloga!$B$8=2,C57+D57,IF(Podloga!$B$8=3,C57+D57+E57,IF(Podloga!$B$8=4,C57+D57+E57+F57)))) -> 3307888.44 | H57: =H5+H34+H53+H54 -> 3742653.29 | I57: =I5+I34+I53+I54 -> 0 | J57: 0 | K57: 0 | L57: =L5+L34+L53+L54 -> 3742653.29 | M57: 12999585 | N57: 113.1432743 | O57: 0 | P57: 0 | Q57: 0 | R57: 113.1432743 | S57: 28.79055978 | T57: 0 | U57: 0 | V57: 0
A58: 10. | B58: UKUPNI RASHODI | C58: =C11+C45+C55+C56 -> 3483772.2 | D58: 3526488.81 | E58: 3487991.93 | F58: 3389335.06 | G58: =IF(Podloga!$B$8=1,C58,IF(Podloga!$B$8=2,C58+D58,IF(Podloga!$B$8=3,C58+D58+E58,IF(Podloga!$B$8=4,C58+D58+E58+F58)))) -> 3483772.2 | H58: =H11+H45+H55+H56 -> 3172079.85 | I58: =I11+I45+I55+I56 -> 0 | J58: 0 | K58: 0 | L58: =L11+L45+L55+L56 -> 3172079.85 | M58: 12996977.11 | N58: 91.05302149 | O58: 0 | P58: 0 | Q58: 0 | R58: 91.05302149 | S58: 24.40628943 | T58: 0 | U58: 0 | V58: 0
A59: 11. | B59: DOBIT ILI GUBITAK PRIJE OPOREZIVANJA | C59: =C57-C58 -> -175883.76 | D59: -231000.56 | E59: 520201.45 | F59: 149144.87 | G59: =IF(Podloga!$B$8=1,C59,IF(Podloga!$B$8=2,C59+D59,IF(Podloga!$B$8=3,C59+D59+E59,IF(Podloga!$B$8=4,C59+D59+E59+F59)))) -> -175883.76 | H59: =H57-H58 -> 570573.44 | I59: =I57-I58 -> 0 | J59: 0 | K59: 0 | L59: =L57-L58 -> 570573.44 | M59: 2607.89 | N59: -324.4037084 | O59: 0 | P59: 0 | Q59: 0 | R59: -324.4037084 | S59: 21878.73875 | T59: 0 | U59: 0 | V59: 0
A60: 11.1. | B60: Dobit prije oporezivanja | C60: =IF(C59>0,C59,) -> 0 | D60: 0 | E60: 520201.45 | F60: 149144.87 | G60: =IF(G59>0,G59,) -> 0 | H60: 570573.44 | I60: 0 | J60: 0 | K60: 0 | L60: 570573.44 | M60: =IF(M59>0,M59,) -> 2607.89 | N60: 0 | O60: 0 | P60: 0 | Q60: 0 | R60: 0 | S60: 21878.73875 | T60: 0 | U60: 0 | V60: 0
A61: 11.2. | B61: Gubitak prije oporezivanja | C61: =IF(C59<0,C59,) -> -175883.76 | D61: -231000.56 | E61: 0 | F61: 0 | G61: =IF(G59<0,G59,) -> -175883.76 | H61: 0 | I61: 0 | J61: 0 | K61: 0 | L61: 0 | M61: =IF(M59<0,M59,) -> 0 | N61: 0 | O61: 0 | P61: 0 | Q61: 0 | R61: 0 | S61: 0 | T61: 0 | U61: 0 | V61: 0
A62: 12. | B62: POREZ NA DOBIT | C62: ='RDG Podloga'!C62 -> 0 | D62: ='RDG Podloga'!D62-'RDG Podloga'!C62 -> 0 | E62: ='RDG Podloga'!E62-'RDG Podloga'!D62 -> 0 | F62: ='RDG Podloga'!F62-'RDG Podloga'!E62 -> 0 | G62: =IF(Podloga!$B$8=1,C62,IF(Podloga!$B$8=2,C62+D62,IF(Podloga!$B$8=3,C62+D62+E62,IF(Podloga!$B$8=4,C62+D62+E62+F62)))) -> 0 | H62: ='RDG Podloga'!G62 -> 0 | I62: =IF(Podloga!$B$8>1,('RDG Podloga'!H62-'RDG Podloga'!G62),) -> 0 | J62: =IF(Podloga!$B$8>2,('RDG Podloga'!I62-'RDG Podloga'!H62),) -> 0 | K62: =IF(Podloga!$B$8>3,('RDG Podloga'!J62-'RDG Podloga'!I62),) -> 0 | L62: =SUM(H62:K62) -> 0 | M62: ='RDG Podloga'!K62 -> 0 | N62: 0 | O62: 0 | P62: 0 | Q62: 0 | R62: 0 | S62: 0 | T62: 0 | U62: 0 | V62: 0
A63: 13. | B63: DOBIT ILI GUBITAK RAZDOBLJA | C63: =C59-C62 -> -175883.76 | D63: -231000.56 | E63: 520201.45 | F63: 149144.87 | G63: =G59-G62 -> -175883.76 | H63: =H59-H62 -> 570573.44 | I63: =I59-I62 -> 0 | J63: 0 | K63: 0 | L63: =L59-L62 -> 570573.44 | M63: 2607.89 | N63: -324.4037084 | O63: 0 | P63: 0 | Q63: 0 | R63: -324.4037084 | S63: 21878.73875 | T63: 0 | U63: 0 | V63: 0
A64: 13.1. | B64: Dobit razdoblja | C64: =IF(C63>0,C63,) -> 0 | D64: 0 | E64: 520201.45 | F64: 149144.87 | G64: =IF(G63>0,G63,) -> 0 | H64: 570573.44 | I64: 0 | J64: 0 | K64: 0 | L64: 570573.44 | M64: =IF(M63>0,M63,) -> 2607.89 | N64: 0 | O64: 0 | P64: 0 | Q64: 0 | R64: 0 | S64: 21878.73875 | T64: 0 | U64: 0 | V64: 0
A65: 13.2. | B65: Gubitak razdoblja | C65: =IF(C63<0,C63,) -> -175883.76 | D65: -231000.56 | E65: 0 | F65: 0 | G65: =IF(G63<0,G63,) -> -175883.76 | H65: 0 | I65: 0 | J65: 0 | K65: 0 | L65: 0 | M65: =IF(M63<0,M63,) -> 0 | N65: 0 | O65: 0 | P65: 0 | Q65: 0 | R65: 0 | S65: 0 | T65: 0 | U65: 0 | V65: 0
A66: * DODATAK RDG -u (popunjava trgovačko društvo koje sastavlja konsolidirani godišnji financijski izvještaj)
A67: 14. | B67: DOBIT ILI GUBITAK RAZDOBLJA | C67: =IF((C68+C69)=C63,C63,"Neodgovarajuća raspodjela") -> Neodgovarajuća raspodjela | D67: Neodgovarajuća raspodjela | E67: Neodgovarajuća raspodjela | F67: Neodgovarajuća raspodjela | G67: Neodgovarajuća raspodjela | H67: Neodgovarajuća raspodjela | I67: 0 | J67: 0 | K67: 0 | L67: Neodgovarajuća raspodjela | M67: Neodgovarajuća raspodjela
A68: 14.1. | B68: Pripisana imateljima kapitala matice | C68: ='RDG Podloga'!C68 -> 0 | D68: ='RDG Podloga'!D68-'RDG Podloga'!C68 -> 0 | E68: ='RDG Podloga'!E68-'RDG Podloga'!D68 -> 0 | F68: ='RDG Podloga'!F68-'RDG Podloga'!E68 -> 0 | G68: =IF(Podloga!$B$8=1,C68,IF(Podloga!$B$8=2,C68+D68,IF(Podloga!$B$8=3,C68+D68+E68,IF(Podloga!$B$8=4,C68+D68+E68+F68)))) -> 0 | H68: ='RDG Podloga'!G68 -> 0 | I68: =IF(Podloga!$B$8>1,('RDG Podloga'!H68-'RDG Podloga'!G68),) -> 0 | J68: =IF(Podloga!$B$8>2,('RDG Podloga'!I68-'RDG Podloga'!H68),) -> 0 | K68: =IF(Podloga!$B$8>3,('RDG Podloga'!J68-'RDG Podloga'!I68),) -> 0 | L68: =SUM(H68:K68) -> 0 | M68: ='RDG Podloga'!K68 -> 0 | N68: =IFERROR(H68/C68*100,) -> 0 | O68: 0 | P68: 0 | Q68: 0 | R68: 0 | S68: 0 | T68: =IFERROR(I68/H68*100,) -> 0 | U68: 0 | V68: 0
A69: 14.2. | B69: Pripisana manjinskom (nekontrolirajućem) interesu | C69: ='RDG Podloga'!C69 -> 0 | D69: ='RDG Podloga'!D69-'RDG Podloga'!C69 -> 0 | E69: ='RDG Podloga'!E69-'RDG Podloga'!D69 -> 0 | F69: ='RDG Podloga'!F69-'RDG Podloga'!E69 -> 0 | G69: =IF(Podloga!$B$8=1,C69,IF(Podloga!$B$8=2,C69+D69,IF(Podloga!$B$8=3,C69+D69+E69,IF(Podloga!$B$8=4,C69+D69+E69+F69)))) -> 0 | H69: ='RDG Podloga'!G69 -> 0 | I69: =IF(Podloga!$B$8>1,('RDG Podloga'!H69-'RDG Podloga'!G69),) -> 0 | J69: =IF(Podloga!$B$8>2,('RDG Podloga'!I69-'RDG Podloga'!H69),) -> 0 | K69: =IF(Podloga!$B$8>3,('RDG Podloga'!J69-'RDG Podloga'!I69),) -> 0 | L69: =SUM(H69:K69) -> 0 | M69: ='RDG Podloga'!K69 -> 0 | N69: 0 | O69: 0 | P69: 0 | Q69: 0 | R69: 0 | S69: 0 | T69: 0 | U69: 0 | V69: 0
A70: IZVJEŠTAJ O OSTALOJ SVEOBUHVATNOJ DOBITI (popunjava trgovačko društvo obveznik primjene MSFI-a)
A71: 1. | B71: DOBIT ILI GUBITAK RAZDOBLJA | C71: =C63 -> -175883.76 | D71: ='RDG Podloga'!D71-'RDG Podloga'!C71 -> -231000.56 | E71: ='RDG Podloga'!E71-'RDG Podloga'!D71 -> 520201.45 | F71: ='RDG Podloga'!F71-'RDG Podloga'!E71 -> 149144.87 | G71: =IF(Podloga!$B$8=1,C71,IF(Podloga!$B$8=2,C71+D71,IF(Podloga!$B$8=3,C71+D71+E71,IF(Podloga!$B$8=4,C71+D71+E71+F71)))) -> -175883.76 | H71: =H63 -> 570573.44 | I71: =I63 -> 0 | J71: 0 | K71: 0 | L71: =L63 -> 570573.44 | M71: 2607.89 | N71: =IFERROR(H71/C71*100,) -> -324.4037084 | O71: =IFERROR(I71/D71*100,) -> 0 | P71: =IFERROR(J71/E71*100,) -> 0 | Q71: =IFERROR(K71/F71*100,) -> 0 | R71: =IFERROR(L71/G71*100,) -> -324.4037084 | S71: =IFERROR(L71/M71*100,) -> 21878.73875 | T71: =IFERROR(I71/H71*100,) -> 0 | U71: =IFERROR(J71/I71*100,) -> 0 | V71: =IFERROR(K71/J71*100,) -> 0
A72: 2. | B72: OSTALA SVEOBUHVATNA DOBIT/GUBITAK PRIJE POREZA | C72: =SUM(C73:C80) -> 0 | D72: 0 | E72: 0 | F72: 0 | G72: 0 | H72: 0 | I72: 0 | J72: 0 | K72: 0 | L72: 0 | M72: 0 | N72: 0 | O72: 0 | P72: 0 | Q72: 0 | R72: 0 | S72: 0 | T72: 0 | U72: 0 | V72: 0
A73: 2.1. | B73: Prihod od tečajnih razlika iz preračuna inozemnog poslovanja | C73: ='RDG Podloga'!C73 -> 0 | D73: ='RDG Podloga'!D73-'RDG Podloga'!C73 -> 0 | E73: ='RDG Podloga'!E73-'RDG Podloga'!D73 -> 0 | F73: ='RDG Podloga'!F73-'RDG Podloga'!E73 -> 0 | G73: =IF(Podloga!$B$8=1,C73,IF(Podloga!$B$8=2,C73+D73,IF(Podloga!$B$8=3,C73+D73+E73,IF(Podloga!$B$8=4,C73+D73+E73+F73)))) -> 0 | H73: ='RDG Podloga'!G73 -> 0 | I73: =IF(Podloga!$B$8>1,('RDG Podloga'!H73-'RDG Podloga'!G73),) -> 0 | J73: =IF(Podloga!$B$8>2,('RDG Podloga'!I73-'RDG Podloga'!H73),) -> 0 | K73: =IF(Podloga!$B$8>3,('RDG Podloga'!J73-'RDG Podloga'!I73),) -> 0 | L73: =SUM(H73:K73) -> 0 | M73: ='RDG Podloga'!K73 -> 0 | N73: 0 | O73: 0 | P73: 0 | Q73: 0 | R73: 0 | S73: 0 | T73: 0 | U73: 0 | V73: 0
A74: 2.2. | B74: Rashod od tečajnih razlika iz preračuna inozemnog poslovanja | C74: ='RDG Podloga'!C74 -> 0 | D74: ='RDG Podloga'!D74-'RDG Podloga'!C74 -> 0 | E74: ='RDG Podloga'!E74-'RDG Podloga'!D74 -> 0 | F74: ='RDG Podloga'!F74-'RDG Podloga'!E74 -> 0 | G74: =IF(Podloga!$B$8=1,C74,IF(Podloga!$B$8=2,C74+D74,IF(Podloga!$B$8=3,C74+D74+E74,IF(Podloga!$B$8=4,C74+D74+E74+F74)))) -> 0 | H74: ='RDG Podloga'!G74 -> 0 | I74: =IF(Podloga!$B$8>1,('RDG Podloga'!H74-'RDG Podloga'!G74),) -> 0 | J74: =IF(Podloga!$B$8>2,('RDG Podloga'!I74-'RDG Podloga'!H74),) -> 0 | K74: =IF(Podloga!$B$8>3,('RDG Podloga'!J74-'RDG Podloga'!I74),) -> 0 | L74: 0 | M74: ='RDG Podloga'!K74 -> 0 | N74: 0 | O74: 0 | P74: 0 | Q74: 0 | R74: 0 | S74: 0 | T74: 0 | U74: 0 | V74: 0
A75: 2.3. | B75: Prihod od promjena revalorizacijskih rezervi dugotrajne materijalne i nematerijalne imovine | C75: ='RDG Podloga'!C75 -> 0 | D75: ='RDG Podloga'!D75-'RDG Podloga'!C75 -> 0 | E75: ='RDG Podloga'!E75-'RDG Podloga'!D75 -> 0 | F75: ='RDG Podloga'!F75-'RDG Podloga'!E75 -> 0 | G75: =IF(Podloga!$B$8=1,C75,IF(Podloga!$B$8=2,C75+D75,IF(Podloga!$B$8=3,C75+D75+E75,IF(Podloga!$B$8=4,C75+D75+E75+F75)))) -> 0 | H75: ='RDG Podloga'!G75 -> 0 | I75: =IF(Podloga!$B$8>1,('RDG Podloga'!H75-'RDG Podloga'!G75),) -> 0 | J75: =IF(Podloga!$B$8>2,('RDG Podloga'!I75-'RDG Podloga'!H75),) -> 0 | K75: =IF(Podloga!$B$8>3,('RDG Podloga'!J75-'RDG Podloga'!I75),) -> 0 | L75: 0 | M75: ='RDG Podloga'!K75 -> 0 | N75: 0 | O75: 0 | P75: 0 | Q75: 0 | R75: 0 | S75: 0 | T75: 0 | U75: 0 | V75: 0
A76: 2.4. | B76: Rashod od promjena revalorizacijskih rezervi dugotrajne materijalne i nematerijalne imovine | C76: ='RDG Podloga'!C76 -> 0 | D76: ='RDG Podloga'!D76-'RDG Podloga'!C76 -> 0 | E76: ='RDG Podloga'!E76-'RDG Podloga'!D76 -> 0 | F76: ='RDG Podloga'!F76-'RDG Podloga'!E76 -> 0 | G76: =IF(Podloga!$B$8=1,C76,IF(Podloga!$B$8=2,C76+D76,IF(Podloga!$B$8=3,C76+D76+E76,IF(Podloga!$B$8=4,C76+D76+E76+F76)))) -> 0 | H76: ='RDG Podloga'!G76 -> 0 | I76: =IF(Podloga!$B$8>1,('RDG Podloga'!H76-'RDG Podloga'!G76),) -> 0 | J76: =IF(Podloga!$B$8>2,('RDG Podloga'!I76-'RDG Podloga'!H76),) -> 0 | K76: =IF(Podloga!$B$8>3,('RDG Podloga'!J76-'RDG Podloga'!I76),) -> 0 | L76: 0 | M76: ='RDG Podloga'!K76 -> 0 | N76: 0 | O76: 0 | P76: 0 | Q76: 0 | R76: 0 | S76: 0 | T76: 0 | U76: 0 | V76: 0
A77: 2.5. | B77: Dobit s osnove naknadnog vrednovanja financijske imovine raspoložive za prodaju | C77: ='RDG Podloga'!C77 -> 0 | D77: ='RDG Podloga'!D77-'RDG Podloga'!C77 -> 0 | E77: ='RDG Podloga'!E77-'RDG Podloga'!D77 -> 0 | F77: ='RDG Podloga'!F77-'RDG Podloga'!E77 -> 0 | G77: =IF(Podloga!$B$8=1,C77,IF(Podloga!$B$8=2,C77+D77,IF(Podloga!$B$8=3,C77+D77+E77,IF(Podloga!$B$8=4,C77+D77+E77+F77)))) -> 0 | H77: ='RDG Podloga'!G77 -> 0 | I77: =IF(Podloga!$B$8>1,('RDG Podloga'!H77-'RDG Podloga'!G77),) -> 0 | J77: =IF(Podloga!$B$8>2,('RDG Podloga'!I77-'RDG Podloga'!H77),) -> 0 | K77: =IF(Podloga!$B$8>3,('RDG Podloga'!J77-'RDG Podloga'!I77),) -> 0 | L77: 0 | M77: ='RDG Podloga'!K77 -> 0 | N77: 0 | O77: 0 | P77: 0 | Q77: 0 | R77: 0 | S77: 0 | T77: 0 | U77: 0 | V77: 0
A78: 2.6. | B78: Gubitak s osnove naknadnog vrednovanja financijske imovine raspoložive za prodaju | C78: ='RDG Podloga'!C78 -> 0 | D78: ='RDG Podloga'!D78-'RDG Podloga'!C78 -> 0 | E78: ='RDG Podloga'!E78-'RDG Podloga'!D78 -> 0 | F78: ='RDG Podloga'!F78-'RDG Podloga'!E78 -> 0 | G78: =IF(Podloga!$B$8=1,C78,IF(Podloga!$B$8=2,C78+D78,IF(Podloga!$B$8=3,C78+D78+E78,IF(Podloga!$B$8=4,C78+D78+E78+F78)))) -> 0 | H78: ='RDG Podloga'!G78 -> 0 | I78: =IF(Podloga!$B$8>1,('RDG Podloga'!H78-'RDG Podloga'!G78),) -> 0 | J78: =IF(Podloga!$B$8>2,('RDG Podloga'!I78-'RDG Podloga'!H78),) -> 0 | K78: =IF(Podloga!$B$8>3,('RDG Podloga'!J78-'RDG Podloga'!I78),) -> 0 | L78: 0 | M78: ='RDG Podloga'!K78 -> 0 | N78: 0 | O78: 0 | P78: 0 | Q78: 0 | R78: 0 | S78: 0 | T78: 0 | U78: 0 | V78: 0
A79: 2.7. | B79: Dobit s osnove učinkovite zaštite novčanih tokova | C79: ='RDG Podloga'!C79 -> 0 | D79: ='RDG Podloga'!D79-'RDG Podloga'!C79 -> 0 | E79: ='RDG Podloga'!E79-'RDG Podloga'!D79 -> 0 | F79: ='RDG Podloga'!F79-'RDG Podloga'!E79 -> 0 | G79: =IF(Podloga!$B$8=1,C79,IF(Podloga!$B$8=2,C79+D79,IF(Podloga!$B$8=3,C79+D79+E79,IF(Podloga!$B$8=4,C79+D79+E79+F79)))) -> 0 | H79: ='RDG Podloga'!G79 -> 0 | I79: =IF(Podloga!$B$8>1,('RDG Podloga'!H79-'RDG Podloga'!G79),) -> 0 | J79: =IF(Podloga!$B$8>2,('RDG Podloga'!I79-'RDG Podloga'!H79),) -> 0 | K79: =IF(Podloga!$B$8>3,('RDG Podloga'!J79-'RDG Podloga'!I79),) -> 0 | L79: 0 | M79: ='RDG Podloga'!K79 -> 0 | N79: 0 | O79: 0 | P79: 0 | Q79: 0 | R79: 0 | S79: 0 | T79: 0 | U79: 0 | V79: 0
A80: 2.8. | B80: Gubitak s osnove učinkovite zaštite novčanih tokova | C80: ='RDG Podloga'!C80 -> 0 | D80: ='RDG Podloga'!D80-'RDG Podloga'!C80 -> 0 | E80: ='RDG Podloga'!E80-'RDG Podloga'!D80 -> 0 | F80: ='RDG Podloga'!F80-'RDG Podloga'!E80 -> 0 | G80: =IF(Podloga!$B$8=1,C80,IF(Podloga!$B$8=2,C80+D80,IF(Podloga!$B$8=3,C80+D80+E80,IF(Podloga!$B$8=4,C80+D80+E80+F80)))) -> 0 | H80: ='RDG Podloga'!G80 -> 0 | I80: =IF(Podloga!$B$8>1,('RDG Podloga'!H80-'RDG Podloga'!G80),) -> 0 | J80: =IF(Podloga!$B$8>2,('RDG Podloga'!I80-'RDG Podloga'!H80),) -> 0 | K80: =IF(Podloga!$B$8>3,('RDG Podloga'!J80-'RDG Podloga'!I80),) -> 0 | L80: 0 | M80: ='RDG Podloga'!K80 -> 0 | N80: 0 | O80: 0 | P80: 0 | Q80: 0 | R80: 0 | S80: 0 | T80: 0 | U80: 0 | V80: 0
A81: 3. | B81: POREZ NA OSTALU SVEOBUHVATNU DOBIT RAZDOBLJA | C81: ='RDG Podloga'!C81 -> 0 | D81: ='RDG Podloga'!D81-'RDG Podloga'!C81 -> 0 | E81: ='RDG Podloga'!E81-'RDG Podloga'!D81 -> 0 | F81: ='RDG Podloga'!F81-'RDG Podloga'!E81 -> 0 | G81: =IF(Podloga!$B$8=1,C81,IF(Podloga!$B$8=2,C81+D81,IF(Podloga!$B$8=3,C81+D81+E81,IF(Podloga!$B$8=4,C81+D81+E81+F81)))) -> 0 | H81: ='RDG Podloga'!G81 -> 0 | I81: =IF(Podloga!$B$8>1,('RDG Podloga'!H81-'RDG Podloga'!G81),) -> 0 | J81: =IF(Podloga!$B$8>2,('RDG Podloga'!I81-'RDG Podloga'!H81),) -> 0 | K81: =IF(Podloga!$B$8>3,('RDG Podloga'!J81-'RDG Podloga'!I81),) -> 0 | L81: 0 | M81: ='RDG Podloga'!K81 -> 0 | N81: 0 | O81: 0 | P81: 0 | Q81: 0 | R81: 0 | S81: 0 | T81: 0 | U81: 0 | V81: 0
A82: 4. | B82: NETO OSTALA SVEOBUHVATNA DOBIT ILI GUBITAK | C82: =C72-C81 -> 0 | D82: 0 | E82: 0 | F82: 0 | G82: 0 | H82: 0 | I82: 0 | J82: 0 | K82: 0 | L82: 0 | M82: 0 | N82: 0 | O82: 0 | P82: 0 | Q82: 0 | R82: 0 | S82: 0 | T82: 0 | U82: 0 | V82: 0
A83: 5. | B83: SVEOBUHVATNA DOBIT ILI GUBITAK RAZDOBLJA | C83: =C71+C82 -> -175883.76 | D83: -231000.56 | E83: 520201.45 | F83: 149144.87 | G83: -175883.76 | H83: 570573.44 | I83: 0 | J83: 0 | K83: 0 | L83: 570573.44 | M83: 2607.89 | N83: -324.4037084 | O83: 0 | P83: 0 | Q83: 0 | R83: -324.4037084 | S83: 21878.73875 | T83: 0 | U83: 0 | V83: 0
A84: * DODATAK IZVJEŠTAJU O OSTALOJ SVEOBUHVATNOJ DOBITI (popunjava trgovačko društvo koje sastavlja konsolidirani godišnji financijski izvještaj)
A85: 6. | B85: SVEOBUHVATNA DOBIT ILI GUBITAK RAZDOBLJA | C85: =IF((C86+C87)=C83,C83,"Neodgovarajuća raspodjela") -> Neodgovarajuća raspodjela | D85: Neodgovarajuća raspodjela | E85: Neodgovarajuća raspodjela | F85: Neodgovarajuća raspodjela | G85: =IF((G86+G87)=G83,G83,"Neodgovarajuća raspodjela") -> Neodgovarajuća raspodjela | H85: =IF((H86+H87)=H83,H83,"Neodgovarajuća raspodjela") -> Neodgovarajuća raspodjela | I85: 0 | J85: 0 | K85: 0 | L85: =IF((L86+L87)=L83,L83,"Neodgovarajuća raspodjela") -> Neodgovarajuća raspodjela | M85: Neodgovarajuća raspodjela | R85: 0 | S85: 0
A86: 6.1. | B86: Pripisana imateljima kapitala matice | C86: ='RDG Podloga'!C86 -> 0 | D86: ='RDG Podloga'!D86-'RDG Podloga'!C86 -> 0 | E86: ='RDG Podloga'!E86-'RDG Podloga'!D86 -> 0 | F86: ='RDG Podloga'!F86-'RDG Podloga'!E86 -> 0 | G86: =IF(Podloga!$B$8=1,C86,IF(Podloga!$B$8=2,C86+D86,IF(Podloga!$B$8=3,C86+D86+E86,IF(Podloga!$B$8=4,C86+D86+E86+F86)))) -> 0 | H86: ='RDG Podloga'!G86 -> 0 | I86: =IF(Podloga!$B$8>1,('RDG Podloga'!H86-'RDG Podloga'!G86),) -> 0 | J86: =IF(Podloga!$B$8>2,('RDG Podloga'!I86-'RDG Podloga'!H86),) -> 0 | K86: =IF(Podloga!$B$8>3,('RDG Podloga'!J86-'RDG Podloga'!I86),) -> 0 | L86: =SUM(H86:K86) -> 0 | M86: ='RDG Podloga'!K86 -> 0 | N86: =IFERROR(H86/C86*100,) -> 0 | O86: 0 | P86: 0 | Q86: 0 | R86: 0 | S86: 0 | T86: =IFERROR(I86/H86*100,) -> 0 | U86: 0 | V86: 0
A87: 6.2. | B87: Pripisana manjinskom interesu | C87: ='RDG Podloga'!C87 -> 0 | D87: ='RDG Podloga'!D87-'RDG Podloga'!C87 -> 0 | E87: ='RDG Podloga'!E87-'RDG Podloga'!D87 -> 0 | F87: ='RDG Podloga'!F87-'RDG Podloga'!E87 -> 0 | G87: =IF(Podloga!$B$8=1,C87,IF(Podloga!$B$8=2,C87+D87,IF(Podloga!$B$8=3,C87+D87+E87,IF(Podloga!$B$8=4,C87+D87+E87+F87)))) -> 0 | H87: ='RDG Podloga'!G87 -> 0 | I87: =IF(Podloga!$B$8>1,('RDG Podloga'!H87-'RDG Podloga'!G87),) -> 0 | J87: =IF(Podloga!$B$8>2,('RDG Podloga'!I87-'RDG Podloga'!H87),) -> 0 | K87: =IF(Podloga!$B$8>3,('RDG Podloga'!J87-'RDG Podloga'!I87),) -> 0 | L87: =SUM(H87:K87) -> 0 | M87: ='RDG Podloga'!K87 -> 0 | N87: 0 | O87: 0 | P87: 0 | Q87: 0 | R87: 0 | S87: 0 | T87: 0 | U87: 0 | V87: 0
A91: =HYPERLINK("#Sadržaj!A1","Povratak na sadržaj") -> Povratak na sadržaj

Sheet _TM_NT- indirektna metoda (2) (hidden)
A1: Left | B1: Top | C1: Right | D1: Bottom | E1: Ref
A2: 11 | B2: 2 | C2: 11 | D2: 3 | E2: $K$2:$K$3

Sheet _TM_Dug (hidden)
A1: Left | B1: Top | C1: Right | D1: Bottom | E1: Ref
A2: 1 | B2: 41 | C2: 13 | D2: 41 | E2: $A$41:$M$41
A3: 15 | B3: 2 | C3: 17 | D3: 41 | E3: $O$2:$Q$41

Sheet _TM_Sponzorstva i donacije (hidden)
A1: Left | B1: Top | C1: Right | D1: Bottom | E1: Ref
A2: 2 | B2: 2 | C2: 5 | D2: 31 | E2: $B$2:$E$31

Sheet _TM_ULaganja (hidden)
A1: Left | B1: Top | C1: Right | D1: Bottom | E1: Ref
A2: 2 | B2: 2 | C2: 8 | D2: 44 | E2: $B$2:$H$44
A3: 2 | B3: 45 | C3: 8 | D3: 45 | E3: $B$45:$H$45

Sheet _TM_Građ. objekti i zemljišta (hidden)
A1: Left | B1: Top | C1: Right | D1: Bottom | E1: Ref
A2: 2 | B2: 2 | C2: 9 | D2: 70 | E2: $B$2:$I$70

Sheet NT dir. (hidden)
A1: IZVJEŠTAJ O NOVČANOM TOKU - DIREKTNA METODA
A2: Obveznik: | B2: =IF(ISBLANK(Podloga!B2),"",Podloga!B2) -> LUKA-VUKOVAR doo | C2: =IF(C50>C49,"Povećanje novca i novčanih ekvivalenata u razdoblju",IF(C50=C49,"Stagnacija novca i novčanih ekvivalenata u razdoblju","Smanjenje novca i novčanih ekvivalenata u razdoblju")) -> Povećanje novca i novčanih ekvivalenata u razdoblju | D2: Povećanje novca i novčanih ekvivalenata u razdoblju | E2: Povećanje novca i novčanih ekvivalenata u razdoblju | F2: Smanjenje novca i novčanih ekvivalenata u razdoblju | G2: =IF(G50>G49,"Povećanje novca i novčanih ekvivalenata u razdoblju",IF(G50=G49,"Stagnacija novca i novčanih ekvivalenata u razdoblju","Smanjenje novca i novčanih ekvivalenata u razdoblju")) -> Povećanje novca i novčanih ekvivalenata u razdoblju | H2: =IF(H50>H49,"Povećanje novca i novčanih ekvivalenata u razdoblju",IF(H50=H49,"Stagnacija novca i novčanih ekvivalenata u razdoblju","Smanjenje novca i novčanih ekvivalenata u razdoblju")) -> Povećanje novca i novčanih ekvivalenata u razdoblju | I2: Stagnacija novca i novčanih ekvivalenata u razdoblju | J2: Stagnacija novca i novčanih ekvivalenata u razdoblju | K2: Stagnacija novca i novčanih ekvivalenata u razdoblju | L2: Povećanje novca i novčanih ekvivalenata u razdoblju | M2: Povećanje novca i novčanih ekvivalenata u razdoblju
C3: =IF(Podloga!$B$8=1,"za razdoblje od 01. siječnja do 31. ožujka",IF(Podloga!$B$8=2,"za razdoblje od 01. siječnja do 30. lipnja",IF(Podloga!$B$8=3,"za razdoblje od 01. siječnja do 30. rujna",IF(Podloga!$B$8=4,"za razdoblje od 01. siječnja do 31. prosinca")))) -> za razdoblje od 01. siječnja do 31. ožujka
C4: I Z N O S (u 000 kn) | N4: ="Indeks 1. k. "& LEFT(Podloga!B7,4) &" / 1. k. "& (LEFT(Podloga!B7,4)-1) -> Indeks 1. k. 2020 / 1. k. 2019 | O4: ="Indeks 2. k. "& LEFT(Podloga!B7,4) &" / 2. k. "& (LEFT(Podloga!B7,4)-1) -> Indeks 2. k. 2020 / 2. k. 2019 | P4: ="Indeks 3. k. "& LEFT(Podloga!B7,4) &" / 3. k. "& (LEFT(Podloga!B7,4)-1) -> Indeks 3. k. 2020 / 3. k. 2019 | Q4: ="Indeks 4. k. "& LEFT(Podloga!B7,4) &" / 4. k. "& (LEFT(Podloga!B7,4)-1) -> Indeks 4. k. 2020 / 4. k. 2019 | R4: Godišnja promjena (kumulativno) | S4: Ostvarenje plana | T4: ="Indeks 2. k. "& LEFT(Podloga!B7,4) &" / 1. k. "& LEFT(Podloga!B7,4) -> Indeks 2. k. 2020 / 1. k. 2020 | U4: ="Indeks 3. k. "& LEFT(Podloga!B7,4) &" / 2. k. "& LEFT(Podloga!B7,4) -> Indeks 3. k. 2020 / 2. k. 2020 | V4: ="Indeks 4. k. "& LEFT(Podloga!B7,4) &" / 3. k. "& LEFT(Podloga!B7,4) -> Indeks 4. k. 2020 / 3. k. 2020
C5: =Podloga!B34 -> 1. kvartal 2019 | D5: =Podloga!C34 -> 2. kvartal 2019 | E5: =Podloga!D34 -> 3. kvartal 2019 | F5: =Podloga!E34 -> 4. kvartal 2019 | G5: =Podloga!F34 -> Kumulativ 2019 | H5: =Podloga!G34 -> 1. kvartal 2020 | I5: =Podloga!H34 -> 2. kvartal 2020 | J5: =Podloga!I34 -> 3. kvartal 2020 | K5: =Podloga!J34 -> 4. kvartal 2020 | L5: =Podloga!K34 -> Kumulativ 2020 | M5: =Podloga!L34 -> Plan 2020
A6: NOVČANI TOKOVI OD POSLOVNIH AKTIVNOSTI
A7: 1. | B7: Novčani primici od kupaca | C7: ='NT Podloga dir.'!C7 -> 4249478.07 | D7: ='NT Podloga dir.'!D7-'NT Podloga dir.'!C7 -> 3136368.86 | E7: ='NT Podloga dir.'!E7-'NT Podloga dir.'!D7 -> 4462024.12 | F7: ='NT Podloga dir.'!F7-'NT Podloga dir.'!E7 -> 3347291.95 | G7: =IF(Podloga!$B$8=1,C7,IF(Podloga!$B$8=2,C7+D7,IF(Podloga!$B$8=3,C7+D7+E7,IF(Podloga!$B$8=4,C7+D7+E7+F7)))) -> 4249478.07 | H7: ='NT Podloga dir.'!G7 -> 3416687.6 | I7: =IF(Podloga!$B$8>1,('NT Podloga dir.'!H7-'NT Podloga dir.'!G7),) -> 0 | J7: =IF(Podloga!$B$8>2,('NT Podloga dir.'!I7-'NT Podloga dir.'!H7),) -> 0 | K7: =IF(Podloga!$B$8>3,('NT Podloga dir.'!J7-'NT Podloga dir.'!I7),) -> 0 | L7: =SUM(H7:K7) -> 3416687.6 | M7: ='NT Podloga dir.'!K7 -> 12130000 | N7: =IFERROR(H7/C7*100,) -> 80.40252341 | O7: =IFERROR(I7/D7*100,) -> 0 | P7: =IFERROR(J7/E7*100,) -> 0 | Q7: =IFERROR(K7/F7*100,) -> 0 | R7: =IFERROR(L7/G7*100,) -> 80.40252341 | S7: =IFERROR(L7/M7*100,) -> 28.16725144 | T7: =IFERROR(I7/H7*100,) -> 0 | U7: =IFERROR(J7/I7*100,) -> 0 | V7: =IFERROR(K7/J7*100,) -> 0
A8: 2. | B8: Novčani primici od tantijema, naknada, provizija i slično | C8: ='NT Podloga dir.'!C8 -> 0 | D8: ='NT Podloga dir.'!D8-'NT Podloga dir.'!C8 -> 0 | E8: ='NT Podloga dir.'!E8-'NT Podloga dir.'!D8 -> 0 | F8: ='NT Podloga dir.'!F8-'NT Podloga dir.'!E8 -> 0 | G8: =IF(Podloga!$B$8=1,C8,IF(Podloga!$B$8=2,C8+D8,IF(Podloga!$B$8=3,C8+D8+E8,IF(Podloga!$B$8=4,C8+D8+E8+F8)))) -> 0 | H8: ='NT Podloga dir.'!G8 -> 0 | I8: =IF(Podloga!$B$8>1,('NT Podloga dir.'!H8-'NT Podloga dir.'!G8),) -> 0 | J8: =IF(Podloga!$B$8>2,('NT Podloga dir.'!I8-'NT Podloga dir.'!H8),) -> 0 | K8: =IF(Podloga!$B$8>3,('NT Podloga dir.'!J8-'NT Podloga dir.'!I8),) -> 0 | L8: 0 | M8: ='NT Podloga dir.'!K8 -> 0 | N8: 0 | O8: 0 | P8: 0 | Q8: 0 | R8: =IFERROR(L8/G8*100,) -> 0 | S8: =IFERROR(L8/M8*100,) -> 0 | T8: 0 | U8: 0 | V8: 0
A9: 3. | B9: Novčani primici od osiguranja za naknadu šteta | C9: ='NT Podloga dir.'!C9 -> 0 | D9: ='NT Podloga dir.'!D9-'NT Podloga dir.'!C9 -> 0 | E9: ='NT Podloga dir.'!E9-'NT Podloga dir.'!D9 -> 0 | F9: ='NT Podloga dir.'!F9-'NT Podloga dir.'!E9 -> 31608 | G9: =IF(Podloga!$B$8=1,C9,IF(Podloga!$B$8=2,C9+D9,IF(Podloga!$B$8=3,C9+D9+E9,IF(Podloga!$B$8=4,C9+D9+E9+F9)))) -> 0 | H9: ='NT Podloga dir.'!G9 -> 8127.84 | I9: =IF(Podloga!$B$8>1,('NT Podloga dir.'!H9-'NT Podloga dir.'!G9),) -> 0 | J9: =IF(Podloga!$B$8>2,('NT Podloga dir.'!I9-'NT Podloga dir.'!H9),) -> 0 | K9: =IF(Podloga!$B$8>3,('NT Podloga dir.'!J9-'NT Podloga dir.'!I9),) -> 0 | L9: 8127.84 | M9: ='NT Podloga dir.'!K9 -> 0 | N9: 0 | O9: 0 | P9: 0 | Q9: 0 | R9: 0 | S9: 0 | T9: 0 | U9: 0 | V9: 0
A10: 4. | B10: Novčani primici s osnove povrata poreza | C10: ='NT Podloga dir.'!C10 -> 0 | D10: ='NT Podloga dir.'!D10-'NT Podloga dir.'!C10 -> 0 | E10: ='NT Podloga dir.'!E10-'NT Podloga dir.'!D10 -> 0 | F10: ='NT Podloga dir.'!F10-'NT Podloga dir.'!E10 -> 0 | G10: =IF(Podloga!$B$8=1,C10,IF(Podloga!$B$8=2,C10+D10,IF(Podloga!$B$8=3,C10+D10+E10,IF(Podloga!$B$8=4,C10+D10+E10+F10)))) -> 0 | H10: ='NT Podloga dir.'!G10 -> 0 | I10: =IF(Podloga!$B$8>1,('NT Podloga dir.'!H10-'NT Podloga dir.'!G10),) -> 0 | J10: =IF(Podloga!$B$8>2,('NT Podloga dir.'!I10-'NT Podloga dir.'!H10),) -> 0 | K10: =IF(Podloga!$B$8>3,('NT Podloga dir.'!J10-'NT Podloga dir.'!I10),) -> 0 | L10: 0 | M10: ='NT Podloga dir.'!K10 -> 0 | N10: 0 | O10: 0 | P10: 0 | Q10: 0 | R10: 0 | S10: 0 | T10: 0 | U10: 0 | V10: 0
A11: 5. | B11: Novčani izdaci dobavljačima | C11: ='NT Podloga dir.'!C11 -> -1630714.26 | D11: ='NT Podloga dir.'!D11-'NT Podloga dir.'!C11 -> -1137114.34 | E11: ='NT Podloga dir.'!E11-'NT Podloga dir.'!D11 -> -1659306.19 | F11: ='NT Podloga dir.'!F11-'NT Podloga dir.'!E11 -> -684298.21 | G11: =IF(Podloga!$B$8=1,C11,IF(Podloga!$B$8=2,C11+D11,IF(Podloga!$B$8=3,C11+D11+E11,IF(Podloga!$B$8=4,C11+D11+E11+F11)))) -> -1630714.26 | H11: ='NT Podloga dir.'!G11 -> -1110654.29 | I11: =IF(Podloga!$B$8>1,('NT Podloga dir.'!H11-'NT Podloga dir.'!G11),) -> 0 | J11: =IF(Podloga!$B$8>2,('NT Podloga dir.'!I11-'NT Podloga dir.'!H11),) -> 0 | K11: =IF(Podloga!$B$8>3,('NT Podloga dir.'!J11-'NT Podloga dir.'!I11),) -> 0 | L11: -1110654.29 | M11: ='NT Podloga dir.'!K11 -> -4100000 | N11: 68.10845513 | O11: 0 | P11: 0 | Q11: 0 | R11: 68.10845513 | S11: 27.08912902 | T11: 0 | U11: 0 | V11: 0
A12: 6. | B12: Novčani izdaci za zaposlene | C12: ='NT Podloga dir.'!C12 -> -1206464.65 | D12: ='NT Podloga dir.'!D12-'NT Podloga dir.'!C12 -> -1829701.59 | E12: ='NT Podloga dir.'!E12-'NT Podloga dir.'!D12 -> 600562.39 | F12: ='NT Podloga dir.'!F12-'NT Podloga dir.'!E12 -> -2716698.15 | G12: =IF(Podloga!$B$8=1,C12,IF(Podloga!$B$8=2,C12+D12,IF(Podloga!$B$8=3,C12+D12+E12,IF(Podloga!$B$8=4,C12+D12+E12+F12)))) -> -1206464.65 | H12: ='NT Podloga dir.'!G12 -> -1211360.51 | I12: =IF(Podloga!$B$8>1,('NT Podloga dir.'!H12-'NT Podloga dir.'!G12),) -> 0 | J12: =IF(Podloga!$B$8>2,('NT Podloga dir.'!I12-'NT Podloga dir.'!H12),) -> 0 | K12: =IF(Podloga!$B$8>3,('NT Podloga dir.'!J12-'NT Podloga dir.'!I12),) -> 0 | L12: -1211360.51 | M12: ='NT Podloga dir.'!K12 -> -5240000 | N12: 100.4058022 | O12: 0 | P12: 0 | Q12: 0 | R12: 100.4058022 | S12: 23.11756698 | T12: 0 | U12: 0 | V12: 0
A13: 7. | B13: Novčani izdaci za osiguranje za naknadu štete | C13: ='NT Podloga dir.'!C13 -> 0 | D13: ='NT Podloga dir.'!D13-'NT Podloga dir.'!C13 -> 0 | E13: ='NT Podloga dir.'!E13-'NT Podloga dir.'!D13 -> 0 | F13: ='NT Podloga dir.'!F13-'NT Podloga dir.'!E13 -> -4000 | G13: =IF(Podloga!$B$8=1,C13,IF(Podloga!$B$8=2,C13+D13,IF(Podloga!$B$8=3,C13+D13+E13,IF(Podloga!$B$8=4,C13+D13+E13+F13)))) -> 0 | H13: ='NT Podloga dir.'!G13 -> 0 | I13: =IF(Podloga!$B$8>1,('NT Podloga dir.'!H13-'NT Podloga dir.'!G13),) -> 0 | J13: =IF(Podloga!$B$8>2,('NT Podloga dir.'!I13-'NT Podloga dir.'!H13),) -> 0 | K13: =IF(Podloga!$B$8>3,('NT Podloga dir.'!J13-'NT Podloga dir.'!I13),) -> 0 | L13: 0 | M13: ='NT Podloga dir.'!K13 -> 0 | N13: 0 | O13: 0 | P13: 0 | Q13: 0 | R13: 0 | S13: 0 | T13: 0 | U13: 0 | V13: 0
A14: 8. | B14: Ostali novčani izdaci iz poslovanja | C14: ='NT Podloga dir.'!C14 -> -671351.83 | D14: ='NT Podloga dir.'!D14-'NT Podloga dir.'!C14 -> -37942.7 | E14: ='NT Podloga dir.'!E14-'NT Podloga dir.'!D14 -> -1343358.8 | F14: ='NT Podloga dir.'!F14-'NT Podloga dir.'!E14 -> -286698.67 | G14: =IF(Podloga!$B$8=1,C14,IF(Podloga!$B$8=2,C14+D14,IF(Podloga!$B$8=3,C14+D14+E14,IF(Podloga!$B$8=4,C14+D14+E14+F14)))) -> -671351.83 | H14: ='NT Podloga dir.'!G14 -> -667409.47 | I14: =IF(Podloga!$B$8>1,('NT Podloga dir.'!H14-'NT Podloga dir.'!G14),) -> 0 | J14: =IF(Podloga!$B$8>2,('NT Podloga dir.'!I14-'NT Podloga dir.'!H14),) -> 0 | K14: =IF(Podloga!$B$8>3,('NT Podloga dir.'!J14-'NT Podloga dir.'!I14),) -> 0 | L14: -667409.47 | M14: ='NT Podloga dir.'!K14 -> -1638391 | N14: 99.41277288 | O14: 0 | P14: 0 | Q14: 0 | R14: 99.41277288 | S14: 40.73566505 | T14: 0 | U14: 0 | V14: 0
A15: I. | B15: Novac iz poslovanja | C15: =SUM(C7:C14) -> 740947.33 | D15: =SUM(D7:D14) -> 131610.23 | E15: 2059921.52 | F15: -312795.08 | G15: 740947.33 | H15: 435391.17 | I15: 0 | J15: 0 | K15: 0 | L15: =SUM(L7:L14) -> 435391.17 | M15: =SUM(M7:M14) -> 1151609 | N15: 58.76141965 | O15: 0 | P15: 0 | Q15: 0 | R15: 58.76141965 | S15: 37.80720453 | T15: 0 | U15: 0 | V15: 0
A16: 9. | B16: Novčani izdaci za kamate | C16: ='NT Podloga dir.'!C16 -> 0 | D16: ='NT Podloga dir.'!D16-'NT Podloga dir.'!C16 -> 0 | E16: ='NT Podloga dir.'!E16-'NT Podloga dir.'!D16 -> 0 | F16: ='NT Podloga dir.'!F16-'NT Podloga dir.'!E16 -> 0 | G16: =IF(Podloga!$B$8=1,C16,IF(Podloga!$B$8=2,C16+D16,IF(Podloga!$B$8=3,C16+D16+E16,IF(Podloga!$B$8=4,C16+D16+E16+F16)))) -> 0 | H16: ='NT Podloga dir.'!G16 -> 0 | I16: =IF(Podloga!$B$8>1,('NT Podloga dir.'!H16-'NT Podloga dir.'!G16),) -> 0 | J16: =IF(Podloga!$B$8>2,('NT Podloga dir.'!I16-'NT Podloga dir.'!H16),) -> 0 | K16: =IF(Podloga!$B$8>3,('NT Podloga dir.'!J16-'NT Podloga dir.'!I16),) -> 0 | L16: =SUM(H16:K16) -> 0 | M16: ='NT Podloga dir.'!K16 -> 0 | N16: 0 | O16: 0 | P16: 0 | Q16: 0 | R16: 0 | S16: 0 | T16: 0 | U16: 0 | V16: 0 | FH16: ='NT dir.'!H7 -> 3416687.6
A17: 10. | B17: Plaćeni porez na dobit | C17: ='NT Podloga dir.'!C17 -> 0 | D17: ='NT Podloga dir.'!D17-'NT Podloga dir.'!C17 -> 0 | E17: ='NT Podloga dir.'!E17-'NT Podloga dir.'!D17 -> 0 | F17: ='NT Podloga dir.'!F17-'NT Podloga dir.'!E17 -> 0 | G17: =IF(Podloga!$B$8=1,C17,IF(Podloga!$B$8=2,C17+D17,IF(Podloga!$B$8=3,C17+D17+E17,IF(Podloga!$B$8=4,C17+D17+E17+F17)))) -> 0 | H17: ='NT Podloga dir.'!G17 -> 0 | I17: =IF(Podloga!$B$8>1,('NT Podloga dir.'!H17-'NT Podloga dir.'!G17),) -> 0 | J17: =IF(Podloga!$B$8>2,('NT Podloga dir.'!I17-'NT Podloga dir.'!H17),) -> 0 | K17: =IF(Podloga!$B$8>3,('NT Podloga dir.'!J17-'NT Podloga dir.'!I17),) -> 0 | L17: =SUM(H17:K17) -> 0 | M17: ='NT Podloga dir.'!K17 -> 0 | N17: 0 | O17: 0 | P17: 0 | Q17: 0 | R17: 0 | S17: 0 | T17: 0 | U17: 0 | V17: 0
A18: A. NETO NOVČANI TOKOVI OD POSLOVNIH AKTIVNOSTI | C18: =SUM(C15:C17) -> 740947.33 | D18: =SUM(D15:D17) -> 131610.23 | E18: 2059921.52 | F18: -312795.08 | G18: 740947.33 | H18: 435391.17 | I18: 0 | J18: 0 | K18: 0 | L18: 435391.17 | M18: 1151609 | N18: 58.76141965 | O18: 0 | P18: 0 | Q18: 0 | R18: 58.76141965 | S18: 37.80720453 | T18: 0 | U18: 0 | V18: 0
A19: NOVČANI TOKOVI OD INVESTICIJSKIH AKTIVNOSTI
A20: 1. | B20: Novčani primici od prodaje dugotrajne materijalne i nematerijalne imovine | C20: ='NT Podloga dir.'!C20 -> 0 | D20: ='NT Podloga dir.'!D20-'NT Podloga dir.'!C20 -> 0 | E20: ='NT Podloga dir.'!E20-'NT Podloga dir.'!D20 -> 0 | F20: ='NT Podloga dir.'!F20-'NT Podloga dir.'!E20 -> 0 | G20: =IF(Podloga!$B$8=1,C20,IF(Podloga!$B$8=2,C20+D20,IF(Podloga!$B$8=3,C20+D20+E20,IF(Podloga!$B$8=4,C20+D20+E20+F20)))) -> 0 | H20: ='NT Podloga dir.'!G20 -> 0 | I20: =IF(Podloga!$B$8>1,('NT Podloga dir.'!H20-'NT Podloga dir.'!G20),) -> 0 | J20: =IF(Podloga!$B$8>2,('NT Podloga dir.'!I20-'NT Podloga dir.'!H20),) -> 0 | K20: =IF(Podloga!$B$8>3,('NT Podloga dir.'!J20-'NT Podloga dir.'!I20),) -> 0 | L20: =SUM(H20:K20) -> 0 | M20: ='NT Podloga dir.'!K20 -> 0 | N20: =IFERROR(H20/C20*100,) -> 0 | O20: =IFERROR(I20/D20*100,) -> 0 | P20: =IFERROR(J20/E20*100,) -> 0 | Q20: =IFERROR(K20/F20*100,) -> 0 | R20: 0 | S20: 0 | T20: =IFERROR(I20/H20*100,) -> 0 | U20: =IFERROR(J20/I20*100,) -> 0 | V20: =IFERROR(K20/J20*100,) -> 0
A21: 2. | B21: Novčani primici od prodaje financijskih instrumenata | C21: ='NT Podloga dir.'!C21 -> 50000 | D21: ='NT Podloga dir.'!D21-'NT Podloga dir.'!C21 -> 0 | E21: ='NT Podloga dir.'!E21-'NT Podloga dir.'!D21 -> 0 | F21: ='NT Podloga dir.'!F21-'NT Podloga dir.'!E21 -> 0 | G21: =IF(Podloga!$B$8=1,C21,IF(Podloga!$B$8=2,C21+D21,IF(Podloga!$B$8=3,C21+D21+E21,IF(Podloga!$B$8=4,C21+D21+E21+F21)))) -> 50000 | H21: ='NT Podloga dir.'!G21 -> 0 | I21: =IF(Podloga!$B$8>1,('NT Podloga dir.'!H21-'NT Podloga dir.'!G21),) -> 0 | J21: =IF(Podloga!$B$8>2,('NT Podloga dir.'!I21-'NT Podloga dir.'!H21),) -> 0 | K21: =IF(Podloga!$B$8>3,('NT Podloga dir.'!J21-'NT Podloga dir.'!I21),) -> 0 | L21: 0 | M21: ='NT Podloga dir.'!K21 -> 0 | N21: 0 | O21: 0 | P21: 0 | Q21: 0 | R21: 0 | S21: 0 | T21: 0 | U21: 0 | V21: 0
A22: 3. | B22: Novčani primici od kamata | C22: ='NT Podloga dir.'!C22 -> 2875.54 | D22: ='NT Podloga dir.'!D22-'NT Podloga dir.'!C22 -> 0.6 | E22: ='NT Podloga dir.'!E22-'NT Podloga dir.'!D22 -> 0.31 | F22: ='NT Podloga dir.'!F22-'NT Podloga dir.'!E22 -> -0.45 | G22: =IF(Podloga!$B$8=1,C22,IF(Podloga!$B$8=2,C22+D22,IF(Podloga!$B$8=3,C22+D22+E22,IF(Podloga!$B$8=4,C22+D22+E22+F22)))) -> 2875.54 | H22: ='NT Podloga dir.'!G22 -> 0 | I22: =IF(Podloga!$B$8>1,('NT Podloga dir.'!H22-'NT Podloga dir.'!G22),) -> 0 | J22: =IF(Podloga!$B$8>2,('NT Podloga dir.'!I22-'NT Podloga dir.'!H22),) -> 0 | K22: =IF(Podloga!$B$8>3,('NT Podloga dir.'!J22-'NT Podloga dir.'!I22),) -> 0 | L22: 0 | M22: ='NT Podloga dir.'!K22 -> 3500 | N22: 0 | O22: 0 | P22: 0 | Q22: 0 | R22: 0 | S22: 0 | T22: 0 | U22: 0 | V22: 0
A23: 4. | B23: Novčani primici od dividendi | C23: ='NT Podloga dir.'!C23 -> 0 | D23: ='NT Podloga dir.'!D23-'NT Podloga dir.'!C23 -> 0 | E23: ='NT Podloga dir.'!E23-'NT Podloga dir.'!D23 -> 0 | F23: ='NT Podloga dir.'!F23-'NT Podloga dir.'!E23 -> 0 | G23: =IF(Podloga!$B$8=1,C23,IF(Podloga!$B$8=2,C23+D23,IF(Podloga!$B$8=3,C23+D23+E23,IF(Podloga!$B$8=4,C23+D23+E23+F23)))) -> 0 | H23: ='NT Podloga dir.'!G23 -> 0 | I23: =IF(Podloga!$B$8>1,('NT Podloga dir.'!H23-'NT Podloga dir.'!G23),) -> 0 | J23: =IF(Podloga!$B$8>2,('NT Podloga dir.'!I23-'NT Podloga dir.'!H23),) -> 0 | K23: =IF(Podloga!$B$8>3,('NT Podloga dir.'!J23-'NT Podloga dir.'!I23),) -> 0 | L23: 0 | M23: ='NT Podloga dir.'!K23 -> 0 | N23: 0 | O23: 0 | P23: 0 | Q23: 0 | R23: 0 | S23: 0 | T23: 0 | U23: 0 | V23: 0
A24: 5. | B24: Novčani primici s osnove povrata danih zajmova i štednih uloga | C24: ='NT Podloga dir.'!C24 -> 0 | D24: ='NT Podloga dir.'!D24-'NT Podloga dir.'!C24 -> 0 | E24: ='NT Podloga dir.'!E24-'NT Podloga dir.'!D24 -> 0 | F24: ='NT Podloga dir.'!F24-'NT Podloga dir.'!E24 -> 0 | G24: =IF(Podloga!$B$8=1,C24,IF(Podloga!$B$8=2,C24+D24,IF(Podloga!$B$8=3,C24+D24+E24,IF(Podloga!$B$8=4,C24+D24+E24+F24)))) -> 0 | H24: ='NT Podloga dir.'!G24 -> 0 | I24: =IF(Podloga!$B$8>1,('NT Podloga dir.'!H24-'NT Podloga dir.'!G24),) -> 0 | J24: =IF(Podloga!$B$8>2,('NT Podloga dir.'!I24-'NT Podloga dir.'!H24),) -> 0 | K24: =IF(Podloga!$B$8>3,('NT Podloga dir.'!J24-'NT Podloga dir.'!I24),) -> 0 | L24: 0 | M24: ='NT Podloga dir.'!K24 -> 0 | N24: 0 | O24: 0 | P24: 0 | Q24: 0 | R24: 0 | S24: 0 | T24: 0 | U24: 0 | V24: 0
A25: 6. | B25: Ostali novčani primici od investicijskih aktivnosti | C25: ='NT Podloga dir.'!C25 -> 0 | D25: ='NT Podloga dir.'!D25-'NT Podloga dir.'!C25 -> 0 | E25: ='NT Podloga dir.'!E25-'NT Podloga dir.'!D25 -> 0 | F25: ='NT Podloga dir.'!F25-'NT Podloga dir.'!E25 -> 0 | G25: =IF(Podloga!$B$8=1,C25,IF(Podloga!$B$8=2,C25+D25,IF(Podloga!$B$8=3,C25+D25+E25,IF(Podloga!$B$8=4,C25+D25+E25+F25)))) -> 0 | H25: ='NT Podloga dir.'!G25 -> 0 | I25: =IF(Podloga!$B$8>1,('NT Podloga dir.'!H25-'NT Podloga dir.'!G25),) -> 0 | J25: =IF(Podloga!$B$8>2,('NT Podloga dir.'!I25-'NT Podloga dir.'!H25),) -> 0 | K25: =IF(Podloga!$B$8>3,('NT Podloga dir.'!J25-'NT Podloga dir.'!I25),) -> 0 | L25: 0 | M25: ='NT Podloga dir.'!K25 -> 0 | N25: 0 | O25: 0 | P25: 0 | Q25: 0 | R25: 0 | S25: 0 | T25: 0 | U25: 0 | V25: 0
A26: II. | B26: Ukupno novčani primici od investicijskih aktivnosti | C26: =SUM(C20:C25) -> 52875.54 | D26: 0.6 | E26: 0.31 | F26: -0.45 | G26: =SUM(G20:G25) -> 52875.54 | H26: =SUM(H20:H25) -> 0 | I26: 0 | J26: 0 | K26: 0 | L26: 0 | M26: 3500 | N26: 0 | O26: 0 | P26: 0 | Q26: 0 | R26: 0 | S26: 0 | T26: 0 | U26: 0 | V26: 0
A27: 1. | B27: Novčani izdaci za kupnju dugotrajne materijalne i nematerijalne imovine | C27: ='NT Podloga dir.'!C27 -> 0 | D27: ='NT Podloga dir.'!D27-'NT Podloga dir.'!C27 -> 0 | E27: ='NT Podloga dir.'!E27-'NT Podloga dir.'!D27 -> -1367841.53 | F27: ='NT Podloga dir.'!F27-'NT Podloga dir.'!E27 -> -5134.47 | G27: =IF(Podloga!$B$8=1,C27,IF(Podloga!$B$8=2,C27+D27,IF(Podloga!$B$8=3,C27+D27+E27,IF(Podloga!$B$8=4,C27+D27+E27+F27)))) -> 0 | H27: ='NT Podloga dir.'!G27 -> -10450 | I27: =IF(Podloga!$B$8>1,('NT Podloga dir.'!H27-'NT Podloga dir.'!G27),) -> 0 | J27: =IF(Podloga!$B$8>2,('NT Podloga dir.'!I27-'NT Podloga dir.'!H27),) -> 0 | K27: =IF(Podloga!$B$8>3,('NT Podloga dir.'!J27-'NT Podloga dir.'!I27),) -> 0 | L27: =SUM(H27:K27) -> -10450 | M27: ='NT Podloga dir.'!K27 -> -519682 | N27: 0 | O27: 0 | P27: 0 | Q27: 0 | R27: 0 | S27: 2.010845094 | T27: 0 | U27: 0 | V27: 0
A28: 2. | B28: Novčani izdaci za stjecanje financijskih instrumenata | C28: ='NT Podloga dir.'!C28 -> 0 | D28: ='NT Podloga dir.'!D28-'NT Podloga dir.'!C28 -> 0 | E28: ='NT Podloga dir.'!E28-'NT Podloga dir.'!D28 -> 0 | F28: ='NT Podloga dir.'!F28-'NT Podloga dir.'!E28 -> 0 | G28: =IF(Podloga!$B$8=1,C28,IF(Podloga!$B$8=2,C28+D28,IF(Podloga!$B$8=3,C28+D28+E28,IF(Podloga!$B$8=4,C28+D28+E28+F28)))) -> 0 | H28: ='NT Podloga dir.'!G28 -> 0 | I28: =IF(Podloga!$B$8>1,('NT Podloga dir.'!H28-'NT Podloga dir.'!G28),) -> 0 | J28: =IF(Podloga!$B$8>2,('NT Podloga dir.'!I28-'NT Podloga dir.'!H28),) -> 0 | K28: =IF(Podloga!$B$8>3,('NT Podloga dir.'!J28-'NT Podloga dir.'!I28),) -> 0 | L28: =SUM(H28:K28) -> 0 | M28: ='NT Podloga dir.'!K28 -> 0 | N28: 0 | O28: 0 | P28: 0 | Q28: 0 | R28: 0 | S28: 0 | T28: 0 | U28: 0 | V28: 0
A29: 3. | B29: Novčani izdaci s osnove danih zajmova i štednih uloga | C29: ='NT Podloga dir.'!C29 -> 0 | D29: ='NT Podloga dir.'!D29-'NT Podloga dir.'!C29 -> 0 | E29: ='NT Podloga dir.'!E29-'NT Podloga dir.'!D29 -> 0 | F29: ='NT Podloga dir.'!F29-'NT Podloga dir.'!E29 -> 0 | G29: =IF(Podloga!$B$8=1,C29,IF(Podloga!$B$8=2,C29+D29,IF(Podloga!$B$8=3,C29+D29+E29,IF(Podloga!$B$8=4,C29+D29+E29+F29)))) -> 0 | H29: ='NT Podloga dir.'!G29 -> 0 | I29: =IF(Podloga!$B$8>1,('NT Podloga dir.'!H29-'NT Podloga dir.'!G29),) -> 0 | J29: =IF(Podloga!$B$8>2,('NT Podloga dir.'!I29-'NT Podloga dir.'!H29),) -> 0 | K29: =IF(Podloga!$B$8>3,('NT Podloga dir.'!J29-'NT Podloga dir.'!I29),) -> 0 | L29: =SUM(H29:K29) -> 0 | M29: ='NT Podloga dir.'!K29 -> 0 | N29: 0 | O29: 0 | P29: 0 | Q29: 0 | R29: 0 | S29: 0 | T29: 0 | U29: 0 | V29: 0
A30: 4. | B30: Stjecanje ovisnog društva, umanjeno za stečeni novac | C30: ='NT Podloga dir.'!C30 -> 0 | D30: ='NT Podloga dir.'!D30-'NT Podloga dir.'!C30 -> 0 | E30: ='NT Podloga dir.'!E30-'NT Podloga dir.'!D30 -> 0 | F30: ='NT Podloga dir.'!F30-'NT Podloga dir.'!E30 -> 0 | G30: =IF(Podloga!$B$8=1,C30,IF(Podloga!$B$8=2,C30+D30,IF(Podloga!$B$8=3,C30+D30+E30,IF(Podloga!$B$8=4,C30+D30+E30+F30)))) -> 0 | H30: ='NT Podloga dir.'!G30 -> 0 | I30: =IF(Podloga!$B$8>1,('NT Podloga dir.'!H30-'NT Podloga dir.'!G30),) -> 0 | J30: =IF(Podloga!$B$8>2,('NT Podloga dir.'!I30-'NT Podloga dir.'!H30),) -> 0 | K30: =IF(Podloga!$B$8>3,('NT Podloga dir.'!J30-'NT Podloga dir.'!I30),) -> 0 | L30: =SUM(H30:K30) -> 0 | M30: ='NT Podloga dir.'!K30 -> 0 | N30: 0 | O30: 0 | P30: 0 | Q30: 0 | R30: 0 | S30: 0 | T30: 0 | U30: 0 | V30: 0
A31: 5. | B31: Ostali novčani izdaci od investicijskih aktivnosti | C31: ='NT Podloga dir.'!C31 -> 0 | D31: ='NT Podloga dir.'!D31-'NT Podloga dir.'!C31 -> 0 | E31: ='NT Podloga dir.'!E31-'NT Podloga dir.'!D31 -> 0 | F31: ='NT Podloga dir.'!F31-'NT Podloga dir.'!E31 -> 0 | G31: =IF(Podloga!$B$8=1,C31,IF(Podloga!$B$8=2,C31+D31,IF(Podloga!$B$8=3,C31+D31+E31,IF(Podloga!$B$8=4,C31+D31+E31+F31)))) -> 0 | H31: ='NT Podloga dir.'!G31 -> 0 | I31: =IF(Podloga!$B$8>1,('NT Podloga dir.'!H31-'NT Podloga dir.'!G31),) -> 0 | J31: =IF(Podloga!$B$8>2,('NT Podloga dir.'!I31-'NT Podloga dir.'!H31),) -> 0 | K31: =IF(Podloga!$B$8>3,('NT Podloga dir.'!J31-'NT Podloga dir.'!I31),) -> 0 | L31: =SUM(H31:K31) -> 0 | M31: ='NT Podloga dir.'!K31 -> 0 | N31: 0 | O31: 0 | P31: 0 | Q31: 0 | R31: 0 | S31: 0 | T31: 0 | U31: 0 | V31: 0
A32: III. | B32: Ukupno novčani izdaci od investicijskih aktivnosti | C32: =SUM(C27:C31) -> 0 | D32: 0 | E32: -1367841.53 | F32: -5134.47 | G32: =SUM(G27:G31) -> 0 | H32: =SUM(H27:H31) -> -10450 | I32: 0 | J32: 0 | K32: 0 | L32: -10450 | M32: -519682 | N32: 0 | O32: 0 | P32: 0 | Q32: 0 | R32: 0 | S32: 2.010845094 | T32: 0 | U32: 0 | V32: 0
A33: B. NETO NOVČANI TOKOVI OD INVESTICIJSKIH AKTIVNOSTI | C33: =C26+C32 -> 52875.54 | D33: =D26+D32 -> 0.6 | E33: -1367841.22 | F33: -5134.92 | G33: 52875.54 | H33: -10450 | I33: 0 | J33: 0 | K33: 0 | L33: -10450 | M33: -516182 | N33: -19.76339154 | O33: 0 | P33: 0 | Q33: 0 | R33: -19.76339154 | S33: 2.024479738 | T33: 0 | U33: 0 | V33: 0
A34: NOVČANI TOKOVI OD FINANCIJSKIH AKTIVNOSTI
A35: 1. | B35: Novčani primici od povećanja temeljnog (upisanog) kapitala | C35: ='NT Podloga dir.'!C35 -> 0 | D35: ='NT Podloga dir.'!D35-'NT Podloga dir.'!C35 -> 0 | E35: ='NT Podloga dir.'!E35-'NT Podloga dir.'!D35 -> 0 | F35: ='NT Podloga dir.'!F35-'NT Podloga dir.'!E35 -> 0 | G35: =IF(Podloga!$B$8=1,C35,IF(Podloga!$B$8=2,C35+D35,IF(Podloga!$B$8=3,C35+D35+E35,IF(Podloga!$B$8=4,C35+D35+E35+F35)))) -> 0 | H35: ='NT Podloga dir.'!G35 -> 0 | I35: =IF(Podloga!$B$8>1,('NT Podloga dir.'!H35-'NT Podloga dir.'!G35),) -> 0 | J35: =IF(Podloga!$B$8>2,('NT Podloga dir.'!I35-'NT Podloga dir.'!H35),) -> 0 | K35: =IF(Podloga!$B$8>3,('NT Podloga dir.'!J35-'NT Podloga dir.'!I35),) -> 0 | L35: =SUM(H35:K35) -> 0 | M35: ='NT Podloga dir.'!K35 -> 0 | N35: =IFERROR(H35/C35*100,) -> 0 | O35: =IFERROR(I35/D35*100,) -> 0 | P35: =IFERROR(J35/E35*100,) -> 0 | Q35: =IFERROR(K35/F35*100,) -> 0 | R35: 0 | S35: 0 | T35: =IFERROR(I35/H35*100,) -> 0 | U35: =IFERROR(J35/I35*100,) -> 0 | V35: =IFERROR(K35/J35*100,) -> 0
A36: 2. | B36: Novčani primici od izdavanja vlasničkih i dužničkih financijskih instrumenata | C36: ='NT Podloga dir.'!C36 -> 0 | D36: ='NT Podloga dir.'!D36-'NT Podloga dir.'!C36 -> 0 | E36: ='NT Podloga dir.'!E36-'NT Podloga dir.'!D36 -> 0 | F36: ='NT Podloga dir.'!F36-'NT Podloga dir.'!E36 -> 0 | G36: =IF(Podloga!$B$8=1,C36,IF(Podloga!$B$8=2,C36+D36,IF(Podloga!$B$8=3,C36+D36+E36,IF(Podloga!$B$8=4,C36+D36+E36+F36)))) -> 0 | H36: ='NT Podloga dir.'!G36 -> 0 | I36: =IF(Podloga!$B$8>1,('NT Podloga dir.'!H36-'NT Podloga dir.'!G36),) -> 0 | J36: =IF(Podloga!$B$8>2,('NT Podloga dir.'!I36-'NT Podloga dir.'!H36),) -> 0 | K36: =IF(Podloga!$B$8>3,('NT Podloga dir.'!J36-'NT Podloga dir.'!I36),) -> 0 | L36: =SUM(H36:K36) -> 0 | M36: ='NT Podloga dir.'!K36 -> 0 | N36: 0 | O36: 0 | P36: 0 | Q36: 0 | R36: 0 | S36: 0 | T36: 0 | U36: 0 | V36: 0
A37: 3. | B37: Novčani primici od glavnice kredita, pozajmica i drugih posudbi | C37: ='NT Podloga dir.'!C37 -> 0 | D37: ='NT Podloga dir.'!D37-'NT Podloga dir.'!C37 -> 0 | E37: ='NT Podloga dir.'!E37-'NT Podloga dir.'!D37 -> 0 | F37: ='NT Podloga dir.'!F37-'NT Podloga dir.'!E37 -> 0 | G37: =IF(Podloga!$B$8=1,C37,IF(Podloga!$B$8=2,C37+D37,IF(Podloga!$B$8=3,C37+D37+E37,IF(Podloga!$B$8=4,C37+D37+E37+F37)))) -> 0 | H37: ='NT Podloga dir.'!G37 -> 0 | I37: =IF(Podloga!$B$8>1,('NT Podloga dir.'!H37-'NT Podloga dir.'!G37),) -> 0 | J37: =IF(Podloga!$B$8>2,('NT Podloga dir.'!I37-'NT Podloga dir.'!H37),) -> 0 | K37: =IF(Podloga!$B$8>3,('NT Podloga dir.'!J37-'NT Podloga dir.'!I37),) -> 0 | L37: =SUM(H37:K37) -> 0 | M37: ='NT Podloga dir.'!K37 -> 0 | N37: 0 | O37: 0 | P37: 0 | Q37: 0 | R37: 0 | S37: 0 | T37: 0 | U37: 0 | V37: 0
A38: 4. | B38: Ostali novčani primici od financijskih aktivnosti | C38: ='NT Podloga dir.'!C38 -> 0 | D38: ='NT Podloga dir.'!D38-'NT Podloga dir.'!C38 -> 0 | E38: ='NT Podloga dir.'!E38-'NT Podloga dir.'!D38 -> 0 | F38: ='NT Podloga dir.'!F38-'NT Podloga dir.'!E38 -> 0 | G38: =IF(Podloga!$B$8=1,C38,IF(Podloga!$B$8=2,C38+D38,IF(Podloga!$B$8=3,C38+D38+E38,IF(Podloga!$B$8=4,C38+D38+E38+F38)))) -> 0 | H38: ='NT Podloga dir.'!G38 -> 0 | I38: =IF(Podloga!$B$8>1,('NT Podloga dir.'!H38-'NT Podloga dir.'!G38),) -> 0 | J38: =IF(Podloga!$B$8>2,('NT Podloga dir.'!I38-'NT Podloga dir.'!H38),) -> 0 | K38: =IF(Podloga!$B$8>3,('NT Podloga dir.'!J38-'NT Podloga dir.'!I38),) -> 0 | L38: =SUM(H38:K38) -> 0 | M38: ='NT Podloga dir.'!K38 -> 0 | N38: 0 | O38: 0 | P38: 0 | Q38: 0 | R38: 0 | S38: 0 | T38: 0 | U38: 0 | V38: 0
A39: IV. | B39: Ukupno novčani primici od financijskih aktivnosti | C39: =SUM(C35:C38) -> 0 | D39: 0 | E39: 0 | F39: 0 | G39: =SUM(G35:G38) -> 0 | H39: =SUM(H35:H38) -> 0 | I39: 0 | J39: 0 | K39: 0 | L39: 0 | M39: 0 | N39: 0 | O39: 0 | P39: 0 | Q39: 0 | R39: 0 | S39: 0 | T39: 0 | U39: 0 | V39: 0
A40: 1. | B40: Novčani izdaci za otplatu glavnice kredita, pozajmica i drugih posudbi i dužničkih financijskih instrumenata | C40: ='NT Podloga dir.'!C40 -> 0 | D40: ='NT Podloga dir.'!D40-'NT Podloga dir.'!C40 -> 0 | E40: ='NT Podloga dir.'!E40-'NT Podloga dir.'!D40 -> 0 | F40: ='NT Podloga dir.'!F40-'NT Podloga dir.'!E40 -> 0 | G40: =IF(Podloga!$B$8=1,C40,IF(Podloga!$B$8=2,C40+D40,IF(Podloga!$B$8=3,C40+D40+E40,IF(Podloga!$B$8=4,C40+D40+E40+F40)))) -> 0 | H40: ='NT Podloga dir.'!G40 -> 0 | I40: =IF(Podloga!$B$8>1,('NT Podloga dir.'!H40-'NT Podloga dir.'!G40),) -> 0 | J40: =IF(Podloga!$B$8>2,('NT Podloga dir.'!I40-'NT Podloga dir.'!H40),) -> 0 | K40: =IF(Podloga!$B$8>3,('NT Podloga dir.'!J40-'NT Podloga dir.'!I40),) -> 0 | L40: =SUM(H40:K40) -> 0 | M40: ='NT Podloga dir.'!K40 -> 0 | N40: 0 | O40: 0 | P40: 0 | Q40: 0 | R40: 0 | S40: 0 | T40: 0 | U40: 0 | V40: 0
A41: 2. | B41: Novčani izdaci za isplatu dividendi | C41: ='NT Podloga dir.'!C41 -> 0 | D41: ='NT Podloga dir.'!D41-'NT Podloga dir.'!C41 -> 0 | E41: ='NT Podloga dir.'!E41-'NT Podloga dir.'!D41 -> 0 | F41: ='NT Podloga dir.'!F41-'NT Podloga dir.'!E41 -> 0 | G41: =IF(Podloga!$B$8=1,C41,IF(Podloga!$B$8=2,C41+D41,IF(Podloga!$B$8=3,C41+D41+E41,IF(Podloga!$B$8=4,C41+D41+E41+F41)))) -> 0 | H41: ='NT Podloga dir.'!G41 -> 0 | I41: =IF(Podloga!$B$8>1,('NT Podloga dir.'!H41-'NT Podloga dir.'!G41),) -> 0 | J41: =IF(Podloga!$B$8>2,('NT Podloga dir.'!I41-'NT Podloga dir.'!H41),) -> 0 | K41: =IF(Podloga!$B$8>3,('NT Podloga dir.'!J41-'NT Podloga dir.'!I41),) -> 0 | L41: =SUM(H41:K41) -> 0 | M41: ='NT Podloga dir.'!K41 -> 0 | N41: 0 | O41: 0 | P41: 0 | Q41: 0 | R41: 0 | S41: 0 | T41: 0 | U41: 0 | V41: 0
A42: 3. | B42: Novčani izdaci za financijski najam | C42: ='NT Podloga dir.'!C42 -> 0 | D42: ='NT Podloga dir.'!D42-'NT Podloga dir.'!C42 -> 0 | E42: ='NT Podloga dir.'!E42-'NT Podloga dir.'!D42 -> 0 | F42: ='NT Podloga dir.'!F42-'NT Podloga dir.'!E42 -> 0 | G42: =IF(Podloga!$B$8=1,C42,IF(Podloga!$B$8=2,C42+D42,IF(Podloga!$B$8=3,C42+D42+E42,IF(Podloga!$B$8=4,C42+D42+E42+F42)))) -> 0 | H42: ='NT Podloga dir.'!G42 -> 0 | I42: =IF(Podloga!$B$8>1,('NT Podloga dir.'!H42-'NT Podloga dir.'!G42),) -> 0 | J42: =IF(Podloga!$B$8>2,('NT Podloga dir.'!I42-'NT Podloga dir.'!H42),) -> 0 | K42: =IF(Podloga!$B$8>3,('NT Podloga dir.'!J42-'NT Podloga dir.'!I42),) -> 0 | L42: =SUM(H42:K42) -> 0 | M42: ='NT Podloga dir.'!K42 -> 0 | N42: 0 | O42: 0 | P42: 0 | Q42: 0 | R42: 0 | S42: 0 | T42: 0 | U42: 0 | V42: 0
A43: 4. | B43: Novčani izdaci za otkup vlastitih dionica i smanjenje temeljnog (upisanog) kapitala | C43: ='NT Podloga dir.'!C43 -> 0 | D43: ='NT Podloga dir.'!D43-'NT Podloga dir.'!C43 -> 0 | E43: ='NT Podloga dir.'!E43-'NT Podloga dir.'!D43 -> 0 | F43: ='NT Podloga dir.'!F43-'NT Podloga dir.'!E43 -> 0 | G43: =IF(Podloga!$B$8=1,C43,IF(Podloga!$B$8=2,C43+D43,IF(Podloga!$B$8=3,C43+D43+E43,IF(Podloga!$B$8=4,C43+D43+E43+F43)))) -> 0 | H43: ='NT Podloga dir.'!G43 -> 0 | I43: =IF(Podloga!$B$8>1,('NT Podloga dir.'!H43-'NT Podloga dir.'!G43),) -> 0 | J43: =IF(Podloga!$B$8>2,('NT Podloga dir.'!I43-'NT Podloga dir.'!H43),) -> 0 | K43: =IF(Podloga!$B$8>3,('NT Podloga dir.'!J43-'NT Podloga dir.'!I43),) -> 0 | L43: =SUM(H43:K43) -> 0 | M43: ='NT Podloga dir.'!K43 -> 0 | N43: 0 | O43: 0 | P43: 0 | Q43: 0 | R43: 0 | S43: 0 | T43: 0 | U43: 0 | V43: 0
A44: 5. | B44: Ostali novčani izdaci od financijskih aktivnosti | C44: ='NT Podloga dir.'!C44 -> 0 | D44: ='NT Podloga dir.'!D44-'NT Podloga dir.'!C44 -> 0 | E44: ='NT Podloga dir.'!E44-'NT Podloga dir.'!D44 -> 0 | F44: ='NT Podloga dir.'!F44-'NT Podloga dir.'!E44 -> 0 | G44: =IF(Podloga!$B$8=1,C44,IF(Podloga!$B$8=2,C44+D44,IF(Podloga!$B$8=3,C44+D44+E44,IF(Podloga!$B$8=4,C44+D44+E44+F44)))) -> 0 | H44: ='NT Podloga dir.'!G44 -> 0 | I44: =IF(Podloga!$B$8>1,('NT Podloga dir.'!H44-'NT Podloga dir.'!G44),) -> 0 | J44: =IF(Podloga!$B$8>2,('NT Podloga dir.'!I44-'NT Podloga dir.'!H44),) -> 0 | K44: =IF(Podloga!$B$8>3,('NT Podloga dir.'!J44-'NT Podloga dir.'!I44),) -> 0 | L44: =SUM(H44:K44) -> 0 | M44: ='NT Podloga dir.'!K44 -> 0 | N44: 0 | O44: 0 | P44: 0 | Q44: 0 | R44: 0 | S44: 0 | T44: 0 | U44: 0 | V44: 0
A45: V. | B45: Ukupno novčani izdaci od financijskih aktivnosti | C45: =SUM(C40:C44) -> 0 | D45: 0 | E45: 0 | F45: 0 | G45: =SUM(G40:G44) -> 0 | H45: =SUM(H40:H44) -> 0 | I45: 0 | J45: 0 | K45: 0 | L45: 0 | M45: 0 | N45: 0 | O45: 0 | P45: 0 | Q45: 0 | R45: 0 | S45: 0 | T45: 0 | U45: 0 | V45: 0
A46: C. NETO NOVČANI TOKOVI OD FINANCIJSKIH AKTIVNOSTI | C46: =C39+C45 -> 0 | D46: =D39+D45 -> 0 | E46: 0 | F46: 0 | G46: 0 | H46: 0 | I46: 0 | J46: 0 | K46: 0 | L46: 0 | M46: 0 | N46: 0 | O46: 0 | P46: 0 | Q46: 0 | R46: 0 | S46: 0 | T46: 0 | U46: 0 | V46: 0
A47: 1. | B47: Nerealizirane tečajne razlike po novcu i novčanim ekvivalentima | C47: ='NT Podloga dir.'!C47 -> 0 | D47: ='NT Podloga dir.'!D47-'NT Podloga dir.'!C47 -> 0 | E47: ='NT Podloga dir.'!E47-'NT Podloga dir.'!D47 -> 0 | F47: ='NT Podloga dir.'!F47-'NT Podloga dir.'!E47 -> 0 | G47: =IF(Podloga!$B$8=1,C47,IF(Podloga!$B$8=2,C47+D47,IF(Podloga!$B$8=3,C47+D47+E47,IF(Podloga!$B$8=4,C47+D47+E47+F47)))) -> 0 | H47: ='NT Podloga dir.'!G47 -> 0 | I47: =IF(Podloga!$B$8>1,('NT Podloga dir.'!H47-'NT Podloga dir.'!G47),) -> 0 | J47: =IF(Podloga!$B$8>2,('NT Podloga dir.'!I47-'NT Podloga dir.'!H47),) -> 0 | K47: =IF(Podloga!$B$8>3,('NT Podloga dir.'!J47-'NT Podloga dir.'!I47),) -> 0 | L47: =SUM(H47:K47) -> 0 | M47: ='NT Podloga dir.'!K47 -> 0 | N47: =IFERROR(H47/C47*100,) -> 0 | O47: =IFERROR(I47/D47*100,) -> 0 | P47: =IFERROR(J47/E47*100,) -> 0 | Q47: =IFERROR(K47/F47*100,) -> 0 | R47: =IFERROR(L47/G47*100,) -> 0 | S47: =IFERROR(L47/M47*100,) -> 0 | T47: 0 | U47: 0 | V47: 0
A48: D. NETO POVEĆANJE ILI SMANJENE NOVČANIH TOKOVA | C48: =C18+C33+C46+C47 -> 793822.87 | D48: =D18+D33+D46+D47 -> 131610.83 | E48: 692080.3 | F48: -317930 | G48: 793822.87 | H48: 424941.17 | I48: 0 | J48: 0 | K48: 0 | L48: 424941.17 | M48: 635427 | N48: 53.53098104 | O48: 0 | P48: 0 | Q48: 0 | R48: 53.53098104 | S48: 66.87489987 | T48: 0 | U48: 0 | V48: 0
A49: E. NOVAC I NOVČANI EKVIVALENTI NA POČETKU RAZDOBLJA | C49: ='NT Podloga dir.'!C49 -> 13596566.34 | D49: =C50 -> 14390389.21 | E49: =D50 -> 14522000.04 | F49: =E50 -> 15214080.34 | G49: =C49 -> 13596566.34 | H49: ='NT Podloga dir.'!G49 -> 14896150 | I49: =IF(Podloga!$B$8>1,(H50),) -> 0 | J49: =IF(Podloga!$B$8>2,(I50),) -> 0 | K49: =IF(Podloga!$B$8>3,(J50),) -> 0 | L49: =H49 -> 14896150 | M49: ='NT Podloga dir.'!K49 -> 14894150 | N49: 109.5581754 | O49: 0 | P49: 0 | Q49: 0 | R49: 109.5581754 | S49: 100.0134281 | T49: 0 | U49: 0 | V49: 0
A50: F. NOVAC I NOVČANI EKVIVALENTI NA KRAJU RAZDOBLJA | C50: =C49+C48 -> 14390389.21 | D50: 14522000.04 | E50: 15214080.34 | F50: 14896150.34 | G50: =G49+G48 -> 14390389.21 | H50: =H49+H48 -> 15321091.17 | I50: 0 | J50: 0 | K50: 0 | L50: 15321091.17 | M50: 15529577 | N50: 106.4675246 | O50: 0 | P50: 0 | Q50: 0 | R50: 106.4675246 | S50: 98.65749189 | T50: 0 | U50: 0 | V50: 0
A54: =HYPERLINK("#Sadržaj!A1","Povratak na sadržaj") -> Povratak na sadržaj

Sheet Dashboard (hidden)
A1: Dashboard:
A2: Prikaz ključnih pokazatelja poslovanja | B2: =HYPERLINK("#'Ključni poslovni pokazatelji'!A1","Ključni poslovni pokazatelji") -> Ključni poslovni pokazatelji
A3: Analiza izvještaja o financijskom položaju | B3: =HYPERLINK("#'Financijsko izvješće'!A1","Financijski izvještaj") -> Financijski izvještaj
A4: Analiza računa dobiti i gubitka | B4: =HYPERLINK("#'RDG 1'!A1","RDG 1") -> RDG 1
B5: =HYPERLINK("#'RDG 2'!A1","RDG 2") -> RDG 2
A6: Analiza izvještaja o novčanom toku | B6: =HYPERLINK("#'Novčani tok'!A1","Izvještaj o novčanom toku") -> Izvještaj o novčanom toku
A7: Analiza profitabilnosti | B7: =HYPERLINK("#Profitabilnost!A1","Profitabilnost") -> Profitabilnost
A8: Analiza likvidnosti | B8: =HYPERLINK("#Likvidnost!A1","Likvidnost") -> Likvidnost
A9: Analiza aktivnosti | B9: =HYPERLINK("#Aktivnost!A1","Aktivnost") -> Aktivnost
A10: Analiza zaduženosti | B10: =HYPERLINK("#Zaduženost!A1","Zaduženost") -> Zaduženost

Sheet _TM_Profit and loss (hidden)
A1: Left | B1: Top | C1: Right | D1: Bottom | E1: Ref
A2: 2 | B2: 17 | C2: 13 | D2: 17 | E2: $B$17:$M$17
A3: 2 | B3: 17 | C3: 13 | D3: 17 | E3: $B$17:$M$17

Sheet NT indir. (hidden)
A1: IZVJEŠTAJ O NOVČANOM TOKU - INDIREKTNA METODA
A2: Obveznik: | B2: =IF(ISBLANK(Podloga!B2),"",Podloga!B2) -> LUKA-VUKOVAR doo | C2: =IF(C58>C57,"Povećanje novca i novčanih ekvivalenata u razdoblju",IF(C58=C57,"Stagnacija novca i novčanih ekvivalenata u razdoblju","Smanjenje novca i novčanih ekvivalenata u razdoblju")) -> Stagnacija novca i novčanih ekvivalenata u razdoblju | D2: Stagnacija novca i novčanih ekvivalenata u razdoblju | E2: Stagnacija novca i novčanih ekvivalenata u razdoblju | F2: Stagnacija novca i novčanih ekvivalenata u razdoblju | G2: =IF(G58>G57,"Povećanje novca i novčanih ekvivalenata u razdoblju",IF(G58=G57,"Stagnacija novca i novčanih ekvivalenata u razdoblju","Smanjenje novca i novčanih ekvivalenata u razdoblju")) -> Stagnacija novca i novčanih ekvivalenata u razdoblju | H2: =IF(H58>H57,"Povećanje novca i novčanih ekvivalenata u razdoblju",IF(H58=H57,"Stagnacija novca i novčanih ekvivalenata u razdoblju","Smanjenje novca i novčanih ekvivalenata u razdoblju")) -> Stagnacija novca i novčanih ekvivalenata u razdoblju | I2: Stagnacija novca i novčanih ekvivalenata u razdoblju | J2: Stagnacija novca i novčanih ekvivalenata u razdoblju | K2: Stagnacija novca i novčanih ekvivalenata u razdoblju | L2: Stagnacija novca i novčanih ekvivalenata u razdoblju | M2: Stagnacija novca i novčanih ekvivalenata u razdoblju
C3: =IF(Podloga!$B$8=1,"za razdoblje od 01. siječnja do 31. ožujka",IF(Podloga!$B$8=2,"za razdoblje od 01. siječnja do 30. lipnja",IF(Podloga!$B$8=3,"za razdoblje od 01. siječnja do 30. rujna",IF(Podloga!$B$8=4,"za razdoblje od 01. siječnja do 31. prosinca")))) -> za razdoblje od 01. siječnja do 31. ožujka
C4: I Z N O S (u 000 kn) | N4: ="Indeks 1. k. "& LEFT(Podloga!B7,4) &" / 1. k. "& (LEFT(Podloga!B7,4)-1) -> Indeks 1. k. 2020 / 1. k. 2019 | O4: ="Indeks 2. k. "& LEFT(Podloga!B7,4) &" / 2. k. "& (LEFT(Podloga!B7,4)-1) -> Indeks 2. k. 2020 / 2. k. 2019 | P4: ="Indeks 3. k. "& LEFT(Podloga!B7,4) &" / 3. k. "& (LEFT(Podloga!B7,4)-1) -> Indeks 3. k. 2020 / 3. k. 2019 | Q4: ="Indeks 4. k. "& LEFT(Podloga!B7,4) &" / 4. k. "& (LEFT(Podloga!B7,4)-1) -> Indeks 4. k. 2020 / 4. k. 2019 | R4: Godišnja promjena (kumulativno) | S4: Ostvarenje plana | T4: ="Indeks 2. k. "& LEFT(Podloga!B7,4) &" / 1. k. "& LEFT(Podloga!B7,4) -> Indeks 2. k. 2020 / 1. k. 2020 | U4: ="Indeks 3. k. "& LEFT(Podloga!B7,4) &" / 2. k. "& LEFT(Podloga!B7,4) -> Indeks 3. k. 2020 / 2. k. 2020 | V4: ="Indeks 4. k. "& LEFT(Podloga!B7,4) &" / 3. k. "& LEFT(Podloga!B7,4) -> Indeks 4. k. 2020 / 3. k. 2020
C5: =Podloga!B34 -> 1. kvartal 2019 | D5: =Podloga!C34 -> 2. kvartal 2019 | E5: =Podloga!D34 -> 3. kvartal 2019 | F5: =Podloga!E34 -> 4. kvartal 2019 | G5: =Podloga!F34 -> Kumulativ 2019 | H5: =Podloga!G34 -> 1. kvartal 2020 | I5: =Podloga!H34 -> 2. kvartal 2020 | J5: =Podloga!I34 -> 3. kvartal 2020 | K5: =Podloga!J34 -> 4. kvartal 2020 | L5: =Podloga!K34 -> Kumulativ 2020 | M5: =Podloga!L34 -> Plan 2020
A6: NOVČANI TOKOVI OD POSLOVNIH AKTIVNOSTI
A7: 1. | B7: Dobit prije poreza | C7: ='NT Podloga indir.'!C7 -> 0 | D7: ='NT Podloga indir.'!D7-'NT Podloga indir.'!C7 -> 0 | E7: ='NT Podloga indir.'!E7-'NT Podloga indir.'!D7 -> 0 | F7: ='NT Podloga indir.'!F7-'NT Podloga indir.'!E7 -> 0 | G7: =IF(Podloga!$B$8=1,C7,IF(Podloga!$B$8=2,C7+D7,IF(Podloga!$B$8=3,C7+D7+E7,IF(Podloga!$B$8=4,C7+D7+E7+F7)))) -> 0 | H7: ='NT Podloga indir.'!G7 -> 0 | I7: =IF(Podloga!$B$8>1,('NT Podloga indir.'!H7-'NT Podloga indir.'!G7),) -> 0 | J7: =IF(Podloga!$B$8>2,('NT Podloga indir.'!I7-'NT Podloga indir.'!H7),) -> 0 | K7: =IF(Podloga!$B$8>3,('NT Podloga indir.'!J7-'NT Podloga indir.'!I7),) -> 0 | L7: =SUM(H7:K7) -> 0 | M7: ='NT Podloga indir.'!K7 -> 0 | N7: =IFERROR(H7/C7*100,) -> 0 | O7: 0 | P7: 0 | Q7: 0 | R7: =IFERROR(L7/G7*100,) -> 0 | S7: =IFERROR(L7/M7*100,) -> 0 | T7: =IFERROR(I7/H7*100,) -> 0 | U7: 0 | V7: 0
A8: 2. | B8: Usklađenja | C8: =SUM(C9:C16) -> 0 | D8: =SUM(D9:D16) -> 0 | E8: 0 | F8: 0 | G8: =IF(Podloga!$B$8=1,C8,IF(Podloga!$B$8=2,C8+D8,IF(Podloga!$B$8=3,C8+D8+E8,IF(Podloga!$B$8=4,C8+D8+E8+F8)))) -> 0 | H8: ='NT Podloga indir.'!G8 -> 0 | I8: 0 | J8: =IF(Podloga!$B$8>2,('NT Podloga indir.'!I8-'NT Podloga indir.'!H8),) -> 0 | K8: =IF(Podloga!$B$8>3,('NT Podloga indir.'!J8-'NT Podloga indir.'!I8),) -> 0 | L8: 0 | M8: 0 | N8: 0 | O8: 0 | P8: 0 | Q8: 0 | R8: =IFERROR(L8/G8*100,) -> 0 | S8: =IFERROR(L8/M8*100,) -> 0
A9: a) | B9: Amortizacija | C9: ='NT Podloga indir.'!C9 -> 0 | D9: ='NT Podloga indir.'!D9-'NT Podloga indir.'!C9 -> 0 | E9: ='NT Podloga indir.'!E9-'NT Podloga indir.'!D9 -> 0 | F9: ='NT Podloga indir.'!F9-'NT Podloga indir.'!E9 -> 0 | G9: =IF(Podloga!$B$8=1,C9,IF(Podloga!$B$8=2,C9+D9,IF(Podloga!$B$8=3,C9+D9+E9,IF(Podloga!$B$8=4,C9+D9+E9+F9)))) -> 0 | H9: ='NT Podloga indir.'!G9 -> 0 | I9: =IF(Podloga!$B$8>1,('NT Podloga indir.'!H9-'NT Podloga indir.'!G9),) -> 0 | J9: =IF(Podloga!$B$8>2,('NT Podloga indir.'!I9-'NT Podloga indir.'!H9),) -> 0 | K9: =IF(Podloga!$B$8>3,('NT Podloga indir.'!J9-'NT Podloga indir.'!I9),) -> 0 | L9: =SUM(H9:K9) -> 0 | M9: ='NT Podloga indir.'!K9 -> 0 | N9: 0 | O9: 0 | P9: 0 | Q9: 0 | R9: 0 | S9: 0
A10: b) | B10: Dobici i gubici od prodaje i vrijednosna usklađenja dugotrajne materijalne i nematerijalne imovine | C10: ='NT Podloga indir.'!C10 -> 0 | D10: ='NT Podloga indir.'!D10-'NT Podloga indir.'!C10 -> 0 | E10: ='NT Podloga indir.'!E10-'NT Podloga indir.'!D10 -> 0 | F10: ='NT Podloga indir.'!F10-'NT Podloga indir.'!E10 -> 0 | G10: =IF(Podloga!$B$8=1,C10,IF(Podloga!$B$8=2,C10+D10,IF(Podloga!$B$8=3,C10+D10+E10,IF(Podloga!$B$8=4,C10+D10+E10+F10)))) -> 0 | H10: ='NT Podloga indir.'!G10 -> 0 | I10: =IF(Podloga!$B$8>1,('NT Podloga indir.'!H10-'NT Podloga indir.'!G10),) -> 0 | J10: =IF(Podloga!$B$8>2,('NT Podloga indir.'!I10-'NT Podloga indir.'!H10),) -> 0 | K10: =IF(Podloga!$B$8>3,('NT Podloga indir.'!J10-'NT Podloga indir.'!I10),) -> 0 | L10: 0 | M10: ='NT Podloga indir.'!K10 -> 0 | N10: 0 | O10: 0 | P10: 0 | Q10: 0 | R10: 0 | S10: 0
A11: c) | B11: Dobici i gubici od prodaje i nerealizirani dobici i gubici i vrijednosno usklađenje financijske imovine | C11: ='NT Podloga indir.'!C11 -> 0 | D11: ='NT Podloga indir.'!D11-'NT Podloga indir.'!C11 -> 0 | E11: ='NT Podloga indir.'!E11-'NT Podloga indir.'!D11 -> 0 | F11: ='NT Podloga indir.'!F11-'NT Podloga indir.'!E11 -> 0 | G11: =IF(Podloga!$B$8=1,C11,IF(Podloga!$B$8=2,C11+D11,IF(Podloga!$B$8=3,C11+D11+E11,IF(Podloga!$B$8=4,C11+D11+E11+F11)))) -> 0 | H11: ='NT Podloga indir.'!G11 -> 0 | I11: =IF(Podloga!$B$8>1,('NT Podloga indir.'!H11-'NT Podloga indir.'!G11),) -> 0 | J11: =IF(Podloga!$B$8>2,('NT Podloga indir.'!I11-'NT Podloga indir.'!H11),) -> 0 | K11: =IF(Podloga!$B$8>3,('NT Podloga indir.'!J11-'NT Podloga indir.'!I11),) -> 0 | L11: 0 | M11: ='NT Podloga indir.'!K11 -> 0 | N11: 0 | O11: 0 | P11: 0 | Q11: 0 | R11: 0 | S11: 0
A12: d) | B12: Prihodi od kamata i dividendi | C12: ='NT Podloga indir.'!C12 -> 0 | D12: ='NT Podloga indir.'!D12-'NT Podloga indir.'!C12 -> 0 | E12: ='NT Podloga indir.'!E12-'NT Podloga indir.'!D12 -> 0 | F12: ='NT Podloga indir.'!F12-'NT Podloga indir.'!E12 -> 0 | G12: =IF(Podloga!$B$8=1,C12,IF(Podloga!$B$8=2,C12+D12,IF(Podloga!$B$8=3,C12+D12+E12,IF(Podloga!$B$8=4,C12+D12+E12+F12)))) -> 0 | H12: ='NT Podloga indir.'!G12 -> 0 | I12: =IF(Podloga!$B$8>1,('NT Podloga indir.'!H12-'NT Podloga indir.'!G12),) -> 0 | J12: =IF(Podloga!$B$8>2,('NT Podloga indir.'!I12-'NT Podloga indir.'!H12),) -> 0 | K12: =IF(Podloga!$B$8>3,('NT Podloga indir.'!J12-'NT Podloga indir.'!I12),) -> 0 | L12: 0 | M12: ='NT Podloga indir.'!K12 -> 0 | N12: =IFERROR(H12/C12*100,) -> 0 | O12: =IFERROR(I12/D12*100,) -> 0 | P12: =IFERROR(J12/E12*100,) -> 0 | Q12: =IFERROR(K12/F12*100,) -> 0 | R12: =IFERROR(L12/G12*100,) -> 0 | S12: =IFERROR(L12/M12*100,) -> 0 | T12: 0 | U12: 0 | V12: 0
A13: e) | B13: Rashodi od kamata | C13: ='NT Podloga indir.'!C13 -> 0 | D13: ='NT Podloga indir.'!D13-'NT Podloga indir.'!C13 -> 0 | E13: ='NT Podloga indir.'!E13-'NT Podloga indir.'!D13 -> 0 | F13: ='NT Podloga indir.'!F13-'NT Podloga indir.'!E13 -> 0 | G13: =IF(Podloga!$B$8=1,C13,IF(Podloga!$B$8=2,C13+D13,IF(Podloga!$B$8=3,C13+D13+E13,IF(Podloga!$B$8=4,C13+D13+E13+F13)))) -> 0 | H13: ='NT Podloga indir.'!G13 -> 0 | I13: =IF(Podloga!$B$8>1,('NT Podloga indir.'!H13-'NT Podloga indir.'!G13),) -> 0 | J13: =IF(Podloga!$B$8>2,('NT Podloga indir.'!I13-'NT Podloga indir.'!H13),) -> 0 | K13: =IF(Podloga!$B$8>3,('NT Podloga indir.'!J13-'NT Podloga indir.'!I13),) -> 0 | L13: 0 | M13: ='NT Podloga indir.'!K13 -> 0 | N13: 0 | O13: 0 | P13: 0 | Q13: 0 | R13: 0 | S13: 0 | T13: 0 | U13: 0 | V13: 0
A14: f) | B14: Rezerviranja | C14: ='NT Podloga indir.'!C14 -> 0 | D14: ='NT Podloga indir.'!D14-'NT Podloga indir.'!C14 -> 0 | E14: ='NT Podloga indir.'!E14-'NT Podloga indir.'!D14 -> 0 | F14: ='NT Podloga indir.'!F14-'NT Podloga indir.'!E14 -> 0 | G14: =IF(Podloga!$B$8=1,C14,IF(Podloga!$B$8=2,C14+D14,IF(Podloga!$B$8=3,C14+D14+E14,IF(Podloga!$B$8=4,C14+D14+E14+F14)))) -> 0 | H14: ='NT Podloga indir.'!G14 -> 0 | I14: =IF(Podloga!$B$8>1,('NT Podloga indir.'!H14-'NT Podloga indir.'!G14),) -> 0 | J14: =IF(Podloga!$B$8>2,('NT Podloga indir.'!I14-'NT Podloga indir.'!H14),) -> 0 | K14: =IF(Podloga!$B$8>3,('NT Podloga indir.'!J14-'NT Podloga indir.'!I14),) -> 0 | L14: 0 | M14: ='NT Podloga indir.'!K14 -> 0 | N14: 0 | O14: 0 | P14: 0 | Q14: 0 | R14: 0 | S14: 0 | T14: 0 | U14: 0 | V14: 0
A15: g) | B15: Tečajne razlike (nerealizirane) | C15: ='NT Podloga indir.'!C15 -> 0 | D15: ='NT Podloga indir.'!D15-'NT Podloga indir.'!C15 -> 0 | E15: ='NT Podloga indir.'!E15-'NT Podloga indir.'!D15 -> 0 | F15: ='NT Podloga indir.'!F15-'NT Podloga indir.'!E15 -> 0 | G15: =IF(Podloga!$B$8=1,C15,IF(Podloga!$B$8=2,C15+D15,IF(Podloga!$B$8=3,C15+D15+E15,IF(Podloga!$B$8=4,C15+D15+E15+F15)))) -> 0 | H15: ='NT Podloga indir.'!G15 -> 0 | I15: =IF(Podloga!$B$8>1,('NT Podloga indir.'!H15-'NT Podloga indir.'!G15),) -> 0 | J15: =IF(Podloga!$B$8>2,('NT Podloga indir.'!I15-'NT Podloga indir.'!H15),) -> 0 | K15: =IF(Podloga!$B$8>3,('NT Podloga indir.'!J15-'NT Podloga indir.'!I15),) -> 0 | L15: 0 | M15: ='NT Podloga indir.'!K15 -> 0 | N15: 0 | O15: 0 | P15: 0 | Q15: 0 | R15: 0 | S15: 0 | T15: 0 | U15: 0 | V15: 0
A16: h) | B16: Ostala usklađenja za nenovčane transakcije i nerealizirane dobitke i gubitke | C16: ='NT Podloga indir.'!C16 -> 0 | D16: ='NT Podloga indir.'!D16-'NT Podloga indir.'!C16 -> 0 | E16: ='NT Podloga indir.'!E16-'NT Podloga indir.'!D16 -> 0 | F16: ='NT Podloga indir.'!F16-'NT Podloga indir.'!E16 -> 0 | G16: =IF(Podloga!$B$8=1,C16,IF(Podloga!$B$8=2,C16+D16,IF(Podloga!$B$8=3,C16+D16+E16,IF(Podloga!$B$8=4,C16+D16+E16+F16)))) -> 0 | H16: ='NT Podloga indir.'!G16 -> 0 | I16: =IF(Podloga!$B$8>1,('NT Podloga indir.'!H16-'NT Podloga indir.'!G16),) -> 0 | J16: =IF(Podloga!$B$8>2,('NT Podloga indir.'!I16-'NT Podloga indir.'!H16),) -> 0 | K16: =IF(Podloga!$B$8>3,('NT Podloga indir.'!J16-'NT Podloga indir.'!I16),) -> 0 | L16: 0 | M16: ='NT Podloga indir.'!K16 -> 0 | N16: 0 | O16: 0 | P16: 0 | Q16: 0 | R16: 0 | S16: 0 | T16: 0 | U16: 0 | V16: 0
A17: I. | B17: Povećanje ili smanjenje novčanih tokova prije promjena u radnom kapitalu | C17: =C7+C8 -> 0 | D17: =D7+D8 -> 0 | E17: 0 | F17: 0 | G17: 0 | H17: 0 | I17: 0 | J17: 0 | K17: 0 | L17: 0 | M17: 0 | N17: 0 | O17: 0 | P17: 0 | Q17: 0 | R17: 0 | S17: 0 | T17: 0 | U17: 0 | V17: 0
A18: 3. | B18: Promjene u radnom kapitalu | C18: =SUM(C19:C22) -> 0 | D18: =SUM(D19:D22) -> 0 | E18: 0 | F18: ='NT Podloga indir.'!F18-'NT Podloga indir.'!E18 -> 0 | G18: =IF(Podloga!$B$8=1,C18,IF(Podloga!$B$8=2,C18+D18,IF(Podloga!$B$8=3,C18+D18+E18,IF(Podloga!$B$8=4,C18+D18+E18+F18)))) -> 0 | H18: ='NT Podloga indir.'!G18 -> 0 | I18: 0 | J18: =IF(Podloga!$B$8>2,('NT Podloga indir.'!I18-'NT Podloga indir.'!H18),) -> 0 | K18: =IF(Podloga!$B$8>3,('NT Podloga indir.'!J18-'NT Podloga indir.'!I18),) -> 0 | L18: 0 | M18: 0 | N18: 0 | O18: 0 | P18: 0 | Q18: 0 | R18: 0 | S18: 0 | T18: 0 | U18: 0 | V18: 0 | FH18: ='NT indir.'!H7 -> 0
A19: a) | B19: Povećanje ili smanjenje kratkoročnih obveza | C19: ='NT Podloga indir.'!C19 -> 0 | D19: ='NT Podloga indir.'!D19-'NT Podloga indir.'!C19 -> 0 | E19: ='NT Podloga indir.'!E19 -> 0 | F19: ='NT Podloga indir.'!F19-'NT Podloga indir.'!E19 -> 0 | G19: =IF(Podloga!$B$8=1,C19,IF(Podloga!$B$8=2,C19+D19,IF(Podloga!$B$8=3,C19+D19+E19,IF(Podloga!$B$8=4,C19+D19+E19+F19)))) -> 0 | H19: ='NT Podloga indir.'!G19 -> 0 | I19: =IF(Podloga!$B$8>1,('NT Podloga indir.'!H19-'NT Podloga indir.'!G19),) -> 0 | J19: =IF(Podloga!$B$8>2,('NT Podloga indir.'!I19-'NT Podloga indir.'!H19),) -> 0 | K19: =IF(Podloga!$B$8>3,('NT Podloga indir.'!J19-'NT Podloga indir.'!I19),) -> 0 | L19: 0 | M19: ='NT Podloga indir.'!K19 -> 0 | N19: 0 | O19: 0 | P19: 0 | Q19: 0 | R19: 0 | S19: 0 | T19: 0 | U19: 0 | V19: 0
A20: b) | B20: Povećanje ili smanjenje kratkotrajnih potraživanja | C20: ='NT Podloga indir.'!C20 -> 0 | D20: ='NT Podloga indir.'!D20-'NT Podloga indir.'!C20 -> 0 | E20: ='NT Podloga indir.'!E20 -> 0 | F20: ='NT Podloga indir.'!F20-'NT Podloga indir.'!E20 -> 0 | G20: =IF(Podloga!$B$8=1,C20,IF(Podloga!$B$8=2,C20+D20,IF(Podloga!$B$8=3,C20+D20+E20,IF(Podloga!$B$8=4,C20+D20+E20+F20)))) -> 0 | H20: ='NT Podloga indir.'!G20 -> 0 | I20: =IF(Podloga!$B$8>1,('NT Podloga indir.'!H20-'NT Podloga indir.'!G20),) -> 0 | J20: =IF(Podloga!$B$8>2,('NT Podloga indir.'!I20-'NT Podloga indir.'!H20),) -> 0 | K20: =IF(Podloga!$B$8>3,('NT Podloga indir.'!J20-'NT Podloga indir.'!I20),) -> 0 | L20: 0 | M20: ='NT Podloga indir.'!K20 -> 0 | N20: =IFERROR(H20/C20*100,) -> 0 | O20: =IFERROR(I20/D20*100,) -> 0 | P20: =IFERROR(J20/E20*100,) -> 0 | Q20: =IFERROR(K20/F20*100,) -> 0 | R20: =IFERROR(L20/G20*100,) -> 0 | S20: =IFERROR(L20/M20*100,) -> 0
A21: c) | B21: Povećanje ili smanjenje zaliha | C21: ='NT Podloga indir.'!C21 -> 0 | D21: ='NT Podloga indir.'!D21-'NT Podloga indir.'!C21 -> 0 | E21: ='NT Podloga indir.'!E21 -> 0 | F21: ='NT Podloga indir.'!F21-'NT Podloga indir.'!E21 -> 0 | G21: =IF(Podloga!$B$8=1,C21,IF(Podloga!$B$8=2,C21+D21,IF(Podloga!$B$8=3,C21+D21+E21,IF(Podloga!$B$8=4,C21+D21+E21+F21)))) -> 0 | H21: ='NT Podloga indir.'!G21 -> 0 | I21: =IF(Podloga!$B$8>1,('NT Podloga indir.'!H21-'NT Podloga indir.'!G21),) -> 0 | J21: =IF(Podloga!$B$8>2,('NT Podloga indir.'!I21-'NT Podloga indir.'!H21),) -> 0 | K21: =IF(Podloga!$B$8>3,('NT Podloga indir.'!J21-'NT Podloga indir.'!I21),) -> 0 | L21: 0 | M21: ='NT Podloga indir.'!K21 -> 0 | N21: 0 | O21: 0 | P21: 0 | Q21: 0 | R21: 0 | S21: 0
A22: d) | B22: Ostala povećanja ili smanjenja radnog kapitala | C22: ='NT Podloga indir.'!C22 -> 0 | D22: ='NT Podloga indir.'!D22-'NT Podloga indir.'!C22 -> 0 | E22: ='NT Podloga indir.'!E22 -> 0 | F22: ='NT Podloga indir.'!F22-'NT Podloga indir.'!E22 -> 0 | G22: =IF(Podloga!$B$8=1,C22,IF(Podloga!$B$8=2,C22+D22,IF(Podloga!$B$8=3,C22+D22+E22,IF(Podloga!$B$8=4,C22+D22+E22+F22)))) -> 0 | H22: ='NT Podloga indir.'!G22 -> 0 | I22: =IF(Podloga!$B$8>1,('NT Podloga indir.'!H22-'NT Podloga indir.'!G22),) -> 0 | J22: =IF(Podloga!$B$8>2,('NT Podloga indir.'!I22-'NT Podloga indir.'!H22),) -> 0 | K22: =IF(Podloga!$B$8>3,('NT Podloga indir.'!J22-'NT Podloga indir.'!I22),) -> 0 | L22: 0 | M22: ='NT Podloga indir.'!K22 -> 0 | N22: 0 | O22: 0 | P22: 0 | Q22: 0 | R22: 0 | S22: 0
A23: II. | B23: Novac iz poslovanja | C23: =SUM(C17+C18) -> 0 | D23: =SUM(D17+D18) -> 0 | E23: 0 | F23: 0 | G23: 0 | H23: 0 | I23: 0 | J23: 0 | K23: 0 | L23: 0 | M23: 0 | N23: 0 | O23: 0 | P23: 0 | Q23: 0 | R23: 0 | S23: 0
A24: 4. | B24: Novčani izdaci za kamate | C24: ='NT Podloga indir.'!C24 -> 0 | D24: ='NT Podloga indir.'!D24-'NT Podloga indir.'!C24 -> 0 | E24: ='NT Podloga indir.'!E24-'NT Podloga indir.'!D24 -> 0 | F24: ='NT Podloga indir.'!F24-'NT Podloga indir.'!E24 -> 0 | G24: =IF(Podloga!$B$8=1,C24,IF(Podloga!$B$8=2,C24+D24,IF(Podloga!$B$8=3,C24+D24+E24,IF(Podloga!$B$8=4,C24+D24+E24+F24)))) -> 0 | H24: ='NT Podloga indir.'!G24 -> 0 | I24: =IF(Podloga!$B$8>1,('NT Podloga indir.'!H24-'NT Podloga indir.'!G24),) -> 0 | J24: =IF(Podloga!$B$8>2,('NT Podloga indir.'!I24-'NT Podloga indir.'!H24),) -> 0 | K24: =IF(Podloga!$B$8>3,('NT Podloga indir.'!J24-'NT Podloga indir.'!I24),) -> 0 | L24: 0 | M24: ='NT Podloga indir.'!K24 -> 0 | N24: 0 | O24: 0 | P24: 0 | Q24: 0 | R24: 0 | S24: =IFERROR(M24/H24*100,) -> 0
A25: 5. | B25: Plaćeni porez na dobit | C25: ='NT Podloga indir.'!C25 -> 0 | D25: ='NT Podloga indir.'!D25-'NT Podloga indir.'!C25 -> 0 | E25: ='NT Podloga indir.'!E25-'NT Podloga indir.'!D25 -> 0 | F25: ='NT Podloga indir.'!F25-'NT Podloga indir.'!E25 -> 0 | G25: =IF(Podloga!$B$8=1,C25,IF(Podloga!$B$8=2,C25+D25,IF(Podloga!$B$8=3,C25+D25+E25,IF(Podloga!$B$8=4,C25+D25+E25+F25)))) -> 0 | H25: ='NT Podloga indir.'!G25 -> 0 | I25: =IF(Podloga!$B$8>1,('NT Podloga indir.'!H25-'NT Podloga indir.'!G25),) -> 0 | J25: =IF(Podloga!$B$8>2,('NT Podloga indir.'!I25-'NT Podloga indir.'!H25),) -> 0 | K25: =IF(Podloga!$B$8>3,('NT Podloga indir.'!J25-'NT Podloga indir.'!I25),) -> 0 | L25: 0 | M25: ='NT Podloga indir.'!K25 -> 0 | N25: 0 | O25: 0 | P25: 0 | Q25: 0 | R25: 0 | S25: 0
A26: A. NETO NOVČANI TOKOVI OD POSLOVNIH AKTIVNOSTI | C26: =SUM(C23:C25) -> 0 | D26: =SUM(D23:D25) -> 0 | E26: 0 | F26: 0 | G26: 0 | H26: 0 | I26: 0 | J26: 0 | K26: 0 | L26: 0 | M26: 0 | N26: 0 | O26: 0 | P26: 0 | Q26: 0 | R26: 0 | S26: =IFERROR(L26/M26*100,) -> 0 | T26: 0 | U26: 0 | V26: 0
A27: NOVČANI TOKOVI OD INVESTICIJSKIH AKTIVNOSTI
A28: 1. | B28: Novčani primici od prodaje dugotrajne materijalne i nematerijalne imovine | C28: ='NT Podloga indir.'!C28 -> 0 | D28: ='NT Podloga indir.'!D28-'NT Podloga indir.'!C28 -> 0 | E28: ='NT Podloga indir.'!E28-'NT Podloga indir.'!D28 -> 0 | F28: ='NT Podloga indir.'!F28-'NT Podloga indir.'!E28 -> 0 | G28: =IF(Podloga!$B$8=1,C28,IF(Podloga!$B$8=2,C28+D28,IF(Podloga!$B$8=3,C28+D28+E28,IF(Podloga!$B$8=4,C28+D28+E28+F28)))) -> 0 | H28: ='NT Podloga indir.'!G28 -> 0 | I28: =IF(Podloga!$B$8>1,('NT Podloga indir.'!H28-'NT Podloga indir.'!G28),) -> 0 | J28: =IF(Podloga!$B$8>2,('NT Podloga indir.'!I28-'NT Podloga indir.'!H28),) -> 0 | K28: =IF(Podloga!$B$8>3,('NT Podloga indir.'!J28-'NT Podloga indir.'!I28),) -> 0 | L28: =SUM(H28:K28) -> 0 | M28: ='NT Podloga indir.'!K28 -> 0 | N28: =IFERROR(H28/C28*100,) -> 0 | O28: 0 | P28: 0 | Q28: 0 | R28: 0 | S28: 0 | T28: =IFERROR(I28/H28*100,) -> 0 | U28: 0 | V28: 0
A29: 2. | B29: Novčani primici od prodaje financijskih instrumenata | C29: ='NT Podloga indir.'!C29 -> 0 | D29: ='NT Podloga indir.'!D29-'NT Podloga indir.'!C29 -> 0 | E29: ='NT Podloga indir.'!E29-'NT Podloga indir.'!D29 -> 0 | F29: ='NT Podloga indir.'!F29-'NT Podloga indir.'!E29 -> 0 | G29: =IF(Podloga!$B$8=1,C29,IF(Podloga!$B$8=2,C29+D29,IF(Podloga!$B$8=3,C29+D29+E29,IF(Podloga!$B$8=4,C29+D29+E29+F29)))) -> 0 | H29: ='NT Podloga indir.'!G29 -> 0 | I29: =IF(Podloga!$B$8>1,('NT Podloga indir.'!H29-'NT Podloga indir.'!G29),) -> 0 | J29: =IF(Podloga!$B$8>2,('NT Podloga indir.'!I29-'NT Podloga indir.'!H29),) -> 0 | K29: =IF(Podloga!$B$8>3,('NT Podloga indir.'!J29-'NT Podloga indir.'!I29),) -> 0 | L29: 0 | M29: ='NT Podloga indir.'!K29 -> 0 | N29: 0 | O29: 0 | P29: 0 | Q29: 0 | R29: 0 | S29: 0 | T29: 0 | U29: 0 | V29: 0
A30: 3. | B30: Novčani primici od kamata | C30: ='NT Podloga indir.'!C30 -> 0 | D30: ='NT Podloga indir.'!D30-'NT Podloga indir.'!C30 -> 0 | E30: ='NT Podloga indir.'!E30-'NT Podloga indir.'!D30 -> 0 | F30: ='NT Podloga indir.'!F30-'NT Podloga indir.'!E30 -> 0 | G30: =IF(Podloga!$B$8=1,C30,IF(Podloga!$B$8=2,C30+D30,IF(Podloga!$B$8=3,C30+D30+E30,IF(Podloga!$B$8=4,C30+D30+E30+F30)))) -> 0 | H30: ='NT Podloga indir.'!G30 -> 0 | I30: =IF(Podloga!$B$8>1,('NT Podloga indir.'!H30-'NT Podloga indir.'!G30),) -> 0 | J30: =IF(Podloga!$B$8>2,('NT Podloga indir.'!I30-'NT Podloga indir.'!H30),) -> 0 | K30: =IF(Podloga!$B$8>3,('NT Podloga indir.'!J30-'NT Podloga indir.'!I30),) -> 0 | L30: 0 | M30: ='NT Podloga indir.'!K30 -> 0 | N30: 0 | O30: 0 | P30: 0 | Q30: 0 | R30: 0 | S30: 0 | T30: 0 | U30: 0 | V30: 0
A31: 4. | B31: Novčani primici od dividendi | C31: ='NT Podloga indir.'!C31 -> 0 | D31: ='NT Podloga indir.'!D31-'NT Podloga indir.'!C31 -> 0 | E31: ='NT Podloga indir.'!E31-'NT Podloga indir.'!D31 -> 0 | F31: ='NT Podloga indir.'!F31-'NT Podloga indir.'!E31 -> 0 | G31: =IF(Podloga!$B$8=1,C31,IF(Podloga!$B$8=2,C31+D31,IF(Podloga!$B$8=3,C31+D31+E31,IF(Podloga!$B$8=4,C31+D31+E31+F31)))) -> 0 | H31: ='NT Podloga indir.'!G31 -> 0 | I31: =IF(Podloga!$B$8>1,('NT Podloga indir.'!H31-'NT Podloga indir.'!G31),) -> 0 | J31: =IF(Podloga!$B$8>2,('NT Podloga indir.'!I31-'NT Podloga indir.'!H31),) -> 0 | K31: =IF(Podloga!$B$8>3,('NT Podloga indir.'!J31-'NT Podloga indir.'!I31),) -> 0 | L31: 0 | M31: ='NT Podloga indir.'!K31 -> 0 | N31: 0 | O31: 0 | P31: 0 | Q31: 0 | R31: 0 | S31: 0 | T31: 0 | U31: 0 | V31: 0
A32: 5. | B32: Novčani primici s osnove povrata danih zajmova i štednih uloga | C32: ='NT Podloga indir.'!C32 -> 0 | D32: ='NT Podloga indir.'!D32-'NT Podloga indir.'!C32 -> 0 | E32: ='NT Podloga indir.'!E32-'NT Podloga indir.'!D32 -> 0 | F32: ='NT Podloga indir.'!F32-'NT Podloga indir.'!E32 -> 0 | G32: =IF(Podloga!$B$8=1,C32,IF(Podloga!$B$8=2,C32+D32,IF(Podloga!$B$8=3,C32+D32+E32,IF(Podloga!$B$8=4,C32+D32+E32+F32)))) -> 0 | H32: ='NT Podloga indir.'!G32 -> 0 | I32: =IF(Podloga!$B$8>1,('NT Podloga indir.'!H32-'NT Podloga indir.'!G32),) -> 0 | J32: =IF(Podloga!$B$8>2,('NT Podloga indir.'!I32-'NT Podloga indir.'!H32),) -> 0 | K32: =IF(Podloga!$B$8>3,('NT Podloga indir.'!J32-'NT Podloga indir.'!I32),) -> 0 | L32: 0 | M32: ='NT Podloga indir.'!K32 -> 0 | N32: 0 | O32: 0 | P32: 0 | Q32: 0 | R32: 0 | S32: 0 | T32: 0 | U32: 0 | V32: 0
A33: 6. | B33: Ostali novčani primici od investicijskih aktivnosti | C33: ='NT Podloga indir.'!C33 -> 0 | D33: ='NT Podloga indir.'!D33-'NT Podloga indir.'!C33 -> 0 | E33: ='NT Podloga indir.'!E33-'NT Podloga indir.'!D33 -> 0 | F33: ='NT Podloga indir.'!F33-'NT Podloga indir.'!E33 -> 0 | G33: =IF(Podloga!$B$8=1,C33,IF(Podloga!$B$8=2,C33+D33,IF(Podloga!$B$8=3,C33+D33+E33,IF(Podloga!$B$8=4,C33+D33+E33+F33)))) -> 0 | H33: ='NT Podloga indir.'!G33 -> 0 | I33: =IF(Podloga!$B$8>1,('NT Podloga indir.'!H33-'NT Podloga indir.'!G33),) -> 0 | J33: =IF(Podloga!$B$8>2,('NT Podloga indir.'!I33-'NT Podloga indir.'!H33),) -> 0 | K33: =IF(Podloga!$B$8>3,('NT Podloga indir.'!J33-'NT Podloga indir.'!I33),) -> 0 | L33: 0 | M33: ='NT Podloga indir.'!K33 -> 0 | N33: 0 | O33: 0 | P33: 0 | Q33: 0 | R33: 0 | S33: 0 | T33: 0 | U33: 0 | V33: 0
A34: II. | B34: Ukupno novčani primici od investicijskih aktivnosti | C34: =SUM(C28:C33) -> 0 | D34: 0 | E34: 0 | F34: 0 | G34: 0 | H34: 0 | I34: 0 | J34: 0 | K34: 0 | L34: 0 | M34: 0 | N34: 0 | O34: 0 | P34: 0 | Q34: 0 | R34: 0 | S34: 0 | T34: 0 | U34: 0 | V34: 0
A35: 1. | B35: Novčani izdaci za kupnju dugotrajne materijalne i nematerijalne imovine | C35: ='NT Podloga indir.'!C35 -> 0 | D35: ='NT Podloga indir.'!D35-'NT Podloga indir.'!C35 -> 0 | E35: ='NT Podloga indir.'!E35-'NT Podloga indir.'!D35 -> 0 | F35: ='NT Podloga indir.'!F35-'NT Podloga indir.'!E35 -> 0 | G35: =IF(Podloga!$B$8=1,C35,IF(Podloga!$B$8=2,C35+D35,IF(Podloga!$B$8=3,C35+D35+E35,IF(Podloga!$B$8=4,C35+D35+E35+F35)))) -> 0 | H35: ='NT Podloga indir.'!G35 -> 0 | I35: =IF(Podloga!$B$8>1,('NT Podloga indir.'!H35-'NT Podloga indir.'!G35),) -> 0 | J35: =IF(Podloga!$B$8>2,('NT Podloga indir.'!I35-'NT Podloga indir.'!H35),) -> 0 | K35: =IF(Podloga!$B$8>3,('NT Podloga indir.'!J35-'NT Podloga indir.'!I35),) -> 0 | L35: 0 | M35: ='NT Podloga indir.'!K35 -> 0 | N35: 0 | O35: 0 | P35: 0 | Q35: 0 | R35: 0 | S35: 0 | T35: 0 | U35: 0 | V35: 0
A36: 2. | B36: Novčani izdaci za stjecanje financijskih instrumenata | C36: ='NT Podloga indir.'!C36 -> 0 | D36: ='NT Podloga indir.'!D36-'NT Podloga indir.'!C36 -> 0 | E36: ='NT Podloga indir.'!E36-'NT Podloga indir.'!D36 -> 0 | F36: ='NT Podloga indir.'!F36-'NT Podloga indir.'!E36 -> 0 | G36: =IF(Podloga!$B$8=1,C36,IF(Podloga!$B$8=2,C36+D36,IF(Podloga!$B$8=3,C36+D36+E36,IF(Podloga!$B$8=4,C36+D36+E36+F36)))) -> 0 | H36: ='NT Podloga indir.'!G36 -> 0 | I36: =IF(Podloga!$B$8>1,('NT Podloga indir.'!H36-'NT Podloga indir.'!G36),) -> 0 | J36: =IF(Podloga!$B$8>2,('NT Podloga indir.'!I36-'NT Podloga indir.'!H36),) -> 0 | K36: =IF(Podloga!$B$8>3,('NT Podloga indir.'!J36-'NT Podloga indir.'!I36),) -> 0 | L36: 0 | M36: ='NT Podloga indir.'!K36 -> 0 | N36: 0 | O36: 0 | P36: 0 | Q36: 0 | R36: 0 | S36: 0 | T36: 0 | U36: 0 | V36: 0
A37: 3. | B37: Novčani izdaci s osnove danih zajmova i štednih uloga | C37: ='NT Podloga indir.'!C37 -> 0 | D37: ='NT Podloga indir.'!D37-'NT Podloga indir.'!C37 -> 0 | E37: ='NT Podloga indir.'!E37-'NT Podloga indir.'!D37 -> 0 | F37: ='NT Podloga indir.'!F37-'NT Podloga indir.'!E37 -> 0 | G37: =IF(Podloga!$B$8=1,C37,IF(Podloga!$B$8=2,C37+D37,IF(Podloga!$B$8=3,C37+D37+E37,IF(Podloga!$B$8=4,C37+D37+E37+F37)))) -> 0 | H37: ='NT Podloga indir.'!G37 -> 0 | I37: =IF(Podloga!$B$8>1,('NT Podloga indir.'!H37-'NT Podloga indir.'!G37),) -> 0 | J37: =IF(Podloga!$B$8>2,('NT Podloga indir.'!I37-'NT Podloga indir.'!H37),) -> 0 | K37: =IF(Podloga!$B$8>3,('NT Podloga indir.'!J37-'NT Podloga indir.'!I37),) -> 0 | L37: 0 | M37: ='NT Podloga indir.'!K37 -> 0 | N37: 0 | O37: 0 | P37: 0 | Q37: 0 | R37: 0 | S37: 0 | T37: 0 | U37: 0 | V37: 0
A38: 4. | B38: Stjecanje ovisnog društva, umanjeno za stečeni novac | C38: ='NT Podloga indir.'!C38 -> 0 | D38: ='NT Podloga indir.'!D38-'NT Podloga indir.'!C38 -> 0 | E38: ='NT Podloga indir.'!E38-'NT Podloga indir.'!D38 -> 0 | F38: ='NT Podloga indir.'!F38-'NT Podloga indir.'!E38 -> 0 | G38: =IF(Podloga!$B$8=1,C38,IF(Podloga!$B$8=2,C38+D38,IF(Podloga!$B$8=3,C38+D38+E38,IF(Podloga!$B$8=4,C38+D38+E38+F38)))) -> 0 | H38: ='NT Podloga indir.'!G38 -> 0 | I38: =IF(Podloga!$B$8>1,('NT Podloga indir.'!H38-'NT Podloga indir.'!G38),) -> 0 | J38: =IF(Podloga!$B$8>2,('NT Podloga indir.'!I38-'NT Podloga indir.'!H38),) -> 0 | K38: =IF(Podloga!$B$8>3,('NT Podloga indir.'!J38-'NT Podloga indir.'!I38),) -> 0 | L38: 0 | M38: ='NT Podloga indir.'!K38 -> 0 | N38: 0 | O38: 0 | P38: 0 | Q38: 0 | R38: 0 | S38: 0 | T38: 0 | U38: 0 | V38: 0
A39: 5. | B39: Ostali novčani izdaci od investicijskih aktivnosti | C39: ='NT Podloga indir.'!C39 -> 0 | D39: ='NT Podloga indir.'!D39-'NT Podloga indir.'!C39 -> 0 | E39: ='NT Podloga indir.'!E39-'NT Podloga indir.'!D39 -> 0 | F39: ='NT Podloga indir.'!F39-'NT Podloga indir.'!E39 -> 0 | G39: =IF(Podloga!$B$8=1,C39,IF(Podloga!$B$8=2,C39+D39,IF(Podloga!$B$8=3,C39+D39+E39,IF(Podloga!$B$8=4,C39+D39+E39+F39)))) -> 0 | H39: ='NT Podloga indir.'!G39 -> 0 | I39: =IF(Podloga!$B$8>1,('NT Podloga indir.'!H39-'NT Podloga indir.'!G39),) -> 0 | J39: =IF(Podloga!$B$8>2,('NT Podloga indir.'!I39-'NT Podloga indir.'!H39),) -> 0 | K39: =IF(Podloga!$B$8>3,('NT Podloga indir.'!J39-'NT Podloga indir.'!I39),) -> 0 | L39: 0 | M39: ='NT Podloga indir.'!K39 -> 0 | N39: 0 | O39: 0 | P39: 0 | Q39: 0 | R39: 0 | S39: 0 | T39: 0 | U39: 0 | V39: 0
A40: III. | B40: Ukupno novčani izdaci od investicijskih aktivnosti | C40: =SUM(C35:C39) -> 0 | D40: 0 | E40: 0 | F40: 0 | G40: 0 | H40: 0 | I40: 0 | J40: 0 | K40: 0 | L40: 0 | M40: 0 | N40: 0 | O40: 0 | P40: 0 | Q40: 0 | R40: 0 | S40: 0 | T40: 0 | U40: 0 | V40: 0
A41: B. NETO NOVČANI TOKOVI OD INVESTICIJSKIH AKTIVNOSTI | C41: =C34+C40 -> 0 | D41: =D34+D40 -> 0 | E41: 0 | F41: 0 | G41: 0 | H41: 0 | I41: 0 | J41: 0 | K41: 0 | L41: 0 | M41: 0 | N41: 0 | O41: 0 | P41: 0 | Q41: 0 | R41: 0 | S41: 0 | T41: 0 | U41: 0 | V41: 0
A42: NOVČANI TOKOVI OD FINANCIJSKIH AKTIVNOSTI
A43: 1. | B43: Novčani primici od povećanja temeljnog (upisanog) kapitala | C43: ='NT Podloga indir.'!C43 -> 0 | D43: ='NT Podloga indir.'!D43-'NT Podloga indir.'!C43 -> 0 | E43: ='NT Podloga indir.'!E43-'NT Podloga indir.'!D43 -> 0 | F43: ='NT Podloga indir.'!F43-'NT Podloga indir.'!E43 -> 0 | G43: =IF(Podloga!$B$8=1,C43,IF(Podloga!$B$8=2,C43+D43,IF(Podloga!$B$8=3,C43+D43+E43,IF(Podloga!$B$8=4,C43+D43+E43+F43)))) -> 0 | H43: ='NT Podloga indir.'!G43 -> 0 | I43: =IF(Podloga!$B$8>1,('NT Podloga indir.'!H43-'NT Podloga indir.'!G43),) -> 0 | J43: =IF(Podloga!$B$8>2,('NT Podloga indir.'!I43-'NT Podloga indir.'!H43),) -> 0 | K43: =IF(Podloga!$B$8>3,('NT Podloga indir.'!J43-'NT Podloga indir.'!I43),) -> 0 | L43: 0 | M43: ='NT Podloga indir.'!K43 -> 0 | N43: =IFERROR(H43/C43*100,) -> 0 | O43: 0 | P43: 0 | Q43: 0 | R43: 0 | S43: 0 | T43: =IFERROR(I43/H43*100,) -> 0 | U43: 0 | V43: 0
A44: 2. | B44: Novčani primici od izdavanja vlasničkih i dužničkih financijskih instrumenata | C44: ='NT Podloga indir.'!C44 -> 0 | D44: ='NT Podloga indir.'!D44-'NT Podloga indir.'!C44 -> 0 | E44: ='NT Podloga indir.'!E44-'NT Podloga indir.'!D44 -> 0 | F44: ='NT Podloga indir.'!F44-'NT Podloga indir.'!E44 -> 0 | G44: =IF(Podloga!$B$8=1,C44,IF(Podloga!$B$8=2,C44+D44,IF(Podloga!$B$8=3,C44+D44+E44,IF(Podloga!$B$8=4,C44+D44+E44+F44)))) -> 0 | H44: ='NT Podloga indir.'!G44 -> 0 | I44: =IF(Podloga!$B$8>1,('NT Podloga indir.'!H44-'NT Podloga indir.'!G44),) -> 0 | J44: =IF(Podloga!$B$8>2,('NT Podloga indir.'!I44-'NT Podloga indir.'!H44),) -> 0 | K44: =IF(Podloga!$B$8>3,('NT Podloga indir.'!J44-'NT Podloga indir.'!I44),) -> 0 | L44: 0 | M44: ='NT Podloga indir.'!K44 -> 0 | N44: 0 | O44: 0 | P44: 0 | Q44: 0 | R44: 0 | S44: 0 | T44: 0 | U44: 0 | V44: 0
A45: 3. | B45: Novčani primici od glavnice kredita, pozajmica i drugih posudbi | C45: ='NT Podloga indir.'!C45 -> 0 | D45: ='NT Podloga indir.'!D45-'NT Podloga indir.'!C45 -> 0 | E45: ='NT Podloga indir.'!E45-'NT Podloga indir.'!D45 -> 0 | F45: ='NT Podloga indir.'!F45-'NT Podloga indir.'!E45 -> 0 | G45: =IF(Podloga!$B$8=1,C45,IF(Podloga!$B$8=2,C45+D45,IF(Podloga!$B$8=3,C45+D45+E45,IF(Podloga!$B$8=4,C45+D45+E45+F45)))) -> 0 | H45: ='NT Podloga indir.'!G45 -> 0 | I45: =IF(Podloga!$B$8>1,('NT Podloga indir.'!H45-'NT Podloga indir.'!G45),) -> 0 | J45: =IF(Podloga!$B$8>2,('NT Podloga indir.'!I45-'NT Podloga indir.'!H45),) -> 0 | K45: =IF(Podloga!$B$8>3,('NT Podloga indir.'!J45-'NT Podloga indir.'!I45),) -> 0 | L45: 0 | M45: ='NT Podloga indir.'!K45 -> 0 | N45: 0 | O45: 0 | P45: 0 | Q45: 0 | R45: 0 | S45: 0 | T45: 0 | U45: 0 | V45: 0
A46: 4. | B46: Ostali novčani primici od financijskih aktivnosti | C46: ='NT Podloga indir.'!C46 -> 0 | D46: ='NT Podloga indir.'!D46-'NT Podloga indir.'!C46 -> 0 | E46: ='NT Podloga indir.'!E46-'NT Podloga indir.'!D46 -> 0 | F46: ='NT Podloga indir.'!F46-'NT Podloga indir.'!E46 -> 0 | G46: =IF(Podloga!$B$8=1,C46,IF(Podloga!$B$8=2,C46+D46,IF(Podloga!$B$8=3,C46+D46+E46,IF(Podloga!$B$8=4,C46+D46+E46+F46)))) -> 0 | H46: ='NT Podloga indir.'!G46 -> 0 | I46: =IF(Podloga!$B$8>1,('NT Podloga indir.'!H46-'NT Podloga indir.'!G46),) -> 0 | J46: =IF(Podloga!$B$8>2,('NT Podloga indir.'!I46-'NT Podloga indir.'!H46),) -> 0 | K46: =IF(Podloga!$B$8>3,('NT Podloga indir.'!J46-'NT Podloga indir.'!I46),) -> 0 | L46: 0 | M46: ='NT Podloga indir.'!K46 -> 0 | N46: 0 | O46: 0 | P46: 0 | Q46: 0 | R46: 0 | S46: 0 | T46: 0 | U46: 0 | V46: 0
A47: IV. | B47: Ukupno novčani primici od financijskih aktivnosti | C47: =SUM(C43:C46) -> 0 | D47: 0 | E47: 0 | F47: 0 | G47: 0 | H47: 0 | I47: 0 | J47: 0 | K47: 0 | L47: 0 | M47: 0 | N47: 0 | O47: 0 | P47: 0 | Q47: 0 | R47: 0 | S47: 0 | T47: 0 | U47: 0 | V47: 0
A48: 1. | B48: Novčani izdaci za otplatu glavnice kredita, pozajmica i drugih posudbi i dužničkih financijskih instrumenata | C48: ='NT Podloga indir.'!C48 -> 0 | D48: ='NT Podloga indir.'!D48-'NT Podloga indir.'!C48 -> 0 | E48: ='NT Podloga indir.'!E48-'NT Podloga indir.'!D48 -> 0 | F48: ='NT Podloga indir.'!F48-'NT Podloga indir.'!E48 -> 0 | G48: =IF(Podloga!$B$8=1,C48,IF(Podloga!$B$8=2,C48+D48,IF(Podloga!$B$8=3,C48+D48+E48,IF(Podloga!$B$8=4,C48+D48+E48+F48)))) -> 0 | H48: ='NT Podloga indir.'!G48 -> 0 | I48: =IF(Podloga!$B$8>1,('NT Podloga indir.'!H48-'NT Podloga indir.'!G48),) -> 0 | J48: =IF(Podloga!$B$8>2,('NT Podloga indir.'!I48-'NT Podloga indir.'!H48),) -> 0 | K48: =IF(Podloga!$B$8>3,('NT Podloga indir.'!J48-'NT Podloga indir.'!I48),) -> 0 | L48: 0 | M48: ='NT Podloga indir.'!K48 -> 0 | N48: 0 | O48: 0 | P48: 0 | Q48: 0 | R48: 0 | S48: 0 | T48: 0 | U48: 0 | V48: 0
A49: 2. | B49: Novčani izdaci za isplatu dividendi | C49: ='NT Podloga indir.'!C49 -> 0 | D49: ='NT Podloga indir.'!D49-'NT Podloga indir.'!C49 -> 0 | E49: ='NT Podloga indir.'!E49-'NT Podloga indir.'!D49 -> 0 | F49: ='NT Podloga indir.'!F49-'NT Podloga indir.'!E49 -> 0 | G49: =IF(Podloga!$B$8=1,C49,IF(Podloga!$B$8=2,C49+D49,IF(Podloga!$B$8=3,C49+D49+E49,IF(Podloga!$B$8=4,C49+D49+E49+F49)))) -> 0 | H49: ='NT Podloga indir.'!G49 -> 0 | I49: =IF(Podloga!$B$8>1,('NT Podloga indir.'!H49-'NT Podloga indir.'!G49),) -> 0 | J49: =IF(Podloga!$B$8>2,('NT Podloga indir.'!I49-'NT Podloga indir.'!H49),) -> 0 | K49: =IF(Podloga!$B$8>3,('NT Podloga indir.'!J49-'NT Podloga indir.'!I49),) -> 0 | L49: 0 | M49: ='NT Podloga indir.'!K49 -> 0 | N49: 0 | O49: 0 | P49: 0 | Q49: 0 | R49: 0 | S49: 0 | T49: 0 | U49: 0 | V49: 0
A50: 3. | B50: Novčani izdaci za financijski najam | C50: ='NT Podloga indir.'!C50 -> 0 | D50: ='NT Podloga indir.'!D50-'NT Podloga indir.'!C50 -> 0 | E50: ='NT Podloga indir.'!E50-'NT Podloga indir.'!D50 -> 0 | F50: ='NT Podloga indir.'!F50-'NT Podloga indir.'!E50 -> 0 | G50: =IF(Podloga!$B$8=1,C50,IF(Podloga!$B$8=2,C50+D50,IF(Podloga!$B$8=3,C50+D50+E50,IF(Podloga!$B$8=4,C50+D50+E50+F50)))) -> 0 | H50: ='NT Podloga indir.'!G50 -> 0 | I50: =IF(Podloga!$B$8>1,('NT Podloga indir.'!H50-'NT Podloga indir.'!G50),) -> 0 | J50: =IF(Podloga!$B$8>2,('NT Podloga indir.'!I50-'NT Podloga indir.'!H50),) -> 0 | K50: =IF(Podloga!$B$8>3,('NT Podloga indir.'!J50-'NT Podloga indir.'!I50),) -> 0 | L50: 0 | M50: ='NT Podloga indir.'!K50 -> 0 | N50: 0 | O50: 0 | P50: 0 | Q50: 0 | R50: 0 | S50: 0 | T50: 0 | U50: 0 | V50: 0
A51: 4. | B51: Novčani izdaci za otkup vlastitih dionica i smanjenje temeljnog (upisanog) kapitala | C51: ='NT Podloga indir.'!C51 -> 0 | D51: ='NT Podloga indir.'!D51-'NT Podloga indir.'!C51 -> 0 | E51: ='NT Podloga indir.'!E51-'NT Podloga indir.'!D51 -> 0 | F51: ='NT Podloga indir.'!F51-'NT Podloga indir.'!E51 -> 0 | G51: =IF(Podloga!$B$8=1,C51,IF(Podloga!$B$8=2,C51+D51,IF(Podloga!$B$8=3,C51+D51+E51,IF(Podloga!$B$8=4,C51+D51+E51+F51)))) -> 0 | H51: ='NT Podloga indir.'!G51 -> 0 | I51: =IF(Podloga!$B$8>1,('NT Podloga indir.'!H51-'NT Podloga indir.'!G51),) -> 0 | J51: =IF(Podloga!$B$8>2,('NT Podloga indir.'!I51-'NT Podloga indir.'!H51),) -> 0 | K51: =IF(Podloga!$B$8>3,('NT Podloga indir.'!J51-'NT Podloga indir.'!I51),) -> 0 | L51: 0 | M51: ='NT Podloga indir.'!K51 -> 0 | N51: 0 | O51: 0 | P51: 0 | Q51: 0 | R51: 0 | S51: 0 | T51: 0 | U51: 0 | V51: 0
A52: 5. | B52: Ostali novčani izdaci od financijskih aktivnosti | C52: ='NT Podloga indir.'!C52 -> 0 | D52: ='NT Podloga indir.'!D52-'NT Podloga indir.'!C52 -> 0 | E52: ='NT Podloga indir.'!E52-'NT Podloga indir.'!D52 -> 0 | F52: ='NT Podloga indir.'!F52-'NT Podloga indir.'!E52 -> 0 | G52: =IF(Podloga!$B$8=1,C52,IF(Podloga!$B$8=2,C52+D52,IF(Podloga!$B$8=3,C52+D52+E52,IF(Podloga!$B$8=4,C52+D52+E52+F52)))) -> 0 | H52: ='NT Podloga indir.'!G52 -> 0 | I52: =IF(Podloga!$B$8>1,('NT Podloga indir.'!H52-'NT Podloga indir.'!G52),) -> 0 | J52: =IF(Podloga!$B$8>2,('NT Podloga indir.'!I52-'NT Podloga indir.'!H52),) -> 0 | K52: =IF(Podloga!$B$8>3,('NT Podloga indir.'!J52-'NT Podloga indir.'!I52),) -> 0 | L52: 0 | M52: ='NT Podloga indir.'!K52 -> 0 | N52: 0 | O52: 0 | P52: 0 | Q52: 0 | R52: 0 | S52: 0 | T52: 0 | U52: 0 | V52: 0
A53: V. | B53: Ukupno novčani izdaci od financijskih aktivnosti | C53: =SUM(C48:C52) -> 0 | D53: 0 | E53: 0 | F53: 0 | G53: 0 | H53: 0 | I53: 0 | J53: 0 | K53: 0 | L53: 0 | M53: 0 | N53: 0 | O53: 0 | P53: 0 | Q53: 0 | R53: 0 | S53: 0 | T53: 0 | U53: 0 | V53: 0
A54: C. NETO NOVČANI TOKOVI OD FINANCIJSKIH AKTIVNOSTI | C54: =C47+C53 -> 0 | D54: =D47+D53 -> 0 | E54: 0 | F54: 0 | G54: 0 | H54: 0 | I54: 0 | J54: 0 | K54: 0 | L54: 0 | M54: 0 | N54: 0 | O54: 0 | P54: 0 | Q54: 0 | R54: 0 | S54: 0 | T54: 0 | U54: 0 | V54: 0
A55: 1. | B55: Nerealizirane tečajne razlike po novcu i novčanim ekvivalentima | C55: ='NT Podloga indir.'!C55 -> 0 | D55: ='NT Podloga indir.'!D55-'NT Podloga indir.'!C55 -> 0 | E55: ='NT Podloga indir.'!E55-'NT Podloga indir.'!D55 -> 0 | F55: ='NT Podloga indir.'!F55-'NT Podloga indir.'!E55 -> 0 | G55: =IF(Podloga!$B$8=1,C55,IF(Podloga!$B$8=2,C55+D55,IF(Podloga!$B$8=3,C55+D55+E55,IF(Podloga!$B$8=4,C55+D55+E55+F55)))) -> 0 | H55: ='NT Podloga indir.'!G55 -> 0 | I55: =IF(Podloga!$B$8>1,('NT Podloga indir.'!H55-'NT Podloga indir.'!G55),) -> 0 | J55: =IF(Podloga!$B$8>2,('NT Podloga indir.'!I55-'NT Podloga indir.'!H55),) -> 0 | K55: =IF(Podloga!$B$8>3,('NT Podloga indir.'!J55-'NT Podloga indir.'!I55),) -> 0 | L55: 0 | M55: ='NT Podloga indir.'!K55 -> 0 | N55: =IFERROR(H55/C55*100,) -> 0 | O55: =IFERROR(I55/D55*100,) -> 0 | P55: =IFERROR(J55/E55*100,) -> 0 | Q55: =IFERROR(K55/F55*100,) -> 0 | R55: =IFERROR(L55/G55*100,) -> 0 | S55: =IFERROR(L55/M55*100,) -> 0 | T55: 0 | U55: 0 | V55: 0
A56: D. NETO POVEĆANJE ILI SMANJENE NOVČANIH TOKOVA | C56: =C26+C41+C54+C55 -> 0 | D56: =D26+D41+D54+D55 -> 0 | E56: 0 | F56: 0 | G56: 0 | H56: 0 | I56: 0 | J56: 0 | K56: 0 | L56: 0 | M56: 0 | N56: 0 | O56: 0 | P56: 0 | Q56: 0 | R56: 0 | S56: 0 | T56: 0 | U56: 0 | V56: 0
A57: E. NOVAC I NOVČANI EKVIVALENTI NA POČETKU RAZDOBLJA | C57: ='NT Podloga indir.'!C57 -> 0 | D57: =C58 -> 0 | E57: =D58 -> 0 | F57: =E58 -> 0 | G57: =C57 -> 0 | H57: ='NT Podloga indir.'!G57 -> 0 | I57: =IF(Podloga!$B$8>1,(H58),) -> 0 | J57: =IF(Podloga!$B$8>2,(I58),) -> 0 | K57: =IF(Podloga!$B$8>3,(J58),) -> 0 | L57: =H57 -> 0 | M57: ='NT Podloga indir.'!K57 -> 0 | N57: 0 | O57: 0 | P57: 0 | Q57: 0 | R57: 0 | S57: 0 | T57: 0 | U57: 0 | V57: 0
A58: F. NOVAC I NOVČANI EKVIVALENTI NA KRAJU RAZDOBLJA | C58: =C57+C56 -> 0 | D58: 0 | E58: 0 | F58: 0 | G58: =G57+G56 -> 0 | H58: =H57+H56 -> 0 | I58: 0 | J58: 0 | K58: 0 | L58: 0 | M58: 0 | N58: 0 | O58: 0 | P58: 0 | Q58: 0 | R58: 0 | S58: 0 | T58: 0 | U58: 0 | V58: 0
A63: =HYPERLINK("#Sadržaj!A1","Povratak na sadržaj") -> Povratak na sadržaj

Sheet Ključni poslovni pokazatelji (hidden)
D3: =Naslovna!B3&" - "&Naslovna!C2 -> Ministarstvo državne imovine - Tromjesečni financijski izvještaj o poslovanju
D4: SAŽETI PRIKAZ KLJUČNIH FINANCIJSKIH POKAZATELJA
D5: Društvo: | E5: =Podloga!B2 -> LUKA-VUKOVAR doo
D6: Tip dokumenta: | E6: =Naslovna!C8 &" za "&Podloga!B8& ". kvartal "&Podloga!B7 &" godine" -> Tromjesečni financijski izvještaj o poslovanju za 1. kvartal 2020 godine
D9: Jedinstveni ključni pokazatelji poslovanja
E10: =Podloga!G34 -> 1. kvartal 2020 | F10: =Podloga!H34 -> 2. kvartal 2020 | G10: =Podloga!I34 -> 3. kvartal 2020 | H10: =Podloga!J34 -> 4. kvartal 2020 | I10: =Podloga!F34 -> Kumulativ 2019 | J10: =Podloga!K34 -> Kumulativ 2020 | K10: =Podloga!L34 -> Plan 2020 | L10: Godišnja promjena (kumulativno) | M10: Ostvarenje plana
D11: Glavni financijski pokazatelji (u 000 kuna)
D12: Prihodi | E12: =IFERROR(RDG!H57,) -> 3742653.29 | F12: =IFERROR(RDG!I57,) -> 0 | G12: =IFERROR(RDG!J57,) -> 0 | H12: =IFERROR(RDG!K57,) -> 0 | I12: =IFERROR(RDG!G57,) -> 3307888.44 | J12: =IFERROR(RDG!L57,) -> 3742653.29 | K12: =IFERROR(RDG!M57,) -> 12999585 | L12: =IFERROR(J12/I12,) -> 1.131432743 | M12: =IFERROR(J12/K12,) -> 0.2879055978
D13: Imovina | E13: =IFERROR(Bilanca!H68,) -> 35142678.52 | F13: =IFERROR(Bilanca!I68,) -> 0 | G13: =IFERROR(Bilanca!J68,) -> 0 | H13: =IFERROR(Bilanca!K68,) -> 0 | I13: =IFERROR(Bilanca!G68,) -> 34007293.12 | J13: =IFERROR(Bilanca!L68,) -> 35142678.52 | K13: =IFERROR(Bilanca!M68,) -> 34394865.56 | L13: =IFERROR(J13/I13,) -> 1.033386527 | M13: =IFERROR(J13/K13,) -> 1.021741994
D14: EBITDA | E14: =IFERROR((RDG!H59+RDG!H46+RDG!H48+RDG!H21),) -> 894170.23 | F14: =IFERROR((RDG!I59+RDG!I46+RDG!I48+RDG!I21),) -> 0 | G14: =IFERROR((RDG!J59+RDG!J46+RDG!J48+RDG!J21),) -> 0 | H14: =IFERROR((RDG!K59+RDG!K46+RDG!K48+RDG!K21),) -> 0 | I14: =IFERROR((RDG!G59+RDG!G46+RDG!G48+RDG!G21),) -> 193388.31 | J14: =IFERROR((RDG!L59+RDG!L46+RDG!L48+RDG!L21),) -> 894170.23 | K14: =IFERROR((RDG!M59+RDG!M46+RDG!M48+RDG!M21),) -> 1309204.89 | L14: 4.623703625 | M14: =IFERROR(J14/K14,) -> 0.6829872366
D15: Dobit | E15: =IFERROR(RDG!H59,) -> 570573.44 | F15: =IFERROR(RDG!I59,) -> 0 | G15: =IFERROR(RDG!J59,) -> 0 | H15: =IFERROR(RDG!K59,) -> 0 | I15: =IFERROR(RDG!G59,) -> -175883.76 | J15: =IFERROR(RDG!L59,) -> 570573.44 | K15: =IFERROR(RDG!M59,) -> 2607.89 | L15: -3.244037084 | M15: =IFERROR(J15/K15,) -> 218.7873875
D16: Prihod od osnovne djelatnosti po zaposlenom | E16: =IFERROR(RDG!H5/Podloga!G35,) -> 55025.17941 | F16: =IFERROR(RDG!I5/Podloga!H35,) -> 0 | G16: =IFERROR(RDG!J5/Podloga!I35,) -> 0 | H16: =IFERROR(RDG!K5/Podloga!J35,) -> 0 | I16: =IFERROR(RDG!G5/Podloga!F35,) -> 46489.63414 | J16: =IFERROR(RDG!L5/Podloga!K35,) -> 0 | K16: =IFERROR(RDG!M5/Podloga!L35,) -> 0 | L16: =IFERROR(J16/I16,) -> 0 | M16: =IFERROR(J16/K16,) -> 0
D17: Pokazatelji profitabilnosti
D18: ROA | E18: =IFERROR(RDG!H63/Bilanca!H68,) -> 0.01623591212 | F18: =IFERROR(RDG!I63/Bilanca!I68,) -> 0 | G18: =IFERROR(RDG!J63/Bilanca!J68,) -> 0 | H18: =IFERROR(RDG!K63/Bilanca!K68,) -> 0 | I18: =IFERROR(RDG!G63/Bilanca!G68,) -> -0.005171942365 | J18: =IFERROR(RDG!L63/Bilanca!L68,) -> 0.01623591212 | K18: =IFERROR(RDG!M63/Bilanca!M68,) -> 7.582207279e-05 | L18: -3.139229127 | M18: =IFERROR(J18/K18,) -> 214.1317366
D19: ROE | E19: =IFERROR((RDG!H83/Bilanca!H$75),) -> 0.01812813384 | F19: =IFERROR((RDG!I83/Bilanca!I$75),) -> 0 | G19: =IFERROR((RDG!J83/Bilanca!J$75),) -> 0 | H19: =IFERROR((RDG!K83/Bilanca!K$75),) -> 0 | I19: =IFERROR((RDG!G83/Bilanca!G$75),) -> -0.005773195383 | J19: =IFERROR((RDG!L83/Bilanca!L$75),) -> 0.01812813384 | K19: =IFERROR((RDG!M83/Bilanca!M$75),) -> 8.307401986e-05 | L19: -3.140052023 | M19: 218.2166443
D20: EBITDA Marža | E20: =IFERROR((RDG!H59+RDG!H46+RDG!H48+RDG!H21)/RDG!H57,) -> 0.2389134554 | F20: =IFERROR((RDG!I59+RDG!I46+RDG!I48+RDG!I21)/RDG!I57,) -> 0 | G20: =IFERROR((RDG!J59+RDG!J46+RDG!J48+RDG!J21)/RDG!J57,) -> 0 | H20: =IFERROR((RDG!K59+RDG!K46+RDG!K48+RDG!K21)/RDG!K57,) -> 0 | I20: =IFERROR((RDG!G59+RDG!G46+RDG!G48+RDG!G21)/RDG!G57,) -> 0.05846276666 | J20: =IFERROR((RDG!L59+RDG!L46+RDG!L48+RDG!L21)/RDG!L57,) -> 0.2389134554 | K20: =IFERROR((RDG!M59+RDG!M46+RDG!M48+RDG!M21)/RDG!M57,) -> 0.1007112835 | L20: 4.086591673 | M20: 2.372261053
D21: EBIT Marža | E21: =IFERROR((RDG!H59+RDG!H46+RDG!H48)/RDG!H57,) -> 0.1524570848 | F21: =IFERROR((RDG!I59+RDG!I46+RDG!I48)/RDG!I57,) -> 0 | G21: =IFERROR((RDG!J59+RDG!J46+RDG!J48)/RDG!J57,) -> 0 | H21: =IFERROR((RDG!K59+RDG!K46+RDG!K48)/RDG!K57,) -> 0 | I21: =IFERROR((RDG!G59+RDG!G46+RDG!G48)/RDG!G57,) -> -0.05317100718 | J21: =IFERROR((RDG!L59+RDG!L46+RDG!L48)/RDG!L57,) -> 0.1524570848 | K21: =IFERROR((RDG!M59+RDG!M46+RDG!M48)/RDG!M57,) -> 0.0002022287635 | L21: -2.86729729 | M21: 753.8842754
D22: Neto profitna marža | E22: =IFERROR(RDG!H63/RDG!H57,) -> 0.1524515887 | F22: =IFERROR(RDG!I63/RDG!I57,) -> 0 | G22: =IFERROR(RDG!J63/RDG!J57,) -> 0 | H22: =IFERROR(RDG!K63/RDG!K57,) -> 0 | I22: =IFERROR(RDG!G63/RDG!G57,) -> -0.05317100718 | J22: =IFERROR(RDG!L63/RDG!L57,) -> 0.1524515887 | K22: =IFERROR(RDG!M63/RDG!M57,) -> 0.0002006133273 | L22: -2.867193923 | M22: 759.9275221
D23: Pokazatelji likvidnosti
D24: Tekuća likvidnost | E24: =IFERROR(Bilanca!H40/Bilanca!H115,) -> 13.31245484 | F24: =IFERROR(Bilanca!I40/Bilanca!I115,) -> 0 | G24: =IFERROR(Bilanca!J40/Bilanca!J115,) -> 0 | H24: =IFERROR(Bilanca!K40/Bilanca!K115,) -> 0 | I24: =IFERROR(Bilanca!G40/Bilanca!G115,) -> 18.03487668 | J24: =IFERROR(Bilanca!L40/Bilanca!L115,) -> 13.31245484 | K24: =IFERROR(Bilanca!M40/Bilanca!M115,) -> 19.10108002 | L24: 0.7381505886 | M24: =IFERROR(J24/K24,) -> 0.696947755
D25: Trenutna likvidnost | E25: =IFERROR(Bilanca!H66/Bilanca!H115,) -> 11.08827658 | F25: =IFERROR(Bilanca!I66/Bilanca!I115,) -> 0 | G25: =IFERROR(Bilanca!J66/Bilanca!J115,) -> 0 | H25: =IFERROR(Bilanca!K66/Bilanca!K115,) -> 0 | I25: =IFERROR(Bilanca!G66/Bilanca!G115,) -> 15.31109251 | J25: =IFERROR(Bilanca!L66/Bilanca!L115,) -> 11.08827658 | K25: =IFERROR(Bilanca!M66/Bilanca!M115,) -> 16.33832358 | L25: 0.7241989146 | M25: =IFERROR(J25/K25,) -> 0.6786667266
D26: Financijska stabilnost | E26: =IFERROR(Bilanca!H5/(Bilanca!H75+Bilanca!H103),) -> 0.5184087279 | F26: =IFERROR(Bilanca!I5/(Bilanca!I75+Bilanca!I103),) -> 0 | G26: =IFERROR(Bilanca!J5/(Bilanca!J75+Bilanca!J103),) -> 0 | H26: =IFERROR(Bilanca!K5/(Bilanca!K75+Bilanca!K103),) -> 0 | I26: =IFERROR(Bilanca!G5/(Bilanca!G75+Bilanca!G103),) -> 0.5449387942 | J26: =IFERROR(Bilanca!L5/(Bilanca!L75+Bilanca!L103),) -> 0.5184087279 | K26: =IFERROR(Bilanca!M5/(Bilanca!M75+Bilanca!M103),) -> 0.5130957388 | L26: 0.9513155118 | M26: =IFERROR(J26/K26,) -> 1.010354771
D27: Pokazatelji aktivnosti
D28: Obrtaj imovine | E28: =IFERROR('RDG Podloga'!G57/Bilanca!H68,) -> 0.1064988057 | F28: =IFERROR('RDG Podloga'!H57/Bilanca!I68,) -> 0 | G28: =IFERROR('RDG Podloga'!I57/Bilanca!J68,) -> 0 | H28: =IFERROR('RDG Podloga'!J57/Bilanca!K68,) -> 0 | I28: =IFERROR(RDG!G57/Bilanca!G68,) -> 0.09726997172 | J28: =IFERROR(RDG!L57/Bilanca!L68,) -> 0.1064988057 | K28: =IFERROR(RDG!M57/Bilanca!M68,) -> 0.3779513247 | L28: 1.094878551 | M28: =IFERROR(J28/K28,) -> 0.281779157
D29: Obrtaj potraživanja | E29: =IFERROR(('RDG Podloga'!G6+'RDG Podloga'!G7)/(Bilanca!H52),) -> 1.748464631 | F29: =IFERROR(('RDG Podloga'!H6+'RDG Podloga'!H7)/(Bilanca!I52),) -> 0 | G29: =IFERROR(('RDG Podloga'!I6+'RDG Podloga'!I7)/(Bilanca!J52),) -> 0 | H29: =IFERROR(('RDG Podloga'!J6+'RDG Podloga'!J7)/(Bilanca!K52),) -> 0 | I29: =IFERROR((RDG!G6+RDG!G7)/(Bilanca!G52),) -> 2.112402531 | J29: =IFERROR((RDG!L6+RDG!L7)/(Bilanca!L52),) -> 1.748464631 | K29: =IFERROR((RDG!M6+RDG!M7)/(Bilanca!M52),) -> 7.986659333 | L29: 0.8277137551 | M29: =IFERROR(J29/K29,) -> 0.2189231515
D30: Dani potraživanja | E30: =IFERROR(91/E29,) -> 52.04566245 | F30: =IFERROR(182/F29,) -> 0 | G30: =IFERROR(274/G29,) -> 0 | H30: =IFERROR(365/H29,) -> 0 | I30: =IF(Podloga!$B$8=1,IFERROR(91/I29,),IF(Podloga!$B$8=2,IFERROR(182/I29,),IF(Podloga!$B$8=3,IFERROR(274/I29,),IF(Podloga!$B$8=4,IFERROR(365/I29,))))) -> 43.0789107 | J30: =IF(Podloga!$B$8=1,IFERROR(91/J29,),IF(Podloga!$B$8=2,IFERROR(182/J29,),IF(Podloga!$B$8=3,IFERROR(274/J29,),IF(Podloga!$B$8=4,IFERROR(365/J29,))))) -> 52.04566245 | K30: =IFERROR(365/K29,) -> 45.70121058 | L30: 1.208147133 | M30: =IFERROR(J30/K30,) -> 1.138824591
D31: Pokazatelji zaduženosti
D32: Koeficijent zaduženosti | E32: =IFERROR(((Bilanca!H96+Bilanca!H103+Bilanca!H115+Bilanca!H130)/Bilanca!H68),) -> 0.1043803926 | F32: =IFERROR(((Bilanca!I96+Bilanca!I103+Bilanca!I115+Bilanca!I130)/Bilanca!I68),) -> 0 | G32: =IFERROR(((Bilanca!J96+Bilanca!J103+Bilanca!J115+Bilanca!J130)/Bilanca!J68),) -> 0 | H32: =IFERROR(((Bilanca!K96+Bilanca!K103+Bilanca!K115+Bilanca!K130)/Bilanca!K68),) -> 0 | I32: =IFERROR(((Bilanca!G96+Bilanca!G103+Bilanca!G115+Bilanca!G130)/Bilanca!G68),) -> 0.104145621 | J32: =IFERROR(((Bilanca!L96+Bilanca!L103+Bilanca!L115+Bilanca!L130)/Bilanca!L68),) -> 0.1043803926 | K32: =IFERROR(((Bilanca!M96+Bilanca!M103+Bilanca!M115+Bilanca!M130)/Bilanca!M68),) -> 0.08729500613 | L32: 1.002254263 | M32: =IFERROR(J32/K32,) -> 1.19572009
D33: Koeficijent vlastitog financiranja | E33: =IFERROR((Bilanca!H75/Bilanca!H68),) -> 0.8956196074 | F33: =IFERROR((Bilanca!I75/Bilanca!I68),) -> 0 | G33: =IFERROR((Bilanca!J75/Bilanca!J68),) -> 0 | H33: =IFERROR((Bilanca!K75/Bilanca!K68),) -> 0 | I33: =IFERROR((Bilanca!G75/Bilanca!G68),) -> 0.895854379 | J33: =IFERROR((Bilanca!L75/Bilanca!L68),) -> 0.8956196074 | K33: =IFERROR((Bilanca!M75/Bilanca!M68),) -> 0.9127049939 | L33: 0.9997379355 | M33: =IFERROR(J33/K33,) -> 0.9812804942
D34: Koeficijent financiranja | E34: =IFERROR(((Bilanca!H96+Bilanca!H103+Bilanca!H115+Bilanca!H130)/Bilanca!H75),) -> 0.1165454527 | F34: =IFERROR(((Bilanca!I96+Bilanca!I103+Bilanca!I115+Bilanca!I130)/Bilanca!I75),) -> 0 | G34: =IFERROR(((Bilanca!J96+Bilanca!J103+Bilanca!J115+Bilanca!J130)/Bilanca!J75),) -> 0 | H34: =IFERROR(((Bilanca!K96+Bilanca!K103+Bilanca!K115+Bilanca!K130)/Bilanca!K75),) -> 0 | I34: =IFERROR(((Bilanca!G96+Bilanca!G103+Bilanca!G115+Bilanca!G130)/Bilanca!G75),) -> 0.1162528458 | J34: =IFERROR(((Bilanca!L96+Bilanca!L103+Bilanca!L115+Bilanca!L130)/Bilanca!L75),) -> 0.1165454527 | K34: =IFERROR(((Bilanca!M96+Bilanca!M103+Bilanca!M115+Bilanca!M130)/Bilanca!M75),) -> 0.09564427358 | L34: 1.002516987 | M34: =IFERROR(J34/K34,) -> 1.218530376
D35: Odnos ukupne imovine i kapitala | E35: =IFERROR(Bilanca!H68/Bilanca!H75,) -> 1.116545453 | F35: =IFERROR(Bilanca!I68/Bilanca!I75,) -> 0 | G35: =IFERROR(Bilanca!J68/Bilanca!J75,) -> 0 | H35: =IFERROR(Bilanca!K68/Bilanca!K75,) -> 0 | I35: =IFERROR(Bilanca!G68/Bilanca!G75,) -> 1.116252846 | J35: =IFERROR(Bilanca!L68/Bilanca!L75,) -> 1.116545453 | K35: =IFERROR(Bilanca!M68/Bilanca!M75,) -> 1.095644274 | L35: =IFERROR(J35/I35,) -> 1.000262133 | M35: =IFERROR(J35/K35,) -> 1.019076611
D37: * n/a označava pokazatelje koje nije moguće izračunati na kvartalnoj razini jer koriste stavke iz Izvještaja o financijskoj poziciji i Računa dobiti i gubitka
B85: =HYPERLINK("#Sadržaj!A1","Povratak na sadržaj") -> Povratak na sadržaj

Sheet Financijsko izvješće (hidden)
B1: =Naslovna!B3&" - "&Naslovna!C2 -> Ministarstvo državne imovine - Tromjesečni financijski izvještaj o poslovanju
B2: SAŽETI PRIKAZ IZVJEŠTAJA O FINANCIJSKOM POLOŽAJU
B4: Društvo: | C4: =Podloga!B2 -> LUKA-VUKOVAR doo
B5: Tip dokumenta: | C5: =Naslovna!C8 -> Tromjesečni financijski izvještaj o poslovanju
B6: Sastavlja se za: | C6: =Podloga!B8&". kvartal, " &Podloga!B7 -> 1. kvartal, 2020
B8: Bilanca (u 000 kn)
C9: =Podloga!G34 -> 1. kvartal 2020 | E9: =Podloga!H34 -> 2. kvartal 2020 | G9: =Podloga!I34 -> 3. kvartal 2020 | I9: =Podloga!J34 -> 4. kvartal 2020 | K9: =Podloga!F34 -> Kumulativ 2019 | L9: =Podloga!K34 -> Kumulativ 2020 | M9: =Podloga!L34 -> Plan 2020 | N9: Godišnja promjena (kumulativno) | O9: Ostvarenje plana
B10: Dugotrajna imovina | C10: =Bilanca!H5 -> 16316640.96 | D10: =IFERROR(C10-(Bilanca!F5), ) -> -315216.04 | E10: =Bilanca!I5 -> 0 | F10: =IF(Podloga!$B$8<2," ",IFERROR(E10-C10, )) ->  | G10: =Bilanca!J5 -> 0 | H10: =IF(Podloga!$B$8<3," ",IFERROR(G10-E10,)) ->  | I10: =Bilanca!K5 -> 0 | J10: =IF(Podloga!$B$8<4," ",IFERROR(I10-G10,)) ->  | K10: =Bilanca!G5 -> 16601877.77 | L10: =Bilanca!L5 -> 16316640.96 | M10: =Bilanca!M5 -> 16107289 | N10: =IFERROR(L10/K10,) -> 0.9828190031 | O10: =IFERROR(L10/M10,) -> 1.012997343
B11: Kratkotrajna imovina | C11: =Bilanca!H40 -> 18394322.46 | D11: =IFERROR(C11-(Bilanca!F40), ) -> 956592.46 | E11: =Bilanca!I40 -> 0 | F11: =IF(Podloga!$B$8<2," ",IFERROR(E11-C11, )) ->  | G11: =Bilanca!J40 -> 0 | H11: =IF(Podloga!$B$8<3," ",IFERROR(G11-E11,)) ->  | I11: =Bilanca!K40 -> 0 | J11: =IF(Podloga!$B$8<4," ",IFERROR(I11-G11,)) ->  | K11: =Bilanca!G40 -> 16950383.82 | L11: =Bilanca!L40 -> 18394322.46 | M11: =Bilanca!M40 -> 18155576.56 | N11: =IFERROR(L11/K11,) -> 1.085186191 | O11: =IFERROR(L11/M11,) -> 1.013150004
B12: Ostalo | C12: =Bilanca!H67+Bilanca!H4 -> 431715.1 | D12: =IFERROR(C12-(Bilanca!F67+Bilanca!F4), ) -> 296513.1 | E12: =Bilanca!I67+Bilanca!I4 -> 0 | F12: =IF(Podloga!$B$8<2," ",IFERROR(E12-C12,)) ->  | G12: =Bilanca!J67+Bilanca!J4 -> 0 | H12: =IF(Podloga!$B$8<3," ",IFERROR(G12-E12,)) ->  | I12: =Bilanca!K67+Bilanca!K4 -> 0 | J12: =IF(Podloga!$B$8<4," ",IFERROR(I12-G12,)) ->  | K12: =Bilanca!G67+Bilanca!G4 -> 455031.53 | L12: =Bilanca!L67+Bilanca!L4 -> 431715.1 | M12: =Bilanca!M67+Bilanca!M4 -> 132000 | N12: 0.9487586498 | O12: 3.270568939
B13: Ukupno aktiva | C13: =SUM(C10:C12) -> 35142678.52 | D13: =IFERROR(C13-(Bilanca!F5+Bilanca!F40+Bilanca!F67+Bilanca!F4), ) -> 937889.52 | E13: =SUM(E10:E12) -> 0 | F13: =IF(Podloga!$B$8<2," ",IFERROR(E13-C13,)) ->  | G13: =SUM(G10:G12) -> 0 | H13: =IF(Podloga!$B$8<3," ",IFERROR(G13-E13,)) ->  | I13: =SUM(I10:I12) -> 0 | J13: =IF(Podloga!$B$8<4," ",IFERROR(I13-G13,)) ->  | K13: =SUM(K10:K12) -> 34007293.12 | L13: =SUM(L10:L12) -> 35142678.52 | M13: =SUM(M10:M12) -> 34394865.56 | N13: 1.033386527 | O13: 1.021741994
B15: Kapital i rezerve | C15: =Bilanca!H75 -> 31474471.94 | D15: =IFERROR(C15-(Bilanca!F75), ) -> 570572.94 | E15: =Bilanca!I75 -> 0 | F15: =IF(Podloga!$B$8<2," ",IFERROR(E15-C15,)) ->  | G15: =Bilanca!J75 -> 0 | H15: =IF(Podloga!$B$8<3," ",IFERROR(G15-E15,)) ->  | I15: =Bilanca!K75 -> 0 | J15: =IF(Podloga!$B$8<4," ",IFERROR(I15-G15,)) ->  | K15: =Bilanca!G75 -> 30465582.46 | L15: =Bilanca!L75 -> 31474471.94 | M15: =Bilanca!M75 -> 31392365.56 | N15: 1.033115713 | O15: 1.002615489
B16: Rezerviranja | C16: =Bilanca!H96 -> 0 | D16: =IFERROR(C16-(Bilanca!F96), ) -> 0 | E16: =Bilanca!I96 -> 0 | F16: =IF(Podloga!$B$8<2," ",IFERROR(E16-C16,)) ->  | G16: =Bilanca!J96 -> 0 | H16: =IF(Podloga!$B$8<3," ",IFERROR(G16-E16,)) ->  | I16: =Bilanca!K96 -> 0 | J16: =IF(Podloga!$B$8<4," ",IFERROR(I16-G16,)) ->  | K16: =Bilanca!G96 -> 0 | L16: =Bilanca!L96 -> 0 | M16: =Bilanca!M96 -> 0 | N16: 0 | O16: 0
B17: Dugoročne obveze | C17: =Bilanca!H103 -> 0 | D17: =IFERROR(C17-(Bilanca!F103), ) -> 0 | E17: =Bilanca!I103 -> 0 | F17: =IF(Podloga!$B$8<2," ",IFERROR(E17-C17,)) ->  | G17: =Bilanca!J103 -> 0 | H17: =IF(Podloga!$B$8<3," ",IFERROR(G17-E17,)) ->  | I17: =Bilanca!K103 -> 0 | J17: =IF(Podloga!$B$8<4," ",IFERROR(I17-G17,)) ->  | K17: =Bilanca!G103 -> 0 | L17: =Bilanca!L103 -> 0 | M17: =Bilanca!M103 -> 0 | N17: 0 | O17: 0
B18: Kratkoročne obveze | C18: =Bilanca!H115 -> 1381737.83 | D18: =IFERROR(C18-(Bilanca!F115), ) -> 446160.83 | E18: =Bilanca!I115 -> 0 | F18: =IF(Podloga!$B$8<2," ",IFERROR(E18-C18,)) ->  | G18: =Bilanca!J115 -> 0 | H18: =IF(Podloga!$B$8<3," ",IFERROR(G18-E18,)) ->  | I18: =Bilanca!K115 -> 0 | J18: =IF(Podloga!$B$8<4," ",IFERROR(I18-G18,)) ->  | K18: =Bilanca!G115 -> 939866.91 | L18: =Bilanca!L115 -> 1381737.83 | M18: =Bilanca!M115 -> 950500 | N18: 1.470142012 | O18: 1.453695771
B19: Ostalo | C19: =Bilanca!H130 -> 2286468.75 | D19: =IFERROR(C19-(Bilanca!F130), ) -> -78844.25 | E19: =Bilanca!I130 -> 0 | F19: =IF(Podloga!$B$8<2," ",IFERROR(E19-C19,)) ->  | G19: =Bilanca!J130 -> 0 | H19: =IF(Podloga!$B$8<3," ",IFERROR(G19-E19,)) ->  | I19: =Bilanca!K130 -> 0 | J19: =IF(Podloga!$B$8<4," ",IFERROR(I19-G19,)) ->  | K19: =Bilanca!G130 -> 2601843.75 | L19: =Bilanca!L130 -> 2286468.75 | M19: =Bilanca!M130 -> 2052000 | N19: 0.8787878788 | O19: 1.114263523
B20: Ukupna pasiva | C20: =SUM(C15:C19) -> 35142678.52 | D20: =IFERROR(C20-(Bilanca!F75+Bilanca!F96+Bilanca!F103+Bilanca!F115+Bilanca!F130), ) -> 937889.52 | E20: =SUM(E15:E19) -> 0 | F20: =IF(Podloga!$B$8<2," ",IFERROR(E20-C20,)) ->  | G20: =SUM(G15:G19) -> 0 | H20: =IF(Podloga!$B$8<3," ",IFERROR(G20-E20,)) ->  | I20: =SUM(I15:I19) -> 0 | J20: =IF(Podloga!$B$8<4," ",IFERROR(I20-G20,)) ->  | K20: =SUM(K15:K19) -> 34007293.12 | L20: =SUM(L15:L19) -> 35142678.52 | M20: =SUM(M15:M19) -> 34394865.56 | N20: 1.033386527 | O20: 1.021741994
B22: * Ostvareni rezultati u tekućem kvartalu se uspoređuju s ostvarenim rezultatima iz prethodnog kvartala
B71: Dodatni komentari i pojašnjenja na rezultate
A86: =HYPERLINK("#Sadržaj!A1","Povratak na sadržaj") -> Povratak na sadržaj

Sheet RDG 1 (hidden)
B1: =Naslovna!B3&" - "&Naslovna!C2 -> Ministarstvo državne imovine - Tromjesečni financijski izvještaj o poslovanju
B2: SAŽETI PRIKAZ RAČUNA DOBITI I GUBITKA (1/2)
B4: Društvo: | C4: =Podloga!B2 -> LUKA-VUKOVAR doo
B5: Tip dokumenta: | C5: =Naslovna!C8 -> Tromjesečni financijski izvještaj o poslovanju
B6: Sastavlja se za: | C6: =Podloga!B8&". kvartal, " &Podloga!B7 -> 1. kvartal, 2020
B8: Račun dobiti i gubitka (u 000 kn)
C9: =Podloga!G34 -> 1. kvartal 2020 | E9: =Podloga!H34 -> 2. kvartal 2020 | G9: =Podloga!I34 -> 3. kvartal 2020 | I9: =Podloga!J34 -> 4. kvartal 2020 | K9: =Podloga!F34 -> Kumulativ 2019 | L9: =Podloga!K34 -> Kumulativ 2020 | M9: =Podloga!L34 -> Plan 2020 | N9: Godišnja promjena (kumulativno) | O9: Ostvarenje plana
B10: Poslovni prihodi | C10: =RDG!H5 -> 3741712.2 | D10: =IFERROR(C10-(RDG!F5),) -> 257324.59 | E10: =RDG!I5 -> 0 | F10: =IF(Podloga!$B$8<2," ",IFERROR(E10-C10,)) ->  | G10: =RDG!J5 -> 0 | H10: =IF(Podloga!$B$8<3," ",IFERROR(G10-E10,)) ->  | I10: =RDG!K5 -> 0 | J10: =IF(Podloga!$B$8<4," ",IFERROR(I10-G10,)) ->  | K10: =RDG!G5 -> 3254274.39 | L10: =RDG!L5 -> 3741712.2 | M10: =RDG!M5 -> 12943308 | N10: =IFERROR(L10/K10,) -> 1.149783869 | O10: =IFERROR(L10/M10,) -> 0.2890846915
B11: Poslovni rashodi | C11: =RDG!H11 -> 3172059.28 | D11: =IFERROR(C11-(RDG!F11),) -> -216484.64 | E11: =RDG!I11 -> 0 | F11: =IF(Podloga!$B$8<2," ",IFERROR(E11-C11,)) ->  | G11: =RDG!J11 -> 0 | H11: =IF(Podloga!$B$8<3," ",IFERROR(G11-E11,)) ->  | I11: =RDG!K11 -> 0 | J11: =IF(Podloga!$B$8<4," ",IFERROR(I11-G11,)) ->  | K11: =RDG!G11 -> 3183811.37 | L11: =RDG!L11 -> 3172059.28 | M11: =RDG!M11 -> 12991956.11 | N11: =IFERROR(L11/K11,) -> 0.9963087983 | O11: =IFERROR(L11/M11,) -> 0.2441556339
B12: Financijski i investicijski prihodi | C12: =RDG!H34+RDG!H53+RDG!H54 -> 941.09 | D12: =IFERROR(C12-(RDG!F34+RDG!F53+RDG!F54),) -> -53151.23 | E12: =RDG!I34+RDG!I53+RDG!I54 -> 0 | F12: =IF(Podloga!$B$8<2," ",IFERROR(E12-C12,)) ->  | G12: =RDG!J34+RDG!J53+RDG!J54 -> 0 | H12: =IF(Podloga!$B$8<3," ",IFERROR(G12-E12,)) ->  | I12: =RDG!K34+RDG!K53+RDG!K54 -> 0 | J12: =IF(Podloga!$B$8<4," ",IFERROR(I12-G12,)) ->  | K12: =RDG!G34+RDG!G53+RDG!G54 -> 53614.05 | L12: =RDG!L34+RDG!L53+RDG!L54 -> 941.09 | M12: =RDG!M34+RDG!M53+RDG!M54 -> 56277 | N12: 0.01755304813 | O12: 0.01672246211
B13: Financijski i investicijski rashodi | C13: =RDG!H45+RDG!H55+RDG!H56 -> 20.57 | D13: =IFERROR(C13-(RDG!F45+RDG!F55+RDG!F56),) -> -770.57 | E13: =RDG!I45+RDG!I55+RDG!I56 -> 0 | F13: =IF(Podloga!$B$8<2," ",IFERROR(E13-C13,)) ->  | G13: =RDG!J45+RDG!J55+RDG!J56 -> 0 | H13: =IF(Podloga!$B$8<3," ",IFERROR(G13-E13,)) ->  | I13: =RDG!K45+RDG!K55+RDG!K56 -> 0 | J13: =IF(Podloga!$B$8<4," ",IFERROR(I13-G13,)) ->  | K13: =RDG!G45+RDG!G55+RDG!G56 -> 299960.83 | L13: =RDG!L45+RDG!L55+RDG!L56 -> 20.57 | M13: =RDG!M45+RDG!M55+RDG!M56 -> 5021 | N13: 6.857562036e-05 | O13: 0.004096793467
B14: Dobit/Gubitak prije oporezivanja | C14: =RDG!H59 -> 570573.44 | D14: =IFERROR(C14-(RDG!F59),) -> 421428.57 | E14: =RDG!I59 -> 0 | F14: =IF(Podloga!$B$8<2," ",IFERROR(E14-C14,)) ->  | G14: =RDG!J59 -> 0 | H14: =IF(Podloga!$B$8<3," ",IFERROR(G14-E14,)) ->  | I14: =RDG!K59 -> 0 | J14: =IF(Podloga!$B$8<4," ",IFERROR(I14-G14,)) ->  | K14: =RDG!G59 -> -175883.76 | L14: =RDG!L59 -> 570573.44 | M14: =RDG!M59 -> 2607.89 | N14: -3.244037084 | O14: 218.7873875
B15: Porez na dobit | C15: =RDG!H62 -> 0 | D15: =IFERROR(C15-(RDG!F62),) -> 0 | E15: =RDG!I62 -> 0 | F15: =IF(Podloga!$B$8<2," ",IFERROR(E15-C15,)) ->  | G15: =RDG!J62 -> 0 | H15: =IF(Podloga!$B$8<3," ",IFERROR(G15-E15,)) ->  | I15: =RDG!K62 -> 0 | J15: =IF(Podloga!$B$8<4," ",IFERROR(I15-G15,)) ->  | K15: =RDG!G62 -> 0 | L15: =RDG!L62 -> 0 | M15: =RDG!M62 -> 0 | N15: 0 | O15: 0
B16: Neto dobit | C16: =C10-C11+C12-C13-C15 -> 570573.44 | D16: =IFERROR(C16-(RDG!F5-RDG!F11+RDG!F34+RDG!F53+RDG!F54-(RDG!F45+RDG!F55+RDG!F56)-RDG!F62),) -> 421428.57 | E16: =E10-E11+E12-E13-E15 -> 0 | F16: =IF(Podloga!$B$8<2," ",IFERROR(E16-C16,)) ->  | G16: =G10-G11+G12-G13-G15 -> 0 | H16: =IF(Podloga!$B$8<3," ",IFERROR(G16-E16,)) ->  | I16: =I10-I11+I12-I13-I15 -> 0 | J16: =IF(Podloga!$B$8<4," ",IFERROR(I16-G16,)) ->  | K16: =K10-K11+K12-K13-K15 -> -175883.76 | L16: =L10-L11+L12-L13-L15 -> 570573.44 | M16: =M10-M11+M12-M13-M15 -> 2607.89 | N16: -3.244037084 | O16: 218.7873875
B18: * Ostvareni rezultati u određenom kvartalu se uspoređuju s ostvarenim rezultatima iz prethodnog kvartala
B69: Dodatni komentari i pojašnjenja na rezultate
A86: =HYPERLINK("#Sadržaj!A1","Povratak na sadržaj") -> Povratak na sadržaj

Sheet RDG 2 (hidden)
B1: =Naslovna!B3&" - "&Naslovna!C2 -> Ministarstvo državne imovine - Tromjesečni financijski izvještaj o poslovanju
B2: SAŽETI PRIKAZ RAČUNA DOBITI I GUBITKA (2/2)
B4: Društvo: | C4: =Podloga!B2 -> LUKA-VUKOVAR doo
B5: Tip dokumenta: | C5: =Naslovna!C8 -> Tromjesečni financijski izvještaj o poslovanju
B6: Sastavlja se za: | C6: =Podloga!B8&". kvartal, " &Podloga!B7 -> 1. kvartal, 2020
B65: Dodatni komentari i pojašnjenja na rezultate
B78: =HYPERLINK("#Sadržaj!A1","Povratak na sadržaj") -> Povratak na sadržaj

Sheet Novčani tok (hidden)
B1: =Naslovna!B3&" - "&Naslovna!C2 -> Ministarstvo državne imovine - Tromjesečni financijski izvještaj o poslovanju
B2: ="SAŽETI PRIKAZ NOVČANOG TOKA PO "&(IF(Podloga!B16="Direktna","DIREKTNOJ","INDIREKTNOJ"))&" METODI" -> SAŽETI PRIKAZ NOVČANOG TOKA PO DIREKTNOJ METODI
B4: Društvo: | C4: =Podloga!B2 -> LUKA-VUKOVAR doo
B5: Tip dokumenta: | C5: =Naslovna!C8 -> Tromjesečni financijski izvještaj o poslovanju
B6: Sastavlja se za: | C6: =Podloga!B8&". kvartal, " &Podloga!B7 -> 1. kvartal, 2020
B8: Izvještaj o novčanom toku (u 000 kn)
C9: =Podloga!G34 -> 1. kvartal 2020 | E9: =Podloga!H34 -> 2. kvartal 2020 | G9: =Podloga!I34 -> 3. kvartal 2020 | I9: =Podloga!J34 -> 4. kvartal 2020 | K9: =Podloga!F34 -> Kumulativ 2019 | L9: =Podloga!K34 -> Kumulativ 2020 | M9: =Podloga!L34 -> Plan 2020 | N9: Godišnja promjena (kumulativno) | O9: Ostvarenje plana
B10: Novac i novčani ekvivalenti na početku razdoblja | C10: =IF(Podloga!$B$16="Direktna",'NT dir.'!H49,'NT indir.'!H57) -> 14896150 | D10: =IFERROR(C10-('NT dir.'!F49),) -> -317930.34 | E10: =IF(Podloga!$B$16="Direktna",'NT dir.'!I49,'NT indir.'!I57) -> 0 | F10: =IF(Podloga!$B$8<2," ",IFERROR(E10-C10,)) ->  | G10: =IF(Podloga!$B$16="Direktna",'NT dir.'!J49,'NT indir.'!J57) -> 0 | H10: =IF(Podloga!$B$8<3," ",IFERROR(G10-E10,)) ->  | I10: =IF(Podloga!$B$16="Direktna",'NT dir.'!K49,'NT indir.'!K57) -> 0 | J10: =IF(Podloga!$B$8<4," ",IFERROR(I10-G10,)) ->  | K10: =IF(Podloga!$B$16="Direktna",'NT dir.'!G49,'NT indir.'!G57) -> 13596566.34 | L10: =IF(Podloga!$B$16="Direktna",'NT dir.'!L49,'NT indir.'!L57) -> 14896150 | M10: =IF(Podloga!$B$16="Direktna",'NT dir.'!M49,'NT indir.'!M57) -> 14894150 | N10: =IFERROR(L10/K10,) -> 1.095581754 | O10: =IFERROR(L10/M10,) -> 1.000134281
B11: Neto novčani tok od poslovnih aktivnosti | C11: =IF(Podloga!$B$16="Direktna",'NT dir.'!H18,'NT indir.'!H26) -> 435391.17 | D11: =IFERROR(C11-('NT dir.'!F18),) -> 748186.25 | E11: =IF(Podloga!$B$16="Direktna",'NT dir.'!I18,'NT indir.'!I26) -> 0 | F11: =IF(Podloga!$B$8<2," ",IFERROR(E11-C11,)) ->  | G11: =IF(Podloga!$B$16="Direktna",'NT dir.'!J18,'NT indir.'!J26) -> 0 | H11: =IF(Podloga!$B$8<3," ",IFERROR(G11-E11,)) ->  | I11: =IF(Podloga!$B$16="Direktna",'NT dir.'!K18,'NT indir.'!K26) -> 0 | J11: =IF(Podloga!$B$8<4," ",IFERROR(I11-G11,)) ->  | K11: =IF(Podloga!$B$16="Direktna",'NT dir.'!G18,'NT indir.'!G26) -> 740947.33 | L11: =IF(Podloga!$B$16="Direktna",'NT dir.'!L18,'NT indir.'!L26) -> 435391.17 | M11: =IF(Podloga!$B$16="Direktna",'NT dir.'!M18,'NT indir.'!M26) -> 1151609 | N11: =IFERROR(L11/K11,) -> 0.5876141965 | O11: =IFERROR(L11/M11,) -> 0.3780720453
B12: Neto novčani tok od investicijskih aktivnosti | C12: =IF(Podloga!$B$16="Direktna",'NT dir.'!H33,'NT indir.'!H41) -> -10450 | D12: =IFERROR(C12-('NT dir.'!F33),) -> -5315.08 | E12: =IF(Podloga!$B$16="Direktna",'NT dir.'!I33,'NT indir.'!I41) -> 0 | F12: =IF(Podloga!$B$8<2," ",IFERROR(E12-C12,)) ->  | G12: =IF(Podloga!$B$16="Direktna",'NT dir.'!J33,'NT indir.'!J41) -> 0 | H12: =IF(Podloga!$B$8<3," ",IFERROR(G12-E12,)) ->  | I12: =IF(Podloga!$B$16="Direktna",'NT dir.'!K33,'NT indir.'!K41) -> 0 | J12: =IF(Podloga!$B$8<4," ",IFERROR(I12-G12,)) ->  | K12: =IF(Podloga!$B$16="Direktna",'NT dir.'!G33,'NT indir.'!G41) -> 52875.54 | L12: =IF(Podloga!$B$16="Direktna",'NT dir.'!L33,'NT indir.'!L41) -> -10450 | M12: =IF(Podloga!$B$16="Direktna",'NT dir.'!M33,'NT indir.'!M41) -> -516182 | N12: -0.1976339154 | O12: 0.02024479738
B13: Neto novčani tok od financijskih aktivnosti | C13: =IF(Podloga!$B$16="Direktna",'NT dir.'!H46+'NT dir.'!H47,'NT indir.'!H54+'NT indir.'!H55) -> 0 | D13: =IFERROR(C13-('NT dir.'!F46+'NT dir.'!F47),) -> 0 | E13: =IF(Podloga!$B$16="Direktna",'NT dir.'!I46+'NT dir.'!I47,'NT indir.'!I54+'NT indir.'!I55) -> 0 | F13: =IF(Podloga!$B$8<2," ",IFERROR(E13-C13,)) ->  | G13: =IF(Podloga!$B$16="Direktna",'NT dir.'!J46+'NT dir.'!J47,'NT indir.'!J54+'NT indir.'!J55) -> 0 | H13: =IF(Podloga!$B$8<3," ",IFERROR(G13-E13,)) ->  | I13: =IF(Podloga!$B$16="Direktna",'NT dir.'!K46+'NT dir.'!K47,'NT indir.'!K54+'NT indir.'!K55) -> 0 | J13: =IF(Podloga!$B$8<4," ",IFERROR(I13-G13,)) ->  | K13: =IF(Podloga!$B$16="Direktna",'NT dir.'!G46+'NT dir.'!G47,'NT indir.'!G54+'NT indir.'!G55) -> 0 | L13: =IF(Podloga!$B$16="Direktna",'NT dir.'!L46+'NT dir.'!L47,'NT indir.'!L54+'NT indir.'!L55) -> 0 | M13: =IF(Podloga!$B$16="Direktna",'NT dir.'!M46+'NT dir.'!M47,'NT indir.'!M54+'NT indir.'!M55) -> 0 | N13: 0 | O13: 0
B14: Novac i novčani ekvivalenti na kraju razdoblja | C14: =IF(Podloga!$B$16="Direktna",'NT dir.'!H50,'NT indir.'!H58) -> 15321091.17 | D14: =IFERROR(C14-'NT dir.'!F50,) -> 424940.83 | E14: =IF(Podloga!$B$16="Direktna",'NT dir.'!I50,'NT indir.'!I58) -> 0 | F14: =IF(Podloga!$B$8<2," ",IFERROR(E14-C14,)) ->  | G14: =IF(Podloga!$B$16="Direktna",'NT dir.'!J50,'NT indir.'!J58) -> 0 | H14: =IF(Podloga!$B$8<3," ",IFERROR(G14-E14,)) ->  | I14: =IF(Podloga!$B$16="Direktna",'NT dir.'!K50,'NT indir.'!K58) -> 0 | J14: =IF(Podloga!$B$8<4," ",IFERROR(I14-G14,)) ->  | K14: =IF(Podloga!$B$16="Direktna",'NT dir.'!G50,'NT indir.'!G58) -> 14390389.21 | L14: =IF(Podloga!$B$16="Direktna",'NT dir.'!L50,'NT indir.'!L58) -> 15321091.17 | M14: =IF(Podloga!$B$16="Direktna",'NT dir.'!M50,'NT indir.'!M58) -> 15529577 | N14: 1.064675246 | O14: 0.9865749189
B15: * Ostvareni rezultati u određenom kvartalu se uspoređuju s ostvarenim rezultatima iz prethodnog kvartala
C37: =IF(Podloga!$B$16="Direktna"," "," Nije primjenjivo kod indirektne metode") -> 
C46: =IF(Podloga!$B$16="Direktna"," "," Nije primjenjivo kod indirektne metode") -> 
B74: Dodatni komentari i pojašnjenja na rezultate
A89: =HYPERLINK("#Sadržaj!A1","Povratak na sadržaj") -> Povratak na sadržaj

Sheet Profitabilnost (hidden)
B1: =Naslovna!B3&" - "&Naslovna!C2 -> Ministarstvo državne imovine - Tromjesečni financijski izvještaj o poslovanju
B2: SAŽETI PRIKAZ POKAZATELJA PROFITABILNOSTI
B4: Društvo: | C4: =Podloga!B2 -> LUKA-VUKOVAR doo
B5: Tip dokumenta: | C5: =Naslovna!C8 -> Tromjesečni financijski izvještaj o poslovanju
B6: Sastavlja se za: | C6: =Podloga!B8&". kvartal, " &Podloga!B7 -> 1. kvartal, 2020
B8: Pokazatelji profitabilnosti
C9: =Podloga!G34 -> 1. kvartal 2020 | E9: =Podloga!H34 -> 2. kvartal 2020 | G9: =Podloga!I34 -> 3. kvartal 2020 | I9: =Podloga!J34 -> 4. kvartal 2020 | K9: =Podloga!F34 -> Kumulativ 2019 | L9: =Podloga!K34 -> Kumulativ 2020 | M9: =Podloga!L34 -> Plan 2020 | N9: Godišnja promjena (kumulativno) | O9: Ostvarenje plana
B10: ROA | C10: n/a | D10: =IFERROR(C10-C10,) -> 0 | E10: n/a | F10: =IF(Podloga!$B$8<2," ",IFERROR(E10-C10,)) ->  | G10: n/a | H10: =IF(Podloga!$B$8<3," ",IFERROR(G10-E10,)) ->  | I10: n/a | J10: =IF(Podloga!$B$8<4," ",IFERROR(I10-G10,)) ->  | K10: ='Ključni poslovni pokazatelji'!I18 -> -0.005171942365 | L10: ='Ključni poslovni pokazatelji'!J18 -> 0.01623591212 | M10: ='Ključni poslovni pokazatelji'!K18 -> 7.582207279e-05 | N10: =IFERROR(L10/K10,) -> -3.139229127 | O10: =IFERROR(L10/M10,) -> 214.1317366
B11: ROE | C11: n/a | D11: =IFERROR(C11-C11,) -> 0 | E11: n/a | F11: =IF(Podloga!$B$8<2," ",IFERROR(E11-C11,)) ->  | G11: n/a | H11: =IF(Podloga!$B$8<3," ",IFERROR(G11-E11,)) ->  | I11: n/a | J11: =IF(Podloga!$B$8<4," ",IFERROR(I11-G11,)) ->  | K11: ='Ključni poslovni pokazatelji'!I19 -> -0.005773195383 | L11: ='Ključni poslovni pokazatelji'!J19 -> 0.01812813384 | M11: ='Ključni poslovni pokazatelji'!K19 -> 8.307401986e-05 | N11: =IFERROR(L11/K11,) -> -3.140052023 | O11: =IFERROR(L11/M11,) -> 218.2166443
B12: EBITDA Marža | C12: =IFERROR((RDG!H59+RDG!H46+RDG!H48+RDG!H21)/RDG!H57,) -> 0.2389134554 | D12: =IFERROR(C12-(IFERROR((RDG!F59+RDG!F46+RDG!F48+RDG!F21)/RDG!F57,)),) -> 0.1009143034 | E12: =IFERROR((RDG!I59+RDG!I46+RDG!I48+RDG!I21)/RDG!I57,) -> 0 | F12: =IF(Podloga!$B$8<2," ",IFERROR(E12-C12,)) ->  | G12: =IFERROR((RDG!J59+RDG!J46+RDG!J48+RDG!J21)/RDG!J57,) -> 0 | H12: =IF(Podloga!$B$8<3," ",IFERROR(G12-E12,)) ->  | I12: =IFERROR((RDG!K59+RDG!K46+RDG!K48+RDG!K21)/RDG!K57,) -> 0 | J12: =IF(Podloga!$B$8<4," ",IFERROR(I12-G12,)) ->  | K12: =IFERROR((RDG!G59+RDG!G46+RDG!G48+RDG!G21)/RDG!G57,) -> 0.05846276666 | L12: =IFERROR((RDG!L59+RDG!L46+RDG!L48+RDG!L21)/RDG!L57,) -> 0.2389134554 | M12: =IFERROR((RDG!M59+RDG!M46+RDG!M48+RDG!M21)/RDG!M57,) -> 0.1007112835 | N12: =IFERROR(L12/K12,) -> 4.086591673 | O12: 2.372261053
B13: EBIT Marža | C13: =IFERROR((RDG!H59+RDG!H46+RDG!H48)/RDG!H57,) -> 0.1524570848 | D13: =IFERROR(C13-(IFERROR((RDG!F59+RDG!F46+RDG!F48)/RDG!F57,)),) -> 0.1103065956 | E13: =IFERROR((RDG!I59+RDG!I46+RDG!I48)/RDG!I57,) -> 0 | F13: =IF(Podloga!$B$8<2," ",IFERROR(E13-C13,)) ->  | G13: =IFERROR((RDG!J59+RDG!J46+RDG!J48)/RDG!J57,) -> 0 | H13: =IF(Podloga!$B$8<3," ",IFERROR(G13-E13,)) ->  | I13: =IFERROR((RDG!K59+RDG!K46+RDG!K48)/RDG!K57,) -> 0 | J13: =IF(Podloga!$B$8<4," ",IFERROR(I13-G13,)) ->  | K13: =IFERROR((RDG!G59+RDG!G46+RDG!G48)/RDG!G57,) -> -0.05317100718 | L13: =IFERROR((RDG!L59+RDG!L46+RDG!L48)/RDG!L57,) -> 0.1524570848 | M13: =IFERROR((RDG!M59+RDG!M46+RDG!M48)/RDG!M57,) -> 0.0002022287635 | N13: =IFERROR(L13/K13,) -> -2.86729729 | O13: 753.8842754
B14: Neto profitna marža (neto dobit / ukupni prihod) | C14: =IFERROR(RDG!H63/RDG!H57,) -> 0.1524515887 | D14: =IFERROR(C14-(IFERROR(RDG!F63/RDG!F57,)),) -> 0.1103021706 | E14: =IFERROR(RDG!I63/RDG!I57,) -> 0 | F14: =IF(Podloga!$B$8<2," ",IFERROR(E14-C14,)) ->  | G14: =IFERROR(RDG!J63/RDG!J57,) -> 0 | H14: =IF(Podloga!$B$8<3," ",IFERROR(G14-E14,)) ->  | I14: =IFERROR(RDG!K63/RDG!K57,) -> 0 | J14: =IF(Podloga!$B$8<4," ",IFERROR(I14-G14,)) ->  | K14: =IFERROR(RDG!G63/RDG!G57,) -> -0.05317100718 | L14: =IFERROR(RDG!L63/RDG!L57,) -> 0.1524515887 | M14: =IFERROR(RDG!M63/RDG!M57,) -> 0.0002006133273 | N14: =IFERROR(L14/K14,) -> -2.867193923 | O14: 759.9275221
B16: * Ostvareni rezultati u određenom kvartalu se uspoređuju s ostvarenim rezultatima iz prethodnog kvartala
B17: ** n/a označava pokazatelje koje nije moguće izračunati na kvartalnoj razini jer koriste stavke iz Izvještaja o financijskoj poziciji i Računa dobiti i gubitka
B79: Dodatni komentari i pojašnjenja na rezultate
A97: =HYPERLINK("#Sadržaj!A1","Povratak na sadržaj") -> Povratak na sadržaj

Sheet Likvidnost (hidden)
B1: =Naslovna!B3&" - "&Naslovna!C2 -> Ministarstvo državne imovine - Tromjesečni financijski izvještaj o poslovanju
B2: SAŽETI PRIKAZ POKAZATELJA LIKVIDNOSTI
B4: Društvo: | C4: =Podloga!B2 -> LUKA-VUKOVAR doo
B5: Tip dokumenta: | C5: =Naslovna!C8 -> Tromjesečni financijski izvještaj o poslovanju
B6: Sastavlja se za: | C6: =Podloga!B8&". kvartal, " &Podloga!B7 -> 1. kvartal, 2020
B8: Pokazatelji likvidnosti
C9: =Podloga!G34 -> 1. kvartal 2020 | E9: =Podloga!H34 -> 2. kvartal 2020 | G9: =Podloga!I34 -> 3. kvartal 2020 | I9: =Podloga!J34 -> 4. kvartal 2020 | K9: =Podloga!F34 -> Kumulativ 2019 | L9: =Podloga!K34 -> Kumulativ 2020 | M9: =Podloga!L34 -> Plan 2020 | N9: Godišnja promjena (kumulativno) | O9: Ostvarenje plana
B10: Neto radni kapital (u 000 kn) | C10: =Bilanca!H40-Bilanca!H115 -> 17012584.63 | D10: =IFERROR(C10-(Bilanca!F40-Bilanca!F115),) -> 510431.63 | E10: =Bilanca!I40-Bilanca!I115 -> 0 | F10: =IF(Podloga!$B$8<2," ",IFERROR(E10-C10,)) ->  | G10: =Bilanca!J40-Bilanca!J115 -> 0 | H10: =IF(Podloga!$B$8<3," ",IFERROR(G10-E10,)) ->  | I10: =Bilanca!K40-Bilanca!K115 -> 0 | J10: =IF(Podloga!$B$8<4," ",IFERROR(I10-G10,)) ->  | K10: =Bilanca!G40-Bilanca!G115 -> 16010516.91 | L10: =Bilanca!L40-Bilanca!L115 -> 17012584.63 | M10: =Bilanca!M40-Bilanca!M115 -> 17205076.56 | N10: =IFERROR(L10/K10,) -> 1.062588093 | O10: =IFERROR(L10/M10,) -> 0.9888119109
B11: Koeficijent tekuće likvidnosti | C11: =IFERROR(Bilanca!H40/Bilanca!H115,) -> 13.31245484 | D11: =IFERROR(C11-(IFERROR(Bilanca!F40/Bilanca!F115,)),) -> -5.326021738 | E11: =IFERROR(Bilanca!I40/Bilanca!I115,) -> 0 | F11: =IF(Podloga!$B$8<2," ",IFERROR(E11-C11,)) ->  | G11: =IFERROR(Bilanca!J40/Bilanca!J115,) -> 0 | H11: =IF(Podloga!$B$8<3," ",IFERROR(G11-E11,)) ->  | I11: =IFERROR(Bilanca!K40/Bilanca!K115,) -> 0 | J11: =IF(Podloga!$B$8<4," ",IFERROR(I11-G11,)) ->  | K11: =IFERROR(Bilanca!G40/Bilanca!G115,) -> 18.03487668 | L11: =IFERROR(Bilanca!L40/Bilanca!L115,) -> 13.31245484 | M11: =IFERROR(Bilanca!M40/Bilanca!M115,) -> 19.10108002 | N11: =IFERROR(L11/K11,) -> 0.7381505886 | O11: =IFERROR(L11/M11,) -> 0.696947755
B12: Koeficijent trenutne likvidnosti | C12: =IFERROR(Bilanca!H66/Bilanca!H115,) -> 11.08827658 | D12: =IFERROR(C12-(IFERROR(Bilanca!F66/Bilanca!F115,)),) -> -4.83147134 | E12: =IFERROR(Bilanca!I66/Bilanca!I115,) -> 0 | F12: =IF(Podloga!$B$8<2," ",IFERROR(E12-C12,)) ->  | G12: =IFERROR(Bilanca!J66/Bilanca!J115,) -> 0 | H12: =IF(Podloga!$B$8<3," ",IFERROR(G12-E12,)) ->  | I12: =IFERROR(Bilanca!K66/Bilanca!K115,) -> 0 | J12: =IF(Podloga!$B$8<4," ",IFERROR(I12-G12,)) ->  | K12: =IFERROR(Bilanca!G66/Bilanca!G115,) -> 15.31109251 | L12: =IFERROR(Bilanca!L66/Bilanca!L115,) -> 11.08827658 | M12: =IFERROR(Bilanca!M66/Bilanca!M115,) -> 16.33832358 | N12: 0.7241989146 | O12: 0.6786667266
B13: Koeficijent financijske stabilnosti | C13: =IFERROR(Bilanca!H5/(Bilanca!H75+Bilanca!H103),) -> 0.5184087279 | D13: =IFERROR(C13-(IFERROR(Bilanca!F5/(Bilanca!F75+Bilanca!F103),)),) -> -0.01977116324 | E13: =IFERROR(Bilanca!I5/(Bilanca!I75+Bilanca!I103),) -> 0 | F13: =IF(Podloga!$B$8<2," ",IFERROR(E13-C13,)) ->  | G13: =IFERROR(Bilanca!J5/(Bilanca!J75+Bilanca!J103),) -> 0 | H13: =IF(Podloga!$B$8<3," ",IFERROR(G13-E13,)) ->  | I13: =IFERROR(Bilanca!K5/(Bilanca!K75+Bilanca!K103),) -> 0 | J13: =IF(Podloga!$B$8<4," ",IFERROR(I13-G13,)) ->  | K13: =IFERROR(Bilanca!G5/(Bilanca!G75+Bilanca!G103),) -> 0.5449387942 | L13: =IFERROR(Bilanca!L5/(Bilanca!L75+Bilanca!L103),) -> 0.5184087279 | M13: =IFERROR(Bilanca!M5/(Bilanca!M75+Bilanca!M103),) -> 0.5130957388 | N13: 0.9513155118 | O13: 1.010354771
B15: * Ostvareni rezultati u određenom kvartalu se uspoređuju s ostvarenim rezultatima iz prethodnog kvartala
B75: Dodatni komentari i pojašnjenja na rezultate
A89: =HYPERLINK("#Sadržaj!A1","Povratak na sadržaj") -> Povratak na sadržaj

Sheet _TM_Aktivnost (hidden)
A1: Left | B1: Top | C1: Right | D1: Bottom | E1: Ref
A2: 7 | B2: 12 | C2: 7 | D2: 16 | E2: $G$12:$G$16
A3: 4 | B3: 13 | C3: 4 | D3: 16 | E3: $D$13:$D$16

Sheet Aktivnost (hidden)
B1: =Naslovna!B3&" - "&Naslovna!C2 -> Ministarstvo državne imovine - Tromjesečni financijski izvještaj o poslovanju
B2: SAŽETI PRIKAZ POKAZATELJA AKTIVNOSTI
B4: Društvo: | C4: =Podloga!B2 -> LUKA-VUKOVAR doo
B5: Tip dokumenta: | C5: =Naslovna!C8 -> Tromjesečni financijski izvještaj o poslovanju
B6: Sastavlja se za: | C6: =Podloga!B8&". kvartal, " &Podloga!B7 -> 1. kvartal, 2020
B8: Pokazatelji aktivnosti i ekonomičnosti
C9: =Podloga!G34 -> 1. kvartal 2020 | E9: =Podloga!H34 -> 2. kvartal 2020 | G9: =Podloga!I34 -> 3. kvartal 2020 | I9: =Podloga!J34 -> 4. kvartal 2020 | K9: =Podloga!F34 -> Kumulativ 2019 | L9: =Podloga!K34 -> Kumulativ 2020 | M9: =Podloga!L34 -> Plan 2020 | N9: Godišnja promjena (kumulativno) | O9: Ostvarenje plana
B10: Koeficijent obrtaja imovine | C10: =IFERROR('RDG Podloga'!G57/Bilanca!H68,) -> 0.1064988057 | D10: =IFERROR(C10-(IFERROR('RDG Podloga'!F57/Bilanca!F68,)),) -> -0.3071874182 | E10: =IFERROR('RDG Podloga'!H57/Bilanca!I68,) -> 0 | F10: =IF(Podloga!$B$8<2," ",IFERROR(E10-C10,)) ->  | G10: =IFERROR('RDG Podloga'!I57/Bilanca!J68,) -> 0 | H10: =IF(Podloga!$B$8<3," ",IFERROR(G10-E10,)) ->  | I10: =IFERROR('RDG Podloga'!J57/Bilanca!K68,) -> 0 | J10: =IF(Podloga!$B$8<4," ",IFERROR(I10-G10,)) ->  | K10: =IFERROR(RDG!G57/Bilanca!G68,) -> 0.09726997172 | L10: =IFERROR(RDG!L57/Bilanca!L68,) -> 0.1064988057 | M10: =IFERROR(RDG!M57/Bilanca!M68,) -> 0.3779513247 | N10: =IFERROR(L10/K10,) -> 1.094878551 | O10: =IFERROR(L10/M10,) -> 0.281779157
B11: Koeficijent obrtaja potraživanja | C11: =IFERROR(('RDG Podloga'!G6+'RDG Podloga'!G7)/(Bilanca!H52),) -> 1.748464631 | D11: =IFERROR(C11-(IFERROR(('RDG Podloga'!F6+'RDG Podloga'!F7)/(Bilanca!F34+Bilanca!F49),)),) -> -6.127620734 | E11: =IFERROR(('RDG Podloga'!H6+'RDG Podloga'!H7)/(Bilanca!I52),) -> 0 | F11: =IF(Podloga!$B$8<2," ",IFERROR(E11-C11,)) ->  | G11: =IFERROR(('RDG Podloga'!I6+'RDG Podloga'!I7)/(Bilanca!J52),) -> 0 | H11: =IF(Podloga!$B$8<3," ",IFERROR(G11-E11,)) ->  | I11: =IFERROR(('RDG Podloga'!J6+'RDG Podloga'!J7)/(Bilanca!K52),) -> 0 | J11: =IF(Podloga!$B$8<4," ",IFERROR(I11-G11,)) ->  | K11: =IFERROR((RDG!G6+RDG!G7)/(Bilanca!G52),) -> 2.112402531 | L11: =IFERROR((RDG!L6+RDG!L7)/(Bilanca!L52),) -> 1.748464631 | M11: =IFERROR((RDG!M6+RDG!M7)/(Bilanca!M52),) -> 7.986659333 | N11: =IFERROR(L11/K11,) -> 0.8277137551 | O11: =IFERROR(L11/M11,) -> 0.2189231515
B12: Koeficijent obrtaja neto radnog kapitala | C12: =IFERROR('RDG Podloga'!G57/(Bilanca!H40-Bilanca!H115),) -> 0.219993221 | D12: =IFERROR(C12-(IFERROR('RDG Podloga'!F57/(Bilanca!F40-Bilanca!F115),)),) -> -0.6374736805 | E12: =IFERROR('RDG Podloga'!H57/(Bilanca!I40-Bilanca!I115),) -> 0 | F12: =IF(Podloga!$B$8<2," ",IFERROR(E12-C12,)) ->  | G12: =IFERROR('RDG Podloga'!I57/(Bilanca!J40-Bilanca!J115),) -> 0 | H12: =IF(Podloga!$B$8<3," ",IFERROR(G12-E12,)) ->  | I12: =IFERROR('RDG Podloga'!J57/(Bilanca!K40-Bilanca!K115),) -> 0 | J12: =IF(Podloga!$B$8<4," ",IFERROR(I12-G12,)) ->  | K12: =IFERROR(RDG!G57/(Bilanca!G40-Bilanca!G115),) -> 0.2066072232 | L12: =IFERROR(RDG!L57/(Bilanca!L40-Bilanca!L115),) -> 0.219993221 | M12: =IFERROR(RDG!M57/(Bilanca!M40-Bilanca!M115),) -> 0.7555668209 | N12: 1.064789593 | O12: 0.2911631571
B13: Dani naplate potraživanja | C13: =IFERROR(91/C11,) -> 52.04566245 | D13: =IFERROR(C13-(IFERROR(365/(IFERROR(('RDG Podloga'!F6+'RDG Podloga'!F7)/(Bilanca!F34+Bilanca!F49),)),)),) -> 5.702843262 | E13: =IFERROR(182/E11,) -> 0 | F13: =IF(Podloga!$B$8<2," ",IFERROR(E13-C13,)) ->  | G13: =IFERROR(274/G11,) -> 0 | H13: =IF(Podloga!$B$8<3," ",IFERROR(G13-E13,)) ->  | I13: =IFERROR(365/I11,) -> 0 | J13: =IF(Podloga!$B$8<4," ",IFERROR(I13-G13,)) ->  | K13: =IF(Podloga!$B$8=1,IFERROR(91/K11,),IF(Podloga!$B$8=2,IFERROR(182/K11,),IF(Podloga!$B$8=3,IFERROR(274/K11,),IF(Podloga!$B$8=4,IFERROR(365/K11,))))) -> 43.0789107 | L13: =IF(Podloga!$B$8=1,IFERROR(91/L11,),IF(Podloga!$B$8=2,IFERROR(182/L11,),IF(Podloga!$B$8=3,IFERROR(274/L11,),IF(Podloga!$B$8=4,IFERROR(365/L11,))))) -> 52.04566245 | M13: =IFERROR(365/M11,) -> 45.70121058 | N13: 1.208147133 | O13: 1.138824591
B14: Dani vezivanja zaliha | C14: =IFERROR(91/(('RDG Podloga'!G6+'RDG Podloga'!G7)/Bilanca!H41),) -> 22.72617599 | D14: =IFERROR(C14-(IFERROR(365/(('RDG Podloga'!F6+'RDG Podloga'!F7)/Bilanca!F41),)),) -> -0.6547616648 | E14: =IFERROR(182/(('RDG Podloga'!H6+'RDG Podloga'!H7)/Bilanca!I41),) -> 0 | F14: =IF(Podloga!$B$8<2," ",IFERROR(E14-C14,)) ->  | G14: =IFERROR(274/(('RDG Podloga'!I6+'RDG Podloga'!I7)/Bilanca!J41),) -> 0 | H14: =IF(Podloga!$B$8<3," ",IFERROR(G14-E14,)) ->  | I14: =IFERROR(365/(('RDG Podloga'!J6+'RDG Podloga'!J7)/Bilanca!K41),) -> 0 | J14: =IF(Podloga!$B$8<4," ",IFERROR(I14-G14,)) ->  | K14: =IF(Podloga!$B$8=1,IFERROR(365/((RDG!G6+RDG!G7)/Bilanca!G41),),IF(Podloga!$B$8=2,IFERROR(365/((RDG!G6+RDG!G7)/Bilanca!G41),),IF(Podloga!$B$8=3,IFERROR(365/((RDG!G6+RDG!G7)/Bilanca!G41),),IF(Podloga!$B$8=4,IFERROR(365/((RDG!G6+RDG!G7)/Bilanca!G41),))))) -> 114.7635649 | L14: =IF(Podloga!$B$8=1,IFERROR(365/((RDG!L6+RDG!L7)/Bilanca!L41),),IF(Podloga!$B$8=2,IFERROR(365/((RDG!L6+RDG!L7)/Bilanca!L41),),IF(Podloga!$B$8=3,IFERROR(365/((RDG!L6+RDG!L7)/Bilanca!L41),),IF(Podloga!$B$8=4,IFERROR(365/((RDG!L6+RDG!L7)/Bilanca!L41),))))) -> 91.15444214 | M14: =IFERROR(365/((RDG!M6+RDG!M7)/Bilanca!M41),) -> 26.68950698 | N14: 0.7942803295 | O14: 3.415366279
B15: Dani plaćanja dobavljačima | C15: =IFERROR(91/('RDG Podloga'!G13/(Bilanca!H123)),) -> 64.09468877 | D15: =IFERROR(C15-(IFERROR(365/('RDG Podloga'!F13/(Bilanca!F111+Bilanca!F123)),)),) -> 40.78088593 | E15: =IFERROR(182/('RDG Podloga'!H13/(Bilanca!I123)),) -> 0 | F15: =IF(Podloga!$B$8<2," ",IFERROR(E15-C15,)) ->  | G15: =IFERROR(274/('RDG Podloga'!I13/(Bilanca!J123)),) -> 0 | H15: =IF(Podloga!$B$8<3," ",IFERROR(G15-E15,)) ->  | I15: =IFERROR(365/('RDG Podloga'!J13/(Bilanca!K123)),) -> 0 | J15: =IF(Podloga!$B$8<4," ",IFERROR(I15-G15,)) ->  | K15: =IF(Podloga!$B$8=1,IFERROR(365/(RDG!G13/(Bilanca!G123)),),IF(Podloga!$B$8=2,IFERROR(365/(RDG!G13/(Bilanca!G123)),),IF(Podloga!$B$8=3,IFERROR(365/(RDG!G13/(Bilanca!G123)),),IF(Podloga!$B$8=4,IFERROR(365/(RDG!G13/(Bilanca!G123)),))))) -> 119.1850983 | L15: =IF(Podloga!$B$8=1,IFERROR(365/(RDG!L13/(Bilanca!L123)),),IF(Podloga!$B$8=2,IFERROR(365/(RDG!L13/(Bilanca!L123)),),IF(Podloga!$B$8=3,IFERROR(365/(RDG!L13/(Bilanca!L123)),),IF(Podloga!$B$8=4,IFERROR(365/(RDG!L13/(Bilanca!L123)),))))) -> 257.0830923 | M15: =IFERROR(365/(RDG!M13/(Bilanca!M123)),) -> 24.29055404 | N15: 2.157007008 | O15: 10.58366524
B16: Ekonomičnost ukupnog poslovanja | C16: =IFERROR(RDG!H57/RDG!H58,) -> 1.179873606 | D16: =IFERROR(C16-(IFERROR(RDG!F57/RDG!F58,)),) -> 0.1358694375 | E16: =IFERROR(RDG!I57/RDG!I58,) -> 0 | F16: =IF(Podloga!$B$8<2," ",IFERROR(E16-C16,)) ->  | G16: =IFERROR(RDG!J57/RDG!J58,) -> 0 | H16: =IF(Podloga!$B$8<3," ",IFERROR(G16-E16,)) ->  | I16: =IFERROR(RDG!K57/RDG!K58,) -> 0 | J16: =IF(Podloga!$B$8<4," ",IFERROR(I16-G16,)) ->  | K16: =IFERROR(RDG!G57/RDG!G58,) -> 0.9495134154 | L16: =IFERROR(RDG!L57/RDG!L58,) -> 1.179873606 | M16: =IFERROR(RDG!M57/RDG!M58,) -> 1.000200654 | N16: 1.242608674 | O16: 1.179636907
B18: * Ostvareni rezultati u određenom kvartalu se uspoređuju s ostvarenim rezultatima iz prethodnog kvartala
B77: Dodatni komentari i pojašnjenja na rezultate
A91: =HYPERLINK("#Sadržaj!A1","Povratak na sadržaj") -> Povratak na sadržaj

Sheet Zaduženost (hidden)
B1: =Naslovna!B3&" - "&Naslovna!C2 -> Ministarstvo državne imovine - Tromjesečni financijski izvještaj o poslovanju
B2: SAŽETI PRIKAZ POKAZATELJA ZADUŽENOSTI
B4: Društvo: | C4: =Podloga!B2 -> LUKA-VUKOVAR doo
B5: Tip dokumenta: | C5: =Naslovna!C8 -> Tromjesečni financijski izvještaj o poslovanju
B6: Sastavlja se za: | C6: =Podloga!B8&". kvartal, " &Podloga!B7 -> 1. kvartal, 2020
B8: Pokazatelji zaduženosti
C9: =Podloga!G34 -> 1. kvartal 2020 | E9: =Podloga!H34 -> 2. kvartal 2020 | G9: =Podloga!I34 -> 3. kvartal 2020 | I9: =Podloga!J34 -> 4. kvartal 2020 | K9: =Podloga!F34 -> Kumulativ 2019 | L9: =Podloga!K34 -> Kumulativ 2020 | M9: =Podloga!L34 -> Plan 2020 | N9: Godišnje ostvarenje (kumulativno) | O9: Ostvarenje plana
B10: Koeficijent zaduženosti | C10: =IFERROR(((Bilanca!H96+Bilanca!H103+Bilanca!H115+Bilanca!H130)/Bilanca!H68),) -> 0.1043803926 | D10: =IFERROR(C10-(IFERROR(((Bilanca!F96+Bilanca!F103+Bilanca!F115+Bilanca!F130)/Bilanca!F68),)),) -> 0.007876654457 | E10: =IFERROR(((Bilanca!I96+Bilanca!I103+Bilanca!I115+Bilanca!I130)/Bilanca!I68),) -> 0 | F10: =IF(Podloga!$B$8<2," ",IFERROR(E10-C10,)) ->  | G10: =IFERROR(((Bilanca!J96+Bilanca!J103+Bilanca!J115+Bilanca!J130)/Bilanca!J68),) -> 0 | H10: =IF(Podloga!$B$8<3," ",IFERROR(G10-E10,)) ->  | I10: =IFERROR(((Bilanca!K96+Bilanca!K103+Bilanca!K115+Bilanca!K130)/Bilanca!K68),) -> 0 | J10: =IF(Podloga!$B$8<4," ",IFERROR(I10-G10,)) ->  | K10: =IFERROR(((Bilanca!G96+Bilanca!G103+Bilanca!G115+Bilanca!G130)/Bilanca!G68),) -> 0.104145621 | L10: =IFERROR(((Bilanca!L96+Bilanca!L103+Bilanca!L115+Bilanca!L130)/Bilanca!L68),) -> 0.1043803926 | M10: =IFERROR(((Bilanca!M96+Bilanca!M103+Bilanca!M115+Bilanca!M130)/Bilanca!M68),) -> 0.08729500613 | N10: =IFERROR(L10/K10,) -> 1.002254263 | O10: =IFERROR(L10/M10,) -> 1.19572009
B11: Koeficijent vlastitog financiranja (kapital/ukupna imovina) | C11: =IFERROR((Bilanca!H75/Bilanca!H68),) -> 0.8956196074 | D11: =IFERROR(C11-(IFERROR((Bilanca!F75/Bilanca!F68),)),) -> -0.007876654457 | E11: =IFERROR((Bilanca!I75/Bilanca!I68),) -> 0 | F11: =IF(Podloga!$B$8<2," ",IFERROR(E11-C11,)) ->  | G11: =IFERROR((Bilanca!J75/Bilanca!J68),) -> 0 | H11: =IF(Podloga!$B$8<3," ",IFERROR(G11-E11,)) ->  | I11: =IFERROR((Bilanca!K75/Bilanca!K68),) -> 0 | J11: =IF(Podloga!$B$8<4," ",IFERROR(I11-G11,)) ->  | K11: =IFERROR((Bilanca!G75/Bilanca!G68),) -> 0.895854379 | L11: =IFERROR((Bilanca!L75/Bilanca!L68),) -> 0.8956196074 | M11: =IFERROR((Bilanca!M75/Bilanca!M68),) -> 0.9127049939 | N11: =IFERROR(L11/K11,) -> 0.9997379355 | O11: =IFERROR(L11/M11,) -> 0.9812804942
B12: Koeficijent financiranja (ukupne obveze/kapital) | C12: =IFERROR(((Bilanca!H96+Bilanca!H103+Bilanca!H115+Bilanca!H130)/Bilanca!H75),) -> 0.1165454527 | D12: =IFERROR(C12-(IFERROR(((Bilanca!F96+Bilanca!F103+Bilanca!F115+Bilanca!F130)/Bilanca!F75),)),) -> 0.009734011182 | E12: =IFERROR(((Bilanca!I96+Bilanca!I103+Bilanca!I115+Bilanca!I130)/Bilanca!I75),) -> 0 | F12: =IF(Podloga!$B$8<2," ",IFERROR(E12-C12,)) ->  | G12: =IFERROR(((Bilanca!J96+Bilanca!J103+Bilanca!J115+Bilanca!J130)/Bilanca!J75),) -> 0 | H12: =IF(Podloga!$B$8<3," ",IFERROR(G12-E12,)) ->  | I12: =IFERROR(((Bilanca!K96+Bilanca!K103+Bilanca!K115+Bilanca!K130)/Bilanca!K75),) -> 0 | J12: =IF(Podloga!$B$8<4," ",IFERROR(I12-G12,)) ->  | K12: =IFERROR(((Bilanca!G96+Bilanca!G103+Bilanca!G115+Bilanca!G130)/Bilanca!G75),) -> 0.1162528458 | L12: =IFERROR(((Bilanca!L96+Bilanca!L103+Bilanca!L115+Bilanca!L130)/Bilanca!L75),) -> 0.1165454527 | M12: =IFERROR(((Bilanca!M96+Bilanca!M103+Bilanca!M115+Bilanca!M130)/Bilanca!M75),) -> 0.09564427358 | N12: 1.002516987 | O12: 1.218530376
B13: Odnos ukupne imovine i kapitala | C13: =IFERROR(Bilanca!H68/Bilanca!H75,) -> 1.116545453 | D13: =IFERROR(C13-(IFERROR(((Bilanca!F97+Bilanca!F104+Bilanca!F116+Bilanca!F131)/Bilanca!F76),)),) -> 0.1588626925 | E13: =IFERROR(Bilanca!I68/Bilanca!I75,) -> 0 | F13: =IF(Podloga!$B$8<2," ",IFERROR(E13-C13,)) ->  | G13: =IFERROR(Bilanca!J68/Bilanca!J75,) -> 0 | H13: =IF(Podloga!$B$8<3," ",IFERROR(G13-E13,)) ->  | I13: =IFERROR(Bilanca!K68/Bilanca!K75,) -> 0 | J13: =IF(Podloga!$B$8<4," ",IFERROR(I13-G13,)) ->  | K13: =IFERROR(Bilanca!G68/Bilanca!G75,) -> 1.116252846 | L13: =IFERROR(Bilanca!L68/Bilanca!L75,) -> 1.116545453 | M13: =IFERROR(Bilanca!M68/Bilanca!M75,) -> 1.095644274 | N13: 1.000262133 | O13: 1.019076611
B15: * Ostvareni rezultati u određenom kvartalu se uspoređuju s ostvarenim rezultatima iz prethodnog kvartala
B77: Dodatni komentari i pojašnjenja na rezultate
A91: =HYPERLINK("#Sadržaj!A1","Povratak na sadržaj") -> Povratak na sadržaj

Sheet DuPont (hidden)
B1: =Naslovna!B3&" - "&Naslovna!C2 -> Ministarstvo državne imovine - Tromjesečni financijski izvještaj o poslovanju
B2: DuPont analiza | R2: ROE
T3: Index
B4: Društvo: | G4: =Podloga!B2 -> LUKA-VUKOVAR doo | R4: =LEFT(Podloga!G34,7) -> 1. kvar | S4: =O14*W14 -> 0.01812813384
B5: Tip dokumenta: | G5: =Naslovna!C8 -> Tromjesečni financijski izvještaj o poslovanju | R5: =LEFT(Podloga!H34,7) -> 2. kvar | S5: 0 | T5: =IF(Podloga!$B$8<2," ",IFERROR((S5/S4)*100,)) -> 
B6: Sastavlja se za: | G6: =Podloga!B8&". kvartal, " &Podloga!B7 -> 1. kvartal, 2020 | R6: =LEFT(Podloga!I34,7) -> 3. kvar | S6: 0 | T6: =IF(Podloga!$B$8<3," ",IFERROR((S6/S5)*100,)) -> 
R7: =LEFT(Podloga!J34,7) -> 4. kvar | S7: 0 | T7: =IF(Podloga!$B$8<4," ",IFERROR((S7/S5)*100,)) -> 
R8: =LEFT(Podloga!K34,7) -> Kumulat | S8: 0.01812813384
N12: ROA | V12: Odnos imovine i kapitala
P13: Index | X13: Index
N14: =LEFT(Podloga!G34,7) -> 1. kvar | O14: =S17*K17 -> 0.01623591212 | V14: =LEFT(Podloga!G34,7) -> 1. kvar | W14: =IFERROR(Bilanca!H68/Bilanca!H75,) -> 1.116545453
J15: Neto profitna marža | N15: =LEFT(Podloga!H34,7) -> 2. kvar | O15: =S18*K18 -> 0 | P15: =IF(Podloga!$B$8<2," ",IFERROR((O15/O14)*100,)) ->  | R15: Koeficijent obrtaja imovine | V15: =LEFT(Podloga!H34,7) -> 2. kvar | W15: =IFERROR(Bilanca!I68/Bilanca!I75,) -> 0 | X15: =IF(Podloga!$B$8<2," ",IFERROR((W15/W14)*100,)) -> 
L16: Index | N16: =LEFT(Podloga!I34,7) -> 3. kvar | O16: =S19*K19 -> 0 | P16: =IF(Podloga!$B$8<3," ",IFERROR((O16/O15)*100,)) ->  | T16: Index | V16: =LEFT(Podloga!I34,7) -> 3. kvar | W16: =IFERROR(Bilanca!J68/Bilanca!J75,) -> 0 | X16: =IF(Podloga!$B$8<3," ",IFERROR((W16/W15)*100,)) -> 
J17: =LEFT(Podloga!G34,7) -> 1. kvar | K17: =IFERROR(G26/C36,) -> 0.1524515887 | N17: =LEFT(Podloga!J34,7) -> 4. kvar | O17: =S20*K20 -> 0 | P17: =IF(Podloga!$B$8<4," ",IFERROR((O17/O15)*100,)) ->  | R17: =LEFT(Podloga!G34,7) -> 1. kvar | S17: =IFERROR(O26/W26,) -> 0.1064988057 | V17: =LEFT(Podloga!J34,7) -> 4. kvar | W17: =IFERROR(Bilanca!K68/Bilanca!K75,) -> 0 | X17: =IF(Podloga!$B$8<4," ",IFERROR((W17/W15)*100,)) -> 
J18: =LEFT(Podloga!H34,7) -> 2. kvar | K18: =IFERROR(G27/C37,) -> 0 | L18: =IF(Podloga!$B$8<2," ",IFERROR(K18/K17*100,)) ->  | N18: =LEFT(Podloga!K34,7) -> Kumulat | O18: =S21*K21 -> 0.01623591212 | R18: =LEFT(Podloga!H34,7) -> 2. kvar | S18: =IFERROR(O27/W27,) -> 0 | T18: =IF(Podloga!$B$8<2," ",IFERROR((S18/S17)*100,)) ->  | V18: =LEFT(Podloga!K34,7) -> Kumulat | W18: =IFERROR(Bilanca!L68/Bilanca!L75,) -> 1.116545453
J19: =LEFT(Podloga!I34,7) -> 3. kvar | K19: =IFERROR(G28/C38,) -> 0 | L19: =IF(Podloga!$B$8<3," ",IFERROR(K19/K18*100,)) ->  | R19: =LEFT(Podloga!I34,7) -> 3. kvar | S19: =IFERROR(O28/W28,) -> 0 | T19: =IF(Podloga!$B$8<3," ",IFERROR((S19/S18)*100,)) -> 
J20: =LEFT(Podloga!J34,7) -> 4. kvar | K20: =IFERROR(G29/C39,) -> 0 | L20: =IF(Podloga!$B$8<4," ",IFERROR(K20/K18*100,)) ->  | R20: =LEFT(Podloga!J34,7) -> 4. kvar | S20: =IFERROR(O29/W29,) -> 0 | T20: =IF(Podloga!$B$8<4," ",IFERROR((S20/S18)*100,)) -> 
J21: =LEFT(Podloga!K34,7) -> Kumulat | K21: =IFERROR(G30/C40,) -> 0.1524515887 | R21: =LEFT(Podloga!K34,7) -> Kumulat | S21: =IFERROR(O30/W30,) -> 0.1064988057
F24: Neto dobit ili gubitak razdoblja (u mil. HRK) | N24: Ukupni prihodi (u mil. HRK) | V24: Ukupna imovina (u mil. HRK)
H25: Index | P25: Index | X25: Index
F26: =LEFT(Podloga!G34,7) -> 1. kvar | G26: =RDG!H63 -> 570573.44 | N26: =LEFT(Podloga!G34,7) -> 1. kvar | O26: =RDG!H57 -> 3742653.29 | V26: =LEFT(Podloga!G34,7) -> 1. kvar | W26: =Bilanca!H68 -> 35142678.52
F27: =LEFT(Podloga!H34,7) -> 2. kvar | G27: =RDG!I63 -> 0 | H27: =IF(Podloga!$B$8<2," ",IFERROR(G27/G26*100,)) ->  | N27: =LEFT(Podloga!H34,7) -> 2. kvar | O27: =RDG!I57 -> 0 | P27: =IF(Podloga!$B$8<2," ",IFERROR(O27/O26*100,)) ->  | V27: =LEFT(Podloga!H34,7) -> 2. kvar | W27: =Bilanca!I68 -> 0 | X27: =IF(Podloga!$B$8<2," ",IFERROR(W27/W26*100,)) -> 
F28: =LEFT(Podloga!I34,7) -> 3. kvar | G28: =RDG!J63 -> 0 | H28: =IF(Podloga!$B$8<3," ",IFERROR(G28/G27*100,)) ->  | N28: =LEFT(Podloga!I34,7) -> 3. kvar | O28: =RDG!J57 -> 0 | P28: =IF(Podloga!$B$8<3," ",IFERROR(O28/O27*100,)) ->  | V28: =LEFT(Podloga!I34,7) -> 3. kvar | W28: =Bilanca!J68 -> 0 | X28: =IF(Podloga!$B$8<3," ",IFERROR(W28/W27*100,)) -> 
F29: =LEFT(Podloga!J34,7) -> 4. kvar | G29: =RDG!K63 -> 0 | H29: =IF(Podloga!$B$8<4," ",IFERROR(G29/G27*100,)) ->  | N29: =LEFT(Podloga!J34,7) -> 4. kvar | O29: =RDG!K57 -> 0 | P29: =IF(Podloga!$B$8<4," ",IFERROR(O29/O27*100,)) ->  | V29: =LEFT(Podloga!J34,7) -> 4. kvar | W29: =Bilanca!K68 -> 0 | X29: =IF(Podloga!$B$8<4," ",IFERROR(W29/W27*100,)) -> 
F30: =LEFT(Podloga!K34,7) -> Kumulat | G30: =RDG!L63 -> 570573.44 | N30: =LEFT(Podloga!K34,7) -> Kumulat | O30: =RDG!L57 -> 3742653.29 | V30: =LEFT(Podloga!K34,7) -> Kumulat | W30: =Bilanca!L68 -> 35142678.52
B34: Ukupni prihodi (u mil. HRK) | J34: Ukupni rashodi + porez na dobit (u mil. HRK) | R34: Kratkotrajna imovina (u mil. HRK) | Z34: Dugotrajna imovina (u mil. HRK)
D35: Index | L35: Index | T35: Index | AB35: Index
B36: =LEFT(Podloga!G34,7) -> 1. kvar | C36: =RDG!H57 -> 3742653.29 | J36: =LEFT(Podloga!G34,7) -> 1. kvar | K36: =RDG!H58+RDG!H62 -> 3172079.85 | R36: =LEFT(Podloga!G34,7) -> 1. kvar | S36: =Bilanca!H40+Bilanca!H67 -> 18826037.56 | Z36: =LEFT(Podloga!G34,7) -> 1. kvar | AA36: =Bilanca!H5 -> 16316640.96
B37: =LEFT(Podloga!H34,7) -> 2. kvar | C37: =RDG!I57 -> 0 | D37: =IF(Podloga!$B$8<2," ",IFERROR(C37/C36*100,)) ->  | J37: =LEFT(Podloga!H34,7) -> 2. kvar | K37: =RDG!I58+RDG!I62 -> 0 | L37: =IF(Podloga!$B$8<2," ",IFERROR(K37/K36*100,)) ->  | R37: =LEFT(Podloga!H34,7) -> 2. kvar | S37: =Bilanca!I40+Bilanca!I67 -> 0 | T37: =IF(Podloga!$B$8<2," ",IFERROR(S37/S36*100,)) ->  | Z37: =LEFT(Podloga!H34,7) -> 2. kvar | AA37: =Bilanca!I5 -> 0 | AB37: =IF(Podloga!$B$8<2," ",IFERROR(AA37/AA36*100,)) -> 
B38: =LEFT(Podloga!I34,7) -> 3. kvar | C38: =RDG!J57 -> 0 | D38: =IF(Podloga!$B$8<3," ",IFERROR(C38/C37*100,)) ->  | J38: =LEFT(Podloga!I34,7) -> 3. kvar | K38: =RDG!J58+RDG!J62 -> 0 | L38: =IF(Podloga!$B$8<3," ",IFERROR(K38/K37*100,)) ->  | R38: =LEFT(Podloga!I34,7) -> 3. kvar | S38: =Bilanca!J40+Bilanca!J67 -> 0 | T38: =IF(Podloga!$B$8<3," ",IFERROR(S38/S37*100,)) ->  | Z38: =LEFT(Podloga!I34,7) -> 3. kvar | AA38: =Bilanca!J5 -> 0 | AB38: =IF(Podloga!$B$8<3," ",IFERROR(AA38/AA37*100,)) -> 
B39: =LEFT(Podloga!J34,7) -> 4. kvar | C39: =RDG!K57 -> 0 | D39: =IF(Podloga!$B$8<4," ",IFERROR(C39/C37*100,)) ->  | J39: =LEFT(Podloga!J34,7) -> 4. kvar | K39: =RDG!K58+RDG!K62 -> 0 | L39: =IF(Podloga!$B$8<4," ",IFERROR(K39/K37*100,)) ->  | R39: =LEFT(Podloga!J34,7) -> 4. kvar | S39: =Bilanca!K40+Bilanca!K67 -> 0 | T39: =IF(Podloga!$B$8<4," ",IFERROR(S39/S37*100,)) ->  | Z39: =LEFT(Podloga!J34,7) -> 4. kvar | AA39: =Bilanca!K5 -> 0 | AB39: =IF(Podloga!$B$8<4," ",IFERROR(AA39/AA37*100,)) -> 
B40: =LEFT(Podloga!K34,7) -> Kumulat | C40: =RDG!L57 -> 3742653.29 | J40: =LEFT(Podloga!K34,7) -> Kumulat | K40: =RDG!L58+RDG!L62 -> 3172079.85 | R40: =LEFT(Podloga!K34,7) -> Kumulat | S40: =Bilanca!L40+Bilanca!L67 -> 18826037.56 | Z40: =LEFT(Podloga!K34,7) -> Kumulat | AA40: =Bilanca!L5 -> 16316640.96
A44: * Ostvareni rezultati u određenom kvartalu se uspoređuju s ostvarenim rezultatima iz prethodnog kvartala
A51: =HYPERLINK("#Sadržaj!A1","Povratak na sadržaj") -> Povratak na sadržaj

Sheet _TM_Altman Integral (Basic) (hidden)
A1: Left | B1: Top | C1: Right | D1: Bottom | E1: Ref
A2: 2 | B2: 1 | C2: 10 | D2: 1 | E2: $B$1:$J$1

Sheet Altman Integral (Basic) (hidden)
B1: =Naslovna!B3&" - "&Naslovna!C2 -> Ministarstvo državne imovine - Tromjesečni financijski izvještaj o poslovanju
A2: Altman Integral (Basic)
B4: Društvo: | C4: =Podloga!B2 -> LUKA-VUKOVAR doo
B5: Tip dokumenta: | C5: =Naslovna!C8 -> Tromjesečni financijski izvještaj o poslovanju
B6: Sastavlja se za: | C6: =Podloga!B8&". kvartal, " &Podloga!B7 -> 1. kvartal, 2020
B8: Basic model se koristi za proizvodna trgovačka društva koja kotiraju na burzi
C30: =Podloga!B34 -> 1. kvartal 2019 | D30: =Podloga!C34 -> 2. kvartal 2019 | E30: =Podloga!D34 -> 3. kvartal 2019 | F30: =Podloga!E34 -> 4. kvartal 2019 | G30: =Podloga!G34 -> 1. kvartal 2020 | H30: =Podloga!H34 -> 2. kvartal 2020 | I30: =Podloga!I34 -> 3. kvartal 2020 | J30: =Podloga!J34 -> 4. kvartal 2020
B31: Z-score | C31: =IFERROR('Dashboard (data)'!$CB$2*'Dashboard (data)'!BQ2+'Dashboard (data)'!$CB$3*'Dashboard (data)'!BQ3+'Dashboard (data)'!$CB$4*'Dashboard (data)'!BQ4+'Dashboard (data)'!$CB$5*'Dashboard (data)'!BQ5+'Dashboard (data)'!$CB$6*'Dashboard (data)'!BQ6,) -> 0.4694070554 | D31: =IFERROR('Dashboard (data)'!$CB$2*'Dashboard (data)'!BR2+'Dashboard (data)'!$CB$3*'Dashboard (data)'!BR3+'Dashboard (data)'!$CB$4*'Dashboard (data)'!BR4+'Dashboard (data)'!$CB$5*'Dashboard (data)'!BR5+'Dashboard (data)'!$CB$6*'Dashboard (data)'!BR6,) -> 0.4723226948 | E31: =IFERROR('Dashboard (data)'!$CB$2*'Dashboard (data)'!BS2+'Dashboard (data)'!$CB$3*'Dashboard (data)'!BS3+'Dashboard (data)'!$CB$4*'Dashboard (data)'!BS4+'Dashboard (data)'!$CB$5*'Dashboard (data)'!BS5+'Dashboard (data)'!$CB$6*'Dashboard (data)'!BS6,) -> 0.5727113191 | F31: =IFERROR('Dashboard (data)'!$CB$2*'Dashboard (data)'!BT2+'Dashboard (data)'!$CB$3*'Dashboard (data)'!BT3+'Dashboard (data)'!$CB$4*'Dashboard (data)'!BT4+'Dashboard (data)'!$CB$5*'Dashboard (data)'!BT5+'Dashboard (data)'!$CB$6*'Dashboard (data)'!BT6,) -> 0.5218941216 | G31: =IFERROR('Dashboard (data)'!$CB$2*'Dashboard (data)'!BU2+'Dashboard (data)'!$CB$3*'Dashboard (data)'!BU3+'Dashboard (data)'!$CB$4*'Dashboard (data)'!BU4+'Dashboard (data)'!$CB$5*'Dashboard (data)'!BU5+'Dashboard (data)'!$CB$6*'Dashboard (data)'!BU6,) -> 0.5964707051 | H31: =IFERROR('Dashboard (data)'!$CB$2*'Dashboard (data)'!BV2+'Dashboard (data)'!$CB$3*'Dashboard (data)'!BV3+'Dashboard (data)'!$CB$4*'Dashboard (data)'!BV4+'Dashboard (data)'!$CB$5*'Dashboard (data)'!BV5+'Dashboard (data)'!$CB$6*'Dashboard (data)'!BV6,) -> 0 | I31: =IFERROR('Dashboard (data)'!$CB$2*'Dashboard (data)'!BW2+'Dashboard (data)'!$CB$3*'Dashboard (data)'!BW3+'Dashboard (data)'!$CB$4*'Dashboard (data)'!BW4+'Dashboard (data)'!$CB$5*'Dashboard (data)'!BW5+'Dashboard (data)'!$CB$6*'Dashboard (data)'!BW6,) -> 0 | J31: =IFERROR('Dashboard (data)'!$CB$2*'Dashboard (data)'!BX2+'Dashboard (data)'!$CB$3*'Dashboard (data)'!BX3+'Dashboard (data)'!$CB$4*'Dashboard (data)'!BX4+'Dashboard (data)'!$CB$5*'Dashboard (data)'!BX5+'Dashboard (data)'!$CB$6*'Dashboard (data)'!BX6,) -> 0
I33: 3
B34: Objašnjenje | C34: Raspon vrijednosti vezan uz rizik bankrota (od -4,00 do +8,00)
C35: Vrlo niski rizik | D35: Zona nesigurnosti | F35: Visoki rizik
B36: Z-score model (Basic) | C36: ≥ 3,00 | D36: 2,99 – 1,81 | F36: ≤ 1,80
C39: =Podloga!B34 -> 1. kvartal 2019 | D39: =Podloga!C34 -> 2. kvartal 2019 | E39: =Podloga!D34 -> 3. kvartal 2019 | F39: =Podloga!E34 -> 4. kvartal 2019 | G39: =Podloga!G34 -> 1. kvartal 2020 | H39: =Podloga!H34 -> 2. kvartal 2020 | I39: =Podloga!I34 -> 3. kvartal 2020 | J39: =Podloga!J34 -> 4. kvartal 2020
B40: Kratkotrajna imovina | C40: =Bilanca!C40 -> 16950383.82 | D40: =Bilanca!D40 -> 17109560.65 | E40: =Bilanca!E40 -> 17918647.24 | F40: =Bilanca!F40 -> 17437730 | G40: =Bilanca!H40 -> 18394322.46 | H40: =Bilanca!I40 -> 0 | I40: =Bilanca!J40 -> 0 | J40: =Bilanca!K40 -> 0
B41: Ukupna imovina | C41: =Bilanca!C68 -> 34007293.12 | D41: =Bilanca!D68 -> 33790468.28 | E41: =Bilanca!E68 -> 35135695.48 | F41: =Bilanca!F68 -> 34204789 | G41: =Bilanca!H68 -> 35142678.52 | H41: =Bilanca!I68 -> 0 | I41: =Bilanca!J68 -> 0 | J41: =Bilanca!K68 -> 0
B42: Zadržana dobit | C42: =Bilanca!C89 -> -5074763.78 | D42: =Bilanca!D89 -> -5074763.78 | E42: =Bilanca!E89 -> -5074763.78 | F42: =Bilanca!F89 -> -5074763 | G42: =Bilanca!H89 -> -4812301.6 | H42: =Bilanca!I89 -> 0 | I42: =Bilanca!J89 -> 0 | J42: =Bilanca!K89 -> 0
B43: Operativna dobit (EBIT) | C43: =RDG!C59+RDG!C46+RDG!C48 -> -175883.76 | D43: =RDG!D59+RDG!D46+RDG!D48 -> -230995.97 | E43: =RDG!E59+RDG!E46+RDG!E48 -> 520215.07 | F43: =RDG!F59+RDG!F46+RDG!F48 -> 149148.66 | G43: =RDG!H59+RDG!H46+RDG!H48 -> 570594.01 | H43: =RDG!I59+RDG!I46+RDG!I48 -> 0 | I43: =RDG!J59+RDG!J46+RDG!J48 -> 0 | J43: =RDG!K59+RDG!K46+RDG!K48 -> 0
B44: Knjigovodstvena vrijednost ukupnih obveza | C44: =Bilanca!C103+Bilanca!C115 -> 939866.91 | D44: =Bilanca!D103+Bilanca!D115 -> 1032916.38 | E44: =Bilanca!E103+Bilanca!E115 -> 1936785.88 | F44: =Bilanca!F103+Bilanca!F115 -> 935577 | G44: =Bilanca!H103+Bilanca!H115 -> 1381737.83 | H44: =Bilanca!I103+Bilanca!I115 -> 0 | I44: =Bilanca!J103+Bilanca!J115 -> 0 | J44: =Bilanca!K103+Bilanca!K115 -> 0
